Workbook

Sheet Casino
A1: 0 | R1: Rounds played: | U1: 1 | X1: Pre-pocket | Y1: Pre-flop | Z1: Post-flop | AA1: Post-turn | AB1: Post-river
A2: 1 | H2: School Logo | W2: Royal Flush | X2: =(4*(COMBIN(52-13,2)+COMBIN(13-5,1)*COMBIN(52-13,1)+COMBIN(13-5,2)))/COMBIN(52,7) -> 3.232062056e-05 | AC2: Simulated probability distributions
A3: 0 | W3: Straight Flush | X3: =(4*(10*COMBIN(52-13,2)+71*COMBIN(52-13,1)+217)-4*(COMBIN(52-13,2)+COMBIN(13-5,1)*COMBIN(52-13,1)+COMBIN(13-5,2)))/COMBIN(52,7) -> 0.000278507475
A4: 0 | W4: Four of a Kind | X4: =(COMBIN(13,1)*COMBIN(52-4,7-4))/COMBIN(52,7) -> 0.001680672269
A5: 0 | W5: Full House | X5: =(COMBIN(13,4) *COMBIN(4,3)*COMBIN(4,2)*COMBIN(4,1)^2*COMBIN(4,2)*COMBIN(2,1)+COMBIN(13,3)*COMBIN(4,3)*COMBIN(4,2)*COMBIN(4,2)*COMBIN(3,1)+COMBIN(13,2)*COMBIN(4,3)^2*COMBIN(52-8,7-6))/COMBIN(52,7) -> 0.02596102271
W6: Flush | X6: =(4*(COMBIN(13,5)*COMBIN(52-13,2)+COMBIN(13,6)*COMBIN(52-13,1)+COMBIN(13,7))-4*(10*COMBIN(52-13,2)+71*COMBIN(52-13,1)+217))/COMBIN(52,7) -> 0.03025494123
W7: Straight | X7: =(217 *( 4^7 - 4* COMBIN(7,5)* 3^2 - 4* COMBIN(7,6)* 3 - 4* COMBIN(7,7))+71*COMBIN(6,1)*COMBIN(4,2)*(4^5-COMBIN(2,1)*(COMBIN(5,4)*3+COMBIN(5,5))-COMBIN(4-2,1))+10*COMBIN(5,2)*( COMBIN(4,2)^2 *4^3 - 4* 3^2)+10*COMBIN(5,1)*COMBIN(4,3)*(4^4 - COMBIN(3,1)))/COMBIN(52,7) -> 0.04619382087
A8: 1 | W8: Three of a Kind | X8: =((COMBIN(13,5)-10)* COMBIN(5,1) * COMBIN(4,3)* ( 4^4 - COMBIN(3,1)))/COMBIN(52,7) -> 0.04829869755
W9: Two Pair | X9: =(COMBIN(13,3)* COMBIN(4,2)^3*COMBIN(52-12,7-6)+(COMBIN(13,5)-10)*COMBIN(5,2)*(COMBIN(4,2)^2*4^3-4*COMBIN(4-1,2)^2))/COMBIN(52,7) -> 0.2349553641
A10: 2 | W10: One Pair | X10: =((COMBIN(13,6)-71)* COMBIN(6,1) *COMBIN(4,2) *( 4^5 - COMBIN(2,1)*(COMBIN(5,4)*3 + COMBIN(5,5)) - COMBIN(4-2,1)))/COMBIN(52,7) -> 0.4382254574
A11: 4 | B11: Smal/Big blinds | W11: High Card | X11: =((COMBIN(13,7)-217) *( 4^7 - 4* COMBIN(7,5)* 3^2 - 4*COMBIN(7,6) *3 - 4* COMBIN(7,7)))/COMBIN(52,7) -> 0.1741191958
B12: $2/$4 | W12: Conditional probability
W13: Probability that my opponent bluffs:
W14: Probability that my opponent raises:
W15: Probability that he raises AND bluffs:
W16: What is the chance that he raises given he has bluffed?
W17: Bayes' Rule (conditional probability using new information)
W18: Probability that my opponent bluffs:
B19: 1 | W19: Probability that he raises given he has bluffed (new info.) :
B20: 0 | W20: Probability that he raises given he has not bluffed (new info.):
U21: Bluffer | W21: What is the chance that he is bluffing given he has raised the bet?
D25: D | K25: 900 | Q25: 900
W26: The info. that he has bluffed enables us to replace the prior probability
W27: P(Bluff) by the posterior probability P(Bluff | Raise)

Sheet Deck2 (hidden)
A1: 1 | B1: ♠A | C1: 0.06816387177 | D1: =RANK(C1,$C$1:$C$52) -> 51 | E1: S | F1: 1 | H1: Royal Flush | I1: 1 | L1: =RANK(L8,$L$8:$P$8,1) ->  | M1: =RANK(M8,$L$8:$P$8,1) ->  | N1: =RANK(N8,$L$8:$P$8,1) ->  | O1: =RANK(O8,$L$8:$P$8,1) ->  | P1: =RANK(P8,$L$8:$P$8,1) ->  | R1: =RANK(R8,$R$8:$V$8,1) ->  | S1: =RANK(S8,$R$8:$V$8,1) ->  | AN1: Student | AV1: Robot1 | BY1: Match? | CB1: Match?
A2: 2 | B2: ♠2 | C2: 0.7660394907 | D2: 13 | E2: S | F2: 2 | H2: Straight Flush | I2: 2 | J2: 1 | L2: =[0]!Player11 -> 0 | M2: =[0]!Player12 -> 0 | N2: =[0]!House1 -> 0 | O2: =[0]!House2 -> 0 | P2: =[0]!House3 -> 0 | R2: =[0]!Player21 -> 0 | S2: =[0]!Player22 -> 0 | T2: =[0]!House1 -> 0 | U2: =[0]!House2 -> 0 | V2: =[0]!House3 -> 0 | BW2: Student | BZ2: Robot1
A3: 3 | B3: ♠3 | C3: 0.5373985767 | D3: 29 | E3: S | F3: 3 | H3: Four of a Kind | I3: 3 | L3: =VLOOKUP(L2,$B$1:$F$52,5,0) ->  | M3: =VLOOKUP(M2,$B$1:$F$52,5,0) ->  | N3: =VLOOKUP(N2,$B$1:$F$52,5,0) ->  | O3: =VLOOKUP(O2,$B$1:$F$52,5,0) ->  | P3: =VLOOKUP(P2,$B$1:$F$52,5,0) ->  | R3: =VLOOKUP(R2,$B$1:$F$52,5,0) ->  | S3: =VLOOKUP(S2,$B$1:$F$52,5,0) ->  | T3: =VLOOKUP(T2,$B$1:$F$52,5,0) ->  | U3: =VLOOKUP(U2,$B$1:$F$52,5,0) ->  | V3: =VLOOKUP(V2,$B$1:$F$52,5,0) ->  | BW3: Number | BX3: Suit | BY3: Total | BZ3: Number | CA3: Suit | CB3: Total
A4: 4 | B4: ♠4 | C4: 0.3939369917 | D4: 35 | E4: S | F4: 4 | H4: Full House | I4: 4 | L4: =VLOOKUP(L2,$B$1:$F$52,4,0) ->  | M4: =VLOOKUP(M2,$B$1:$F$52,4,0) ->  | N4: =VLOOKUP(N2,$B$1:$F$52,4,0) ->  | O4: =VLOOKUP(O2,$B$1:$F$52,4,0) ->  | P4: =VLOOKUP(P2,$B$1:$F$52,4,0) ->  | R4: =VLOOKUP(R2,$B$1:$F$52,4,0) ->  | S4: =VLOOKUP(S2,$B$1:$F$52,4,0) ->  | T4: =VLOOKUP(T2,$B$1:$F$52,4,0) ->  | U4: =VLOOKUP(U2,$B$1:$F$52,4,0) ->  | V4: =VLOOKUP(V2,$B$1:$F$52,4,0) ->  | AH4: 1 | AI4: =L5 ->  | AJ4: =M5 ->  | AK4: =N5 ->  | AL4: =O5 ->  | AM4: =P5 ->  | AN4: =INDEX($BV$4:$BV$13,MATCH(1,$BY$4:$BY$13,0)) ->  | AO4: =INDEX($BU$4:$BU$13,MATCH(AN4,$BV$4:$BV$13,0)) ->  | AP4: 1 | AQ4: =R5 ->  | AR4: =S5 ->  | AS4: =T5 ->  | AT4: =U5 ->  | AU4: =V5 ->  | AV4: =INDEX($BV$4:$BV$13,MATCH(1,$CB$4:$CB$13,0)) ->  | AW4: =INDEX($BU$4:$BU$13,MATCH(AV4,$BV$4:$BV$13,0)) ->  | BU4: 1 | BV4: =CG4 -> Royal Flush | BW4: =CH4 ->  | CG4: Royal Flush | CH4: =IF(AND(10=AI4,11=AJ4,12=AK4,13=AL4,1=AM4),1,0) ->  | CI4: =IF(AND(AI25=AJ25,AJ25=AK25,AK25=AL25,AL25=AM25),1,0) ->  | CJ4: =CH4*CI4 ->  | CK4: =IF(AND(10=AQ4,11=AR4,12=AS4,13=AT4,1=AU4),1,0) ->  | CL4: =IF(AND(AQ25=AR25,AR25=AS25,AS25=AT25,AT25=AU25),1,0) ->  | CM4: =CK4*CL4 ->  | CR4: Straight Flush | CS4: =IF(OR(AND(AI4<10,AJ4=AI4+1,AK4=AJ4+1,AL4=AK4+1,AM4=AL4+1),AND(AI4=2,AJ4=3,AK4=4,AL4=5,AM4=1)),1,0) ->  | CT4: =IF(AND(AI25=AJ25,AJ25=AK25,AK25=AL25,AL25=AM25),1,0) ->  | CU4: =CS4*CT4 ->  | CV4: =IF(OR(AND(AQ4<10,AR4=AQ4+1,AS4=AR4+1,AT4=AS4+1,AU4=AT4+1),AND(AQ4=2,AR4=3,AS4=4,AT4=5,AU4=1)),1,0) ->  | CW4: =IF(AND(AQ25=AR25,AR25=AS25,AS25=AT25,AT25=AU25),1,0) ->  | CX4: =CV4*CW4 ->  | DC4: Four of a Kind | DD4: =IF(OR(AND(AI4=AJ4,AJ4=AK4,AK4=AL4),AND(AJ4=AK4,AK4=AL4,AL4=AM4)),1,0) ->  | DF4: =DD4 ->  | DG4: =IF(OR(AND(AQ4=AR4,AR4=AS4,AS4=AT4),AND(AR4=AS4,AS4=AT4,AT4=AU4)),1,0) ->  | DI4: =DG4 ->  | DN4: Full House | DO4: =IF(OR(AND(AI4=AJ4,AJ4=AK4,AL4=AM4),AND(AI4=AJ4,AK4=AL4,AL4=AM4)),1,0) ->  | DQ4: =DO4 ->  | DR4: =IF(OR(AND(AQ4=AR4,AR4=AS4,AT4=AU4),AND(AQ4=AR4,AS4=AT4,AT4=AU4)),1,0) ->  | DT4: =DR4 ->  | DY4: Flush | DZ4: =IF(AND(AI25=AJ25,AJ25=AK25,AK25=AL25,AL25=AM25),1,0) ->  | EB4: =DZ4 ->  | EC4: =IF(AND(AQ25=AR25,AR25=AS25,AS25=AT25,AT25=AU25),1,0) ->  | EE4: =EC4 ->  | EJ4: Straight | EK4: =IF( OR( AND(AI4<10,AJ4=AI4+1,AK4=AJ4+1,AL4=AK4+1,AM4=AL4+1), AND(AI4=10,AJ4=11,AK4=12,AL4=13,AM4=1) ),1,0) ->  | EL4: =IF(AND(AI25=AJ25,AJ25=AK25,AK25=AL25,AL25=AM25),0,1) ->  | EM4: =EK4*EL4 ->  | EN4: =IF(OR( AND(AQ4<10,AR4=AQ4+1,AS4=AR4+1,AT4=AS4+1,AU4=AT4+1), AND(AQ4=10,AR4=11,AS4=12,AT4=13,AU4=1), ),1,0) ->  | EO4: =IF(AND(AQ25=AR25,AR25=AS25,AS25=AT25,AT25=AU25),0,1) ->  | EP4: =EN4*EO4 ->  | EU4: Three of a Kind | EV4: =IF(OR(AND(AI4=AJ4,AJ4=AK4,AL4<>AM4),AND(AI4<>AJ4,AK4=AL4,AL4=AM4),AND(AJ4=AK4,AK4=AL4)),1,0) ->  | EX4: =EV4 ->  | EY4: =IF(OR(AND(AQ4=AR4,AR4=AS4,AT4<>AU4),AND(AQ4<>AR4,AS4=AT4,AT4=AU4),AND(AR4=AS4,AS4=AT4)),1,0) ->  | FA4: =EY4 ->  | FF4: Two Pair | FG4: =IF(OR(AND(AI4=AJ4,AK4=AL4,AM4<>AI4,AM4<>AK4,AJ4<>AK4),AND(AJ4=AK4,AL4=AM4,AI4<>AJ4,AI4<>AL4,AK4<>AL4),AND(AI4=AJ4,AL4=AM4,AK4<>AJ4,AK4<>AL4,AJ4<>AL4)),1,0) ->  | FI4: =FG4 ->  | FJ4: =IF(OR(AND(AQ4=AR4,AS4=AT4,AU4<>AQ4,AU4<>AS4,AR4<>AS4),AND(AR4=AS4,AT4=AU4,AQ4<>AR4,AQ4<>AT4,AS4<>AT4),AND(AQ4=AR4,AT4=AU4,AS4<>AR4,AS4<>AT4,AR4<>AT4)),1,0) ->  | FL4: =FJ4 ->  | FQ4: One Pair | FR4: =IF(OR(AND(AI4=AJ4,AJ4<>AK4,AK4<>AL4,AL4<>AM4),AND(AI4<>AJ4,AJ4=AK4,AK4<>AL4,AL4<>AM4),AND(AI4<>AJ4,AJ4<>AK4,AK4=AL4,AL4<>AM4),AND(AI4<>AJ4,AJ4<>AK4,AK4<>AL4,AL4=AM4)),1,0) ->  | FT4: =FR4 ->  | FU4: =IF(OR(AND(AQ4=AR4,AR4<>AS4,AS4<>AT4,AT4<>AU4),AND(AQ4<>AR4,AR4=AS4,AS4<>AT4,AT4<>AU4),AND(AQ4<>AR4,AR4<>AS4,AS4=AT4,AT4<>AU4),AND(AQ4<>AR4,AR4<>AS4,AS4<>AT4,AT4=AU4)),1,0) ->  | FW4: =FU4 ->  | GB4: High Card | GC4: =IF(AND(AI4<>AJ4,AJ4<>AK4,AK4<>AL4,AL4<>AM4),1,0) ->  | GE4: =GC4 ->  | GF4: =IF(AND(AQ4<>AR4,AR4<>AS4,AS4<>AT4,AT4<>AU4),1,0) ->  | GH4: =GF4 -> 
A5: 5 | B5: ♠5 | C5: 0.8315424919 | D5: 7 | E5: S | F5: 5 | H5: Flush | I5: 5 | L5: =HLOOKUP(L7,$L$1:$P$4,3,0) ->  | M5: =HLOOKUP(M7,$L$1:$P$4,3,0) ->  | N5: =HLOOKUP(N7,$L$1:$P$4,3,0) ->  | O5: =HLOOKUP(O7,$L$1:$P$4,3,0) ->  | P5: =HLOOKUP(P7,$L$1:$P$4,3,0) ->  | R5: =HLOOKUP(R7,$R$1:$V$4,3,0) ->  | S5: =HLOOKUP(S7,$R$1:$V$4,3,0) ->  | T5: =HLOOKUP(T7,$R$1:$V$4,3,0) ->  | U5: =HLOOKUP(U7,$R$1:$V$4,3,0) ->  | V5: =HLOOKUP(V7,$R$1:$V$4,3,0) ->  | AH5: 2 | AI5: =L14 ->  | AJ5: =M14 ->  | AK5: =N14 ->  | AL5: =O14 ->  | AM5: =P14 ->  | AN5: =INDEX($BV$15:$BV$24,MATCH(1,$BY$15:$BY$24,0)) ->  | AP5: 2 | AQ5: =R14 ->  | AR5: =S14 ->  | AS5: =T14 ->  | AT5: =U14 ->  | AU5: =V14 ->  | AV5: =INDEX($BV$15:$BV$24,MATCH(1,$CB$15:$CB$24,0)) ->  | BU5: 2 | BV5: =CR4 -> Straight Flush | BW5: =CS4 ->  | CG5: Royal Flush | CR5: Straight Flush | CS5: =IF(OR(AND(AI5<10,AJ5=AI5+1,AK5=AJ5+1,AL5=AK5+1,AM5=AL5+1),AND(AI5=2,AJ5=3,AK5=4,AL5=5,AM5=1)),1,0) ->  | CV5: =IF(OR(AND(AQ5<10,AR5=AQ5+1,AS5=AR5+1,AT5=AS5+1,AU5=AT5+1),AND(AQ5=2,AR5=3,AS5=4,AT5=5,AU5=1)),1,0) ->  | CX5: =CV5*CW5 ->  | DC5: Four of a Kind | DN5: Full House | DY5: Flush | EJ5: Straight | EK5: =IF( OR( AND(AI5<10,AJ5=AI5+1,AK5=AJ5+1,AL5=AK5+1,AM5=AL5+1), AND(AI5=10,AJ5=11,AK5=12,AL5=13,AM5=1) ),1,0) ->  | EL5: =IF(AND(AI26=AJ26,AJ26=AK26,AK26=AL26,AL26=AM26),0,1) ->  | EN5: =IF(OR( AND(AQ5<10,AR5=AQ5+1,AS5=AR5+1,AT5=AS5+1,AU5=AT5+1), AND(AQ5=10,AR5=11,AS5=12,AT5=13,AU5=1), ),1,0) ->  | EU5: Three of a Kind | FF5: Two Pair | FQ5: One Pair | GB5: High Card
A6: 6 | B6: ♠6 | C6: 0.8288298845 | D6: 8 | E6: S | F6: 6 | H6: Straight | I6: 6 | L6: =HLOOKUP(L7,$L$1:$P$4,4,0) ->  | M6: =HLOOKUP(M7,$L$1:$P$4,4,0) ->  | N6: =HLOOKUP(N7,$L$1:$P$4,4,0) ->  | O6: =HLOOKUP(O7,$L$1:$P$4,4,0) ->  | P6: =HLOOKUP(P7,$L$1:$P$4,4,0) ->  | R6: =HLOOKUP(R7,$R$1:$V$4,4,0) ->  | S6: =HLOOKUP(S7,$R$1:$V$4,4,0) ->  | T6: =HLOOKUP(T7,$R$1:$V$4,4,0) ->  | U6: =HLOOKUP(U7,$R$1:$V$4,4,0) ->  | V6: =HLOOKUP(V7,$R$1:$V$4,4,0) ->  | AH6: 3 | AI6: =L23 ->  | AJ6: =M23 ->  | AK6: =N23 ->  | AL6: =O23 ->  | AM6: =P23 ->  | AN6: =INDEX($BV$26:$BV$35,MATCH(1,$BY$26:$BY$35,0)) ->  | AP6: 3 | AQ6: =R23 ->  | AR6: =S23 ->  | AS6: =T23 ->  | AT6: =U23 ->  | AU6: =V23 ->  | AV6: =INDEX($BV$26:$BV$35,MATCH(1,$CB$26:$CB$35,0)) ->  | BU6: 3 | BV6: =DC4 -> Four of a Kind | BW6: =DD4 ->  | BX6: 0 | CA6: 0 | CG6: Royal Flush | CR6: Straight Flush | DC6: Four of a Kind | DN6: Full House | DY6: Flush | EJ6: Straight | EU6: Three of a Kind | FF6: Two Pair | FQ6: One Pair | GB6: High Card
A7: 7 | B7: ♠7 | C7: 0.8339574337 | D7: 6 | E7: S | F7: 7 | H7: Three of a Kind | I7: 7 | L7: 1 | M7: 2 | N7: 3 | O7: 4 | P7: 5 | R7: 1 | S7: 2 | T7: 3 | U7: 4 | V7: 5 | AH7: 4 | AI7: =L32 ->  | AJ7: =M32 ->  | AK7: =N32 ->  | AL7: =O32 ->  | AM7: =P32 ->  | AN7: =INDEX($BV$37:$BV$46,MATCH(1,$BY$37:$BY$46,0)) ->  | AP7: 4 | AQ7: =R32 ->  | AR7: =S32 ->  | AS7: =T32 ->  | AT7: =U32 ->  | AU7: =V32 ->  | AV7: =INDEX($BV$37:$BV$46,MATCH(1,$CB$37:$CB$46,0)) ->  | BU7: 4 | BV7: =DN4 -> Full House | BW7: =DO4 ->  | BX7: 0 | CA7: 0 | CG7: Royal Flush | CR7: Straight Flush | DC7: Four of a Kind | DN7: Full House | DY7: Flush | EJ7: Straight | EU7: Three of a Kind | FF7: Two Pair | FQ7: One Pair | GB7: High Card
A8: 8 | B8: ♠8 | C8: 0.6459745169 | D8: 21 | E8: S | F8: 8 | H8: Two Pair | I8: 8 | L8: =L3+IF(L3=1,13+RAND()^3,RAND()^3) ->  | M8: =M3+IF(M3=1,13+RAND()^3,RAND()^3) ->  | Q8: 0.0005704059109 | W8: 0.007630522143 | AH8: 5 | AI8: =L41 ->  | AJ8: =M41 ->  | AK8: =N41 ->  | AL8: =O41 ->  | AM8: =P41 ->  | AN8: =INDEX($BV$48:$BV$57,MATCH(1,$BY$48:$BY$57,0)) ->  | AP8: 5 | AQ8: =R41 ->  | AR8: =S41 ->  | AS8: =T41 ->  | AT8: =U41 ->  | AU8: =V41 ->  | AV8: =INDEX($BV$48:$BV$57,MATCH(1,$CB$48:$CB$57,0)) ->  | BU8: 5 | BV8: =DY4 -> Flush | BW8: =DZ4 ->  | BX8: 0 | CA8: 0 | CG8: Royal Flush | CR8: Straight Flush | DC8: Four of a Kind | DN8: Full House | DY8: Flush | EJ8: Straight | EU8: Three of a Kind | FF8: Two Pair | FQ8: One Pair | GB8: High Card
A9: 9 | B9: ♠9 | C9: 0.346950531 | D9: 39 | E9: S | F9: 9 | H9: One Pair | I9: 9 | AH9: 6 | AI9: =L50 ->  | AJ9: =M50 ->  | AK9: =N50 ->  | AL9: =O50 ->  | AM9: =P50 ->  | AN9: =INDEX($BV$59:$BV$68,MATCH(1,$BY$59:$BY$68,0)) ->  | AP9: 6 | AQ9: =R50 ->  | AR9: =S50 ->  | AS9: =T50 ->  | AT9: =U50 ->  | AU9: =V50 ->  | AV9: =INDEX($BV$59:$BV$68,MATCH(1,$CB$59:$CB$68,0)) ->  | BU9: 6 | BV9: =EJ4 -> Straight | BW9: =EK4 ->  | CG9: Royal Flush | CR9: Straight Flush | DC9: Four of a Kind | DN9: Full House | DY9: Flush | EJ9: Straight | EU9: Three of a Kind | FF9: Two Pair | FQ9: One Pair | GB9: High Card
A10: 10 | B10: ♠10 | C10: 0.6911350489 | D10: 19 | E10: S | F10: 10 | H10: High Card | I10: 10 | L10: =RANK(L17,$L$17:$P$17,1) ->  | M10: =RANK(M17,$L$17:$P$17,1) ->  | N10: =RANK(N17,$L$17:$P$17,1) ->  | O10: =RANK(O17,$L$17:$P$17,1) ->  | P10: =RANK(P17,$L$17:$P$17,1) ->  | R10: =RANK(R17,$R$17:$V$17,1) ->  | S10: =RANK(S17,$R$17:$V$17,1) ->  | T10: =RANK(T17,$R$17:$V$17,1) ->  | U10: =RANK(U17,$R$17:$V$17,1) ->  | V10: =RANK(V17,$R$17:$V$17,1) ->  | AH10: 7 | AI10: =L59 ->  | AJ10: =M59 ->  | AK10: =N59 ->  | AL10: =O59 ->  | AM10: =P59 ->  | AN10: =INDEX($BV$70:$BV$79,MATCH(1,$BY$70:$BY$79,0)) ->  | AP10: 7 | AQ10: =R59 ->  | AR10: =S59 ->  | AS10: =T59 ->  | AT10: =U59 ->  | AU10: =V59 ->  | AV10: =INDEX($BV$70:$BV$79,MATCH(1,$CB$70:$CB$79,0)) ->  | BU10: 7 | BV10: =EU4 -> Three of a Kind | BW10: =EV4 ->  | BX10: 0 | CA10: 0 | CG10: Royal Flush | CR10: Straight Flush | DC10: Four of a Kind | DN10: Full House | DY10: Flush | EJ10: Straight | EU10: Three of a Kind | FF10: Two Pair | FQ10: One Pair | GB10: High Card
A11: 11 | B11: ♠J | C11: 0.6073992252 | D11: 23 | E11: S | F11: 11 | J11: 2 | L11: =[0]!Player11 -> 0 | M11: =[0]!Player12 -> 0 | N11: =[0]!House1 -> 0 | O11: =[0]!House2 -> 0 | P11: =[0]!House4 -> 0 | R11: =[0]!Player21 -> 0 | S11: =[0]!Player22 -> 0 | T11: =[0]!House1 -> 0 | U11: =[0]!House2 -> 0 | V11: =[0]!House4 -> 0 | AH11: 8 | AI11: =L68 ->  | AJ11: =M68 ->  | AK11: =N68 ->  | AL11: =O68 ->  | AM11: =P68 ->  | AN11: =INDEX($BV$81:$BV$90,MATCH(1,$BY$81:$BY$90,0)) ->  | AP11: 8 | AQ11: =R68 ->  | AR11: =S68 ->  | AS11: =T68 ->  | AT11: =U68 ->  | AU11: =V68 ->  | AV11: =INDEX($BV$81:$BV$90,MATCH(1,$CB$81:$CB$90,0)) ->  | BU11: 8 | BV11: =FF4 -> Two Pair | BW11: =FG4 ->  | BX11: 0 | CA11: 0 | CG11: Royal Flush | CR11: Straight Flush | DC11: Four of a Kind | DN11: Full House | DY11: Flush | EJ11: Straight | EU11: Three of a Kind | FF11: Two Pair | FQ11: One Pair | GB11: High Card
A12: 12 | B12: ♠Q | C12: 0.7212084532 | D12: 16 | E12: S | F12: 12 | L12: =VLOOKUP(L11,$B$1:$F$52,5,0) ->  | M12: =VLOOKUP(M11,$B$1:$F$52,5,0) ->  | N12: =VLOOKUP(N11,$B$1:$F$52,5,0) ->  | O12: =VLOOKUP(O11,$B$1:$F$52,5,0) ->  | P12: =VLOOKUP(P11,$B$1:$F$52,5,0) ->  | R12: =VLOOKUP(R11,$B$1:$F$52,5,0) ->  | S12: =VLOOKUP(S11,$B$1:$F$52,5,0) ->  | T12: =VLOOKUP(T11,$B$1:$F$52,5,0) ->  | U12: =VLOOKUP(U11,$B$1:$F$52,5,0) ->  | V12: =VLOOKUP(V11,$B$1:$F$52,5,0) ->  | AH12: 9 | AI12: =L77 ->  | AJ12: =M77 ->  | AK12: =N77 ->  | AL12: =O77 ->  | AM12: =P77 ->  | AN12: =INDEX($BV$92:$BV$101,MATCH(1,$BY$92:$BY$101,0)) ->  | AP12: 9 | AQ12: =R77 ->  | AR12: =S77 ->  | AS12: =T77 ->  | AT12: =U77 ->  | AU12: =V77 ->  | AV12: =INDEX($BV$92:$BV$101,MATCH(1,$CB$92:$CB$101,0)) ->  | BU12: 9 | BV12: =FQ4 -> One Pair | BW12: =FR4 ->  | BX12: 0 | CA12: 0 | CG12: Royal Flush | CR12: Straight Flush | DC12: Four of a Kind | DN12: Full House | DY12: Flush | EJ12: Straight | EU12: Three of a Kind | FF12: Two Pair | FQ12: One Pair | GB12: High Card
A13: 13 | B13: ♠K | C13: 0.05237627029 | D13: 52 | E13: S | F13: 13 | L13: =VLOOKUP(L11,$B$1:$F$52,4,0) ->  | M13: =VLOOKUP(M11,$B$1:$F$52,4,0) ->  | N13: =VLOOKUP(N11,$B$1:$F$52,4,0) ->  | O13: =VLOOKUP(O11,$B$1:$F$52,4,0) ->  | P13: =VLOOKUP(P11,$B$1:$F$52,4,0) ->  | R13: =VLOOKUP(R11,$B$1:$F$52,4,0) ->  | S13: =VLOOKUP(S11,$B$1:$F$52,4,0) ->  | T13: =VLOOKUP(T11,$B$1:$F$52,4,0) ->  | U13: =VLOOKUP(U11,$B$1:$F$52,4,0) ->  | V13: =VLOOKUP(V11,$B$1:$F$52,4,0) ->  | AH13: 10 | AI13: =L86 ->  | AJ13: =M86 ->  | AK13: =N86 ->  | AL13: =O86 ->  | AM13: =P86 ->  | AN13: =INDEX($BV$103:$BV$112,MATCH(1,$BY$103:$BY$112,0)) ->  | AP13: 10 | AQ13: =R86 ->  | AR13: =S86 ->  | AS13: =T86 ->  | AT13: =U86 ->  | AU13: =V86 ->  | AV13: =INDEX($BV$103:$BV$112,MATCH(1,$CB$103:$CB$112,0)) ->  | BU13: 10 | BV13: =GB4 -> High Card | BW13: =GC4 ->  | BX13: 0 | CA13: 0 | CG13: Royal Flush | CR13: Straight Flush | DC13: Four of a Kind | DN13: Full House | DY13: Flush | EJ13: Straight | EU13: Three of a Kind | FF13: Two Pair | FQ13: One Pair | GB13: High Card
A14: 14 | B14: ♣A | C14: 0.294849515 | D14: 45 | E14: C | F14: 1 | L14: =HLOOKUP(L16,$L$10:$P$13,3,0) ->  | M14: =HLOOKUP(M16,$L$10:$P$13,3,0) ->  | N14: =HLOOKUP(N16,$L$10:$P$13,3,0) ->  | O14: =HLOOKUP(O16,$L$10:$P$13,3,0) ->  | P14: =HLOOKUP(P16,$L$10:$P$13,3,0) ->  | R14: =HLOOKUP(R16,$R$10:$V$13,3,0) ->  | S14: =HLOOKUP(S16,$R$10:$V$13,3,0) ->  | T14: =HLOOKUP(T16,$R$10:$V$13,3,0) ->  | U14: =HLOOKUP(U16,$R$10:$V$13,3,0) ->  | V14: =HLOOKUP(V16,$R$10:$V$13,3,0) ->  | AH14: 11 | AI14: =L95 ->  | AJ14: =M95 ->  | AK14: =N95 ->  | AL14: =O95 ->  | AM14: =P95 ->  | AN14: =INDEX($BV$114:$BV$123,MATCH(1,$BY$114:$BY$123,0)) ->  | AP14: 11 | AQ14: =R95 ->  | AR14: =S95 ->  | AS14: =T95 ->  | AT14: =U95 ->  | AU14: =V95 ->  | AV14: =INDEX($BV$114:$BV$123,MATCH(1,$CB$114:$CB$123,0)) ->  | CG14: Royal Flush | CR14: Straight Flush | DC14: Four of a Kind | DN14: Full House | DY14: Flush | EJ14: Straight | EU14: Three of a Kind | FF14: Two Pair | FQ14: One Pair | GB14: High Card
A15: 15 | B15: ♣2 | C15: 0.3347747326 | D15: 40 | E15: C | F15: 2 | L15: =HLOOKUP(L16,$L$10:$P$13,4,0) ->  | M15: =HLOOKUP(M16,$L$10:$P$13,4,0) ->  | N15: =HLOOKUP(N16,$L$10:$P$13,4,0) ->  | O15: =HLOOKUP(O16,$L$10:$P$13,4,0) ->  | P15: =HLOOKUP(P16,$L$10:$P$13,4,0) ->  | R15: =HLOOKUP(R16,$R$10:$V$13,4,0) ->  | S15: =HLOOKUP(S16,$R$10:$V$13,4,0) ->  | T15: =HLOOKUP(T16,$R$10:$V$13,4,0) ->  | U15: =HLOOKUP(U16,$R$10:$V$13,4,0) ->  | V15: =HLOOKUP(V16,$R$10:$V$13,4,0) ->  | AH15: 12 | AI15: =L104 ->  | AJ15: =M104 ->  | AK15: =N104 ->  | AL15: =O104 ->  | AM15: =P104 ->  | AN15: =INDEX($BV$125:$BV$134,MATCH(1,$BY$125:$BY$134,0)) ->  | AP15: 12 | AQ15: =R104 ->  | AR15: =S104 ->  | AS15: =T104 ->  | AT15: =U104 ->  | AU15: =V104 ->  | AV15: =INDEX($BV$125:$BV$134,MATCH(1,$CB$125:$CB$134,0)) ->  | BU15: 2 | BV15: =CG5 -> Royal Flush | BW15: =CH5 ->  | CG15: Royal Flush | CR15: Straight Flush | DC15: Four of a Kind | DN15: Full House | DY15: Flush | EJ15: Straight | EU15: Three of a Kind | FF15: Two Pair | FQ15: One Pair | GB15: High Card
A16: 16 | B16: ♣3 | C16: 0.9130958319 | D16: 5 | E16: C | F16: 3 | L16: 1 | M16: 2 | N16: 3 | O16: 4 | P16: 5 | R16: 1 | S16: 2 | T16: 3 | U16: 4 | V16: 5 | AH16: 13 | AI16: =L113 ->  | AJ16: =M113 ->  | AK16: =N113 ->  | AL16: =O113 ->  | AM16: =P113 ->  | AN16: =INDEX($BV$136:$BV$145,MATCH(1,$BY$136:$BY$145,0)) ->  | AP16: 13 | AQ16: =R113 ->  | AR16: =S113 ->  | AS16: =T113 ->  | AT16: =U113 ->  | AU16: =V113 ->  | AV16: =INDEX($BV$136:$BV$145,MATCH(1,$CB$136:$CB$145,0)) ->  | BV16: =CR5 -> Straight Flush | BW16: =CS5 ->  | CG16: Royal Flush | CR16: Straight Flush | DC16: Four of a Kind | DN16: Full House | DY16: Flush | EJ16: Straight | EU16: Three of a Kind | FF16: Two Pair | FQ16: One Pair | GB16: High Card
A17: 17 | B17: ♣4 | C17: 0.588932991 | D17: 25 | E17: C | F17: 4 | L17: =L12+IF(L12=1,13+RAND()^3,RAND()^3) ->  | M17: =M12+IF(M12=1,13+RAND()^3,RAND()^3) ->  | Q17: 0.8206461876 | W17: 0.01678835494 | AH17: 14 | AI17: =L122 ->  | AJ17: =M122 ->  | AK17: =N122 ->  | AL17: =O122 ->  | AM17: =P122 ->  | AN17: =INDEX($BV$147:$BV$156,MATCH(1,$BY$147:$BY$156,0)) ->  | AP17: 14 | AQ17: =R122 ->  | AR17: =S122 ->  | AS17: =T122 ->  | AT17: =U122 ->  | AU17: =V122 ->  | AV17: =INDEX($BV$147:$BV$156,MATCH(1,$CB$147:$CB$156,0)) ->  | BV17: =DC5 -> Four of a Kind | BW17: =DD5 ->  | BX17: 0 | CA17: 0 | CG17: Royal Flush | CR17: Straight Flush | DC17: Four of a Kind | DN17: Full House | DY17: Flush | EJ17: Straight | EU17: Three of a Kind | FF17: Two Pair | FQ17: One Pair | GB17: High Card
A18: 18 | B18: ♣5 | C18: 0.4099928141 | D18: 32 | E18: C | F18: 5 | AH18: 15 | AI18: =L131 ->  | AJ18: =M131 ->  | AK18: =N131 ->  | AL18: =O131 ->  | AM18: =P131 ->  | AN18: =INDEX($BV$158:$BV$167,MATCH(1,$BY$158:$BY$167,0)) ->  | AP18: 15 | AQ18: =R131 ->  | AR18: =S131 ->  | AS18: =T131 ->  | AT18: =U131 ->  | AU18: =V131 ->  | AV18: =INDEX($BV$158:$BV$167,MATCH(1,$CB$158:$CB$167,0)) ->  | BV18: =DN5 -> Full House | BW18: =DO5 ->  | BX18: 0 | CA18: 0 | CG18: Royal Flush | CR18: Straight Flush | DC18: Four of a Kind | DN18: Full House | DY18: Flush | EJ18: Straight | EU18: Three of a Kind | FF18: Two Pair | FQ18: One Pair | GB18: High Card
A19: 19 | B19: ♣6 | C19: 0.946259737 | D19: 4 | E19: C | F19: 6 | L19: =RANK(L26,$L$26:$P$26,1) ->  | M19: =RANK(M26,$L$26:$P$26,1) ->  | N19: =RANK(N26,$L$26:$P$26,1) ->  | O19: =RANK(O26,$L$26:$P$26,1) ->  | P19: =RANK(P26,$L$26:$P$26,1) ->  | R19: =RANK(R26,$R$26:$V$26,1) ->  | S19: =RANK(S26,$R$26:$V$26,1) ->  | T19: =RANK(T26,$R$26:$V$26,1) ->  | U19: =RANK(U26,$R$26:$V$26,1) ->  | V19: =RANK(V26,$R$26:$V$26,1) ->  | AH19: 16 | AI19: =L140 ->  | AJ19: =M140 ->  | AK19: =N140 ->  | AL19: =O140 ->  | AM19: =P140 ->  | AN19: =INDEX($BV$169:$BV$178,MATCH(1,$BY$169:$BY$178,0)) ->  | AP19: 16 | AQ19: =R140 ->  | AR19: =S140 ->  | AS19: =T140 ->  | AT19: =U140 ->  | AU19: =V140 ->  | AV19: =INDEX($BV$169:$BV$178,MATCH(1,$CB$169:$CB$178,0)) ->  | BV19: =DY5 -> Flush | BW19: =DZ5 ->  | BX19: 0 | CA19: 0 | CG19: Royal Flush | CR19: Straight Flush | DC19: Four of a Kind | DN19: Full House | DY19: Flush | EJ19: Straight | EU19: Three of a Kind | FF19: Two Pair | FQ19: One Pair | GB19: High Card
A20: 20 | B20: ♣7 | C20: 0.5932186842 | D20: 24 | E20: C | F20: 7 | J20: 3 | L20: =[0]!Player11 -> 0 | M20: =[0]!Player12 -> 0 | N20: =[0]!House1 -> 0 | O20: =[0]!House2 -> 0 | P20: =[0]!House5 -> 0 | R20: =[0]!Player21 -> 0 | S20: =[0]!Player22 -> 0 | T20: =[0]!House1 -> 0 | U20: =[0]!House2 -> 0 | V20: =[0]!House5 -> 0 | AH20: 17 | AI20: =L149 ->  | AJ20: =M149 ->  | AK20: =N149 ->  | AL20: =O149 ->  | AM20: =P149 ->  | AN20: =INDEX($BV$180:$BV$189,MATCH(1,$BY$180:$BY$189,0)) ->  | AP20: 17 | AQ20: =R149 ->  | AR20: =S149 ->  | AS20: =T149 ->  | AT20: =U149 ->  | AU20: =V149 ->  | AV20: =INDEX($BV$180:$BV$189,MATCH(1,$CB$180:$CB$189,0)) ->  | BV20: =EJ5 -> Straight | BW20: =EK5 ->  | CG20: Royal Flush | CR20: Straight Flush | DC20: Four of a Kind | DN20: Full House | DY20: Flush | EJ20: Straight | EU20: Three of a Kind | FF20: Two Pair | FQ20: One Pair | GB20: High Card
A21: 21 | B21: ♣8 | C21: 0.3008589745 | D21: 43 | E21: C | F21: 8 | L21: =VLOOKUP(L20,$B$1:$F$52,5,0) ->  | M21: =VLOOKUP(M20,$B$1:$F$52,5,0) ->  | N21: =VLOOKUP(N20,$B$1:$F$52,5,0) ->  | O21: =VLOOKUP(O20,$B$1:$F$52,5,0) ->  | P21: =VLOOKUP(P20,$B$1:$F$52,5,0) ->  | R21: =VLOOKUP(R20,$B$1:$F$52,5,0) ->  | S21: =VLOOKUP(S20,$B$1:$F$52,5,0) ->  | T21: =VLOOKUP(T20,$B$1:$F$52,5,0) ->  | U21: =VLOOKUP(U20,$B$1:$F$52,5,0) ->  | V21: =VLOOKUP(V20,$B$1:$F$52,5,0) ->  | AH21: 18 | AI21: =L158 ->  | AJ21: =M158 ->  | AK21: =N158 ->  | AL21: =O158 ->  | AM21: =P158 ->  | AN21: =INDEX($BV$191:$BV$200,MATCH(1,$BY$191:$BY$200,0)) ->  | AP21: 18 | AQ21: =R158 ->  | AR21: =S158 ->  | AS21: =T158 ->  | AT21: =U158 ->  | AU21: =V158 ->  | AV21: =INDEX($BV$191:$BV$200,MATCH(1,$CB$191:$CB$200,0)) ->  | BV21: =EU5 -> Three of a Kind | BW21: =EV5 ->  | BX21: 0 | CA21: 0 | CG21: Royal Flush | CR21: Straight Flush | DC21: Four of a Kind | DN21: Full House | DY21: Flush | EJ21: Straight | EU21: Three of a Kind | FF21: Two Pair | FQ21: One Pair | GB21: High Card
A22: 22 | B22: ♣9 | C22: 0.1347094774 | D22: 48 | E22: C | F22: 9 | L22: =VLOOKUP(L20,$B$1:$F$52,4,0) ->  | M22: =VLOOKUP(M20,$B$1:$F$52,4,0) ->  | N22: =VLOOKUP(N20,$B$1:$F$52,4,0) ->  | O22: =VLOOKUP(O20,$B$1:$F$52,4,0) ->  | P22: =VLOOKUP(P20,$B$1:$F$52,4,0) ->  | R22: =VLOOKUP(R20,$B$1:$F$52,4,0) ->  | S22: =VLOOKUP(S20,$B$1:$F$52,4,0) ->  | T22: =VLOOKUP(T20,$B$1:$F$52,4,0) ->  | U22: =VLOOKUP(U20,$B$1:$F$52,4,0) ->  | V22: =VLOOKUP(V20,$B$1:$F$52,4,0) ->  | AH22: 19 | AI22: =L167 ->  | AJ22: =M167 ->  | AK22: =N167 ->  | AL22: =O167 ->  | AM22: =P167 ->  | AN22: =INDEX($BV$202:$BV$211,MATCH(1,$BY$202:$BY$211,0)) ->  | AP22: 19 | AQ22: =R167 ->  | AR22: =S167 ->  | AS22: =T167 ->  | AT22: =U167 ->  | AU22: =V167 ->  | AV22: =INDEX($BV$202:$BV$211,MATCH(1,$CB$202:$CB$211,0)) ->  | BV22: =FF5 -> Two Pair | BW22: =FG5 ->  | BX22: 0 | CA22: 0 | CG22: Royal Flush | CR22: Straight Flush | DC22: Four of a Kind | DN22: Full House | DY22: Flush | EJ22: Straight | EU22: Three of a Kind | FF22: Two Pair | FQ22: One Pair | GB22: High Card
A23: 23 | B23: ♣10 | C23: 0.3251550198 | D23: 41 | E23: C | F23: 10 | L23: =HLOOKUP(L25,$L$19:$P$22,3,0) ->  | M23: =HLOOKUP(M25,$L$19:$P$22,3,0) ->  | N23: =HLOOKUP(N25,$L$19:$P$22,3,0) ->  | O23: =HLOOKUP(O25,$L$19:$P$22,3,0) ->  | P23: =HLOOKUP(P25,$L$19:$P$22,3,0) ->  | R23: =HLOOKUP(R25,$R$19:$V$22,3,0) ->  | S23: =HLOOKUP(S25,$R$19:$V$22,3,0) ->  | T23: =HLOOKUP(T25,$R$19:$V$22,3,0) ->  | U23: =HLOOKUP(U25,$R$19:$V$22,3,0) ->  | V23: =HLOOKUP(V25,$R$19:$V$22,3,0) ->  | AH23: 20 | AI23: =L176 ->  | AJ23: =M176 ->  | AK23: =N176 ->  | AL23: =O176 ->  | AM23: =P176 ->  | AN23: =INDEX($BV$213:$BV$222,MATCH(1,$BY$213:$BY$222,0)) ->  | AP23: 20 | AQ23: =R176 ->  | AR23: =S176 ->  | AS23: =T176 ->  | AT23: =U176 ->  | AU23: =V176 ->  | AV23: =INDEX($BV$213:$BV$222,MATCH(1,$CB$213:$CB$222,0)) ->  | BV23: =FQ5 -> One Pair | BW23: =FR5 ->  | BX23: 0 | CA23: 0 | CG23: Royal Flush | CR23: Straight Flush | DC23: Four of a Kind | DN23: Full House | DY23: Flush | EJ23: Straight | EU23: Three of a Kind | FF23: Two Pair | FQ23: One Pair | GB23: High Card
A24: 24 | B24: ♣J | C24: 0.7112840414 | D24: 17 | E24: C | F24: 11 | L24: =HLOOKUP(L25,$L$19:$P$22,4,0) ->  | M24: =HLOOKUP(M25,$L$19:$P$22,4,0) ->  | N24: =HLOOKUP(N25,$L$19:$P$22,4,0) ->  | O24: =HLOOKUP(O25,$L$19:$P$22,4,0) ->  | P24: =HLOOKUP(P25,$L$19:$P$22,4,0) ->  | R24: =HLOOKUP(R25,$R$19:$V$22,4,0) ->  | S24: =HLOOKUP(S25,$R$19:$V$22,4,0) ->  | T24: =HLOOKUP(T25,$R$19:$V$22,4,0) ->  | U24: =HLOOKUP(U25,$R$19:$V$22,4,0) ->  | V24: =HLOOKUP(V25,$R$19:$V$22,4,0) ->  | AH24: 21 | AI24: =L185 ->  | AJ24: =M185 ->  | AK24: =N185 ->  | AL24: =O185 ->  | AM24: =P185 ->  | AN24: =INDEX($BV$224:$BV$233,MATCH(1,$BY$224:$BY$233,0)) ->  | AP24: 21 | AQ24: =R185 ->  | AR24: =S185 ->  | AS24: =T185 ->  | AT24: =U185 ->  | AU24: =V185 ->  | AV24: =INDEX($BV$224:$BV$233,MATCH(1,$CB$224:$CB$233,0)) ->  | BV24: =GB5 -> High Card | BW24: =GC5 ->  | BX24: 0 | CA24: 0 | CG24: Royal Flush | CR24: Straight Flush | DC24: Four of a Kind | DN24: Full House | DY24: Flush | EJ24: Straight | EU24: Three of a Kind | FF24: Two Pair | FQ24: One Pair | GB24: High Card
A25: 25 | B25: ♣Q | C25: 0.7355175018 | D25: 15 | E25: C | F25: 12 | L25: 1 | M25: 2 | N25: 3 | O25: 4 | P25: 5 | R25: 1 | S25: 2 | T25: 3 | U25: 4 | V25: 5 | AH25: 1 | AI25: =L6 ->  | AJ25: =M6 ->  | AK25: =N6 ->  | AL25: =O6 ->  | AM25: =P6 ->  | AP25: 1 | AQ25: =R6 ->  | AR25: =S6 ->  | AS25: =T6 ->  | AT25: =U6 ->  | AU25: =V6 -> 
A26: 26 | B26: ♣K | C26: 0.3952690363 | D26: 34 | E26: C | F26: 13 | L26: =L21+IF(L21=1,13+RAND()^3,RAND()^3) ->  | M26: =M21+IF(M21=1,13+RAND()^3,RAND()^3) ->  | Q26: 0.6255618322 | W26: 0.1709662433 | AH26: 2 | AI26: =L15 ->  | AJ26: =M15 ->  | AK26: =N15 ->  | AL26: =O15 ->  | AM26: =P15 ->  | AP26: 2 | AQ26: =R15 ->  | AR26: =S15 ->  | AS26: =T15 ->  | AT26: =U15 ->  | AU26: =V15 ->  | BU26: 3 | BV26: =CG6 -> Royal Flush | BW26: =CH6 -> 
A27: 27 | B27: ♦A | C27: 0.8078863621 | D27: 10 | E27: D | F27: 1 | AH27: 3 | AI27: =L24 ->  | AJ27: =M24 ->  | AK27: =N24 ->  | AL27: =O24 ->  | AM27: =P24 ->  | AP27: 3 | AQ27: =R24 ->  | AR27: =S24 ->  | AS27: =T24 ->  | AT27: =U24 ->  | AU27: =V24 ->  | BV27: =CR6 -> Straight Flush | BW27: =CS6 -> 
A28: 28 | B28: ♦2 | C28: 0.2951239347 | D28: 44 | E28: D | F28: 2 | L28: =RANK(L35,$L$35:$P$35,1) ->  | M28: =RANK(M35,$L$35:$P$35,1) ->  | N28: =RANK(N35,$L$35:$P$35,1) ->  | O28: =RANK(O35,$L$35:$P$35,1) ->  | P28: =RANK(P35,$L$35:$P$35,1) ->  | R28: =RANK(R35,$R$35:$V$35,1) ->  | S28: =RANK(S35,$R$35:$V$35,1) ->  | T28: =RANK(T35,$R$35:$V$35,1) ->  | U28: =RANK(U35,$R$35:$V$35,1) ->  | V28: =RANK(V35,$R$35:$V$35,1) ->  | AH28: 4 | AI28: =L33 ->  | AJ28: =M33 ->  | AK28: =N33 ->  | AL28: =O33 ->  | AM28: =P33 ->  | AP28: 4 | AQ28: =R33 ->  | AR28: =S33 ->  | AS28: =T33 ->  | AT28: =U33 ->  | AU28: =V33 ->  | BV28: =DC6 -> Four of a Kind | BW28: =DD6 ->  | BX28: 0 | CA28: 0
A29: 29 | B29: ♦3 | C29: 0.1433968544 | D29: 47 | E29: D | F29: 3 | J29: 4 | L29: =[0]!Player11 -> 0 | M29: =[0]!Player12 -> 0 | N29: =[0]!House1 -> 0 | O29: =[0]!House3 -> 0 | P29: =[0]!House4 -> 0 | R29: =[0]!Player21 -> 0 | S29: =[0]!Player22 -> 0 | T29: =[0]!House1 -> 0 | U29: =[0]!House3 -> 0 | V29: =[0]!House4 -> 0 | AH29: 5 | AI29: =L42 ->  | AJ29: =M42 ->  | AK29: =N42 ->  | AL29: =O42 ->  | AM29: =P42 ->  | AP29: 5 | AQ29: =R42 ->  | AR29: =S42 ->  | AS29: =T42 ->  | AT29: =U42 ->  | AU29: =V42 ->  | BV29: =DN6 -> Full House | BW29: =DO6 ->  | BX29: 0 | CA29: 0
A30: 30 | B30: ♦4 | C30: 0.4460660219 | D30: 30 | E30: D | F30: 4 | L30: =VLOOKUP(L29,$B$1:$F$52,5,0) ->  | M30: =VLOOKUP(M29,$B$1:$F$52,5,0) ->  | N30: =VLOOKUP(N29,$B$1:$F$52,5,0) ->  | O30: =VLOOKUP(O29,$B$1:$F$52,5,0) ->  | P30: =VLOOKUP(P29,$B$1:$F$52,5,0) ->  | R30: =VLOOKUP(R29,$B$1:$F$52,5,0) ->  | S30: =VLOOKUP(S29,$B$1:$F$52,5,0) ->  | T30: =VLOOKUP(T29,$B$1:$F$52,5,0) ->  | U30: =VLOOKUP(U29,$B$1:$F$52,5,0) ->  | V30: =VLOOKUP(V29,$B$1:$F$52,5,0) ->  | AH30: 6 | AI30: =L51 ->  | AJ30: =M51 ->  | AK30: =N51 ->  | AL30: =O51 ->  | AM30: =P51 ->  | AP30: 6 | AQ30: =R51 ->  | AR30: =S51 ->  | AS30: =T51 ->  | AT30: =U51 ->  | AU30: =V51 ->  | BV30: =DY6 -> Flush | BW30: =DZ6 ->  | BX30: 0 | CA30: 0
A31: 31 | B31: ♦5 | C31: 0.6840045452 | D31: 20 | E31: D | F31: 5 | L31: =VLOOKUP(L29,$B$1:$F$52,4,0) ->  | M31: =VLOOKUP(M29,$B$1:$F$52,4,0) ->  | N31: =VLOOKUP(N29,$B$1:$F$52,4,0) ->  | O31: =VLOOKUP(O29,$B$1:$F$52,4,0) ->  | P31: =VLOOKUP(P29,$B$1:$F$52,4,0) ->  | R31: =VLOOKUP(R29,$B$1:$F$52,4,0) ->  | S31: =VLOOKUP(S29,$B$1:$F$52,4,0) ->  | T31: =VLOOKUP(T29,$B$1:$F$52,4,0) ->  | U31: =VLOOKUP(U29,$B$1:$F$52,4,0) ->  | V31: =VLOOKUP(V29,$B$1:$F$52,4,0) ->  | AH31: 7 | AI31: =L60 ->  | AJ31: =M60 ->  | AK31: =N60 ->  | AL31: =O60 ->  | AM31: =P60 ->  | AP31: 7 | AQ31: =R60 ->  | AR31: =S60 ->  | AS31: =T60 ->  | AT31: =U60 ->  | AU31: =V60 ->  | BV31: =EJ6 -> Straight | BW31: =EK6 -> 
A32: 32 | B32: ♦6 | C32: 0.9506953955 | D32: 3 | E32: D | F32: 6 | L32: =HLOOKUP(L34,$L$28:$P$31,3,0) ->  | M32: =HLOOKUP(M34,$L$28:$P$31,3,0) ->  | N32: =HLOOKUP(N34,$L$28:$P$31,3,0) ->  | O32: =HLOOKUP(O34,$L$28:$P$31,3,0) ->  | P32: =HLOOKUP(P34,$L$28:$P$31,3,0) ->  | R32: =HLOOKUP(R34,$R$28:$V$31,3,0) ->  | S32: =HLOOKUP(S34,$R$28:$V$31,3,0) ->  | T32: =HLOOKUP(T34,$R$28:$V$31,3,0) ->  | U32: =HLOOKUP(U34,$R$28:$V$31,3,0) ->  | V32: =HLOOKUP(V34,$R$28:$V$31,3,0) ->  | AH32: 8 | AI32: =L69 ->  | AJ32: =M69 ->  | AK32: =N69 ->  | AL32: =O69 ->  | AM32: =P69 ->  | AP32: 8 | AQ32: =R69 ->  | AR32: =S69 ->  | AS32: =T69 ->  | AT32: =U69 ->  | AU32: =V69 ->  | BV32: =EU6 -> Three of a Kind | BW32: =EV6 ->  | BX32: 0 | CA32: 0
A33: 33 | B33: ♦7 | C33: 0.9781103134 | D33: 2 | E33: D | F33: 7 | L33: =HLOOKUP(L34,$L$28:$P$31,4,0) ->  | M33: =HLOOKUP(M34,$L$28:$P$31,4,0) ->  | N33: =HLOOKUP(N34,$L$28:$P$31,4,0) ->  | O33: =HLOOKUP(O34,$L$28:$P$31,4,0) ->  | P33: =HLOOKUP(P34,$L$28:$P$31,4,0) ->  | R33: =HLOOKUP(R34,$R$28:$V$31,4,0) ->  | S33: =HLOOKUP(S34,$R$28:$V$31,4,0) ->  | T33: =HLOOKUP(T34,$R$28:$V$31,4,0) ->  | U33: =HLOOKUP(U34,$R$28:$V$31,4,0) ->  | V33: =HLOOKUP(V34,$R$28:$V$31,4,0) ->  | AH33: 9 | AI33: =L78 ->  | AJ33: =M78 ->  | AK33: =N78 ->  | AL33: =O78 ->  | AM33: =P78 ->  | AP33: 9 | AQ33: =R78 ->  | AR33: =S78 ->  | AS33: =T78 ->  | AT33: =U78 ->  | AU33: =V78 ->  | BV33: =FF6 -> Two Pair | BW33: =FG6 ->  | BX33: 0 | CA33: 0
A34: 34 | B34: ♦8 | C34: 0.3696199656 | D34: 36 | E34: D | F34: 8 | L34: 1 | M34: 2 | N34: 3 | O34: 4 | P34: 5 | R34: 1 | S34: 2 | T34: 3 | U34: 4 | V34: 5 | AH34: 10 | AI34: =L87 ->  | AJ34: =M87 ->  | AK34: =N87 ->  | AL34: =O87 ->  | AM34: =P87 ->  | AP34: 10 | AQ34: =R87 ->  | AR34: =S87 ->  | AS34: =T87 ->  | AT34: =U87 ->  | AU34: =V87 ->  | BV34: =FQ6 -> One Pair | BW34: =FR6 ->  | BX34: 0 | CA34: 0
A35: 35 | B35: ♦9 | C35: 0.6961853504 | D35: 18 | E35: D | F35: 9 | L35: =L30+IF(L30=1,13+RAND()^3,RAND()^3) ->  | M35: =M30+IF(M30=1,13+RAND()^3,RAND()^3) ->  | Q35: 0.02197580027 | W35: 0.1689258592 | AH35: 11 | AI35: =L96 ->  | AJ35: =M96 ->  | AK35: =N96 ->  | AL35: =O96 ->  | AM35: =P96 ->  | AP35: 11 | AQ35: =R96 ->  | AR35: =S96 ->  | AS35: =T96 ->  | AT35: =U96 ->  | AU35: =V96 ->  | BV35: =GB6 -> High Card | BW35: =GC6 ->  | BX35: 0 | CA35: 0
A36: 36 | B36: ♦10 | C36: 0.3620804548 | D36: 38 | E36: D | F36: 10 | AH36: 12 | AI36: =L105 ->  | AJ36: =M105 ->  | AK36: =N105 ->  | AL36: =O105 ->  | AM36: =P105 ->  | AP36: 12 | AQ36: =R105 ->  | AR36: =S105 ->  | AS36: =T105 ->  | AT36: =U105 ->  | AU36: =V105 -> 
A37: 37 | B37: ♦J | C37: 0.3963961601 | D37: 33 | E37: D | F37: 11 | L37: =RANK(L44,$L$44:$P$44,1) ->  | M37: =RANK(M44,$L$44:$P$44,1) ->  | N37: =RANK(N44,$L$44:$P$44,1) ->  | O37: =RANK(O44,$L$44:$P$44,1) ->  | P37: =RANK(P44,$L$44:$P$44,1) ->  | R37: =RANK(R44,$R$44:$V$44,1) ->  | S37: =RANK(S44,$R$44:$V$44,1) ->  | T37: =RANK(T44,$R$44:$V$44,1) ->  | U37: =RANK(U44,$R$44:$V$44,1) ->  | V37: =RANK(V44,$R$44:$V$44,1) ->  | AH37: 13 | AI37: =L114 ->  | AJ37: =M114 ->  | AK37: =N114 ->  | AL37: =O114 ->  | AM37: =P114 ->  | AP37: 13 | AQ37: =R114 ->  | AR37: =S114 ->  | AS37: =T114 ->  | AT37: =U114 ->  | AU37: =V114 ->  | BU37: 4 | BV37: =CG7 -> Royal Flush | BW37: =CH7 -> 
A38: 38 | B38: ♦Q | C38: 0.5765753984 | D38: 27 | E38: D | F38: 12 | J38: 5 | L38: =[0]!Player11 -> 0 | M38: =[0]!Player12 -> 0 | N38: =[0]!House1 -> 0 | O38: =[0]!House3 -> 0 | P38: =[0]!House5 -> 0 | R38: =[0]!Player21 -> 0 | S38: =[0]!Player22 -> 0 | T38: =[0]!House1 -> 0 | U38: =[0]!House3 -> 0 | V38: =[0]!House5 -> 0 | AH38: 14 | AI38: =L123 ->  | AJ38: =M123 ->  | AK38: =N123 ->  | AL38: =O123 ->  | AM38: =P123 ->  | AP38: 14 | AQ38: =R123 ->  | AR38: =S123 ->  | AS38: =T123 ->  | AT38: =U123 ->  | AU38: =V123 ->  | BV38: =CR7 -> Straight Flush | BW38: =CS7 -> 
A39: 39 | B39: ♦K | C39: 0.5402295589 | D39: 28 | E39: D | F39: 13 | L39: =VLOOKUP(L38,$B$1:$F$52,5,0) ->  | M39: =VLOOKUP(M38,$B$1:$F$52,5,0) ->  | N39: =VLOOKUP(N38,$B$1:$F$52,5,0) ->  | O39: =VLOOKUP(O38,$B$1:$F$52,5,0) ->  | P39: =VLOOKUP(P38,$B$1:$F$52,5,0) ->  | R39: =VLOOKUP(R38,$B$1:$F$52,5,0) ->  | S39: =VLOOKUP(S38,$B$1:$F$52,5,0) ->  | T39: =VLOOKUP(T38,$B$1:$F$52,5,0) ->  | U39: =VLOOKUP(U38,$B$1:$F$52,5,0) ->  | V39: =VLOOKUP(V38,$B$1:$F$52,5,0) ->  | AH39: 15 | AI39: =L132 ->  | AJ39: =M132 ->  | AK39: =N132 ->  | AL39: =O132 ->  | AM39: =P132 ->  | AP39: 15 | AQ39: =R132 ->  | AR39: =S132 ->  | AS39: =T132 ->  | AT39: =U132 ->  | AU39: =V132 ->  | BV39: =DC7 -> Four of a Kind | BW39: =DD7 ->  | BX39: 0 | CA39: 0
A40: 40 | B40: ♥A | C40: 0.7914861441 | D40: 11 | E40: H | F40: 1 | L40: =VLOOKUP(L38,$B$1:$F$52,4,0) ->  | M40: =VLOOKUP(M38,$B$1:$F$52,4,0) ->  | N40: =VLOOKUP(N38,$B$1:$F$52,4,0) ->  | O40: =VLOOKUP(O38,$B$1:$F$52,4,0) ->  | P40: =VLOOKUP(P38,$B$1:$F$52,4,0) ->  | R40: =VLOOKUP(R38,$B$1:$F$52,4,0) ->  | S40: =VLOOKUP(S38,$B$1:$F$52,4,0) ->  | T40: =VLOOKUP(T38,$B$1:$F$52,4,0) ->  | U40: =VLOOKUP(U38,$B$1:$F$52,4,0) ->  | V40: =VLOOKUP(V38,$B$1:$F$52,4,0) ->  | AH40: 16 | AI40: =L141 ->  | AJ40: =M141 ->  | AK40: =N141 ->  | AL40: =O141 ->  | AM40: =P141 ->  | AP40: 16 | AQ40: =R141 ->  | AR40: =S141 ->  | AS40: =T141 ->  | AT40: =U141 ->  | AU40: =V141 ->  | BV40: =DN7 -> Full House | BW40: =DO7 ->  | BX40: 0 | CA40: 0
A41: 41 | B41: ♥2 | C41: 0.7581176758 | D41: 14 | E41: H | F41: 2 | L41: =HLOOKUP(L43,$L$37:$P$40,3,0) ->  | M41: =HLOOKUP(M43,$L$37:$P$40,3,0) ->  | N41: =HLOOKUP(N43,$L$37:$P$40,3,0) ->  | O41: =HLOOKUP(O43,$L$37:$P$40,3,0) ->  | P41: =HLOOKUP(P43,$L$37:$P$40,3,0) ->  | R41: =HLOOKUP(R43,$R$37:$V$40,3,0) ->  | S41: =HLOOKUP(S43,$R$37:$V$40,3,0) ->  | T41: =HLOOKUP(T43,$R$37:$V$40,3,0) ->  | U41: =HLOOKUP(U43,$R$37:$V$40,3,0) ->  | V41: =HLOOKUP(V43,$R$37:$V$40,3,0) ->  | AH41: 17 | AI41: =L150 ->  | AJ41: =M150 ->  | AK41: =N150 ->  | AL41: =O150 ->  | AM41: =P150 ->  | AP41: 17 | AQ41: =R150 ->  | AR41: =S150 ->  | AS41: =T150 ->  | AT41: =U150 ->  | AU41: =V150 ->  | BV41: =DY7 -> Flush | BW41: =DZ7 ->  | BX41: 0 | CA41: 0
A42: 42 | B42: ♥3 | C42: 0.3057018518 | D42: 42 | E42: H | F42: 3 | L42: =HLOOKUP(L43,$L$37:$P$40,4,0) ->  | M42: =HLOOKUP(M43,$L$37:$P$40,4,0) ->  | N42: =HLOOKUP(N43,$L$37:$P$40,4,0) ->  | O42: =HLOOKUP(O43,$L$37:$P$40,4,0) ->  | P42: =HLOOKUP(P43,$L$37:$P$40,4,0) ->  | R42: =HLOOKUP(R43,$R$37:$V$40,4,0) ->  | S42: =HLOOKUP(S43,$R$37:$V$40,4,0) ->  | T42: =HLOOKUP(T43,$R$37:$V$40,4,0) ->  | U42: =HLOOKUP(U43,$R$37:$V$40,4,0) ->  | V42: =HLOOKUP(V43,$R$37:$V$40,4,0) ->  | AH42: 18 | AI42: =L159 ->  | AJ42: =M159 ->  | AK42: =N159 ->  | AL42: =O159 ->  | AM42: =P159 ->  | AP42: 18 | AQ42: =R159 ->  | AR42: =S159 ->  | AS42: =T159 ->  | AT42: =U159 ->  | AU42: =V159 ->  | BV42: =EJ7 -> Straight | BW42: =EK7 -> 
A43: 43 | B43: ♥4 | C43: 0.365062952 | D43: 37 | E43: H | F43: 4 | L43: 1 | M43: 2 | N43: 3 | O43: 4 | P43: 5 | R43: 1 | S43: 2 | T43: 3 | U43: 4 | V43: 5 | AH43: 19 | AI43: =L168 ->  | AJ43: =M168 ->  | AK43: =N168 ->  | AL43: =O168 ->  | AM43: =P168 ->  | AP43: 19 | AQ43: =R168 ->  | AR43: =S168 ->  | AS43: =T168 ->  | AT43: =U168 ->  | AU43: =V168 ->  | BV43: =EU7 -> Three of a Kind | BW43: =EV7 ->  | BX43: 0 | CA43: 0
A44: 44 | B44: ♥5 | C44: 0.5792444944 | D44: 26 | E44: H | F44: 5 | L44: =L39+IF(L39=1,13+RAND()^3,RAND()^3) ->  | M44: =M39+IF(M39=1,13+RAND()^3,RAND()^3) ->  | Q44: 0.09184179465 | W44: 0.002215254384 | AH44: 20 | AI44: =L177 ->  | AJ44: =M177 ->  | AK44: =N177 ->  | AL44: =O177 ->  | AM44: =P177 ->  | AP44: 20 | AQ44: =R177 ->  | AR44: =S177 ->  | AS44: =T177 ->  | AT44: =U177 ->  | AU44: =V177 ->  | BV44: =FF7 -> Two Pair | BW44: =FG7 ->  | BX44: 0 | CA44: 0
A45: 45 | B45: ♥6 | C45: 0.1262631416 | D45: 49 | E45: H | F45: 6 | AH45: 21 | AI45: =L186 ->  | AJ45: =M186 ->  | AK45: =N186 ->  | AL45: =O186 ->  | AM45: =P186 ->  | AP45: 21 | AQ45: =R186 ->  | AR45: =S186 ->  | AS45: =T186 ->  | AT45: =U186 ->  | AU45: =V186 ->  | BV45: =FQ7 -> One Pair | BW45: =FR7 ->  | BX45: 0 | CA45: 0
A46: 46 | B46: ♥7 | C46: 0.123893857 | D46: 50 | E46: H | F46: 7 | L46: =RANK(L53,$L$53:$P$53,1) ->  | M46: =RANK(M53,$L$53:$P$53,1) ->  | N46: =RANK(N53,$L$53:$P$53,1) ->  | O46: =RANK(O53,$L$53:$P$53,1) ->  | P46: =RANK(P53,$L$53:$P$53,1) ->  | R46: =RANK(R53,$R$53:$V$53,1) ->  | S46: =RANK(S53,$R$53:$V$53,1) ->  | T46: =RANK(T53,$R$53:$V$53,1) ->  | U46: =RANK(U53,$R$53:$V$53,1) ->  | V46: =RANK(V53,$R$53:$V$53,1) ->  | BV46: =GB7 -> High Card | BW46: =GC7 ->  | BX46: 0 | CA46: 0
A47: 47 | B47: ♥8 | C47: 0.272736311 | D47: 46 | E47: H | F47: 8 | J47: 6 | L47: =[0]!Player11 -> 0 | M47: =[0]!Player12 -> 0 | N47: =[0]!House1 -> 0 | O47: =[0]!House4 -> 0 | P47: =[0]!House5 -> 0 | R47: =[0]!Player21 -> 0 | S47: =[0]!Player22 -> 0 | T47: =[0]!House1 -> 0 | U47: =[0]!House4 -> 0 | V47: =[0]!House5 -> 0 | AH47: Seq | AI47: 1st | AJ47: 2nd | AK47: 3rd | AL47: 4th | AM47: 5th | AN47: Hand | AO47: Rank | AP47: Seq | AQ47: 1st | AR47: 2nd | AS47: 3rd | AT47: 4th | AU47: 5th | AV47: Hand | AW47: Rank
A48: 48 | B48: ♥9 | C48: 0.6438125372 | D48: 22 | E48: H | F48: 9 | L48: =VLOOKUP(L47,$B$1:$F$52,5,0) ->  | M48: =VLOOKUP(M47,$B$1:$F$52,5,0) ->  | N48: =VLOOKUP(N47,$B$1:$F$52,5,0) ->  | O48: =VLOOKUP(O47,$B$1:$F$52,5,0) ->  | P48: =VLOOKUP(P47,$B$1:$F$52,5,0) ->  | R48: =VLOOKUP(R47,$B$1:$F$52,5,0) ->  | S48: =VLOOKUP(S47,$B$1:$F$52,5,0) ->  | T48: =VLOOKUP(T47,$B$1:$F$52,5,0) ->  | U48: =VLOOKUP(U47,$B$1:$F$52,5,0) ->  | V48: =VLOOKUP(V47,$B$1:$F$52,5,0) ->  | AH48: 17 | AI48: 3 | AJ48: 3 | AK48: 8 | AL48: 8 | AM48: 9 | AN48: Two Pair | AO48: 8 | AP48: 17 | AQ48: 3 | AR48: 3 | AS48: 8 | AT48: 8 | AU48: 9 | AV48: Two Pair | AW48: 8 | AX48: 0 | AY48: 0 | AZ48: 0 | BA48: 0 | BB48: 0 | BC48: 0 | BD48: 0 | BE48: 0 | BU48: 5 | BV48: =CG8 -> Royal Flush | BW48: =CH8 -> 
A49: 49 | B49: ♥10 | C49: 0.7669458389 | D49: 12 | E49: H | F49: 10 | L49: =VLOOKUP(L47,$B$1:$F$52,4,0) ->  | M49: =VLOOKUP(M47,$B$1:$F$52,4,0) ->  | N49: =VLOOKUP(N47,$B$1:$F$52,4,0) ->  | O49: =VLOOKUP(O47,$B$1:$F$52,4,0) ->  | P49: =VLOOKUP(P47,$B$1:$F$52,4,0) ->  | R49: =VLOOKUP(R47,$B$1:$F$52,4,0) ->  | S49: =VLOOKUP(S47,$B$1:$F$52,4,0) ->  | T49: =VLOOKUP(T47,$B$1:$F$52,4,0) ->  | U49: =VLOOKUP(U47,$B$1:$F$52,4,0) ->  | V49: =VLOOKUP(V47,$B$1:$F$52,4,0) ->  | AH49: 19 | AI49: 3 | AJ49: 3 | AK49: 6 | AL49: 8 | AM49: 8 | AN49: Two Pair | AO49: 8 | AP49: 5 | AQ49: 3 | AR49: 3 | AS49: 7 | AT49: 8 | AU49: 8 | AV49: Two Pair | AW49: 8 | AX49: 0 | AY49: 0 | AZ49: 0 | BA49: 0 | BB49: 0 | BC49: 0 | BD49: 0 | BE49: 0 | BV49: =CR8 -> Straight Flush | BW49: =CS8 -> 
A50: 50 | B50: ♥J | C50: 0.4261709452 | D50: 31 | E50: H | F50: 11 | L50: =HLOOKUP(L52,$L$46:$P$49,3,0) ->  | M50: =HLOOKUP(M52,$L$46:$P$49,3,0) ->  | N50: =HLOOKUP(N52,$L$46:$P$49,3,0) ->  | O50: =HLOOKUP(O52,$L$46:$P$49,3,0) ->  | P50: =HLOOKUP(P52,$L$46:$P$49,3,0) ->  | R50: =HLOOKUP(R52,$R$46:$V$49,3,0) ->  | S50: =HLOOKUP(S52,$R$46:$V$49,3,0) ->  | T50: =HLOOKUP(T52,$R$46:$V$49,3,0) ->  | U50: =HLOOKUP(U52,$R$46:$V$49,3,0) ->  | V50: =HLOOKUP(V52,$R$46:$V$49,3,0) ->  | AH50: 5 | AI50: 2 | AJ50: 3 | AK50: 3 | AL50: 8 | AM50: 8 | AN50: Two Pair | AO50: 8 | AP50: 19 | AQ50: 3 | AR50: 3 | AS50: 6 | AT50: 8 | AU50: 8 | AV50: Two Pair | AW50: 8 | AX50: 0 | AY50: 0 | AZ50: 0 | BA50: 0 | BB50: 0 | BC50: 0 | BD50: 0 | BE50: 0 | BV50: =DC8 -> Four of a Kind | BW50: =DD8 ->  | BX50: 0 | CA50: 0
A51: 51 | B51: ♥Q | C51: 0.8184254169 | D51: 9 | E51: H | F51: 12 | L51: =HLOOKUP(L52,$L$46:$P$49,4,0) ->  | M51: =HLOOKUP(M52,$L$46:$P$49,4,0) ->  | N51: =HLOOKUP(N52,$L$46:$P$49,4,0) ->  | O51: =HLOOKUP(O52,$L$46:$P$49,4,0) ->  | P51: =HLOOKUP(P52,$L$46:$P$49,4,0) ->  | R51: =HLOOKUP(R52,$R$46:$V$49,4,0) ->  | S51: =HLOOKUP(S52,$R$46:$V$49,4,0) ->  | T51: =HLOOKUP(T52,$R$46:$V$49,4,0) ->  | U51: =HLOOKUP(U52,$R$46:$V$49,4,0) ->  | V51: =HLOOKUP(V52,$R$46:$V$49,4,0) ->  | AH51: 18 | AI51: 3 | AJ51: 6 | AK51: 8 | AL51: 8 | AM51: 9 | AN51: One Pair | AO51: 9 | AP51: 13 | AQ51: 6 | AR51: 7 | AS51: 8 | AT51: 8 | AU51: 9 | AV51: One Pair | AW51: 9 | AX51: 0 | AY51: 0 | AZ51: 0 | BA51: 0 | BB51: 0 | BC51: 0 | BD51: 0 | BE51: 0 | BV51: =DN8 -> Full House | BW51: =DO8 ->  | BX51: 0 | CA51: 0
A52: 52 | B52: ♥K | C52: 0.9817723036 | D52: 1 | E52: H | F52: 13 | L52: 1 | M52: 2 | N52: 3 | O52: 4 | P52: 5 | R52: 1 | S52: 2 | T52: 3 | U52: 4 | V52: 5 | AH52: 21 | AI52: 3 | AJ52: 6 | AK52: 8 | AL52: 8 | AM52: 9 | AN52: One Pair | AO52: 9 | AP52: 3 | AQ52: 3 | AR52: 7 | AS52: 8 | AT52: 8 | AU52: 9 | AV52: One Pair | AW52: 9 | AX52: 0 | AY52: 0 | AZ52: 0 | BA52: 0 | BB52: 0 | BC52: 0 | BD52: 0 | BE52: 0 | BV52: =DY8 -> Flush | BW52: =DZ8 ->  | BX52: 0 | CA52: 0
L53: =L48+IF(L48=1,13+RAND()^3,RAND()^3) ->  | M53: =M48+IF(M48=1,13+RAND()^3,RAND()^3) ->  | Q53: 0.2868231192 | W53: 0.3522884758 | AH53: 13 | AI53: 2 | AJ53: 6 | AK53: 8 | AL53: 8 | AM53: 9 | AN53: One Pair | AO53: 9 | AP53: 12 | AQ53: 3 | AR53: 7 | AS53: 8 | AT53: 8 | AU53: 9 | AV53: One Pair | AW53: 9 | AX53: 0 | AY53: 0 | AZ53: 0 | BA53: 0 | BB53: 0 | BC53: 0 | BD53: 0 | BE53: 0 | BV53: =EJ8 -> Straight | BW53: =EK8 -> 
AH54: 3 | AI54: 2 | AJ54: 3 | AK54: 8 | AL54: 8 | AM54: 9 | AN54: One Pair | AO54: 9 | AP54: 18 | AQ54: 3 | AR54: 6 | AS54: 8 | AT54: 8 | AU54: 9 | AV54: One Pair | AW54: 9 | AX54: 0 | AY54: 0 | AZ54: 0 | BA54: 0 | BB54: 0 | BC54: 0 | BD54: 0 | BE54: 0 | BV54: =EU8 -> Three of a Kind | BW54: =EV8 ->  | BX54: 0 | CA54: 0
L55: =RANK(L62,$L$62:$P$62,1) ->  | M55: =RANK(M62,$L$62:$P$62,1) ->  | N55: =RANK(N62,$L$62:$P$62,1) ->  | O55: =RANK(O62,$L$62:$P$62,1) ->  | P55: =RANK(P62,$L$62:$P$62,1) ->  | R55: =RANK(R62,$R$62:$V$62,1) ->  | S55: =RANK(S62,$R$62:$V$62,1) ->  | T55: =RANK(T62,$R$62:$V$62,1) ->  | U55: =RANK(U62,$R$62:$V$62,1) ->  | V55: =RANK(V62,$R$62:$V$62,1) ->  | AH55: 12 | AI55: 2 | AJ55: 3 | AK55: 8 | AL55: 8 | AM55: 9 | AN55: One Pair | AO55: 9 | AP55: 21 | AQ55: 3 | AR55: 6 | AS55: 8 | AT55: 8 | AU55: 9 | AV55: One Pair | AW55: 9 | AX55: 0 | AY55: 0 | AZ55: 0 | BA55: 0 | BB55: 0 | BC55: 0 | BD55: 0 | BE55: 0 | BV55: =FF8 -> Two Pair | BW55: =FG8 ->  | BX55: 0 | CA55: 0
J56: 7 | L56: =[0]!Player11 -> 0 | M56: =[0]!Player12 -> 0 | N56: =[0]!House2 -> 0 | O56: =[0]!House3 -> 0 | P56: =[0]!House4 -> 0 | R56: =[0]!Player21 -> 0 | S56: =[0]!Player22 -> 0 | T56: =[0]!House2 -> 0 | U56: =[0]!House3 -> 0 | V56: =[0]!House4 -> 0 | AH56: 16 | AI56: 3 | AJ56: 3 | AK56: 6 | AL56: 8 | AM56: 9 | AN56: One Pair | AO56: 9 | AP56: 1 | AQ56: 3 | AR56: 3 | AS56: 7 | AT56: 8 | AU56: 9 | AV56: One Pair | AW56: 9 | AX56: 0 | AY56: 0 | AZ56: 0 | BA56: 0 | BB56: 0 | BC56: 0 | BD56: 0 | BE56: 0 | BV56: =FQ8 -> One Pair | BW56: =FR8 ->  | BX56: 0 | CA56: 0
L57: =VLOOKUP(L56,$B$1:$F$52,5,0) ->  | M57: =VLOOKUP(M56,$B$1:$F$52,5,0) ->  | N57: =VLOOKUP(N56,$B$1:$F$52,5,0) ->  | O57: =VLOOKUP(O56,$B$1:$F$52,5,0) ->  | P57: =VLOOKUP(P56,$B$1:$F$52,5,0) ->  | R57: =VLOOKUP(R56,$B$1:$F$52,5,0) ->  | S57: =VLOOKUP(S56,$B$1:$F$52,5,0) ->  | T57: =VLOOKUP(T56,$B$1:$F$52,5,0) ->  | U57: =VLOOKUP(U56,$B$1:$F$52,5,0) ->  | V57: =VLOOKUP(V56,$B$1:$F$52,5,0) ->  | AH57: 20 | AI57: 3 | AJ57: 3 | AK57: 6 | AL57: 8 | AM57: 9 | AN57: One Pair | AO57: 9 | AP57: 8 | AQ57: 3 | AR57: 3 | AS57: 7 | AT57: 8 | AU57: 9 | AV57: One Pair | AW57: 9 | AX57: 0 | AY57: 0 | AZ57: 0 | BA57: 0 | BB57: 0 | BC57: 0 | BD57: 0 | BE57: 0 | BV57: =GB8 -> High Card | BW57: =GC8 ->  | BX57: 0 | CA57: 0
L58: =VLOOKUP(L56,$B$1:$F$52,4,0) ->  | M58: =VLOOKUP(M56,$B$1:$F$52,4,0) ->  | N58: =VLOOKUP(N56,$B$1:$F$52,4,0) ->  | O58: =VLOOKUP(O56,$B$1:$F$52,4,0) ->  | P58: =VLOOKUP(P56,$B$1:$F$52,4,0) ->  | R58: =VLOOKUP(R56,$B$1:$F$52,4,0) ->  | S58: =VLOOKUP(S56,$B$1:$F$52,4,0) ->  | T58: =VLOOKUP(T56,$B$1:$F$52,4,0) ->  | U58: =VLOOKUP(U56,$B$1:$F$52,4,0) ->  | V58: =VLOOKUP(V56,$B$1:$F$52,4,0) ->  | AH58: 1 | AI58: 2 | AJ58: 3 | AK58: 3 | AL58: 8 | AM58: 9 | AN58: One Pair | AO58: 9 | AP58: 16 | AQ58: 3 | AR58: 3 | AS58: 6 | AT58: 8 | AU58: 9 | AV58: One Pair | AW58: 9 | AX58: 0 | AY58: 0 | AZ58: 0 | BA58: 0 | BB58: 0 | BC58: 0 | BD58: 0 | BE58: 0
L59: =HLOOKUP(L61,$L$55:$P$58,3,0) ->  | M59: =HLOOKUP(M61,$L$55:$P$58,3,0) ->  | N59: =HLOOKUP(N61,$L$55:$P$58,3,0) ->  | O59: =HLOOKUP(O61,$L$55:$P$58,3,0) ->  | P59: =HLOOKUP(P61,$L$55:$P$58,3,0) ->  | R59: =HLOOKUP(R61,$R$55:$V$58,3,0) ->  | S59: =HLOOKUP(S61,$R$55:$V$58,3,0) ->  | T59: =HLOOKUP(T61,$R$55:$V$58,3,0) ->  | U59: =HLOOKUP(U61,$R$55:$V$58,3,0) ->  | V59: =HLOOKUP(V61,$R$55:$V$58,3,0) ->  | AH59: 8 | AI59: 2 | AJ59: 3 | AK59: 3 | AL59: 8 | AM59: 9 | AN59: One Pair | AO59: 9 | AP59: 20 | AQ59: 3 | AR59: 3 | AS59: 6 | AT59: 8 | AU59: 9 | AV59: One Pair | AW59: 9 | AX59: 0 | AY59: 0 | AZ59: 0 | BA59: 0 | BB59: 0 | BC59: 0 | BD59: 0 | BE59: 0 | BU59: 6 | BV59: =CG9 -> Royal Flush | BW59: =CH9 -> 
L60: =HLOOKUP(L61,$L$55:$P$58,4,0) ->  | M60: =HLOOKUP(M61,$L$55:$P$58,4,0) ->  | N60: =HLOOKUP(N61,$L$55:$P$58,4,0) ->  | O60: =HLOOKUP(O61,$L$55:$P$58,4,0) ->  | P60: =HLOOKUP(P61,$L$55:$P$58,4,0) ->  | R60: =HLOOKUP(R61,$R$55:$V$58,4,0) ->  | S60: =HLOOKUP(S61,$R$55:$V$58,4,0) ->  | T60: =HLOOKUP(T61,$R$55:$V$58,4,0) ->  | U60: =HLOOKUP(U61,$R$55:$V$58,4,0) ->  | V60: =HLOOKUP(V61,$R$55:$V$58,4,0) ->  | AH60: 7 | AI60: 2 | AJ60: 3 | AK60: 3 | AL60: 6 | AM60: 9 | AN60: One Pair | AO60: 9 | AP60: 7 | AQ60: 3 | AR60: 3 | AS60: 6 | AT60: 7 | AU60: 9 | AV60: One Pair | AW60: 9 | AX60: 0 | AY60: 0 | AZ60: 0 | BA60: 0 | BB60: 0 | BC60: 0 | BD60: 0 | BE60: 0 | BV60: =CR9 -> Straight Flush | BW60: =CS9 -> 
L61: 1 | M61: 2 | N61: 3 | O61: 4 | P61: 5 | R61: 1 | S61: 2 | T61: 3 | U61: 4 | V61: 5 | AH61: 6 | AI61: 2 | AJ61: 3 | AK61: 6 | AL61: 8 | AM61: 8 | AN61: One Pair | AO61: 9 | AP61: 6 | AQ61: 3 | AR61: 6 | AS61: 7 | AT61: 8 | AU61: 8 | AV61: One Pair | AW61: 9 | AX61: 0 | AY61: 0 | AZ61: 0 | BA61: 0 | BB61: 0 | BC61: 0 | BD61: 0 | BE61: 0 | BV61: =DC9 -> Four of a Kind | BW61: =DD9 ->  | BX61: 0 | CA61: 0
L62: =L57+IF(L57=1,13+RAND()^3,RAND()^3) ->  | M62: =M57+IF(M57=1,13+RAND()^3,RAND()^3) ->  | Q62: 0.03917610091 | W62: 0.04459364643 | AH62: 14 | AI62: 2 | AJ62: 3 | AK62: 6 | AL62: 8 | AM62: 8 | AN62: One Pair | AO62: 9 | AP62: 14 | AQ62: 3 | AR62: 6 | AS62: 7 | AT62: 8 | AU62: 8 | AV62: One Pair | AW62: 9 | AX62: 0 | AY62: 0 | AZ62: 0 | BA62: 0 | BB62: 0 | BC62: 0 | BD62: 0 | BE62: 0 | BV62: =DN9 -> Full House | BW62: =DO9 ->  | BX62: 0 | CA62: 0
AH63: 4 | AI63: 2 | AJ63: 3 | AK63: 3 | AL63: 6 | AM63: 8 | AN63: One Pair | AO63: 9 | AP63: 4 | AQ63: 3 | AR63: 3 | AS63: 6 | AT63: 7 | AU63: 8 | AV63: One Pair | AW63: 9 | AX63: 0 | AY63: 0 | AZ63: 0 | BA63: 0 | BB63: 0 | BC63: 0 | BD63: 0 | BE63: 0 | BV63: =DY9 -> Flush | BW63: =DZ9 ->  | BX63: 0 | CA63: 0
L64: =RANK(L71,$L$71:$P$71,1) ->  | M64: =RANK(M71,$L$71:$P$71,1) ->  | N64: =RANK(N71,$L$71:$P$71,1) ->  | O64: =RANK(O71,$L$71:$P$71,1) ->  | P64: =RANK(P71,$L$71:$P$71,1) ->  | R64: =RANK(R71,$R$71:$V$71,1) ->  | S64: =RANK(S71,$R$71:$V$71,1) ->  | T64: =RANK(T71,$R$71:$V$71,1) ->  | U64: =RANK(U71,$R$71:$V$71,1) ->  | V64: =RANK(V71,$R$71:$V$71,1) ->  | AH64: 10 | AI64: 2 | AJ64: 3 | AK64: 3 | AL64: 6 | AM64: 8 | AN64: One Pair | AO64: 9 | AP64: 10 | AQ64: 3 | AR64: 3 | AS64: 6 | AT64: 7 | AU64: 8 | AV64: One Pair | AW64: 9 | AX64: 0 | AY64: 0 | AZ64: 0 | BA64: 0 | BB64: 0 | BC64: 0 | BD64: 0 | BE64: 0 | BV64: =EJ9 -> Straight | BW64: =EK9 -> 
J65: 8 | L65: =[0]!Player11 -> 0 | M65: =[0]!Player12 -> 0 | N65: =[0]!House2 -> 0 | O65: =[0]!House3 -> 0 | P65: =[0]!House5 -> 0 | R65: =[0]!Player21 -> 0 | S65: =[0]!Player22 -> 0 | T65: =[0]!House2 -> 0 | U65: =[0]!House3 -> 0 | V65: =[0]!House5 -> 0 | AH65: 2 | AI65: 2 | AJ65: 3 | AK65: 6 | AL65: 8 | AM65: 9 | AN65: High Card | AO65: 10 | AP65: 2 | AQ65: 3 | AR65: 6 | AS65: 7 | AT65: 8 | AU65: 9 | AV65: High Card | AW65: 10 | AX65: 0 | AY65: 0 | AZ65: 0 | BA65: 0 | BB65: 0 | BC65: 0 | BD65: 0 | BE65: 0 | BV65: =EU9 -> Three of a Kind | BW65: =EV9 ->  | BX65: 0 | CA65: 0
L66: =VLOOKUP(L65,$B$1:$F$52,5,0) ->  | M66: =VLOOKUP(M65,$B$1:$F$52,5,0) ->  | N66: =VLOOKUP(N65,$B$1:$F$52,5,0) ->  | O66: =VLOOKUP(O65,$B$1:$F$52,5,0) ->  | P66: =VLOOKUP(P65,$B$1:$F$52,5,0) ->  | R66: =VLOOKUP(R65,$B$1:$F$52,5,0) ->  | S66: =VLOOKUP(S65,$B$1:$F$52,5,0) ->  | T66: =VLOOKUP(T65,$B$1:$F$52,5,0) ->  | U66: =VLOOKUP(U65,$B$1:$F$52,5,0) ->  | V66: =VLOOKUP(V65,$B$1:$F$52,5,0) ->  | AH66: 9 | AI66: 2 | AJ66: 3 | AK66: 6 | AL66: 8 | AM66: 9 | AN66: High Card | AO66: 10 | AP66: 9 | AQ66: 3 | AR66: 6 | AS66: 7 | AT66: 8 | AU66: 9 | AV66: High Card | AW66: 10 | AX66: 0 | AY66: 0 | AZ66: 0 | BA66: 0 | BB66: 0 | BC66: 0 | BD66: 0 | BE66: 0 | BV66: =FF9 -> Two Pair | BW66: =FG9 ->  | BX66: 0 | CA66: 0
L67: =VLOOKUP(L65,$B$1:$F$52,4,0) ->  | M67: =VLOOKUP(M65,$B$1:$F$52,4,0) ->  | N67: =VLOOKUP(N65,$B$1:$F$52,4,0) ->  | O67: =VLOOKUP(O65,$B$1:$F$52,4,0) ->  | P67: =VLOOKUP(P65,$B$1:$F$52,4,0) ->  | R67: =VLOOKUP(R65,$B$1:$F$52,4,0) ->  | S67: =VLOOKUP(S65,$B$1:$F$52,4,0) ->  | T67: =VLOOKUP(T65,$B$1:$F$52,4,0) ->  | U67: =VLOOKUP(U65,$B$1:$F$52,4,0) ->  | V67: =VLOOKUP(V65,$B$1:$F$52,4,0) ->  | AH67: 11 | AI67: 2 | AJ67: 3 | AK67: 6 | AL67: 8 | AM67: 9 | AN67: High Card | AO67: 10 | AP67: 11 | AQ67: 3 | AR67: 6 | AS67: 7 | AT67: 8 | AU67: 9 | AV67: High Card | AW67: 10 | AX67: 0 | AY67: 0 | AZ67: 0 | BA67: 0 | BB67: 0 | BC67: 0 | BD67: 0 | BE67: 0 | BV67: =FQ9 -> One Pair | BW67: =FR9 ->  | BX67: 0 | CA67: 0
L68: =HLOOKUP(L70,$L$64:$P$67,3,0) ->  | M68: =HLOOKUP(M70,$L$64:$P$67,3,0) ->  | N68: =HLOOKUP(N70,$L$64:$P$67,3,0) ->  | O68: =HLOOKUP(O70,$L$64:$P$67,3,0) ->  | P68: =HLOOKUP(P70,$L$64:$P$67,3,0) ->  | R68: =HLOOKUP(R70,$R$64:$V$67,3,0) ->  | S68: =HLOOKUP(S70,$R$64:$V$67,3,0) ->  | T68: =HLOOKUP(T70,$R$64:$V$67,3,0) ->  | U68: =HLOOKUP(U70,$R$64:$V$67,3,0) ->  | V68: =HLOOKUP(V70,$R$64:$V$67,3,0) ->  | AH68: 15 | AI68: 2 | AJ68: 3 | AK68: 6 | AL68: 8 | AM68: 9 | AN68: High Card | AO68: 10 | AP68: 15 | AQ68: 3 | AR68: 6 | AS68: 7 | AT68: 8 | AU68: 9 | AV68: High Card | AW68: 10 | AX68: 0 | AY68: 0 | AZ68: 0 | BA68: 0 | BB68: 0 | BC68: 0 | BD68: 0 | BE68: 0 | BV68: =GB9 -> High Card | BW68: =GC9 ->  | BX68: 0 | CA68: 0
L69: =HLOOKUP(L70,$L$64:$P$67,4,0) ->  | M69: =HLOOKUP(M70,$L$64:$P$67,4,0) ->  | N69: =HLOOKUP(N70,$L$64:$P$67,4,0) ->  | O69: =HLOOKUP(O70,$L$64:$P$67,4,0) ->  | P69: =HLOOKUP(P70,$L$64:$P$67,4,0) ->  | R69: =HLOOKUP(R70,$R$64:$V$67,4,0) ->  | S69: =HLOOKUP(S70,$R$64:$V$67,4,0) ->  | T69: =HLOOKUP(T70,$R$64:$V$67,4,0) ->  | U69: =HLOOKUP(U70,$R$64:$V$67,4,0) ->  | V69: =HLOOKUP(V70,$R$64:$V$67,4,0) ->  | AF69: straight flush/flush | AI69: =IF(AND($AI$79=$AJ$79,$AJ$79=$AK$79,$AK$79=$AL$79,$AL$79=$AM$79),IF(MIN(AI78:AM78)=1,14,LARGE($AI$78:$AM$78,1)),0)*IF(OR(AO80=2,AO80=5),1,0) ->  | AJ69: =IF(AND($AI$79=$AJ$79,$AJ$79=$AK$79,$AK$79=$AL$79,$AL$79=$AM$79),IF(AI69=14,LARGE($AI$78:$AM$78,1),LARGE($AI$78:$AM$78,2)),0)*IF(OR(AO80=2,AO80=5),1,0) ->  | AK69: =IF(AND($AI$79=$AJ$79,$AJ$79=$AK$79,$AK$79=$AL$79,$AL$79=$AM$79),IF(AI69=14,LARGE($AI$78:$AM$78,2),LARGE($AI$78:$AM$78,3)),0)*IF(OR(AO80=2,AO80=5),1,0) ->  | AL69: =IF(AND($AI$79=$AJ$79,$AJ$79=$AK$79,$AK$79=$AL$79,$AL$79=$AM$79),IF(AI69=14,LARGE($AI$78:$AM$78,3),LARGE($AI$78:$AM$78,4)),0)*IF(OR(AO80=2,AO80=5),1,0) ->  | AM69: =IF(AND($AI$79=$AJ$79,$AJ$79=$AK$79,$AK$79=$AL$79,$AL$79=$AM$79),IF(AI69=14,LARGE($AI$78:$AM$78,4),LARGE($AI$78:$AM$78,5)),0)*IF(OR(AO80=2,AO80=5),1,0) ->  | AQ69: =IF(AND($AQ$79=$AR$79,$AR$79=$AS$79,$AS$79=$AT$79,$AT$79=$AU$79),IF(MIN(AQ78:AU78)=1,14,LARGE($AQ$78:$AU$78,1)),0)*IF(OR(AW80=2,AW80=5),1,0) ->  | AR69: =IF(AND($AQ$79=$AR$79,$AR$79=$AS$79,$AS$79=$AT$79,$AT$79=$AU$79),IF($AQ$69=14,LARGE($AQ$78:$AU$78,1),LARGE($AQ$78:$AU$78,2)),0)*IF(OR(AW80=2,AW80=5),1,0) ->  | AS69: =IF(AND($AQ$79=$AR$79,$AR$79=$AS$79,$AS$79=$AT$79,$AT$79=$AU$79),IF(AQ69=14,LARGE($AQ$78:$AU$78,2),LARGE($AQ$78:$AU$78,3)),0)*IF(OR(AW80=2,AW80=5),1,0) ->  | AT69: =IF(AND($AQ$79=$AR$79,$AR$79=$AS$79,$AS$79=$AT$79,$AT$79=$AU$79),IF(AQ69=14,LARGE($AQ$78:$AU$78,3),LARGE($AQ$78:$AU$78,4)),0)*IF(OR(AW80=2,AW80=5),1,0) ->  | AU69: =IF(AND($AQ$79=$AR$79,$AR$79=$AS$79,$AS$79=$AT$79,$AT$79=$AU$79),IF(AQ69=14,LARGE($AQ$78:$AU$78,4),LARGE($AQ$78:$AU$78,5)),0)*IF(OR(AW80=2,AW80=5),1,0) -> 
L70: 1 | M70: 2 | N70: 3 | O70: 4 | P70: 5 | R70: 1 | S70: 2 | T70: 3 | U70: 4 | V70: 5 | AF70: high card/straight | AI70: =IF(MIN(AI78:AM78)=1,14,LARGE($AI$78:$AM$78,1))*IF(OR($AO$80=10,$AO$80=6),1,0) -> 0 | AJ70: =IF(AI70=14,LARGE($AI$78:$AM$78,1),LARGE($AI$78:$AM$78,2))*IF(OR($AO$80=10,$AO$80=6),1,0) -> 0 | AK70: =IF(AI70=14,LARGE($AI$78:$AM$78,2),LARGE($AI$78:$AM$78,3))*IF(OR($AO$80=10,$AO$80=6),1,0) -> 0 | AL70: =IF(AI70=14,LARGE($AI$78:$AM$78,3),LARGE($AI$78:$AM$78,4))*IF(OR($AO$80=10,$AO$80=6),1,0) -> 0 | AM70: =IF(AI70=14,LARGE($AI$78:$AM$78,4),LARGE($AI$78:$AM$78,5))*IF(OR($AO$80=10,$AO$80=6),1,0) -> 0 | AQ70: =IF(MIN(AQ78:AU78)=1,14,LARGE($AQ$78:$AU$78,1))*IF(OR($AW$80=10,$AW$80=6),1,0) -> 0 | AR70: =IF($AQ$70=14,LARGE($AQ$78:$AU$78,1),LARGE($AQ$78:$AU$78,2))*IF(OR($AW$80=10,$AW$80=6),1,0) -> 0 | AS70: =IF(AQ70=14,LARGE($AQ$78:$AU$78,2),LARGE($AQ$78:$AU$78,3))*IF(OR($AW$80=10,$AW$80=6),1,0) -> 0 | AT70: =IF(AQ70=14,LARGE($AQ$78:$AU$78,3),LARGE($AQ$78:$AU$78,4))*IF(OR($AW$80=10,$AW$80=6),1,0) -> 0 | AU70: =IF(AQ70=14,LARGE($AQ$78:$AU$78,4),LARGE($AQ$78:$AU$78,5))*IF(OR($AW$80=10,$AW$80=6),1,0) -> 0 | BU70: 7 | BV70: =CG10 -> Royal Flush | BW70: =CH10 -> 
L71: =L66+IF(L66=1,13+RAND()^3,RAND()^3) ->  | M71: =M66+IF(M66=1,13+RAND()^3,RAND()^3) ->  | Q71: 0.5051828367 | W71: 0.2181107894 | AF71: one pair | AI71: =IF(ISNUMBER(MAX($AO$77:$AO$78)),MAX($AO$77:$AO$78),SMALL($AI$78:$AM$78,1))*IF(AO80=9,1,0) -> 0 | AK71: =IF(LARGE($AI$77:$AM$77,3)=1,14,LARGE($AI$77:$AM$77,1))*IF(AO80=9,1,0) -> 0 | AL71: =IF(AK71=14,LARGE($AI$77:$AM$77,1),LARGE($AI$77:$AM$77,2))*IF(AO80=9,1,0) -> 0 | AM71: =IF(AK71=14,LARGE($AI$77:$AM$77,2),LARGE($AI$77:$AM$77,3))*IF(AO80=9,1,0) -> 0 | AQ71: =IF(ISNUMBER(MAX($AW$77:$AW$78)),MAX($AW$77:$AW$78),SMALL($AQ$78:$AU$78,1))*IF(AW80=9,1,0) -> 0 | AS71: =IF(LARGE($AQ$77:$AU$77,3)=1,14,LARGE($AQ$77:$AU$77,1))*IF(AW80=9,1,0) -> 0 | AT71: =IF(AS71=14,LARGE($AQ$77:$AU$77,1),LARGE($AQ$77:$AU$77,2))*IF(AW80=9,1,0) -> 0 | AU71: =IF(AS71=14,LARGE($AQ$77:$AU$77,2),LARGE($AQ$77:$AU$77,3))*IF(AW80=9,1,0) -> 0 | BV71: =CR10 -> Straight Flush | BW71: =CS10 -> 
AF72: three of a kind | AI72: =IF(ISNUMBER(MAX($AO$77:$AO$78)),MAX($AO$77:$AO$78),SMALL($AI$78:$AM$78,1))*IF(AO80=7,1,0) -> 0 | AK72: =IF(LARGE(AI77:AM77,2)=1,14,LARGE(AI77:AM77,1))*IF(AO80=7,1,0) -> 0 | AL72: =IF(AK72=14,LARGE(AI77:AM77,1),LARGE(AI77:AM77,2))*IF(AO80=7,1,0) -> 0 | AQ72: =IF(ISNUMBER(MAX($AW$77:$AW$78)),MAX($AW$77:$AW$78),SMALL($AQ$78:$AU$78,1))*IF(AW80=7,1,0) -> 0 | AS72: =IF(LARGE(AQ77:AU77,2)=1,14,LARGE(AQ77:AU77,1))*IF(AW80=7,1,0) -> 0 | AT72: =IF(AS72=14,LARGE(AQ77:AU77,1),LARGE(AQ77:AU77,2))*IF(AW80=7,1,0) -> 0 | BV72: =DC10 -> Four of a Kind | BW72: =DD10 ->  | BX72: 0 | CA72: 0
L73: =RANK(L80,$L$80:$P$80,1) ->  | M73: =RANK(M80,$L$80:$P$80,1) ->  | N73: =RANK(N80,$L$80:$P$80,1) ->  | O73: =RANK(O80,$L$80:$P$80,1) ->  | P73: =RANK(P80,$L$80:$P$80,1) ->  | R73: =RANK(R80,$R$80:$V$80,1) ->  | S73: =RANK(S80,$R$80:$V$80,1) ->  | T73: =RANK(T80,$R$80:$V$80,1) ->  | U73: =RANK(U80,$R$80:$V$80,1) ->  | V73: =RANK(V80,$R$80:$V$80,1) ->  | AF73: two pairs | AI73: =IF(ISNUMBER(MAX($AO$77:$AO$78)),MAX($AO$77:$AO$78),SMALL($AI$78:$AM$78,1))*IF(AO80=8,1,0) -> 8 | AJ73: =IF(ISNUMBER(MIN($AO$77:$AO$78)),MIN($AO$77:$AO$78),SMALL($AI$78:$AM$78,2))*IF(AO80=8,1,0) -> 3 | AK73: =IF(OR($AI$77=1,$AJ$77=1,$AK$77=1,$AL$77=1,$AM$77=1),14,MAX($AI$77:$AM$77))*IF(AO80=8,1,0) -> 9 | AQ73: =IF(ISNUMBER(MAX($AW$77:$AW$78)),MAX($AW$77:$AW$78),SMALL($AQ$78:$AU$78,1))*IF(AW80=8,1,0) -> 8 | AR73: =IF(ISNUMBER(MIN($AW$77:$AW$78)),MIN($AW$77:$AW$78),SMALL($AQ$78:$AU$78,2))*IF(AW80=8,1,0) -> 3 | AS73: =IF(OR($AQ$77=1,$AR$77=1,$AS$77=1,$AT$77=1,$AU$77=1),14,MAX($AQ$77:$AU$77))*IF(AW80=8,1,0) -> 9 | BV73: =DN10 -> Full House | BW73: =DO10 ->  | BX73: 0 | CA73: 0
J74: 9 | L74: =[0]!Player11 -> 0 | M74: =[0]!Player12 -> 0 | N74: =[0]!House2 -> 0 | O74: =[0]!House4 -> 0 | P74: =[0]!House5 -> 0 | R74: =[0]!Player21 -> 0 | S74: =[0]!Player22 -> 0 | T74: =[0]!House2 -> 0 | U74: =[0]!House4 -> 0 | V74: =[0]!House5 -> 0 | AF74: full house | AI74: =IF(OR(AND($AN$79=2,$AO$79=3),AND($AN$79=3,$AO$79=2)),LARGE($AI$78:$AM$78,1),0)*IF($AO$80=4,1,0) -> 0 | AJ74: =IF(OR(AND($AN$79=2,$AO$79=3),AND($AN$79=3,$AO$79=2)),SMALL($AI$78:$AM$78,1),0)*IF($AO$80=4,1,0) -> 0 | AQ74: =IF(OR(AND($AV$79=2,$AW$79=3),AND($AV$79=3,$AW$79=2)),LARGE($AQ$78:$AU$78,1),0)*IF($AW$80=4,1,0) -> 0 | AR74: =IF(OR(AND($AV$79=2,$AW$79=3),AND($AV$79=3,$AW$79=2)),SMALL($AQ$78:$AU$78,1),0)*IF($AW$80=4,1,0) -> 0 | BV74: =DY10 -> Flush | BW74: =DZ10 ->  | BX74: 0 | CA74: 0
L75: =VLOOKUP(L74,$B$1:$F$52,5,0) ->  | M75: =VLOOKUP(M74,$B$1:$F$52,5,0) ->  | N75: =VLOOKUP(N74,$B$1:$F$52,5,0) ->  | O75: =VLOOKUP(O74,$B$1:$F$52,5,0) ->  | P75: =VLOOKUP(P74,$B$1:$F$52,5,0) ->  | R75: =VLOOKUP(R74,$B$1:$F$52,5,0) ->  | S75: =VLOOKUP(S74,$B$1:$F$52,5,0) ->  | T75: =VLOOKUP(T74,$B$1:$F$52,5,0) ->  | U75: =VLOOKUP(U74,$B$1:$F$52,5,0) ->  | V75: =VLOOKUP(V74,$B$1:$F$52,5,0) ->  | AF75: four of a kind | AI75: =IF(ISNUMBER(MAX($AO$77:$AO$78)),MAX($AO$77:$AO$78),SMALL($AI$78:$AM$78,1))*IF(AO80=3,1,0) -> 0 | AK75: =IF(OR($AI$77=1,$AJ$77=1,$AK$77=1,$AL$77=1,$AM$77=1),14,MAX($AI$77:$AM$77))*IF(AO80=3,1,0) -> 0 | AQ75: =IF(ISNUMBER(MAX($AW$77:$AW$78)),MAX($AW$77:$AW$78),SMALL($AQ$78:$AU$78,1))*IF(AW80=3,1,0) -> 0 | AS75: =IF(OR($AQ$77=1,$AR$77=1,$AS$77=1,$AT$77=1,$AU$77=1),14,MAX($AQ$77:$AU$77))*IF(AW80=3,1,0) -> 0 | BV75: =EJ10 -> Straight | BW75: =EK10 -> 
L76: =VLOOKUP(L74,$B$1:$F$52,4,0) ->  | M76: =VLOOKUP(M74,$B$1:$F$52,4,0) ->  | N76: =VLOOKUP(N74,$B$1:$F$52,4,0) ->  | O76: =VLOOKUP(O74,$B$1:$F$52,4,0) ->  | P76: =VLOOKUP(P74,$B$1:$F$52,4,0) ->  | R76: =VLOOKUP(R74,$B$1:$F$52,4,0) ->  | S76: =VLOOKUP(S74,$B$1:$F$52,4,0) ->  | T76: =VLOOKUP(T74,$B$1:$F$52,4,0) ->  | U76: =VLOOKUP(U74,$B$1:$F$52,4,0) ->  | V76: =VLOOKUP(V74,$B$1:$F$52,4,0) ->  | AI76: =AO77 -> 3 | AJ76: =AO78 -> 8 | AQ76: =AW77 -> 3 | AR76: =AW78 -> 8 | BV76: =EU10 -> Three of a Kind | BW76: =EV10 ->  | BX76: 0 | CA76: 0
L77: =HLOOKUP(L79,$L$73:$P$76,3,0) ->  | M77: =HLOOKUP(M79,$L$73:$P$76,3,0) ->  | N77: =HLOOKUP(N79,$L$73:$P$76,3,0) ->  | O77: =HLOOKUP(O79,$L$73:$P$76,3,0) ->  | P77: =HLOOKUP(P79,$L$73:$P$76,3,0) ->  | R77: =HLOOKUP(R79,$R$73:$V$76,3,0) ->  | S77: =HLOOKUP(S79,$R$73:$V$76,3,0) ->  | T77: =HLOOKUP(T79,$R$73:$V$76,3,0) ->  | U77: =HLOOKUP(U79,$R$73:$V$76,3,0) ->  | V77: =HLOOKUP(V79,$R$73:$V$76,3,0) ->  | AI77: =IF(AND($AI$78<>$AJ$78,$AJ$78<>$AK$78,$AK$78<>$AL$78,$AL$78<>$AM$78),AI78,IF(OR(AI78=$AN$77,AI78=$AN$78),0,AI78)) -> 0 | AJ77: =IF(AND($AI$78<>$AJ$78,$AJ$78<>$AK$78,$AK$78<>$AL$78,$AL$78<>$AM$78),AJ78,IF(OR(AJ78=$AN$77,AJ78=$AN$78),0,AJ78)) -> 0 | AK77: =IF(AND($AI$78<>$AJ$78,$AJ$78<>$AK$78,$AK$78<>$AL$78,$AL$78<>$AM$78),AK78,IF(OR(AK78=$AN$77,AK78=$AN$78),0,AK78)) -> 0 | AL77: =IF(AND($AI$78<>$AJ$78,$AJ$78<>$AK$78,$AK$78<>$AL$78,$AL$78<>$AM$78),AL78,IF(OR(AL78=$AN$77,AL78=$AN$78),0,AL78)) -> 0 | AM77: =IF(AND($AI$78<>$AJ$78,$AJ$78<>$AK$78,$AK$78<>$AL$78,$AL$78<>$AM$78),AM78,IF(OR(AM78=$AN$77,AM78=$AN$78),0,AM78)) -> 9 | AN77: =_xlfn.MODE.MULT(AI78:AM78) -> 3 | AO77: =IF(ISNUMBER(AN77),IF(AN77=1,14,AN77),0) -> 3 | AQ77: =IF(AND($AQ$78<>$AR$78,$AR$78<>$AS$78,$AS$78<>$AT$78,$AT$78<>$AU$78),AQ78,IF(OR(AQ78=$AV$77,AQ78=$AV$78),0,AQ78)) -> 0 | AR77: =IF(AND($AQ$78<>$AR$78,$AR$78<>$AS$78,$AS$78<>$AT$78,$AT$78<>$AU$78),AR78,IF(OR(AR78=$AV$77,AR78=$AV$78),0,AR78)) -> 0 | AS77: =IF(AND($AQ$78<>$AR$78,$AR$78<>$AS$78,$AS$78<>$AT$78,$AT$78<>$AU$78),AS78,IF(OR(AS78=$AV$77,AS78=$AV$78),0,AS78)) -> 0 | AT77: =IF(AND($AQ$78<>$AR$78,$AR$78<>$AS$78,$AS$78<>$AT$78,$AT$78<>$AU$78),AT78,IF(OR(AT78=$AV$77,AT78=$AV$78),0,AT78)) -> 0 | AU77: =IF(AND($AQ$78<>$AR$78,$AR$78<>$AS$78,$AS$78<>$AT$78,$AT$78<>$AU$78),AU78,IF(OR(AU78=$AV$77,AU78=$AV$78),0,AU78)) -> 9 | AV77: =_xlfn.MODE.MULT(AQ78:AU78) -> 3 | AW77: =IF(ISNUMBER(AV77),IF(AV77=1,14,AV77),0) -> 3 | BV77: =FF10 -> Two Pair | BW77: =FG10 ->  | BX77: 0 | CA77: 0
L78: =HLOOKUP(L79,$L$73:$P$76,4,0) ->  | M78: =HLOOKUP(M79,$L$73:$P$76,4,0) ->  | N78: =HLOOKUP(N79,$L$73:$P$76,4,0) ->  | O78: =HLOOKUP(O79,$L$73:$P$76,4,0) ->  | P78: =HLOOKUP(P79,$L$73:$P$76,4,0) ->  | R78: =HLOOKUP(R79,$R$73:$V$76,4,0) ->  | S78: =HLOOKUP(S79,$R$73:$V$76,4,0) ->  | T78: =HLOOKUP(T79,$R$73:$V$76,4,0) ->  | U78: =HLOOKUP(U79,$R$73:$V$76,4,0) ->  | V78: =HLOOKUP(V79,$R$73:$V$76,4,0) ->  | AH78: =AH48 -> 17 | AI78: 3 | AJ78: 3 | AK78: 8 | AL78: 8 | AM78: 9 | AN78: 8 | AO78: =IF(AN78=AN77,0,IF(ISNUMBER(AN78),IF(AN78=1,14,AN78),0)) -> 8 | AP78: =AP48 -> 17 | AQ78: 3 | AR78: 3 | AS78: 8 | AT78: 8 | AU78: 9 | AV78: 8 | AW78: =IF(AV78=AV77,0,IF(ISNUMBER(AV78),IF(AV78=1,14,AV78),0)) -> 8 | BV78: =FQ10:FQ10 -> One Pair | BW78: =FR10:FR10 ->  | BX78: 0 | CA78: 0
L79: 1 | M79: 2 | N79: 3 | O79: 4 | P79: 5 | R79: 1 | S79: 2 | T79: 3 | U79: 4 | V79: 5 | AH79: =AH78 -> 17 | AI79: =VLOOKUP($AH$79,$AH$25:$AM$45,2,0) ->  | AJ79: =VLOOKUP($AH$79,$AH$25:$AM$45,3,0) ->  | AK79: =VLOOKUP($AH$79,$AH$25:$AM$45,4,0) ->  | AL79: =VLOOKUP($AH$79,$AH$25:$AM$45,5,0) ->  | AM79: =VLOOKUP($AH$79,$AH$25:$AM$45,6,0) ->  | AN79: =COUNTIF($AI$78:$AM$78,AI78) -> 2 | AO79: =COUNTIF($AI$78:$AM$78,AM78) -> 1 | AP79: =AP78 -> 17 | AQ79: =VLOOKUP($AP$79,$AP$25:$AU$45,2,0) ->  | AR79: =VLOOKUP($AP$79,$AP$25:$AU$45,3,0) ->  | AS79: =VLOOKUP($AP$79,$AP$25:$AU$45,4,0) ->  | AT79: =VLOOKUP($AP$79,$AP$25:$AU$45,5,0) ->  | AU79: =VLOOKUP($AP$79,$AP$25:$AU$45,6,0) ->  | AV79: =COUNTIF($AQ$78:$AU$78,AQ78) -> 2 | AW79: =COUNTIF($AQ$78:$AU$78,AU78) -> 1 | BV79: =GB10 -> High Card | BW79: =GC10 ->  | BX79: 0 | CA79: 0
L80: =L75+IF(L75=1,13+RAND()^3,RAND()^3) ->  | M80: =M75+IF(M75=1,13+RAND()^3,RAND()^3) ->  | Q80: 0.4155269155 | W80: 0.07030391605 | AH80: =AH79 -> 17 | AI80: =VLOOKUP($AH$78,$J$2:$AB$182,3,0) -> 0 | AJ80: =VLOOKUP($AH$78,$J$2:$AB$182,4,0) -> 0 | AK80: =VLOOKUP($AH$78,$J$2:$AB$182,5,0) -> 0 | AL80: =VLOOKUP($AH$78,$J$2:$AB$182,6,0) -> 0 | AM80: =VLOOKUP($AH$78,$J$2:$AB$182,7,0) -> 0 | AN80: =INDEX($AN$48:$AN$68,MATCH($AO$80,$AO$48:$AO$68,0)) -> Two Pair | AO80: =SMALL($AO$48:$AO$68,1) -> 8 | AP80: =AP79 -> 17 | AQ80: =VLOOKUP($AP$78,$J$2:$AB$182,9,0) -> 0 | AR80: =VLOOKUP($AP$78,$J$2:$AB$182,10,0) -> 0 | AS80: =VLOOKUP($AP$78,$J$2:$AB$182,11,0) -> 0 | AT80: =VLOOKUP($AP$78,$J$2:$AB$182,12,0) -> 0 | AU80: =VLOOKUP($AP$78,$J$2:$AB$182,13,0) -> 0 | AV80: =INDEX($AV$48:$AV$68,MATCH($AW$80,$AW$48:$AW$68,0)) -> Two Pair | AW80: =SMALL($AW$48:$AW$68,1) -> 8
AI81: =INDEX($A$1:$A$52,MATCH(AI80,$B$1:$B$52,0)) ->  | AJ81: =INDEX($A$1:$A$52,MATCH(AJ80,$B$1:$B$52,0)) ->  | AQ81: =INDEX($A$1:$A$52,MATCH(AQ80,$B$1:$B$52,0)) ->  | AR81: =INDEX($A$1:$A$52,MATCH(AR80,$B$1:$B$52,0)) ->  | BU81: 8 | BV81: =CG11 -> Royal Flush | BW81: =CH11 -> 
L82: =RANK(L89,$L$89:$P$89,1) ->  | M82: =RANK(M89,$L$89:$P$89,1) ->  | N82: =RANK(N89,$L$89:$P$89,1) ->  | O82: =RANK(O89,$L$89:$P$89,1) ->  | P82: =RANK(P89,$L$89:$P$89,1) ->  | R82: =RANK(R89,$R$89:$V$89,1) ->  | S82: =RANK(S89,$R$89:$V$89,1) ->  | T82: =RANK(T89,$R$89:$V$89,1) ->  | U82: =RANK(U89,$R$89:$V$89,1) ->  | V82: =RANK(V89,$R$89:$V$89,1) ->  | BV82: =CR11 -> Straight Flush | BW82: =CS11 -> 
J83: 10 | L83: =[0]!Player11 -> 0 | M83: =[0]!Player12 -> 0 | N83: =[0]!House3 -> 0 | O83: =[0]!House4 -> 0 | P83: =[0]!House5 -> 0 | R83: =[0]!Player21 -> 0 | S83: =[0]!Player22 -> 0 | T83: =[0]!House3 -> 0 | U83: =[0]!House4 -> 0 | V83: =[0]!House5 -> 0 | AF83: All equal hands | AG83: =IF(AND(AI78=AQ78,AJ78=AR78,AK78=AS78,AL78=AT78,AM78=AU78,AO80<>11,AW80<>11),1,0) -> 1 | AH83: 1 | AI83: 1 | AK83: =$AG83*AH83 -> 1 | AL83: 1 | BV83: =DC11 -> Four of a Kind | BW83: =DD11 ->  | BX83: 0 | CA83: 0
L84: =VLOOKUP(L83,$B$1:$F$52,5,0) ->  | M84: =VLOOKUP(M83,$B$1:$F$52,5,0) ->  | N84: =VLOOKUP(N83,$B$1:$F$52,5,0) ->  | O84: =VLOOKUP(O83,$B$1:$F$52,5,0) ->  | P84: =VLOOKUP(P83,$B$1:$F$52,5,0) ->  | R84: =VLOOKUP(R83,$B$1:$F$52,5,0) ->  | S84: =VLOOKUP(S83,$B$1:$F$52,5,0) ->  | T84: =VLOOKUP(T83,$B$1:$F$52,5,0) ->  | U84: =VLOOKUP(U83,$B$1:$F$52,5,0) ->  | V84: =VLOOKUP(V83,$B$1:$F$52,5,0) ->  | AF84: first win | AG84: =IF(AND(AX84<0),1,0) -> 0 | AH84: 1 | AI84: 0 | AK84: 0 | AL84: 0 | AO84: =AO80 -> 8 | AW84: =AW80 -> 8 | AX84: =AO84-AW84 -> 0 | BV84: =DN11 -> Full House | BW84: =DO11 ->  | BX84: 0 | CA84: 0
L85: =VLOOKUP(L83,$B$1:$F$52,4,0) ->  | M85: =VLOOKUP(M83,$B$1:$F$52,4,0) ->  | N85: =VLOOKUP(N83,$B$1:$F$52,4,0) ->  | O85: =VLOOKUP(O83,$B$1:$F$52,4,0) ->  | P85: =VLOOKUP(P83,$B$1:$F$52,4,0) ->  | R85: =VLOOKUP(R83,$B$1:$F$52,4,0) ->  | S85: =VLOOKUP(S83,$B$1:$F$52,4,0) ->  | T85: =VLOOKUP(T83,$B$1:$F$52,4,0) ->  | U85: =VLOOKUP(U83,$B$1:$F$52,4,0) ->  | V85: =VLOOKUP(V83,$B$1:$F$52,4,0) ->  | AF85: second win | AG85: =IF(AND(AP85<0),1,0) -> 0 | AH85: 0 | AI85: 1 | AK85: 0 | AL85: 0 | AO85: =AO84 -> 8 | AP85: =AW85-AO85 -> 0 | AW85: =AW84 -> 8 | BV85: =DY11 -> Flush | BW85: =DZ11 ->  | BX85: 0 | CA85: 0
L86: =HLOOKUP(L88,$L$82:$P$85,3,0) ->  | M86: =HLOOKUP(M88,$L$82:$P$85,3,0) ->  | N86: =HLOOKUP(N88,$L$82:$P$85,3,0) ->  | O86: =HLOOKUP(O88,$L$82:$P$85,3,0) ->  | P86: =HLOOKUP(P88,$L$82:$P$85,3,0) ->  | R86: =HLOOKUP(R88,$R$82:$V$85,3,0) ->  | S86: =HLOOKUP(S88,$R$82:$V$85,3,0) ->  | T86: =HLOOKUP(T88,$R$82:$V$85,3,0) ->  | U86: =HLOOKUP(U88,$R$82:$V$85,3,0) ->  | V86: =HLOOKUP(V88,$R$82:$V$85,3,0) ->  | BV86: =EJ11 -> Straight | BW86: =EK11 -> 
L87: =HLOOKUP(L88,$L$82:$P$85,4,0) ->  | M87: =HLOOKUP(M88,$L$82:$P$85,4,0) ->  | N87: =HLOOKUP(N88,$L$82:$P$85,4,0) ->  | O87: =HLOOKUP(O88,$L$82:$P$85,4,0) ->  | P87: =HLOOKUP(P88,$L$82:$P$85,4,0) ->  | R87: =HLOOKUP(R88,$R$82:$V$85,4,0) ->  | S87: =HLOOKUP(S88,$R$82:$V$85,4,0) ->  | T87: =HLOOKUP(T88,$R$82:$V$85,4,0) ->  | U87: =HLOOKUP(U88,$R$82:$V$85,4,0) ->  | V87: =HLOOKUP(V88,$R$82:$V$85,4,0) ->  | BV87: =EU11 -> Three of a Kind | BW87: =EV11 ->  | BX87: 0 | CA87: 0
L88: 1 | M88: 2 | N88: 3 | O88: 4 | P88: 5 | R88: 1 | S88: 2 | T88: 3 | U88: 4 | V88: 5 | AF88: Royal Flush | AG88: 1 | AH88: 1 win | AI88: 2 win | BV88: =FF11 -> Two Pair | BW88: =FG11 ->  | BX88: 0 | CA88: 0
L89: =L84+IF(L84=1,13+RAND()^3,RAND()^3) ->  | M89: =M84+IF(M84=1,13+RAND()^3,RAND()^3) ->  | Q89: 0.4727087403 | W89: 1.72383662e-06 | AF89: All equal hands | AG89: =IF(AND($AG$83=0,$AO$80=AG88,$AO$80=$AW$80),1,0) -> 0 | AH89: 1 | AI89: 1 | AK89: =$AG89*AH89 -> 0 | AL89: =$AG89*AI89 -> 0 | BV89: =FQ11 -> One Pair | BW89: =FR11 ->  | BX89: 0 | CA89: 0
BV90: =GB11 -> High Card | BW90: =GC11 ->  | BX90: 0 | CA90: 0
L91: =RANK(L98,$L$98:$P$98,1) ->  | M91: =RANK(M98,$L$98:$P$98,1) ->  | R91: =RANK(R98,$R$98:$V$98,1) ->  | S91: =RANK(S98,$R$98:$V$98,1) -> 
J92: 11 | L92: =[0]!Player11 -> 0 | M92: =[0]!House1 -> 0 | N92: =[0]!House2 -> 0 | O92: =[0]!House3 -> 0 | P92: =[0]!House4 -> 0 | R92: =[0]!Player21 -> 0 | S92: =[0]!House1 -> 0 | T92: =[0]!House2 -> 0 | U92: =[0]!House3 -> 0 | V92: =[0]!House4 -> 0 | BU92: 9 | BV92: =CG12 -> Royal Flush | BW92: =CH12 -> 
L93: =VLOOKUP(L92,$B$1:$F$52,5,0) ->  | M93: =VLOOKUP(M92,$B$1:$F$52,5,0) ->  | N93: =VLOOKUP(N92,$B$1:$F$52,5,0) ->  | O93: =VLOOKUP(O92,$B$1:$F$52,5,0) ->  | P93: =VLOOKUP(P92,$B$1:$F$52,5,0) ->  | R93: =VLOOKUP(R92,$B$1:$F$52,5,0) ->  | S93: =VLOOKUP(S92,$B$1:$F$52,5,0) ->  | T93: =VLOOKUP(T92,$B$1:$F$52,5,0) ->  | U93: =VLOOKUP(U92,$B$1:$F$52,5,0) ->  | V93: =VLOOKUP(V92,$B$1:$F$52,5,0) ->  | AF93: Straight Flush | AG93: 2 | AX93: STRAIGHT FLUSH | BV93: =CR12 -> Straight Flush | BW93: =CS12 -> 
L94: =VLOOKUP(L92,$B$1:$F$52,4,0) ->  | M94: =VLOOKUP(M92,$B$1:$F$52,4,0) ->  | N94: =VLOOKUP(N92,$B$1:$F$52,4,0) ->  | O94: =VLOOKUP(O92,$B$1:$F$52,4,0) ->  | P94: =VLOOKUP(P92,$B$1:$F$52,4,0) ->  | R94: =VLOOKUP(R92,$B$1:$F$52,4,0) ->  | S94: =VLOOKUP(S92,$B$1:$F$52,4,0) ->  | T94: =VLOOKUP(T92,$B$1:$F$52,4,0) ->  | U94: =VLOOKUP(U92,$B$1:$F$52,4,0) ->  | V94: =VLOOKUP(V92,$B$1:$F$52,4,0) ->  | AF94: All equal hands | AG94: =IF(AND($AO$80=AG93,$AO$80=$AW$80,AM78=AU78),1,0) -> 0 | AH94: 1 | AI94: 1 | AK94: =$AG94*AH94 -> 0 | AL94: =$AG94*AI94 -> 0 | AX94: first win | AZ94: =AI69 ->  | BB94: =AQ69 ->  | BC94: =AZ94-BB94 ->  | BV94: =DC12 -> Four of a Kind | BW94: =DD12 ->  | BX94: 0 | CA94: 0
L95: =HLOOKUP(L97,$L$91:$P$94,3,0) ->  | M95: =HLOOKUP(M97,$L$91:$P$94,3,0) ->  | R95: =HLOOKUP(R97,$R$91:$V$94,3,0) ->  | S95: =HLOOKUP(S97,$R$91:$V$94,3,0) ->  | AZ95: =AJ69 ->  | BB95: =AR69 ->  | BC95: =AZ95-BB95 ->  | BV95: =DN12 -> Full House | BW95: =DO12 ->  | BX95: 0 | CA95: 0
L96: =HLOOKUP(L97,$L$91:$P$94,4,0) ->  | M96: =HLOOKUP(M97,$L$91:$P$94,4,0) ->  | R96: =HLOOKUP(R97,$R$91:$V$94,4,0) ->  | S96: =HLOOKUP(S97,$R$91:$V$94,4,0) ->  | AZ96: =AK69 ->  | BB96: =AS69 ->  | BV96: =DY12 -> Flush | BW96: =DZ12 ->  | BX96: 0 | CA96: 0
L97: 1 | M97: 2 | N97: 3 | O97: 4 | P97: 5 | R97: 1 | S97: 2 | T97: 3 | U97: 4 | V97: 5 | AZ97: =AL69 ->  | BB97: =AT69 ->  | BV97: =EJ12 -> Straight | BW97: =EK12 -> 
L98: =L93+IF(L93=1,13+RAND()^3,RAND()^3) ->  | M98: =M93+IF(M93=1,13+RAND()^3,RAND()^3) ->  | Q98: 0.01915420486 | W98: 0.420954044 | AF98: first win | AG98: =IF(AND($AO$80=$AG$93,$AO$80=MIN($AO$80,$AW$80),$AG$84=0,$BC$100>0),1,0) -> 0 | AH98: 1 | AI98: 0 | AK98: =$AG98*AH98 -> 0 | AL98: 0 | AZ98: =AM69 ->  | BB98: =AU69 ->  | BV98: =EU12 -> Three of a Kind | BW98: =EV12 ->  | BX98: 0 | CA98: 0
AF99: second win | AG99: =IF(AND($AW$80=$AG$93,$AW$80=MIN($AO$80,$AW$80),$AG$85=0,$BA$107>0),1,0) -> 0 | AH99: 0 | AI99: 1 | AK99: 0 | AL99: 0 | BC99: =INDEX(BC94:BC98,MATCH(TRUE,INDEX(BC94:BC98<>0,),0)) ->  | BV99: =FF12 -> Two Pair | BW99: =FG12 ->  | BX99: 0 | CA99: 0
L100: =RANK(L107,$L$107:$P$107,1) ->  | M100: =RANK(M107,$L$107:$P$107,1) ->  | R100: =RANK(R107,$R$107:$V$107,1) ->  | S100: =RANK(S107,$R$107:$V$107,1) ->  | BC100: =IF(ISNUMBER(BC99),BC99,0) -> 0 | BV100: =FQ12 -> One Pair | BW100: =FR12 ->  | BX100: 0 | CA100: 0
J101: 12 | L101: =[0]!Player11 -> 0 | M101: =[0]!House1 -> 0 | N101: =[0]!House2 -> 0 | O101: =[0]!House3 -> 0 | P101: =[0]!House5 -> 0 | R101: =[0]!Player21 -> 0 | S101: =[0]!House1 -> 0 | T101: =[0]!House2 -> 0 | U101: =[0]!House3 -> 0 | V101: =[0]!House5 -> 0 | AF101: Four of a Kind | AG101: 3 | AO101: FOUR OF A KIND | AX101: second win | AZ101: =AZ94 ->  | BA101: =BB101-AZ101 ->  | BB101: =BB94 ->  | BV101: =GB12 -> High Card | BW101: =GC12 ->  | BX101: 0 | CA101: 0
L102: =VLOOKUP(L101,$B$1:$F$52,5,0) ->  | M102: =VLOOKUP(M101,$B$1:$F$52,5,0) ->  | N102: =VLOOKUP(N101,$B$1:$F$52,5,0) ->  | O102: =VLOOKUP(O101,$B$1:$F$52,5,0) ->  | P102: =VLOOKUP(P101,$B$1:$F$52,5,0) ->  | R102: =VLOOKUP(R101,$B$1:$F$52,5,0) ->  | S102: =VLOOKUP(S101,$B$1:$F$52,5,0) ->  | T102: =VLOOKUP(T101,$B$1:$F$52,5,0) ->  | U102: =VLOOKUP(U101,$B$1:$F$52,5,0) ->  | V102: =VLOOKUP(V101,$B$1:$F$52,5,0) ->  | AF102: All equal hands | AG102: =IF(AND($AO$80=AG101,$AO$80=$AW$80,$AW$80=$BE$80,AI75=AQ75,AQ75=AY75),1,0) -> 0 | AH102: 1 | AI102: 1 | AK102: =$AG102*AH102 -> 0 | AL102: =$AG102*AI102 -> 0 | AO102: first win | AQ102: =AI75 -> 0 | AS102: =AQ75 -> 0 | AT102: =AQ102-AS102 -> 0 | AZ102: =AZ95 ->  | BA102: =BB102-AZ102 ->  | BB102: =BB95 -> 
L103: =VLOOKUP(L101,$B$1:$F$52,4,0) ->  | M103: =VLOOKUP(M101,$B$1:$F$52,4,0) ->  | N103: =VLOOKUP(N101,$B$1:$F$52,4,0) ->  | O103: =VLOOKUP(O101,$B$1:$F$52,4,0) ->  | P103: =VLOOKUP(P101,$B$1:$F$52,4,0) ->  | R103: =VLOOKUP(R101,$B$1:$F$52,4,0) ->  | S103: =VLOOKUP(S101,$B$1:$F$52,4,0) ->  | T103: =VLOOKUP(T101,$B$1:$F$52,4,0) ->  | U103: =VLOOKUP(U101,$B$1:$F$52,4,0) ->  | V103: =VLOOKUP(V101,$B$1:$F$52,4,0) ->  | AQ103: =AK75 -> 0 | AS103: =AS75 -> 0 | AT103: =AQ103-AS103 -> 0 | BU103: 10 | BV103: =CG13 -> Royal Flush | BW103: =CH13 -> 
L104: =HLOOKUP(L106,$L$100:$P$103,3,0) ->  | M104: =HLOOKUP(M106,$L$100:$P$103,3,0) ->  | R104: =HLOOKUP(R106,$R$100:$V$103,3,0) ->  | S104: =HLOOKUP(S106,$R$100:$V$103,3,0) ->  | AT104: =INDEX(AT102:AT103,MATCH(TRUE,INDEX(AT102:AT103<>0,),0)) ->  | BV104: =CR13 -> Straight Flush | BW104: =CS13 -> 
L105: =HLOOKUP(L106,$L$100:$P$103,4,0) ->  | M105: =HLOOKUP(M106,$L$100:$P$103,4,0) ->  | R105: =HLOOKUP(R106,$R$100:$V$103,4,0) ->  | S105: =HLOOKUP(S106,$R$100:$V$103,4,0) ->  | AT105: =IF(ISNUMBER(AT104),AT104,0) -> 0 | BV105: =DC13 -> Four of a Kind | BW105: =DD13 ->  | BX105: 0 | CA105: 0
L106: 1 | M106: 2 | N106: 3 | O106: 4 | P106: 5 | R106: 1 | S106: 2 | T106: 3 | U106: 4 | V106: 5 | AF106: first win | AG106: =IF(AND($AO$80=$AG$101,$AO$80=MIN($AO$80,$AW$80),$AG$84=0,$AT$105>0),1,0) -> 0 | AH106: 1 | AI106: 0 | AK106: =$AG106*AH106 -> 0 | AL106: 0 | AO106: second win | AQ106: =AQ102 -> 0 | AR106: =AS106-AQ106 -> 0 | AS106: =AS102 -> 0 | BA106: =INDEX(BA101:BA105,MATCH(TRUE,INDEX(BA101:BA105<>0,),0)) ->  | BV106: =DN13 -> Full House | BW106: =DO13 ->  | BX106: 0 | CA106: 0
L107: =L102+IF(L102=1,13+RAND()^3,RAND()^3) ->  | M107: =M102+IF(M102=1,13+RAND()^3,RAND()^3) ->  | Q107: 0.7707211641 | W107: 0.4101501667 | AF107: second win | AG107: =IF(AND($AW$80=$AG$101,$AW$80=MIN($AO$80,$AW$80),$AG$85=0,$AR$109>0),1,0) -> 0 | AH107: 0 | AI107: 1 | AK107: 0 | AL107: 0 | AQ107: =AQ103 -> 0 | AR107: =AS107-AQ107 -> 0 | AS107: =AS103 -> 0 | BA107: =IF(ISNUMBER(BA106),BA106,0) -> 0 | BV107: =DY13 -> Flush | BW107: =DZ13 ->  | BX107: 0 | CA107: 0
AR108: =INDEX(AR106:AR107,MATCH(TRUE,INDEX(AR106:AR107<>0,),0)) ->  | AX108: third win | AZ108: =AZ101 ->  | BA108: =BD108-AZ108 ->  | BB108: =BB101 ->  | BC108: =BD108-BB108 ->  | BV108: =EJ13 -> Straight | BW108: =EK13 -> 
L109: =RANK(L116,$L$116:$P$116,1) ->  | M109: =RANK(M116,$L$116:$P$116,1) ->  | R109: =RANK(R116,$R$116:$V$116,1) ->  | S109: =RANK(S116,$R$116:$V$116,1) ->  | AF109: Full House | AG109: 4 | AR109: =IF(ISNUMBER(AR108),AR108,0) -> 0 | AZ109: =AZ102 ->  | BA109: =BD109-AZ109 ->  | BC109: =BD109-BB109 ->  | BV109: =EU13 -> Three of a Kind | BW109: =EV13 ->  | BX109: 0 | CA109: 0
J110: 13 | L110: =[0]!Player11 -> 0 | M110: =[0]!House1 -> 0 | N110: =[0]!House2 -> 0 | O110: =[0]!House4 -> 0 | P110: =[0]!House5 -> 0 | R110: =[0]!Player21 -> 0 | S110: =[0]!House1 -> 0 | T110: =[0]!House2 -> 0 | U110: =[0]!House4 -> 0 | V110: =[0]!House5 -> 0 | AF110: All equal hands | AG110: =IF(AND($AO$80=AG109,$AO$80=$AW$80,AI83=AQ83,AQ83=AY83),1,0) -> 0 | AH110: 1 | AI110: 1 | AK110: =$AG110*AH110 -> 0 | AL110: =$AG110*AI110 -> 0 | AO110: third win | AQ110: =AQ106 -> 0 | AR110: =AU110-AQ110 -> 0 | AS110: =AS106 -> 0 | AT110: =AU110-AS110 -> 0 | BV110: =FF13 -> Two Pair | BW110: =FG13 ->  | BX110: 0 | CA110: 0
L111: =VLOOKUP(L110,$B$1:$F$52,5,0) ->  | M111: =VLOOKUP(M110,$B$1:$F$52,5,0) ->  | N111: =VLOOKUP(N110,$B$1:$F$52,5,0) ->  | O111: =VLOOKUP(O110,$B$1:$F$52,5,0) ->  | P111: =VLOOKUP(P110,$B$1:$F$52,5,0) ->  | R111: =VLOOKUP(R110,$B$1:$F$52,5,0) ->  | S111: =VLOOKUP(S110,$B$1:$F$52,5,0) ->  | T111: =VLOOKUP(T110,$B$1:$F$52,5,0) ->  | U111: =VLOOKUP(U110,$B$1:$F$52,5,0) ->  | V111: =VLOOKUP(V110,$B$1:$F$52,5,0) ->  | AQ111: =AQ107 -> 0 | AR111: =AU111-AQ111 -> 0 | AS111: =AS107 -> 0 | AT111: =AU111-AS111 -> 0 | BV111: =FQ13 -> One Pair | BW111: =FR13 ->  | BX111: 0 | CA111: 0
L112: =VLOOKUP(L110,$B$1:$F$52,4,0) ->  | M112: =VLOOKUP(M110,$B$1:$F$52,4,0) ->  | N112: =VLOOKUP(N110,$B$1:$F$52,4,0) ->  | O112: =VLOOKUP(O110,$B$1:$F$52,4,0) ->  | P112: =VLOOKUP(P110,$B$1:$F$52,4,0) ->  | R112: =VLOOKUP(R110,$B$1:$F$52,4,0) ->  | S112: =VLOOKUP(S110,$B$1:$F$52,4,0) ->  | T112: =VLOOKUP(T110,$B$1:$F$52,4,0) ->  | U112: =VLOOKUP(U110,$B$1:$F$52,4,0) ->  | V112: =VLOOKUP(V110,$B$1:$F$52,4,0) ->  | AR112: =INDEX(AR110:AR111,MATCH(TRUE,INDEX(AR110:AR111<>0,),0)) ->  | AT112: =INDEX(AT110:AT111,MATCH(TRUE,INDEX(AT110:AT111<>0,),0)) ->  | BV112: =GB13 -> High Card | BW112: =GC13 ->  | BX112: 0 | CA112: 0
L113: =HLOOKUP(L115,$L$109:$P$112,3,0) ->  | M113: =HLOOKUP(M115,$L$109:$P$112,3,0) ->  | R113: =HLOOKUP(R115,$R$109:$V$112,3,0) ->  | S113: =HLOOKUP(S115,$R$109:$V$112,3,0) ->  | AR113: =IF(ISNUMBER(AR112),AR112,0) -> 0 | AT113: =IF(ISNUMBER(AT112),AT112,0) -> 0 | BA113: =INDEX(BA108:BA112,MATCH(TRUE,INDEX(BA108:BA112<>0,),0)) ->  | BC113: =INDEX(BC108:BC112,MATCH(TRUE,INDEX(BC108:BC112<>0,),0)) -> 
L114: =HLOOKUP(L115,$L$109:$P$112,4,0) ->  | M114: =HLOOKUP(M115,$L$109:$P$112,4,0) ->  | R114: =HLOOKUP(R115,$R$109:$V$112,4,0) ->  | S114: =HLOOKUP(S115,$R$109:$V$112,4,0) ->  | AF114: first win | AG114: =IF(AND($AO$80=$AG$109,$AO$80=MIN($AO$80,$AW$80),$AG$84=0,$AT$119>0),1,0) -> 0 | AH114: 1 | AI114: 1 | AK114: =$AG114*AH114 -> 0 | AL114: 0 | BA114: =IF(ISNUMBER(BA113),BA113,0) -> 0 | BC114: =IF(ISNUMBER(BC113),BC113,0) -> 0 | BU114: 11 | BV114: =CG14 -> Royal Flush | BW114: =CH14 -> 
L115: 1 | M115: 2 | N115: 3 | O115: 4 | P115: 5 | R115: 1 | S115: 2 | T115: 3 | U115: 4 | V115: 5 | AF115: second win | AG115: =IF(AND($AW$80=$AG$109,$AW$80=MIN($AO$80,$AW$80),$AG$85=0,$AR$123>0),1,0) -> 0 | AH115: 0 | AI115: 1 | AK115: 0 | AL115: 0 | AO115: FULL HOUSE | BV115: =CR14 -> Straight Flush | BW115: =CS14 -> 
L116: =L111+IF(L111=1,13+RAND()^3,RAND()^3) ->  | M116: =M111+IF(M111=1,13+RAND()^3,RAND()^3) ->  | Q116: 0.3225678022 | W116: 0.00130284898 | AO116: first win | AQ116: =AI74 -> 0 | AS116: =AQ74 -> 0 | AT116: =AQ116-AS116 -> 0 | BV116: =DC14 -> Four of a Kind | BW116: =DD14 ->  | BX116: 0 | CA116: 0
AF117: Flush | AG117: 5 | AQ117: =AJ74 -> 0 | AS117: =AR74 -> 0 | AT117: =AQ117-AS117 -> 0 | BV117: =DN14 -> Full House | BW117: =DO14 ->  | BX117: 0 | CA117: 0
L118: =RANK(L125,$L$125:$P$125,1) ->  | M118: =RANK(M125,$L$125:$P$125,1) ->  | R118: =RANK(R125,$R$125:$V$125,1) ->  | S118: =RANK(S125,$R$125:$V$125,1) ->  | AF118: All equal hands | AG118: =IF(AND($AO$80=AG117,$AO$80=$AW$80,$AG$122=0,$AG$123=0),1,0) -> 0 | AH118: 1 | AI118: 1 | AK118: =$AG118*AH118 -> 0 | AL118: =$AG118*AI118 -> 0 | AT118: =INDEX(AT116:AT117,MATCH(TRUE,INDEX(AT116:AT117<>0,),0)) ->  | BV118: =DY14 -> Flush | BW118: =DZ14 ->  | BX118: 0 | CA118: 0
J119: 14 | L119: =[0]!Player11 -> 0 | M119: =[0]!House1 -> 0 | N119: =[0]!House3 -> 0 | O119: =[0]!House4 -> 0 | P119: =[0]!House5 -> 0 | R119: =[0]!Player21 -> 0 | S119: =[0]!House1 -> 0 | T119: =[0]!House3 -> 0 | U119: =[0]!House4 -> 0 | V119: =[0]!House5 -> 0 | AT119: =IF(ISNUMBER(AT118),AT118,0) -> 0 | BV119: =EJ14 -> Straight | BW119: =EK14 -> 
L120: =VLOOKUP(L119,$B$1:$F$52,5,0) ->  | M120: =VLOOKUP(M119,$B$1:$F$52,5,0) ->  | N120: =VLOOKUP(N119,$B$1:$F$52,5,0) ->  | O120: =VLOOKUP(O119,$B$1:$F$52,5,0) ->  | P120: =VLOOKUP(P119,$B$1:$F$52,5,0) ->  | R120: =VLOOKUP(R119,$B$1:$F$52,5,0) ->  | S120: =VLOOKUP(S119,$B$1:$F$52,5,0) ->  | T120: =VLOOKUP(T119,$B$1:$F$52,5,0) ->  | U120: =VLOOKUP(U119,$B$1:$F$52,5,0) ->  | V120: =VLOOKUP(V119,$B$1:$F$52,5,0) ->  | AO120: second win | AQ120: =AQ116 -> 0 | AR120: =AS120-AQ120 -> 0 | AS120: =AS116 -> 0 | BV120: =EU14 -> Three of a Kind | BW120: =EV14 ->  | BX120: 0 | CA120: 0
L121: =VLOOKUP(L119,$B$1:$F$52,4,0) ->  | M121: =VLOOKUP(M119,$B$1:$F$52,4,0) ->  | N121: =VLOOKUP(N119,$B$1:$F$52,4,0) ->  | O121: =VLOOKUP(O119,$B$1:$F$52,4,0) ->  | P121: =VLOOKUP(P119,$B$1:$F$52,4,0) ->  | R121: =VLOOKUP(R119,$B$1:$F$52,4,0) ->  | S121: =VLOOKUP(S119,$B$1:$F$52,4,0) ->  | T121: =VLOOKUP(T119,$B$1:$F$52,4,0) ->  | U121: =VLOOKUP(U119,$B$1:$F$52,4,0) ->  | V121: =VLOOKUP(V119,$B$1:$F$52,4,0) ->  | AQ121: =AQ117 -> 0 | AR121: =AS121-AQ121 -> 0 | AS121: =AS117 -> 0 | BV121: =FF14 -> Two Pair | BW121: =FG14 ->  | BX121: 0 | CA121: 0
L122: =HLOOKUP(L124,$L$118:$P$121,3,0) ->  | M122: =HLOOKUP(M124,$L$118:$P$121,3,0) ->  | R122: =HLOOKUP(R124,$R$118:$V$121,3,0) ->  | S122: =HLOOKUP(S124,$R$118:$V$121,3,0) ->  | AF122: first win | AG122: =IF(AND($AO$80=$AG$117,$AO$80=MIN($AO$80,$AW$80),$AG$84=0,$BC$100>0),1,0) -> 0 | AH122: 1 | AI122: 0 | AK122: =$AG122*AH122 -> 0 | AL122: 0 | AR122: =INDEX(AR120:AR121,MATCH(TRUE,INDEX(AR120:AR121<>0,),0)) ->  | BV122: =FQ14 -> One Pair | BW122: =FR14 ->  | BX122: 0 | CA122: 0
L123: =HLOOKUP(L124,$L$118:$P$121,4,0) ->  | M123: =HLOOKUP(M124,$L$118:$P$121,4,0) ->  | R123: =HLOOKUP(R124,$R$118:$V$121,4,0) ->  | S123: =HLOOKUP(S124,$R$118:$V$121,4,0) ->  | AF123: second win | AG123: =IF(AND($AW$80=$AG$117,$AW$80=MIN($AO$80,$AW$80),$AG$85=0,$BA$107>0),1,0) -> 0 | AH123: 0 | AI123: 1 | AK123: 0 | AL123: 0 | AR123: =IF(ISNUMBER(AR122),AR122,0) -> 0 | BV123: =GB14 -> High Card | BW123: =GC14 ->  | BX123: 0 | CA123: 0
L124: 1 | M124: 2 | N124: 3 | O124: 4 | P124: 5 | R124: 1 | S124: 2 | T124: 3 | U124: 4 | V124: 5 | AO124: third win | AQ124: =AQ120 -> 0 | AR124: =AU124-AQ124 -> 0 | AS124: =AS120 -> 0 | AT124: =AU124-AS124 -> 0
L125: =L120+IF(L120=1,13+RAND()^3,RAND()^3) ->  | M125: =M120+IF(M120=1,13+RAND()^3,RAND()^3) ->  | Q125: 0.01663185096 | W125: 0.1623430649 | AF125: Straight | AG125: 6 | AQ125: =AQ121 -> 0 | AR125: =AU125-AQ125 -> 0 | AS125: =AS121 -> 0 | AT125: =AU125-AS125 -> 0 | BU125: 12 | BV125: =CG15 -> Royal Flush | BW125: =CH15 -> 
AF126: All equal hands | AG126: =IF(AND($AG$83=0,AM78=AU78,$AO$80=AG125,$AO$80=$AW$80),1,0) -> 0 | AH126: 1 | AI126: 1 | AK126: =$AG126*AH126 -> 0 | AL126: 0 | AR126: =INDEX(AR124:AR125,MATCH(TRUE,INDEX(AR124:AR125<>0,),0)) ->  | AT126: =INDEX(AT124:AT125,MATCH(TRUE,INDEX(AT124:AT125<>0,),0)) ->  | AX126: THREE OF A KIND | BV126: =CR15 -> Straight Flush | BW126: =CS15 -> 
L127: =RANK(L134,$L$134:$P$134,1) ->  | M127: =RANK(M134,$L$134:$P$134,1) ->  | R127: =RANK(R134,$R$134:$V$134,1) ->  | S127: =RANK(S134,$R$134:$V$134,1) ->  | AR127: =IF(ISNUMBER(AR126),AR126,0) -> 0 | AT127: =IF(ISNUMBER(AT126),AT126,0) -> 0 | AX127: first win | AZ127: =AI72 -> 0 | BB127: =AQ72 -> 0 | BC127: =AZ127-BB127 -> 0 | BV127: =DC15 -> Four of a Kind | BW127: =DD15 ->  | BX127: 0 | CA127: 0
J128: 15 | L128: =[0]!Player11 -> 0 | M128: =[0]!House2 -> 0 | N128: =[0]!House3 -> 0 | O128: =[0]!House4 -> 0 | P128: =[0]!House5 -> 0 | R128: =[0]!Player21 -> 0 | S128: =[0]!House2 -> 0 | T128: =[0]!House3 -> 0 | U128: =[0]!House4 -> 0 | V128: =[0]!House5 -> 0 | AZ128: =AK72 -> 0 | BB128: =AS72 -> 0 | BC128: =AZ128-BB128 -> 0 | BV128: =DN15 -> Full House | BW128: =DO15 ->  | BX128: 0 | CA128: 0
L129: =VLOOKUP(L128,$B$1:$F$52,5,0) ->  | M129: =VLOOKUP(M128,$B$1:$F$52,5,0) ->  | N129: =VLOOKUP(N128,$B$1:$F$52,5,0) ->  | O129: =VLOOKUP(O128,$B$1:$F$52,5,0) ->  | P129: =VLOOKUP(P128,$B$1:$F$52,5,0) ->  | R129: =VLOOKUP(R128,$B$1:$F$52,5,0) ->  | S129: =VLOOKUP(S128,$B$1:$F$52,5,0) ->  | T129: =VLOOKUP(T128,$B$1:$F$52,5,0) ->  | U129: =VLOOKUP(U128,$B$1:$F$52,5,0) ->  | V129: =VLOOKUP(V128,$B$1:$F$52,5,0) ->  | AZ129: =AL72 -> 0 | BB129: =AT72 -> 0 | BC129: 0 | BV129: =DY15 -> Flush | BW129: =DZ15 ->  | BX129: 0 | CA129: 0
L130: =VLOOKUP(L128,$B$1:$F$52,4,0) ->  | M130: =VLOOKUP(M128,$B$1:$F$52,4,0) ->  | N130: =VLOOKUP(N128,$B$1:$F$52,4,0) ->  | O130: =VLOOKUP(O128,$B$1:$F$52,4,0) ->  | P130: =VLOOKUP(P128,$B$1:$F$52,4,0) ->  | R130: =VLOOKUP(R128,$B$1:$F$52,4,0) ->  | S130: =VLOOKUP(S128,$B$1:$F$52,4,0) ->  | T130: =VLOOKUP(T128,$B$1:$F$52,4,0) ->  | U130: =VLOOKUP(U128,$B$1:$F$52,4,0) ->  | V130: =VLOOKUP(V128,$B$1:$F$52,4,0) ->  | AF130: first win | AG130: =IF(AND($AO$80=$AG$125,AO50=MIN($AO$80,$AW$80),$AG$84=0,$AT$161>0),1,0) -> 0 | AH130: 1 | AI130: 0 | AK130: 0 | AL130: 0 | BC130: =INDEX(BC127:BC129,MATCH(TRUE,INDEX(BC127:BC129<>0,),0)) ->  | BV130: =EJ15 -> Straight | BW130: =EK15 -> 
L131: =HLOOKUP(L133,$L$127:$P$130,3,0) ->  | M131: =HLOOKUP(M133,$L$127:$P$130,3,0) ->  | R131: =HLOOKUP(R133,$R$127:$V$130,3,0) ->  | S131: =HLOOKUP(S133,$R$127:$V$130,3,0) ->  | AF131: second win | AG131: =IF(AND($AW$80=$AG$125,AW50=MIN($AO$80,$AW$80),$AG$85=0,$AR$168>0),1,0) -> 0 | AH131: 0 | AI131: 1 | AK131: 0 | AL131: 0 | BC131: =IF(ISNUMBER(BC130),BC130,0) -> 0 | BV131: =EU15 -> Three of a Kind | BW131: =EV15 ->  | BX131: 0 | CA131: 0
L132: =HLOOKUP(L133,$L$127:$P$130,4,0) ->  | M132: =HLOOKUP(M133,$L$127:$P$130,4,0) ->  | R132: =HLOOKUP(R133,$R$127:$V$130,4,0) ->  | S132: =HLOOKUP(S133,$R$127:$V$130,4,0) ->  | AX132: second win | AZ132: =AZ127 -> 0 | BA132: =BB132-AZ132 -> 0 | BB132: =BB127 -> 0 | BV132: =FF15 -> Two Pair | BW132: =FG15 ->  | BX132: 0 | CA132: 0
L133: 1 | M133: 2 | N133: 3 | O133: 4 | P133: 5 | R133: 1 | S133: 2 | T133: 3 | U133: 4 | V133: 5 | AF133: Three of a Kind | AG133: 7 | AZ133: =AZ128 -> 0 | BA133: 0 | BB133: 0 | BV133: =FQ15 -> One Pair | BX133: 0 | CA133: 0
L134: =L129+IF(L129=1,13+RAND()^3,RAND()^3) ->  | M134: =M129+IF(M129=1,13+RAND()^3,RAND()^3) ->  | Q134: 0.1003891321 | W134: 0.6443665784 | AZ134: 0 | BA134: 0 | BB134: 0 | BV134: =GB15 -> High Card | BW134: =GC15 ->  | BX134: 0 | CA134: 0
BA135: =INDEX(BA132:BA134,MATCH(TRUE,INDEX(BA132:BA134<>0,),0)) -> 
L136: =RANK(L143,$L$143:$P$143,1) ->  | M136: =RANK(M143,$L$143:$P$143,1) ->  | R136: =RANK(R143,$R$143:$V$143,1) ->  | S136: =RANK(S143,$R$143:$V$143,1) ->  | BA136: =IF(ISNUMBER(BA135),BA135,0) -> 0 | BU136: 13 | BV136: =CG16 -> Royal Flush | BW136: =CH16 -> 
J137: 16 | L137: =[0]!Player12 -> 0 | M137: =[0]!House1 -> 0 | N137: =[0]!House2 -> 0 | O137: =[0]!House3 -> 0 | P137: =[0]!House4 -> 0 | R137: =[0]!Player22 -> 0 | S137: =[0]!House1 -> 0 | T137: =[0]!House2 -> 0 | U137: =[0]!House3 -> 0 | V137: =[0]!House4 -> 0 | AF137: first win | AG137: =IF(AND($AO$80=$AG$133,$AO$80=MIN($AO$80,$AW$80),$AG$84=0,$BC$131>0),1,0) -> 0 | AH137: 1 | AI137: 0 | AK137: =$AG137*AH137 -> 0 | AL137: 0 | AO137: TWO PAIR | AX137: third win | AZ137: =AZ132 -> 0 | BA137: =BD137-AZ137 -> 0 | BB137: =BB132 -> 0 | BC137: =BD137-BB137 -> 0 | BV137: =CR16 -> Straight Flush | BW137: =CS16 -> 
L138: =VLOOKUP(L137,$B$1:$F$52,5,0) ->  | M138: =VLOOKUP(M137,$B$1:$F$52,5,0) ->  | N138: =VLOOKUP(N137,$B$1:$F$52,5,0) ->  | O138: =VLOOKUP(O137,$B$1:$F$52,5,0) ->  | P138: =VLOOKUP(P137,$B$1:$F$52,5,0) ->  | R138: =VLOOKUP(R137,$B$1:$F$52,5,0) ->  | S138: =VLOOKUP(S137,$B$1:$F$52,5,0) ->  | T138: =VLOOKUP(T137,$B$1:$F$52,5,0) ->  | U138: =VLOOKUP(U137,$B$1:$F$52,5,0) ->  | V138: =VLOOKUP(V137,$B$1:$F$52,5,0) ->  | AF138: second win | AG138: =IF(AND($AW$80=$AG$133,$AW$80=MIN($AO$80,$AW$80),$AG$85=0,$BA$136>0),1,0) -> 0 | AH138: 0 | AI138: 1 | AK138: 0 | AL138: 0 | AO138: first win | AQ138: =AI73 -> 8 | AS138: =AQ73 -> 8 | AT138: =AQ138-AS138 -> 0 | AZ138: =AZ133 -> 0 | BA138: =BD138-AZ138 -> 0 | BB138: =BB133 -> 0 | BC138: =BD138-BB138 -> 0 | BV138: =DC16 -> Four of a Kind | BW138: =DD16 ->  | BX138: 0 | CA138: 0
L139: =VLOOKUP(L137,$B$1:$F$52,4,0) ->  | M139: =VLOOKUP(M137,$B$1:$F$52,4,0) ->  | N139: =VLOOKUP(N137,$B$1:$F$52,4,0) ->  | O139: =VLOOKUP(O137,$B$1:$F$52,4,0) ->  | P139: =VLOOKUP(P137,$B$1:$F$52,4,0) ->  | R139: =VLOOKUP(R137,$B$1:$F$52,4,0) ->  | S139: =VLOOKUP(S137,$B$1:$F$52,4,0) ->  | T139: =VLOOKUP(T137,$B$1:$F$52,4,0) ->  | U139: =VLOOKUP(U137,$B$1:$F$52,4,0) ->  | V139: =VLOOKUP(V137,$B$1:$F$52,4,0) ->  | AQ139: =AJ73 -> 3 | AS139: =AR73 -> 3 | AT139: =AQ139-AS139 -> 0 | AZ139: 0 | BA139: 0 | BB139: 0 | BC139: 0 | BV139: =DN16 -> Full House | BW139: =DO16 ->  | BX139: 0 | CA139: 0
L140: =HLOOKUP(L142,$L$136:$P$139,3,0) ->  | M140: =HLOOKUP(M142,$L$136:$P$139,3,0) ->  | R140: =HLOOKUP(R142,$R$136:$V$139,3,0) ->  | S140: =HLOOKUP(S142,$R$136:$V$139,3,0) ->  | AF140: Two Pair | AG140: 8 | AQ140: =AK73 -> 9 | AS140: =AS73 -> 9 | AT140: =AQ140-AS140 -> 0 | BA140: =INDEX(BA137:BA139,MATCH(TRUE,INDEX(BA137:BA139<>0,),0)) ->  | BC140: =INDEX(BC137:BC139,MATCH(TRUE,INDEX(BC137:BC139<>0,),0)) ->  | BV140: =DY16 -> Flush | BW140: =DZ16 ->  | BX140: 0 | CA140: 0
L141: =HLOOKUP(L142,$L$136:$P$139,4,0) ->  | M141: =HLOOKUP(M142,$L$136:$P$139,4,0) ->  | R141: =HLOOKUP(R142,$R$136:$V$139,4,0) ->  | S141: =HLOOKUP(S142,$R$136:$V$139,4,0) ->  | AT141: =INDEX(AT138:AT140,MATCH(TRUE,INDEX(AT138:AT140<>0,),0)) ->  | BA141: =IF(ISNUMBER(BA140),BA140,0) -> 0 | BC141: =IF(ISNUMBER(BC140),BC140,0) -> 0 | BV141: =EJ16 -> Straight | BW141: =EK16 -> 
L142: 1 | M142: 2 | N142: 3 | O142: 4 | P142: 5 | R142: 1 | S142: 2 | T142: 3 | U142: 4 | V142: 5 | AT142: =IF(ISNUMBER(AT141),AT141,0) -> 0 | BV142: =EU16 -> Three of a Kind | BW142: =EV16 ->  | BX142: 0 | CA142: 0
L143: =L138+IF(L138=1,13+RAND()^3,RAND()^3) ->  | M143: =M138+IF(M138=1,13+RAND()^3,RAND()^3) ->  | Q143: 0.3540959232 | W143: 0.8593247646 | AO143: second win | AQ143: =AQ138 -> 8 | AR143: =AS143-AQ143 -> 0 | AS143: =AS138 -> 8 | AX143: ONE PAIR | BV143: =FF16 -> Two Pair | BW143: =FG16 ->  | BX143: 0 | CA143: 0
AF144: first win | AG144: =IF(AND($AO$80=$AG$140,$AO$80=MIN($AO$80,$AW$80),$AG$84=0,$AT$142>0),1,0) -> 0 | AH144: 1 | AI144: 0 | AK144: =$AG144*AH144 -> 0 | AL144: 0 | AQ144: =AQ139 -> 3 | AR144: =AS144-AQ144 -> 0 | AS144: =AS139 -> 3 | AX144: first win | AZ144: =AI71 -> 0 | BB144: =AQ71 -> 0 | BC144: =AZ144-BB144 -> 0 | BV144: =FQ16 -> One Pair | BW144: =FR16 ->  | BX144: 0 | CA144: 0
L145: =RANK(L152,$L$152:$P$152,1) ->  | M145: =RANK(M152,$L$152:$P$152,1) ->  | R145: =RANK(R152,$R$152:$V$152,1) ->  | S145: =RANK(S152,$R$152:$V$152,1) ->  | AF145: second win | AG145: =IF(AND($AW$80=$AG$140,$AW$80=MIN($AO$80,$AW$80),$AG$85=0,$AR$147>0),1,0) -> 0 | AH145: 0 | AI145: 1 | AK145: 0 | AL145: 0 | AQ145: =AQ140 -> 9 | AR145: =AS145-AQ145 -> 0 | AS145: =AS140 -> 9 | AZ145: =AK71 -> 0 | BB145: =AS71 -> 0 | BC145: =AZ145-BB145 -> 0 | BV145: =GB16 -> High Card | BW145: =GC16 ->  | BX145: 0 | CA145: 0
J146: 17 | L146: =[0]!Player12 -> 0 | M146: =[0]!House1 -> 0 | N146: =[0]!House2 -> 0 | O146: =[0]!House3 -> 0 | P146: =[0]!House5 -> 0 | R146: =[0]!Player22 -> 0 | S146: =[0]!House1 -> 0 | T146: =[0]!House2 -> 0 | U146: =[0]!House3 -> 0 | V146: =[0]!House5 -> 0 | AR146: =INDEX(AR143:AR145,MATCH(TRUE,INDEX(AR143:AR145<>0,),0)) ->  | AZ146: =AL71 -> 0 | BB146: =AT71 -> 0 | BC146: 0
L147: =VLOOKUP(L146,$B$1:$F$52,5,0) ->  | M147: =VLOOKUP(M146,$B$1:$F$52,5,0) ->  | N147: =VLOOKUP(N146,$B$1:$F$52,5,0) ->  | O147: =VLOOKUP(O146,$B$1:$F$52,5,0) ->  | P147: =VLOOKUP(P146,$B$1:$F$52,5,0) ->  | R147: =VLOOKUP(R146,$B$1:$F$52,5,0) ->  | S147: =VLOOKUP(S146,$B$1:$F$52,5,0) ->  | T147: =VLOOKUP(T146,$B$1:$F$52,5,0) ->  | U147: =VLOOKUP(U146,$B$1:$F$52,5,0) ->  | V147: =VLOOKUP(V146,$B$1:$F$52,5,0) ->  | AF147: One Pair | AG147: 9 | AR147: =IF(ISNUMBER(AR146),AR146,0) -> 0 | AZ147: =AM71 -> 0 | BB147: =AU71 -> 0 | BC147: =AZ147-BB147 -> 0 | BU147: 14 | BV147: =CG17 -> Royal Flush | BW147: =CH17 -> 
L148: =VLOOKUP(L146,$B$1:$F$52,4,0) ->  | M148: =VLOOKUP(M146,$B$1:$F$52,4,0) ->  | N148: =VLOOKUP(N146,$B$1:$F$52,4,0) ->  | O148: =VLOOKUP(O146,$B$1:$F$52,4,0) ->  | P148: =VLOOKUP(P146,$B$1:$F$52,4,0) ->  | R148: =VLOOKUP(R146,$B$1:$F$52,4,0) ->  | S148: =VLOOKUP(S146,$B$1:$F$52,4,0) ->  | T148: =VLOOKUP(T146,$B$1:$F$52,4,0) ->  | U148: =VLOOKUP(U146,$B$1:$F$52,4,0) ->  | V148: =VLOOKUP(V146,$B$1:$F$52,4,0) ->  | AF148: All equal hands | AG148: =IF(AND(AM71=AU71,AL71=AT71,AK71=AS71,AJ71=AR71,AI71=AQ71,$AO$80=AG147,$AO$80=$AW$80),1,0) -> 0 | AH148: 1 | AI148: 1 | AK148: =$AG148*AH148 -> 0 | AL148: 0 | AO148: third win | AQ148: =AQ143 -> 8 | AR148: =AU148-AQ148 -> -8 | AS148: =AS143 -> 8 | AT148: =AU148-AS148 -> -8 | BC148: =INDEX(BC144:BC147,MATCH(TRUE,INDEX(BC144:BC147<>0,),0)) ->  | BV148: =CR17 -> Straight Flush | BW148: =CS17 -> 
L149: =HLOOKUP(L151,$L$145:$P$148,3,0) ->  | M149: =HLOOKUP(M151,$L$145:$P$148,3,0) ->  | R149: =HLOOKUP(R151,$R$145:$V$148,3,0) ->  | S149: =HLOOKUP(S151,$R$145:$V$148,3,0) ->  | AQ149: =AQ144 -> 3 | AR149: =AU149-AQ149 -> -3 | AS149: =AS144 -> 3 | AT149: =AU149-AS149 -> -3 | BC149: =IF(ISNUMBER(BC148),BC148,0) -> 0 | BV149: =DC17 -> Four of a Kind | BW149: =DD17 ->  | BX149: 0 | CA149: 0
L150: =HLOOKUP(L151,$L$145:$P$148,4,0) ->  | M150: =HLOOKUP(M151,$L$145:$P$148,4,0) ->  | R150: =HLOOKUP(R151,$R$145:$V$148,4,0) ->  | S150: =HLOOKUP(S151,$R$145:$V$148,4,0) ->  | AQ150: =AQ145 -> 9 | AR150: =AU150-AQ150 -> -9 | AS150: =AS145 -> 9 | AT150: =AU150-AS150 -> -9 | AX150: second win | AZ150: =AZ144 -> 0 | BA150: =BB150-AZ150 -> 0 | BB150: =BB144 -> 0 | BV150: =DN17 -> Full House | BW150: =DO17 ->  | BX150: 0 | CA150: 0
L151: 1 | M151: 2 | N151: 3 | O151: 4 | P151: 5 | R151: 1 | S151: 2 | T151: 3 | U151: 4 | V151: 5 | AR151: =INDEX(AR148:AR150,MATCH(TRUE,INDEX(AR148:AR150<>0,),0)) -> -8 | AT151: =INDEX(AT148:AT150,MATCH(TRUE,INDEX(AT148:AT150<>0,),0)) -> -8 | AZ151: =AZ145 -> 0 | BA151: =BB151-AZ151 -> 0 | BB151: =BB145 -> 0 | BV151: =DY17 -> Flush | BW151: =DZ17 ->  | BX151: 0 | CA151: 0
L152: =L147+IF(L147=1,13+RAND()^3,RAND()^3) ->  | M152: =M147+IF(M147=1,13+RAND()^3,RAND()^3) ->  | Q152: 0.006223294462 | W152: 0.3679003643 | AF152: first win | AG152: =IF(AND($AO$80=$AG$147,$AO$80=MIN($AO$80,$AW$80),$AG$84=0,$BC$149>0),1,0) -> 0 | AH152: 1 | AI152: 0 | AK152: 0 | AL152: 0 | AR152: =IF(ISNUMBER(AR151),AR151,0) -> -8 | AT152: =IF(ISNUMBER(AT151),AT151,0) -> -8 | AZ152: =AZ146 -> 0 | BA152: 0 | BB152: =BB146 -> 0 | BV152: =EJ17 -> Straight | BW152: =EK17 -> 
AF153: second win | AG153: =IF(AND($AW$80=$AG$147,$AW$80=MIN($AO$80,$AW$80),$AG$85=0,$BA$155>0),1,0) -> 0 | AH153: 0 | AI153: 1 | AK153: 0 | AL153: 0 | AZ153: =AZ147 -> 0 | BA153: =BB153-AZ153 -> 0 | BB153: =BB147 -> 0 | BV153: =EU17 -> Three of a Kind | BW153: =EV17 ->  | BX153: 0 | CA153: 0
L154: =RANK(L161,$L$161:$P$161,1) ->  | M154: =RANK(M161,$L$161:$P$161,1) ->  | R154: =RANK(R161,$R$161:$V$161,1) ->  | S154: =RANK(S161,$R$161:$V$161,1) ->  | AO154: HIGH CARD | BA154: =INDEX(BA150:BA153,MATCH(TRUE,INDEX(BA150:BA153<>0,),0)) ->  | BV154: =FF17 -> Two Pair | BW154: =FG17 ->  | BX154: 0 | CA154: 0
J155: 18 | L155: =[0]!Player12 -> 0 | M155: =[0]!House1 -> 0 | N155: =[0]!House2 -> 0 | O155: =[0]!House4 -> 0 | P155: =[0]!House5 -> 0 | R155: =[0]!Player22 -> 0 | S155: =[0]!House1 -> 0 | T155: =[0]!House2 -> 0 | U155: =[0]!House4 -> 0 | V155: =[0]!House5 -> 0 | AF155: High Card | AG155: 10 | AO155: first win | AQ155: =AI70 -> 0 | AS155: =AQ70 -> 0 | AT155: =AQ155-AS155 -> 0 | BA155: =IF(ISNUMBER(BA154),BA154,0) -> 0 | BV155: =FQ17 -> One Pair | BW155: =FR17 ->  | BX155: 0 | CA155: 0
L156: =VLOOKUP(L155,$B$1:$F$52,5,0) ->  | M156: =VLOOKUP(M155,$B$1:$F$52,5,0) ->  | N156: =VLOOKUP(N155,$B$1:$F$52,5,0) ->  | O156: =VLOOKUP(O155,$B$1:$F$52,5,0) ->  | P156: =VLOOKUP(P155,$B$1:$F$52,5,0) ->  | R156: =VLOOKUP(R155,$B$1:$F$52,5,0) ->  | S156: =VLOOKUP(S155,$B$1:$F$52,5,0) ->  | T156: =VLOOKUP(T155,$B$1:$F$52,5,0) ->  | U156: =VLOOKUP(U155,$B$1:$F$52,5,0) ->  | V156: =VLOOKUP(V155,$B$1:$F$52,5,0) ->  | AF156: All equal hands | AG156: =IF(AND($AO$80=$AG$155,$AO$80=$AW$80,$AI$70=$AQ$70,$AJ$70=$AR$70,$AK$70=$AS$70,$AL$70=$AT$70,$AM$70=$AU$70),1,0) -> 0 | AH156: 1 | AI156: 1 | AK156: =$AG156*AH156 -> 0 | AL156: 0 | AQ156: =AJ70 -> 0 | AS156: =AR70 -> 0 | AT156: =AQ156-AS156 -> 0 | AX156: third win | AZ156: =AZ150 -> 0 | BA156: =BD156-AZ156 -> 0 | BB156: =BB150 -> 0 | BC156: =BD156-BB156 -> 0 | BV156: =GB17 -> High Card | BW156: =GC17 ->  | BX156: 0 | CA156: 0
L157: =VLOOKUP(L155,$B$1:$F$52,4,0) ->  | M157: =VLOOKUP(M155,$B$1:$F$52,4,0) ->  | N157: =VLOOKUP(N155,$B$1:$F$52,4,0) ->  | O157: =VLOOKUP(O155,$B$1:$F$52,4,0) ->  | P157: =VLOOKUP(P155,$B$1:$F$52,4,0) ->  | R157: =VLOOKUP(R155,$B$1:$F$52,4,0) ->  | S157: =VLOOKUP(S155,$B$1:$F$52,4,0) ->  | T157: =VLOOKUP(T155,$B$1:$F$52,4,0) ->  | U157: =VLOOKUP(U155,$B$1:$F$52,4,0) ->  | V157: =VLOOKUP(V155,$B$1:$F$52,4,0) ->  | AQ157: =AK70 -> 0 | AS157: =AS70 -> 0 | AT157: 0 | AZ157: =AZ151 -> 0 | BA157: =BD157-AZ157 -> 0 | BB157: =BB151 -> 0 | BC157: =BD157-BB157 -> 0
L158: =HLOOKUP(L160,$L$154:$P$157,3,0) ->  | M158: =HLOOKUP(M160,$L$154:$P$157,3,0) ->  | R158: =HLOOKUP(R160,$R$154:$V$157,3,0) ->  | S158: =HLOOKUP(S160,$R$154:$V$157,3,0) ->  | AQ158: =AL70 -> 0 | AS158: =AT70 -> 0 | AT158: 0 | AZ158: 0 | BA158: 0 | BB158: 0 | BC158: 0 | BU158: 15 | BV158: =CG18 -> Royal Flush | BW158: =CH18 -> 
L159: =HLOOKUP(L160,$L$154:$P$157,4,0) ->  | M159: =HLOOKUP(M160,$L$154:$P$157,4,0) ->  | R159: =HLOOKUP(R160,$R$154:$V$157,4,0) ->  | S159: =HLOOKUP(S160,$R$154:$V$157,4,0) ->  | AQ159: =AM70 -> 0 | AS159: =AU70 -> 0 | AT159: 0 | AZ159: 0 | BA159: =BD159-AZ159 -> 0 | BB159: 0 | BC159: =BD159-BB159 -> 0 | BV159: =CR18 -> Straight Flush | BW159: =CS18 -> 
L160: 1 | M160: 2 | N160: 3 | O160: 4 | P160: 5 | R160: 1 | S160: 2 | T160: 3 | U160: 4 | V160: 5 | AF160: first win | AG160: =IF(AND($AO$80=$AG$155,AO80=MIN($AO$80,$AW$80),$AG$84=0,$AT$161>0),1,0) -> 0 | AH160: 1 | AI160: 0 | AK160: 0 | AL160: 0 | AT160: =INDEX(AT155:AT159,MATCH(TRUE,INDEX(AT155:AT159<>0,),0)) ->  | BA160: =INDEX(BA156:BA159,MATCH(TRUE,INDEX(BA156:BA159<>0,),0)) ->  | BC160: =INDEX(BC156:BC159,MATCH(TRUE,INDEX(BC156:BC159<>0,),0)) ->  | BV160: =DC18 -> Four of a Kind | BW160: =DD18 ->  | BX160: 0 | CA160: 0
L161: =L156+IF(L156=1,13+RAND()^3,RAND()^3) ->  | M161: =M156+IF(M156=1,13+RAND()^3,RAND()^3) ->  | Q161: 0.9362244545 | W161: 0.01179551453 | AF161: second win | AG161: =IF(AND($AW$80=$AG$155,AW80=MIN($AO$80,$AW$80),$AG$85=0,$AR$168>0),1,0) -> 0 | AH161: 0 | AI161: 1 | AK161: 0 | AL161: 0 | AT161: =IF(ISNUMBER(AT160),AT160,0) -> 0 | BA161: =IF(ISNUMBER(BA160),BA160,0) -> 0 | BC161: =IF(ISNUMBER(BC160),BC160,0) -> 0 | BV161: =DN18 -> Full House | BW161: =DO18 ->  | BX161: 0 | CA161: 0
AO162: second win | AQ162: =AQ155 -> 0 | AR162: =AS162-AQ162 -> 0 | AS162: =AS155 -> 0 | BV162: =DY18 -> Flush | BW162: =DZ18 ->  | BX162: 0 | CA162: 0
L163: =RANK(L170,$L$170:$P$170,1) ->  | M163: =RANK(M170,$L$170:$P$170,1) ->  | R163: =RANK(R170,$R$170:$V$170,1) ->  | S163: =RANK(S170,$R$170:$V$170,1) ->  | AK163: =SUM(AK83:AK162) -> 1 | AL163: =SUM(AL83:AL162) -> 1 | AQ163: =AQ156 -> 0 | AR163: =AS163-AQ163 -> 0 | AS163: =AS156 -> 0 | BV163: =EJ18 -> Straight | BW163: =EK18 -> 
J164: 19 | L164: =[0]!Player12 -> 0 | M164: =[0]!House1 -> 0 | N164: =[0]!House3 -> 0 | O164: =[0]!House4 -> 0 | P164: =[0]!House5 -> 0 | R164: =[0]!Player22 -> 0 | S164: =[0]!House1 -> 0 | T164: =[0]!House3 -> 0 | U164: =[0]!House4 -> 0 | V164: =[0]!House5 -> 0 | AK164: =IF(AK163=1,"Winner","") -> Winner | AL164: =IF(AL163=1,"Winner","") -> Winner | AQ164: =AQ157 -> 0 | AR164: 0 | AS164: =AS157 -> 0 | BV164: =EU18 -> Three of a Kind | BW164: =EV18 ->  | BX164: 0 | CA164: 0
L165: =VLOOKUP(L164,$B$1:$F$52,5,0) ->  | M165: =VLOOKUP(M164,$B$1:$F$52,5,0) ->  | N165: =VLOOKUP(N164,$B$1:$F$52,5,0) ->  | O165: =VLOOKUP(O164,$B$1:$F$52,5,0) ->  | P165: =VLOOKUP(P164,$B$1:$F$52,5,0) ->  | R165: =VLOOKUP(R164,$B$1:$F$52,5,0) ->  | S165: =VLOOKUP(S164,$B$1:$F$52,5,0) ->  | T165: =VLOOKUP(T164,$B$1:$F$52,5,0) ->  | U165: =VLOOKUP(U164,$B$1:$F$52,5,0) ->  | V165: =VLOOKUP(V164,$B$1:$F$52,5,0) ->  | AQ165: =AQ158 -> 0 | AR165: 0 | AS165: =AS158 -> 0 | BV165: =FF18 -> Two Pair | BW165: =FG18 ->  | BX165: 0 | CA165: 0
L166: =VLOOKUP(L164,$B$1:$F$52,4,0) ->  | M166: =VLOOKUP(M164,$B$1:$F$52,4,0) ->  | N166: =VLOOKUP(N164,$B$1:$F$52,4,0) ->  | O166: =VLOOKUP(O164,$B$1:$F$52,4,0) ->  | P166: =VLOOKUP(P164,$B$1:$F$52,4,0) ->  | R166: =VLOOKUP(R164,$B$1:$F$52,4,0) ->  | S166: =VLOOKUP(S164,$B$1:$F$52,4,0) ->  | T166: =VLOOKUP(T164,$B$1:$F$52,4,0) ->  | U166: =VLOOKUP(U164,$B$1:$F$52,4,0) ->  | V166: =VLOOKUP(V164,$B$1:$F$52,4,0) ->  | AQ166: =AQ159 -> 0 | AR166: 0 | AS166: =AS159 -> 0 | BV166: =FQ18 -> One Pair | BW166: =FR18 ->  | BX166: 0 | CA166: 0
L167: =HLOOKUP(L169,$L$163:$P$166,3,0) ->  | M167: =HLOOKUP(M169,$L$163:$P$166,3,0) ->  | R167: =HLOOKUP(R169,$R$163:$V$166,3,0) ->  | S167: =HLOOKUP(S169,$R$163:$V$166,3,0) ->  | AR167: =INDEX(AR162:AR166,MATCH(TRUE,INDEX(AR162:AR166<>0,),0)) ->  | BV167: =GB18 -> High Card | BW167: =GC18 ->  | BX167: 0 | CA167: 0
L168: =HLOOKUP(L169,$L$163:$P$166,4,0) ->  | M168: =HLOOKUP(M169,$L$163:$P$166,4,0) ->  | R168: =HLOOKUP(R169,$R$163:$V$166,4,0) ->  | S168: =HLOOKUP(S169,$R$163:$V$166,4,0) ->  | AR168: =IF(ISNUMBER(AR167),AR167,0) -> 0
L169: 1 | M169: 2 | N169: 3 | O169: 4 | P169: 5 | R169: 1 | S169: 2 | T169: 3 | U169: 4 | V169: 5 | AO169: third win | AQ169: =AQ162 -> 0 | AR169: =AU169-AQ169 -> 0 | AS169: =AS162 -> 0 | AT169: =AU169-AS169 -> 0 | BU169: 16 | BV169: =CG19 -> Royal Flush | BW169: =CH19 -> 
L170: =L165+IF(L165=1,13+RAND()^3,RAND()^3) ->  | M170: =M165+IF(M165=1,13+RAND()^3,RAND()^3) ->  | Q170: 0.0620677708 | W170: 0.7872308608 | AQ170: =AQ163 -> 0 | AR170: =AU170-AQ170 -> 0 | AS170: =AS163 -> 0 | AT170: =AU170-AS170 -> 0 | BV170: =CR19 -> Straight Flush | BW170: =CS19 -> 
AQ171: =AQ164 -> 0 | AR171: 0 | AS171: =AS164 -> 0 | AT171: 0 | BV171: =DC19 -> Four of a Kind | BW171: =DD19 ->  | BX171: 0 | CA171: 0
L172: =RANK(L179,$L$179:$P$179,1) ->  | M172: =RANK(M179,$L$179:$P$179,1) ->  | R172: =RANK(R179,$R$179:$V$179,1) ->  | S172: =RANK(S179,$R$179:$V$179,1) ->  | AQ172: =AQ165 -> 0 | AR172: 0 | AS172: =AS165 -> 0 | AT172: 0 | BV172: =DN19 -> Full House | BW172: =DO19 ->  | BX172: 0 | CA172: 0
J173: 20 | L173: =[0]!Player12 -> 0 | M173: =[0]!House2 -> 0 | N173: =[0]!House3 -> 0 | O173: =[0]!House4 -> 0 | P173: =[0]!House5 -> 0 | R173: =[0]!Player22 -> 0 | S173: =[0]!House2 -> 0 | T173: =[0]!House3 -> 0 | U173: =[0]!House4 -> 0 | V173: =[0]!House5 -> 0 | AQ173: =AQ166 -> 0 | AR173: 0 | AS173: =AS166 -> 0 | AT173: 0 | BV173: =DY19 -> Flush | BW173: =DZ19 ->  | BX173: 0 | CA173: 0
L174: =VLOOKUP(L173,$B$1:$F$52,5,0) ->  | M174: =VLOOKUP(M173,$B$1:$F$52,5,0) ->  | N174: =VLOOKUP(N173,$B$1:$F$52,5,0) ->  | O174: =VLOOKUP(O173,$B$1:$F$52,5,0) ->  | P174: =VLOOKUP(P173,$B$1:$F$52,5,0) ->  | R174: =VLOOKUP(R173,$B$1:$F$52,5,0) ->  | S174: =VLOOKUP(S173,$B$1:$F$52,5,0) ->  | T174: =VLOOKUP(T173,$B$1:$F$52,5,0) ->  | U174: =VLOOKUP(U173,$B$1:$F$52,5,0) ->  | V174: =VLOOKUP(V173,$B$1:$F$52,5,0) ->  | AR174: =INDEX(AR169:AR173,MATCH(TRUE,INDEX(AR169:AR173<>0,),0)) ->  | AT174: =INDEX(AT169:AT173,MATCH(TRUE,INDEX(AT169:AT173<>0,),0)) ->  | BV174: =EJ19 -> Straight | BW174: =EK19 -> 
L175: =VLOOKUP(L173,$B$1:$F$52,4,0) ->  | M175: =VLOOKUP(M173,$B$1:$F$52,4,0) ->  | N175: =VLOOKUP(N173,$B$1:$F$52,4,0) ->  | O175: =VLOOKUP(O173,$B$1:$F$52,4,0) ->  | P175: =VLOOKUP(P173,$B$1:$F$52,4,0) ->  | R175: =VLOOKUP(R173,$B$1:$F$52,4,0) ->  | S175: =VLOOKUP(S173,$B$1:$F$52,4,0) ->  | T175: =VLOOKUP(T173,$B$1:$F$52,4,0) ->  | U175: =VLOOKUP(U173,$B$1:$F$52,4,0) ->  | V175: =VLOOKUP(V173,$B$1:$F$52,4,0) ->  | AR175: =IF(ISNUMBER(AR174),AR174,0) -> 0 | AT175: =IF(ISNUMBER(AT174),AT174,0) -> 0 | BV175: =EU19 -> Three of a Kind | BW175: =EV19 ->  | BX175: 0 | CA175: 0
L176: =HLOOKUP(L178,$L$172:$P$175,3,0) ->  | M176: =HLOOKUP(M178,$L$172:$P$175,3,0) ->  | R176: =HLOOKUP(R178,$R$172:$V$175,3,0) ->  | S176: =HLOOKUP(S178,$R$172:$V$175,3,0) ->  | BV176: =FF19 -> Two Pair | BW176: =FG19 ->  | BX176: 0 | CA176: 0
L177: =HLOOKUP(L178,$L$172:$P$175,4,0) ->  | M177: =HLOOKUP(M178,$L$172:$P$175,4,0) ->  | R177: =HLOOKUP(R178,$R$172:$V$175,4,0) ->  | S177: =HLOOKUP(S178,$R$172:$V$175,4,0) ->  | BV177: =FQ19 -> One Pair | BW177: =FR19 ->  | BX177: 0 | CA177: 0
L178: 1 | M178: 2 | N178: 3 | O178: 4 | P178: 5 | R178: 1 | S178: 2 | T178: 3 | U178: 4 | V178: 5 | BV178: =GB19 -> High Card | BW178: =GC19 ->  | BX178: 0 | CA178: 0
L179: =L174+IF(L174=1,13+RAND()^3,RAND()^3) ->  | M179: =M174+IF(M174=1,13+RAND()^3,RAND()^3) ->  | Q179: 0.6307215942 | W179: 0.5495304889
BU180: 17 | BV180: =CG20 -> Royal Flush | BW180: =CH20 -> 
L181: =RANK(L188,$L$188:$P$188,1) ->  | M181: =RANK(M188,$L$188:$P$188,1) ->  | R181: =RANK(R188,$R$188:$V$188,1) ->  | S181: =RANK(S188,$R$188:$V$188,1) ->  | BV181: =CR20 -> Straight Flush | BW181: =CS20 -> 
J182: 21 | L182: =[0]!House1 -> 0 | M182: =[0]!House2 -> 0 | N182: =[0]!House3 -> 0 | O182: =[0]!House4 -> 0 | P182: =[0]!House5 -> 0 | R182: =[0]!House1 -> 0 | S182: =[0]!House2 -> 0 | T182: =[0]!House3 -> 0 | U182: =[0]!House4 -> 0 | V182: =[0]!House5 -> 0 | BV182: =DC20 -> Four of a Kind | BW182: =DD20 ->  | BX182: 0 | CA182: 0
L183: =VLOOKUP(L182,$B$1:$F$52,5,0) ->  | M183: =VLOOKUP(M182,$B$1:$F$52,5,0) ->  | N183: =VLOOKUP(N182,$B$1:$F$52,5,0) ->  | O183: =VLOOKUP(O182,$B$1:$F$52,5,0) ->  | P183: =VLOOKUP(P182,$B$1:$F$52,5,0) ->  | R183: =VLOOKUP(R182,$B$1:$F$52,5,0) ->  | S183: =VLOOKUP(S182,$B$1:$F$52,5,0) ->  | T183: =VLOOKUP(T182,$B$1:$F$52,5,0) ->  | U183: =VLOOKUP(U182,$B$1:$F$52,5,0) ->  | V183: =VLOOKUP(V182,$B$1:$F$52,5,0) ->  | BV183: =DN20 -> Full House | BW183: =DO20 ->  | BX183: 0 | CA183: 0
L184: =VLOOKUP(L182,$B$1:$F$52,4,0) ->  | M184: =VLOOKUP(M182,$B$1:$F$52,4,0) ->  | N184: =VLOOKUP(N182,$B$1:$F$52,4,0) ->  | O184: =VLOOKUP(O182,$B$1:$F$52,4,0) ->  | P184: =VLOOKUP(P182,$B$1:$F$52,4,0) ->  | R184: =VLOOKUP(R182,$B$1:$F$52,4,0) ->  | S184: =VLOOKUP(S182,$B$1:$F$52,4,0) ->  | T184: =VLOOKUP(T182,$B$1:$F$52,4,0) ->  | U184: =VLOOKUP(U182,$B$1:$F$52,4,0) ->  | V184: =VLOOKUP(V182,$B$1:$F$52,4,0) ->  | BV184: =DY20 -> Flush | BW184: =DZ20 ->  | BX184: 0 | CA184: 0
L185: =HLOOKUP(L187,$L$181:$P$184,3,0) ->  | M185: =HLOOKUP(M187,$L$181:$P$184,3,0) ->  | R185: =HLOOKUP(R187,$R$181:$V$184,3,0) ->  | S185: =HLOOKUP(S187,$R$181:$V$184,3,0) ->  | BV185: =EJ20 -> Straight | BW185: =EK20 -> 
L186: =HLOOKUP(L187,$L$181:$P$184,4,0) ->  | M186: =HLOOKUP(M187,$L$181:$P$184,4,0) ->  | R186: =HLOOKUP(R187,$R$181:$V$184,4,0) ->  | S186: =HLOOKUP(S187,$R$181:$V$184,4,0) ->  | BV186: =EU20 -> Three of a Kind | BW186: =EV20 ->  | BX186: 0 | CA186: 0
L187: 1 | M187: 2 | N187: 3 | O187: 4 | P187: 5 | R187: 1 | S187: 2 | T187: 3 | U187: 4 | V187: 5 | BV187: =FF20 -> Two Pair | BW187: =FG20 ->  | BX187: 0 | CA187: 0
L188: =L183+IF(L183=1,13+RAND()^3,RAND()^3) ->  | M188: =M183+IF(M183=1,13+RAND()^3,RAND()^3) ->  | Q188: 0.001628561064 | W188: 0.2678845411 | BV188: =FQ20 -> One Pair | BW188: =FR20 ->  | BX188: 0 | CA188: 0
BV189: =GB20 -> High Card | BW189: =GC20 ->  | BX189: 0 | CA189: 0
BU191: 18 | BV191: =CG21 -> Royal Flush | BW191: =CH21 -> 
BV192: =CR21 -> Straight Flush | BW192: =CS21 -> 
BV193: =DC21 -> Four of a Kind | BW193: =DD21 ->  | BX193: 0 | CA193: 0
BV194: =DN21 -> Full House | BW194: =DO21 ->  | BX194: 0 | CA194: 0
BV195: =DY21 -> Flush | BW195: =DZ21 ->  | BX195: 0 | CA195: 0
BV196: =EJ21 -> Straight | BW196: =EK21 -> 
BV197: =EU21 -> Three of a Kind | BW197: =EV21 ->  | BX197: 0 | CA197: 0
BV198: =FF21 -> Two Pair | BW198: =FG21 ->  | BX198: 0 | CA198: 0
BV199: =FQ21 -> One Pair | BW199: =FR21 ->  | BX199: 0 | CA199: 0
BV200: =GB21 -> High Card | BW200: =GC21 ->  | BX200: 0 | CA200: 0
BU202: 19 | BV202: =CG22 -> Royal Flush | BW202: =CH22 -> 
... 29 more rows

Sheet Pocket2 (hidden)
A1: 1 | B1: ♠A | C1: 0.970493852 | D1: =IF(OR($W$2=B1,$X$2=B1),1,RANK(C1,$C$1:$C$52)) -> 3 | E1: S | F1: 1 | G1: =LARGE($D$1:$D$52,1) -> 52 | P1: =IF(ISBLANK(House1),INDEX($B$1:$B$52,MATCH(G1,$D$1:$D$52,0)), House1) -> ♥3 | Q1: =IF(ISBLANK(House2),INDEX($B$1:$B$52,MATCH(G2,$D$1:$D$52,0)),House2) -> ♣J | R1: =IF(ISBLANK(House3),INDEX($B$1:$B$52,MATCH(G3,$D$1:$D$52,0)),House3) -> ♥7 | S1: =IF(ISBLANK(House4),INDEX($B$1:$B$52,MATCH(G4,$D$1:$D$52,0)),House4) -> ♦7 | T1: =IF(ISBLANK(House5),INDEX($B$1:$B$52,MATCH(G5,$D$1:$D$52,0)),House5) -> ♥8 | W1: =RANK(W8,$W$8:$AA$8,1) ->  | X1: =RANK(X8,$W$8:$AA$8,1) ->  | BA1: Robot1 | BS1: Match?
A2: 2 | B2: ♠2 | C2: 0.9179934131 | D2: =IF(OR($W$2=B2,$X$2=B2),1,RANK(C2,$C$1:$C$52)) -> 5 | E2: S | F2: 2 | G2: =LARGE($D$1:$D$52,2) -> 51 | O2: 1 | W2: =[0]!Player21 -> 0 | X2: =[0]!Player22 -> 0 | Y2: =$P$1 -> ♥3 | Z2: =$Q$1 -> ♣J | AA2: =$R$1 -> ♥7 | BQ2: Robot1
A3: 3 | B3: ♠3 | C3: 0.2153743273 | D3: 42 | E3: S | F3: 3 | G3: =LARGE($D$1:$D$52,3) -> 50 | W3: =VLOOKUP(W2,$B$1:$F$52,5,0) ->  | X3: =VLOOKUP(X2,$B$1:$F$52,5,0) ->  | Y3: =VLOOKUP(Y2,$B$1:$F$52,5,0) -> 3 | Z3: =VLOOKUP(Z2,$B$1:$F$52,5,0) -> 11 | AA3: =VLOOKUP(AA2,$B$1:$F$52,5,0) -> 7 | BQ3: Number | BR3: Suit | BS3: Total
A4: 4 | B4: ♠4 | C4: 0.4050315449 | D4: 31 | E4: S | F4: 4 | G4: =LARGE($D$1:$D$52,4) -> 49 | W4: =VLOOKUP(W2,$B$1:$F$52,4,0) ->  | X4: =VLOOKUP(X2,$B$1:$F$52,4,0) ->  | Y4: =VLOOKUP(Y2,$B$1:$F$52,4,0) -> H | Z4: =VLOOKUP(Z2,$B$1:$F$52,4,0) -> C | AA4: =VLOOKUP(AA2,$B$1:$F$52,4,0) -> H | AU4: 1 | AV4: =W5 ->  | AW4: =X5 ->  | AX4: =Y5 ->  | AY4: =Z5 ->  | AZ4: =AA5 ->  | BB4: =INDEX($BL$4:$BL$13,MATCH(1,$BS$4:$BS$13,0)) ->  | BL4: 1 | BM4: =BX4 -> Royal Flush | BQ4: =CB4 ->  | BX4: Royal Flush | CB4: =IF(AND(10=AV4,11=AW4,12=AX4,13=AY4,1=AZ4),1,0) ->  | CC4: =IF(AND(AV25=AW25,AW25=AX25,AX25=AY25,AY25=AZ25),1,0) ->  | CD4: =CB4*CC4 ->  | CI4: Straight Flush | CM4: =IF(OR(AND(AV4<10,AW4=AV4+1,AX4=AW4+1,AY4=AX4+1,AZ4=AY4+1),AND(AV4=2,AW4=3,AX4=4,AY4=5,AZ4=1)),1,0) ->  | CN4: =IF(AND(AV25=AW25,AW25=AX25,AX25=AY25,AY25=AZ25),1,0) ->  | CO4: =CM4*CN4 ->  | CT4: Four of a Kind | CX4: =IF(OR(AND(AV4=AW4,AW4=AX4,AX4=AY4),AND(AW4=AX4,AX4=AY4,AY4=AZ4)),1,0) ->  | CZ4: =CX4 ->  | DE4: Full House | DI4: =IF(OR(AND(AV4=AW4,AW4=AX4,AY4=AZ4),AND(AV4=AW4,AX4=AY4,AY4=AZ4)),1,0) ->  | DK4: =DI4 ->  | DP4: Flush | DT4: =IF(AND(AV25=AW25,AW25=AX25,AX25=AY25,AY25=AZ25),1,0) ->  | DV4: =DT4 ->  | EA4: Straight | EE4: =IF(OR( AND(AV4<10,AW4=AV4+1,AX4=AW4+1,AY4=AX4+1,AZ4=AY4+1), AND(AV4=10,AW4=11,AX4=12,AY4=13,AZ4=1), ),1,0) ->  | EF4: =IF(AND(AV25=AW25,AW25=AX25,AX25=AY25,AY25=AZ25),0,1) ->  | EG4: =EE4*EF4 ->  | EL4: Three of a Kind | EP4: =IF(OR(AND(AV4=AW4,AW4=AX4,AY4<>AZ4),AND(AV4<>AW4,AX4=AY4,AY4=AZ4),AND(AW4=AX4,AX4=AY4)),1,0) ->  | ER4: =EP4 ->  | EW4: Two Pair | FA4: =IF(OR(AND(AV4=AW4,AX4=AY4,AZ4<>AV4,AZ4<>AX4,AW4<>AX4),AND(AW4=AX4,AY4=AZ4,AV4<>AW4,AV4<>AY4,AX4<>AY4),AND(AV4=AW4,AY4=AZ4,AX4<>AW4,AX4<>AY4,AW4<>AY4)),1,0) ->  | FC4: =FA4 ->  | FH4: One Pair | FL4: =IF(OR(AND(AV4=AW4,AW4<>AX4,AX4<>AY4,AY4<>AZ4),AND(AV4<>AW4,AW4=AX4,AX4<>AY4,AY4<>AZ4),AND(AV4<>AW4,AW4<>AX4,AX4=AY4,AY4<>AZ4),AND(AV4<>AW4,AW4<>AX4,AX4<>AY4,AY4=AZ4)),1,0) ->  | FN4: =FL4 ->  | FS4: High Card | FW4: =IF(AND(AV4<>AW4,AW4<>AX4,AX4<>AY4,AY4<>AZ4),1,0) ->  | FY4: =FW4 -> 
A5: 5 | B5: ♠5 | C5: 0.2325660527 | D5: 40 | E5: S | F5: 5 | G5: =LARGE($D$1:$D$52,5) -> 48 | W5: =HLOOKUP(W7,$W$1:$AA$4,3,0) ->  | X5: =HLOOKUP(X7,$W$1:$AA$4,3,0) ->  | Y5: =HLOOKUP(Y7,$W$1:$AA$4,3,0) ->  | Z5: =HLOOKUP(Z7,$W$1:$AA$4,3,0) ->  | AA5: =HLOOKUP(AA7,$W$1:$AA$4,3,0) ->  | AU5: 2 | AV5: =W14 ->  | AW5: =X14 ->  | AX5: =Y14 ->  | AY5: =Z14 ->  | AZ5: =AA14 ->  | BB5: =INDEX($BL$4:$BL$13,MATCH(1,$BS$15:$BS$24,0)) ->  | BL5: 2 | BM5: =CI4 -> Straight Flush | BQ5: =CM4 ->  | BX5: Royal Flush | CI5: Straight Flush | CO5: =CM5*CN5 ->  | CT5: Four of a Kind | DE5: Full House | DP5: Flush | EA5: Straight | EL5: Three of a Kind | EW5: Two Pair | FH5: One Pair | FS5: High Card
A6: 6 | B6: ♠6 | C6: 0.2757402226 | D6: 38 | E6: S | F6: 6 | W6: =HLOOKUP(W7,$W$1:$AA$4,4,0) ->  | X6: =HLOOKUP(X7,$W$1:$AA$4,4,0) ->  | Y6: =HLOOKUP(Y7,$W$1:$AA$4,4,0) ->  | Z6: =HLOOKUP(Z7,$W$1:$AA$4,4,0) ->  | AA6: =HLOOKUP(AA7,$W$1:$AA$4,4,0) ->  | AU6: 3 | AV6: =W23 ->  | AW6: =X23 ->  | AX6: =Y23 ->  | AY6: =Z23 ->  | AZ6: =AA23 ->  | BB6: =INDEX($BL$4:$BL$13,MATCH(1,$BS$26:$BS$35,0)) ->  | BL6: 3 | BM6: =CT4 -> Four of a Kind | BQ6: =CX4 ->  | BR6: 0 | BX6: Royal Flush | CI6: Straight Flush | CT6: Four of a Kind | DE6: Full House | DP6: Flush | EA6: Straight | EL6: Three of a Kind | EW6: Two Pair | FH6: One Pair | FS6: High Card
A7: 7 | B7: ♠7 | C7: 0.5511047264 | D7: 24 | E7: S | F7: 7 | W7: 1 | X7: 2 | Y7: 3 | Z7: 4 | AA7: 5 | AU7: 4 | AV7: =W32 ->  | AW7: =X32 ->  | AX7: =Y32 ->  | AY7: =Z32 ->  | AZ7: =AA32 ->  | BB7: =INDEX($BL$4:$BL$13,MATCH(1,$BS$37:$BS$46,0)) ->  | BL7: 4 | BM7: =DE4 -> Full House | BQ7: =DI4 ->  | BR7: 0 | BX7: Royal Flush | CI7: Straight Flush | CT7: Four of a Kind | DE7: Full House | DP7: Flush | EA7: Straight | EL7: Three of a Kind | EW7: Two Pair | FH7: One Pair | FS7: High Card
A8: 8 | B8: ♠8 | C8: 0.4784826732 | D8: 27 | E8: S | F8: 8 | V8: =V3+IF(V3=1,13+RAND()^3,RAND()^3) -> 0.04421306432 | Y8: 3.109623274 | Z8: 11.06419155 | AA8: 7.056608705 | AU8: 5 | AV8: =W41 ->  | AW8: =X41 ->  | AX8: =Y41 ->  | AY8: =Z41 ->  | AZ8: =AA41 ->  | BB8: =INDEX($BL$4:$BL$13,MATCH(1,$BS$48:$BS$57,0)) ->  | BL8: 5 | BM8: =DP4 -> Flush | BQ8: =DT4 ->  | BR8: 0 | BX8: Royal Flush | CI8: Straight Flush | CT8: Four of a Kind | DE8: Full House | DP8: Flush | EA8: Straight | EL8: Three of a Kind | EW8: Two Pair | FH8: One Pair | FS8: High Card
A9: 9 | B9: ♠9 | C9: 0.7537093629 | D9: 14 | E9: S | F9: 9 | AU9: 6 | AV9: =W50 ->  | AW9: =X50 ->  | AX9: =Y50 ->  | AY9: =Z50 ->  | AZ9: =AA50 ->  | BB9: =INDEX($BL$4:$BL$13,MATCH(1,$BS$59:$BS$68,0)) ->  | BL9: 6 | BM9: =EA4 -> Straight | BQ9: =EE4 ->  | BX9: Royal Flush | CI9: Straight Flush | CT9: Four of a Kind | DE9: Full House | DP9: Flush | EA9: Straight | EL9: Three of a Kind | EW9: Two Pair | FH9: One Pair | FS9: High Card
A10: 10 | B10: ♠10 | C10: 0.2912554581 | D10: 36 | E10: S | F10: 10 | W10: =RANK(W17,$W$17:$AA$17,1) ->  | X10: =RANK(X17,$W$17:$AA$17,1) ->  | Y10: =RANK(Y17,$W$17:$AA$17,1) ->  | Z10: =RANK(Z17,$W$17:$AA$17,1) ->  | AA10: =RANK(AA17,$W$17:$AA$17,1) ->  | AU10: 7 | AV10: =W59 ->  | AW10: =X59 ->  | AX10: =Y59 ->  | AY10: =Z59 ->  | AZ10: =AA59 ->  | BB10: =INDEX($BL$4:$BL$13,MATCH(1,$BS$70:$BS$79,0)) ->  | BL10: 7 | BM10: =EL4 -> Three of a Kind | BQ10: =EP4 ->  | BR10: 0 | BX10: Royal Flush | CI10: Straight Flush | CT10: Four of a Kind | DE10: Full House | DP10: Flush | EA10: Straight | EL10: Three of a Kind | EW10: Two Pair | FH10: One Pair | FS10: High Card
A11: 11 | B11: ♠J | C11: 0.361745346 | D11: 35 | E11: S | F11: 11 | O11: 2 | W11: =[0]!Player21 -> 0 | X11: =[0]!Player22 -> 0 | Y11: =$P$1 -> ♥3 | Z11: =$Q$1 -> ♣J | AA11: =$S$1 -> ♦7 | AU11: 8 | AV11: =W68 ->  | AW11: =X68 ->  | AX11: =Y68 ->  | AY11: =Z68 ->  | AZ11: =AA68 ->  | BB11: =INDEX($BL$4:$BL$13,MATCH(1,$BS$81:$BS$90,0)) ->  | BL11: 8 | BM11: =EW4 -> Two Pair | BQ11: =FA4 ->  | BR11: 0 | BX11: Royal Flush | CI11: Straight Flush | CT11: Four of a Kind | DE11: Full House | DP11: Flush | EA11: Straight | EL11: Three of a Kind | EW11: Two Pair | FH11: One Pair | FS11: High Card
A12: 12 | B12: ♠Q | C12: 0.3790550799 | D12: 34 | E12: S | F12: 12 | W12: =VLOOKUP(W11,$B$1:$F$52,5,0) ->  | X12: =VLOOKUP(X11,$B$1:$F$52,5,0) ->  | Y12: =VLOOKUP(Y11,$B$1:$F$52,5,0) -> 3 | Z12: =VLOOKUP(Z11,$B$1:$F$52,5,0) -> 11 | AA12: =VLOOKUP(AA11,$B$1:$F$52,5,0) -> 7 | AU12: 9 | AV12: =W77 ->  | AW12: =X77 ->  | AX12: =Y77 ->  | AY12: =Z77 ->  | AZ12: =AA77 ->  | BB12: =INDEX($BL$4:$BL$13,MATCH(1,$BS$92:$BS$101,0)) ->  | BL12: 9 | BM12: =FH4 -> One Pair | BQ12: =FL4 ->  | BR12: 0 | BX12: Royal Flush | CI12: Straight Flush | CT12: Four of a Kind | DE12: Full House | DP12: Flush | EA12: Straight | EL12: Three of a Kind | EW12: Two Pair | FH12: One Pair | FS12: High Card
A13: 13 | B13: ♠K | C13: 0.6914470721 | D13: 16 | E13: S | F13: 13 | W13: =VLOOKUP(W11,$B$1:$F$52,4,0) ->  | X13: =VLOOKUP(X11,$B$1:$F$52,4,0) ->  | Y13: =VLOOKUP(Y11,$B$1:$F$52,4,0) -> H | Z13: =VLOOKUP(Z11,$B$1:$F$52,4,0) -> C | AA13: =VLOOKUP(AA11,$B$1:$F$52,4,0) -> D | AU13: 10 | AV13: =W86 ->  | AW13: =X86 ->  | AX13: =Y86 ->  | AY13: =Z86 ->  | AZ13: =AA86 ->  | BB13: =INDEX($BL$4:$BL$13,MATCH(1,$BS$103:$BS$112,0)) ->  | BL13: 10 | BM13: =FS4 -> High Card | BQ13: =FW4 ->  | BR13: 0 | BX13: Royal Flush | CI13: Straight Flush | CT13: Four of a Kind | DE13: Full House | DP13: Flush | EA13: Straight | EL13: Three of a Kind | EW13: Two Pair | FH13: One Pair | FS13: High Card
A14: 14 | B14: ♣A | C14: 0.9833272398 | D14: 2 | E14: C | F14: 1 | W14: =HLOOKUP(W16,$W$10:$AA$13,3,0) ->  | X14: =HLOOKUP(X16,$W$10:$AA$13,3,0) ->  | Y14: =HLOOKUP(Y16,$W$10:$AA$13,3,0) ->  | Z14: =HLOOKUP(Z16,$W$10:$AA$13,3,0) ->  | AA14: =HLOOKUP(AA16,$W$10:$AA$13,3,0) ->  | AU14: 11 | AV14: =W95 ->  | AW14: =X95 ->  | AX14: =Y95 ->  | AY14: =Z95 ->  | AZ14: =AA95 ->  | BB14: =INDEX($BL$4:$BL$13,MATCH(1,$BS$114:$BS$123,0)) ->  | BX14: Royal Flush | CI14: Straight Flush | CT14: Four of a Kind | DE14: Full House | DP14: Flush | EA14: Straight | EL14: Three of a Kind | EW14: Two Pair | FH14: One Pair | FS14: High Card
A15: 15 | B15: ♣2 | C15: 0.2785159725 | D15: 37 | E15: C | F15: 2 | W15: =HLOOKUP(W16,$W$10:$AA$13,4,0) ->  | X15: =HLOOKUP(X16,$W$10:$AA$13,4,0) ->  | Y15: =HLOOKUP(Y16,$W$10:$AA$13,4,0) ->  | Z15: =HLOOKUP(Z16,$W$10:$AA$13,4,0) ->  | AA15: =HLOOKUP(AA16,$W$10:$AA$13,4,0) ->  | AU15: 12 | AV15: =W104 ->  | AW15: =X104 ->  | AX15: =Y104 ->  | AY15: =Z104 ->  | AZ15: =AA104 ->  | BB15: =INDEX($BL$4:$BL$13,MATCH(1,$BS$125:$BS$134,0)) ->  | BL15: 2 | BM15: =BX5 -> Royal Flush | BQ15: =CB5 ->  | BX15: Royal Flush | CI15: Straight Flush | CT15: Four of a Kind | DE15: Full House | DP15: Flush | EA15: Straight | EL15: Three of a Kind | EW15: Two Pair | FH15: One Pair | FS15: High Card
A16: 16 | B16: ♣3 | C16: 0.5911186179 | D16: 21 | E16: C | F16: 3 | W16: 1 | X16: 2 | Y16: 3 | Z16: 4 | AA16: 5 | AU16: 13 | AV16: =W113 ->  | AW16: =X113 ->  | AX16: =Y113 ->  | AY16: =Z113 ->  | AZ16: =AA113 ->  | BB16: =INDEX($BL$4:$BL$13,MATCH(1,$BS$136:$BS$145,0)) ->  | BM16: =CI5 -> Straight Flush | BQ16: =CM5 ->  | BX16: Royal Flush | CI16: Straight Flush | CT16: Four of a Kind | DE16: Full House | DP16: Flush | EA16: Straight | EL16: Three of a Kind | EW16: Two Pair | FH16: One Pair | FS16: High Card
A17: 17 | B17: ♣4 | C17: 0.1522030214 | D17: 44 | E17: C | F17: 4 | V17: =V12+IF(V12=1,13+RAND()^3,RAND()^3) -> 0.5802240995 | Y17: 3.851661647 | Z17: 11.7605651 | AA17: 7.194780565 | AU17: 14 | AV17: =W122 ->  | AW17: =X122 ->  | AX17: =Y122 ->  | AY17: =Z122 ->  | AZ17: =AA122 ->  | BB17: =INDEX($BL$4:$BL$13,MATCH(1,$BS$147:$BS$156,0)) ->  | BM17: =CT5 -> Four of a Kind | BQ17: =CX5 ->  | BR17: 0 | BX17: Royal Flush | CI17: Straight Flush | CT17: Four of a Kind | DE17: Full House | DP17: Flush | EA17: Straight | EL17: Three of a Kind | EW17: Two Pair | FH17: One Pair | FS17: High Card
A18: 18 | B18: ♣5 | C18: 0.95527088 | D18: 4 | E18: C | F18: 5 | AU18: 15 | AV18: =W131 ->  | AW18: =X131 ->  | AX18: =Y131 ->  | AY18: =Z131 ->  | AZ18: =AA131 ->  | BB18: =INDEX($BL$4:$BL$13,MATCH(1,$BS$158:$BS$167,0)) ->  | BM18: =DE5 -> Full House | BQ18: =DI5 ->  | BR18: 0 | BX18: Royal Flush | CI18: Straight Flush | CT18: Four of a Kind | DE18: Full House | DP18: Flush | EA18: Straight | EL18: Three of a Kind | EW18: Two Pair | FH18: One Pair | FS18: High Card
A19: 19 | B19: ♣6 | C19: 0.1466924646 | D19: 46 | E19: C | F19: 6 | W19: =RANK(W26,$W$26:$AA$26,1) ->  | X19: =RANK(X26,$W$26:$AA$26,1) ->  | Y19: =RANK(Y26,$W$26:$AA$26,1) ->  | Z19: =RANK(Z26,$W$26:$AA$26,1) ->  | AA19: =RANK(AA26,$W$26:$AA$26,1) ->  | AU19: 16 | AV19: =W140 ->  | AW19: =X140 ->  | AX19: =Y140 ->  | AY19: =Z140 ->  | AZ19: =AA140 ->  | BB19: =INDEX($BL$4:$BL$13,MATCH(1,$BS$169:$BS$178,0)) ->  | BM19: =DP5 -> Flush | BQ19: =DT5 ->  | BR19: 0 | BX19: Royal Flush | CI19: Straight Flush | CT19: Four of a Kind | DE19: Full House | DP19: Flush | EA19: Straight | EL19: Three of a Kind | EW19: Two Pair | FH19: One Pair | FS19: High Card
A20: 20 | B20: ♣7 | C20: 0.2477727953 | D20: 39 | E20: C | F20: 7 | O20: 3 | W20: =[0]!Player21 -> 0 | X20: =[0]!Player22 -> 0 | Y20: =$P$1 -> ♥3 | Z20: =$Q$1 -> ♣J | AA20: =$T$1 -> ♥8 | AU20: 17 | AV20: =W149 ->  | AW20: =X149 ->  | AX20: =Y149 ->  | AY20: =Z149 ->  | AZ20: =AA149 ->  | BB20: =INDEX($BL$4:$BL$13,MATCH(1,$BS$180:$BS$189,0)) ->  | BM20: =EA5 -> Straight | BQ20: =EE5 ->  | BX20: Royal Flush | CI20: Straight Flush | CT20: Four of a Kind | DE20: Full House | DP20: Flush | EA20: Straight | EL20: Three of a Kind | EW20: Two Pair | FH20: One Pair | FS20: High Card
A21: 21 | B21: ♣8 | C21: 0.3947308602 | D21: 33 | E21: C | F21: 8 | W21: =VLOOKUP(W20,$B$1:$F$52,5,0) ->  | X21: =VLOOKUP(X20,$B$1:$F$52,5,0) ->  | Y21: =VLOOKUP(Y20,$B$1:$F$52,5,0) -> 3 | Z21: =VLOOKUP(Z20,$B$1:$F$52,5,0) -> 11 | AA21: =VLOOKUP(AA20,$B$1:$F$52,5,0) -> 8 | AU21: 18 | AV21: =W158 ->  | AW21: =X158 ->  | AX21: =Y158 ->  | AY21: =Z158 ->  | AZ21: =AA158 ->  | BB21: =INDEX($BL$4:$BL$13,MATCH(1,$BS$191:$BS$200,0)) ->  | BM21: =EL5 -> Three of a Kind | BQ21: =EP5 ->  | BR21: 0 | BX21: Royal Flush | CI21: Straight Flush | CT21: Four of a Kind | DE21: Full House | DP21: Flush | EA21: Straight | EL21: Three of a Kind | EW21: Two Pair | FH21: One Pair | FS21: High Card
A22: 22 | B22: ♣9 | C22: 0.1680380215 | D22: 43 | E22: C | F22: 9 | W22: =VLOOKUP(W20,$B$1:$F$52,4,0) ->  | X22: =VLOOKUP(X20,$B$1:$F$52,4,0) ->  | Y22: =VLOOKUP(Y20,$B$1:$F$52,4,0) -> H | Z22: =VLOOKUP(Z20,$B$1:$F$52,4,0) -> C | AA22: =VLOOKUP(AA20,$B$1:$F$52,4,0) -> H | AU22: 19 | AV22: =W167 ->  | AW22: =X167 ->  | AX22: =Y167 ->  | AY22: =Z167 ->  | AZ22: =AA167 ->  | BB22: =INDEX($BL$4:$BL$13,MATCH(1,$BS$202:$BS$211,0)) ->  | BM22: =EW5 -> Two Pair | BQ22: =FA5 ->  | BR22: 0 | BX22: Royal Flush | CI22: Straight Flush | CT22: Four of a Kind | DE22: Full House | DP22: Flush | EA22: Straight | EL22: Three of a Kind | EW22: Two Pair | FH22: One Pair | FS22: High Card
A23: 23 | B23: ♣10 | C23: 0.4389160458 | D23: 29 | E23: C | F23: 10 | W23: =HLOOKUP(W25,$W$19:$AA$22,3,0) ->  | X23: =HLOOKUP(X25,$W$19:$AA$22,3,0) ->  | Y23: =HLOOKUP(Y25,$W$19:$AA$22,3,0) ->  | Z23: =HLOOKUP(Z25,$W$19:$AA$22,3,0) ->  | AA23: =HLOOKUP(AA25,$W$19:$AA$22,3,0) ->  | AU23: 20 | AV23: =W176 ->  | AW23: =X176 ->  | AX23: =Y176 ->  | AY23: =Z176 ->  | AZ23: =AA176 ->  | BB23: =INDEX($BL$4:$BL$13,MATCH(1,$BS$213:$BS$222,0)) ->  | BM23: =FH5 -> One Pair | BQ23: =FL5 ->  | BR23: 0 | BX23: Royal Flush | CI23: Straight Flush | CT23: Four of a Kind | DE23: Full House | DP23: Flush | EA23: Straight | EL23: Three of a Kind | EW23: Two Pair | FH23: One Pair | FS23: High Card
A24: 24 | B24: ♣J | C24: 0.02001592724 | D24: 51 | E24: C | F24: 11 | W24: =HLOOKUP(W25,$W$19:$AA$22,4,0) ->  | X24: =HLOOKUP(X25,$W$19:$AA$22,4,0) ->  | Y24: =HLOOKUP(Y25,$W$19:$AA$22,4,0) ->  | Z24: =HLOOKUP(Z25,$W$19:$AA$22,4,0) ->  | AA24: =HLOOKUP(AA25,$W$19:$AA$22,4,0) ->  | AU24: 21 | AV24: =W185 -> 3 | AW24: =X185 -> 7 | AX24: =Y185 -> 7 | AY24: =Z185 -> 8 | AZ24: =AA185 -> 11 | BB24: =INDEX($BL$4:$BL$13,MATCH(1,$BS$224:$BS$233,0)) -> 9 | BM24: =FS5 -> High Card | BQ24: =FW5 ->  | BR24: 0 | BX24: Royal Flush | CB24: 0 | CC24: 0 | CD24: 0 | CI24: Straight Flush | CM24: 0 | CN24: 0 | CO24: 0 | CT24: Four of a Kind | CX24: 0 | CZ24: 0 | DE24: Full House | DI24: 0 | DK24: 0 | DP24: Flush | DT24: 0 | DV24: 0 | EA24: Straight | EE24: 0 | EF24: 1 | EG24: 0 | EL24: Three of a Kind | EP24: 0 | ER24: 0 | EW24: Two Pair | FA24: 0 | FC24: 0 | FH24: One Pair | FL24: 1 | FN24: 1 | FS24: High Card | FW24: 0 | FY24: 0
A25: 25 | B25: ♣Q | C25: 0.8089724777 | D25: 10 | E25: C | F25: 12 | W25: 1 | X25: 2 | Y25: 3 | Z25: 4 | AA25: 5 | AU25: 1 | AV25: =W6 ->  | AW25: =X6 ->  | AX25: =Y6 ->  | AY25: =Z6 ->  | AZ25: =AA6 -> 
A26: 26 | B26: ♣K | C26: 0.8398463966 | D26: 9 | E26: C | F26: 13 | V26: =V21+IF(V21=1,13+RAND()^3,RAND()^3) -> 0.02548162808 | Y26: 3.000823633 | Z26: 11.18097873 | AA26: 8.327675912 | AU26: 2 | AV26: =W15 ->  | AW26: =X15 ->  | AX26: =Y15 ->  | AY26: =Z15 ->  | AZ26: =AA15 ->  | BL26: 3 | BM26: =BX6 -> Royal Flush | BQ26: =CB6 -> 
A27: 27 | B27: ♦A | C27: 0.6393756343 | D27: 18 | E27: D | F27: 1 | AU27: 3 | AV27: =W24 ->  | AW27: =X24 ->  | AX27: =Y24 ->  | AY27: =Z24 ->  | AZ27: =AA24 ->  | BM27: =CI6 -> Straight Flush | BQ27: =CM6 -> 
A28: 28 | B28: ♦2 | C28: 0.09787141573 | D28: 47 | E28: D | F28: 2 | W28: =RANK(W35,$W$35:$AA$35,1) ->  | X28: =RANK(X35,$W$35:$AA$35,1) ->  | Y28: =RANK(Y35,$W$35:$AA$35,1) ->  | Z28: =RANK(Z35,$W$35:$AA$35,1) ->  | AA28: =RANK(AA35,$W$35:$AA$35,1) ->  | AU28: 4 | AV28: =W33 ->  | AW28: =X33 ->  | AX28: =Y33 ->  | AY28: =Z33 ->  | AZ28: =AA33 ->  | BM28: =CT6 -> Four of a Kind | BQ28: =CX6 ->  | BR28: 0
A29: 29 | B29: ♦3 | C29: 0.2286032154 | D29: 41 | E29: D | F29: 3 | O29: 4 | W29: =[0]!Player21 -> 0 | X29: =[0]!Player22 -> 0 | Y29: =$P$1 -> ♥3 | Z29: =$R$1 -> ♥7 | AA29: =$S$1 -> ♦7 | AU29: 5 | AV29: =W42 ->  | AW29: =X42 ->  | AX29: =Y42 ->  | AY29: =Z42 ->  | AZ29: =AA42 ->  | BM29: =DE6 -> Full House | BQ29: =DI6 ->  | BR29: 0
A30: 30 | B30: ♦4 | C30: 0.7921563794 | D30: 11 | E30: D | F30: 4 | W30: =VLOOKUP(W29,$B$1:$F$52,5,0) ->  | X30: =VLOOKUP(X29,$B$1:$F$52,5,0) ->  | Y30: =VLOOKUP(Y29,$B$1:$F$52,5,0) -> 3 | Z30: =VLOOKUP(Z29,$B$1:$F$52,5,0) -> 7 | AA30: =VLOOKUP(AA29,$B$1:$F$52,5,0) -> 7 | AU30: 6 | AV30: =W51 ->  | AW30: =X51 ->  | AX30: =Y51 ->  | AY30: =Z51 ->  | AZ30: =AA51 ->  | BM30: =DP6 -> Flush | BQ30: =DT6 ->  | BR30: 0
A31: 31 | B31: ♦5 | C31: 0.9889671939 | D31: 1 | E31: D | F31: 5 | W31: =VLOOKUP(W29,$B$1:$F$52,4,0) ->  | X31: =VLOOKUP(X29,$B$1:$F$52,4,0) ->  | Y31: =VLOOKUP(Y29,$B$1:$F$52,4,0) -> H | Z31: =VLOOKUP(Z29,$B$1:$F$52,4,0) -> H | AA31: =VLOOKUP(AA29,$B$1:$F$52,4,0) -> D | AU31: 7 | AV31: =W60 ->  | AW31: =X60 ->  | AX31: =Y60 ->  | AY31: =Z60 ->  | AZ31: =AA60 ->  | BM31: =EA6 -> Straight | BQ31: =EE6 -> 
A32: 32 | B32: ♦6 | C32: 0.7553499541 | D32: 13 | E32: D | F32: 6 | W32: =HLOOKUP(W34,$W$28:$AA$31,3,0) ->  | X32: =HLOOKUP(X34,$W$28:$AA$31,3,0) ->  | Y32: =HLOOKUP(Y34,$W$28:$AA$31,3,0) ->  | Z32: =HLOOKUP(Z34,$W$28:$AA$31,3,0) ->  | AA32: =HLOOKUP(AA34,$W$28:$AA$31,3,0) ->  | AU32: 8 | AV32: =W69 ->  | AW32: =X69 ->  | AX32: =Y69 ->  | AY32: =Z69 ->  | AZ32: =AA69 ->  | BM32: =EL6 -> Three of a Kind | BQ32: =EP6 ->  | BR32: 0
A33: 33 | B33: ♦7 | C33: 0.05202129882 | D33: 49 | E33: D | F33: 7 | W33: =HLOOKUP(W34,$W$28:$AA$31,4,0) ->  | X33: =HLOOKUP(X34,$W$28:$AA$31,4,0) ->  | Y33: =HLOOKUP(Y34,$W$28:$AA$31,4,0) ->  | Z33: =HLOOKUP(Z34,$W$28:$AA$31,4,0) ->  | AA33: =HLOOKUP(AA34,$W$28:$AA$31,4,0) ->  | AU33: 9 | AV33: =W78 ->  | AW33: =X78 ->  | AX33: =Y78 ->  | AY33: =Z78 ->  | AZ33: =AA78 ->  | BM33: =EW6 -> Two Pair | BQ33: =FA6 ->  | BR33: 0
A34: 34 | B34: ♦8 | C34: 0.453915893 | D34: 28 | E34: D | F34: 8 | W34: 1 | X34: 2 | Y34: 3 | Z34: 4 | AA34: 5 | AU34: 10 | AV34: =W87 ->  | AW34: =X87 ->  | AX34: =Y87 ->  | AY34: =Z87 ->  | AZ34: =AA87 ->  | BM34: =FH6 -> One Pair | BQ34: =FL6 ->  | BR34: 0
A35: 35 | B35: ♦9 | C35: 0.9061839426 | D35: 6 | E35: D | F35: 9 | V35: =V30+IF(V30=1,13+RAND()^3,RAND()^3) -> 0.3582416412 | Y35: 3.265579071 | Z35: 7.269497737 | AA35: 7.238124155 | AU35: 11 | AV35: =W96 ->  | AW35: =X96 ->  | AX35: =Y96 ->  | AY35: =Z96 ->  | AZ35: =AA96 ->  | BM35: =FS6 -> High Card | BQ35: =FW6 ->  | BR35: 0
A36: 36 | B36: ♦10 | C36: 0.1495448528 | D36: 45 | E36: D | F36: 10 | AU36: 12 | AV36: =W105 ->  | AW36: =X105 ->  | AX36: =Y105 ->  | AY36: =Z105 ->  | AZ36: =AA105 -> 
A37: 37 | B37: ♦J | C37: 0.4029206444 | D37: 32 | E37: D | F37: 11 | W37: =RANK(W44,$W$44:$AA$44,1) ->  | X37: =RANK(X44,$W$44:$AA$44,1) ->  | Y37: =RANK(Y44,$W$44:$AA$44,1) ->  | Z37: =RANK(Z44,$W$44:$AA$44,1) ->  | AA37: =RANK(AA44,$W$44:$AA$44,1) ->  | AU37: 13 | AV37: =W114 ->  | AW37: =X114 ->  | AX37: =Y114 ->  | AY37: =Z114 ->  | AZ37: =AA114 ->  | BL37: 4 | BM37: =BX7 -> Royal Flush | BQ37: =CB7 -> 
A38: 38 | B38: ♦Q | C38: 0.590589762 | D38: 22 | E38: D | F38: 12 | O38: 5 | W38: =[0]!Player21 -> 0 | X38: =[0]!Player22 -> 0 | Y38: =$P$1 -> ♥3 | Z38: =$R$1 -> ♥7 | AA38: =$T$1 -> ♥8 | AU38: 14 | AV38: =W123 ->  | AW38: =X123 ->  | AX38: =Y123 ->  | AY38: =Z123 ->  | AZ38: =AA123 ->  | BM38: =CI7 -> Straight Flush | BQ38: =CM7 -> 
A39: 39 | B39: ♦K | C39: 0.8625135295 | D39: 8 | E39: D | F39: 13 | W39: =VLOOKUP(W38,$B$1:$F$52,5,0) ->  | X39: =VLOOKUP(X38,$B$1:$F$52,5,0) ->  | Y39: =VLOOKUP(Y38,$B$1:$F$52,5,0) -> 3 | Z39: =VLOOKUP(Z38,$B$1:$F$52,5,0) -> 7 | AA39: =VLOOKUP(AA38,$B$1:$F$52,5,0) -> 8 | AU39: 15 | AV39: =W132 ->  | AW39: =X132 ->  | AX39: =Y132 ->  | AY39: =Z132 ->  | AZ39: =AA132 ->  | BM39: =CT7 -> Four of a Kind | BQ39: =CX7 ->  | BR39: 0
A40: 40 | B40: ♥A | C40: 0.8741766826 | D40: 7 | E40: H | F40: 1 | W40: =VLOOKUP(W38,$B$1:$F$52,4,0) ->  | X40: =VLOOKUP(X38,$B$1:$F$52,4,0) ->  | Y40: =VLOOKUP(Y38,$B$1:$F$52,4,0) -> H | Z40: =VLOOKUP(Z38,$B$1:$F$52,4,0) -> H | AA40: =VLOOKUP(AA38,$B$1:$F$52,4,0) -> H | AU40: 16 | AV40: =W141 ->  | AW40: =X141 ->  | AX40: =Y141 ->  | AY40: =Z141 ->  | AZ40: =AA141 ->  | BM40: =DE7 -> Full House | BQ40: =DI7 ->  | BR40: 0
A41: 41 | B41: ♥2 | C41: 0.436777696 | D41: 30 | E41: H | F41: 2 | W41: =HLOOKUP(W43,$W$37:$AA$40,3,0) ->  | X41: =HLOOKUP(X43,$W$37:$AA$40,3,0) ->  | Y41: =HLOOKUP(Y43,$W$37:$AA$40,3,0) ->  | Z41: =HLOOKUP(Z43,$W$37:$AA$40,3,0) ->  | AA41: =HLOOKUP(AA43,$W$37:$AA$40,3,0) ->  | AU41: 17 | AV41: =W150 ->  | AW41: =X150 ->  | AX41: =Y150 ->  | AY41: =Z150 ->  | AZ41: =AA150 ->  | BM41: =DP7 -> Flush | BQ41: =DT7 ->  | BR41: 0
A42: 42 | B42: ♥3 | C42: 0.0108947109 | D42: 52 | E42: H | F42: 3 | W42: =HLOOKUP(W43,$W$37:$AA$40,4,0) ->  | X42: =HLOOKUP(X43,$W$37:$AA$40,4,0) ->  | Y42: =HLOOKUP(Y43,$W$37:$AA$40,4,0) ->  | Z42: =HLOOKUP(Z43,$W$37:$AA$40,4,0) ->  | AA42: =HLOOKUP(AA43,$W$37:$AA$40,4,0) ->  | AU42: 18 | AV42: =W159 ->  | AW42: =X159 ->  | AX42: =Y159 ->  | AY42: =Z159 ->  | AZ42: =AA159 ->  | BM42: =EA7 -> Straight | BQ42: =EE7 -> 
A43: 43 | B43: ♥4 | C43: 0.771185757 | D43: 12 | E43: H | F43: 4 | W43: 1 | X43: 2 | Y43: 3 | Z43: 4 | AA43: 5 | AU43: 19 | AV43: =W168 ->  | AW43: =X168 ->  | AX43: =Y168 ->  | AY43: =Z168 ->  | AZ43: =AA168 ->  | BM43: =EL7 -> Three of a Kind | BQ43: =EP7 ->  | BR43: 0
A44: 44 | B44: ♥5 | C44: 0.7303526816 | D44: 15 | E44: H | F44: 5 | V44: =V39+IF(V39=1,13+RAND()^3,RAND()^3) -> 0.03927521203 | Y44: 3.002369921 | Z44: 7.55819893 | AA44: 8.892267689 | AU44: 20 | AV44: =W177 ->  | AW44: =X177 ->  | AX44: =Y177 ->  | AY44: =Z177 ->  | AZ44: =AA177 ->  | BM44: =EW7 -> Two Pair | BQ44: =FA7 ->  | BR44: 0
A45: 45 | B45: ♥6 | C45: 0.580540378 | D45: 23 | E45: H | F45: 6 | AU45: 21 | AV45: =W186 -> H | AW45: =X186 -> H | AX45: =Y186 -> D | AY45: =Z186 -> H | AZ45: =AA186 -> C | BM45: =FH7 -> One Pair | BQ45: =FL7 ->  | BR45: 0
A46: 46 | B46: ♥7 | C46: 0.03970394646 | D46: 50 | E46: H | F46: 7 | W46: =RANK(W53,$W$53:$AA$53,1) ->  | X46: =RANK(X53,$W$53:$AA$53,1) ->  | Y46: =RANK(Y53,$W$53:$AA$53,1) ->  | Z46: =RANK(Z53,$W$53:$AA$53,1) ->  | AA46: =RANK(AA53,$W$53:$AA$53,1) ->  | BM46: =FS7 -> High Card | BQ46: =FW7 ->  | BR46: 0
A47: 47 | B47: ♥8 | C47: 0.068032678 | D47: 48 | E47: H | F47: 8 | O47: 6 | W47: =[0]!Player21 -> 0 | X47: =[0]!Player22 -> 0 | Y47: =$P$1 -> ♥3 | Z47: =$S$1 -> ♦7 | AA47: =$T$1 -> ♥8 | AU47: Seq | AV47: 1st | AW47: 2nd | AX47: 3rd | AY47: 4th | AZ47: 5th | BA47: Hand | BB47: Rank
A48: 48 | B48: ♥9 | C48: 0.6793640548 | D48: 17 | E48: H | F48: 9 | W48: =VLOOKUP(W47,$B$1:$F$52,5,0) ->  | X48: =VLOOKUP(X47,$B$1:$F$52,5,0) ->  | Y48: =VLOOKUP(Y47,$B$1:$F$52,5,0) -> 3 | Z48: =VLOOKUP(Z47,$B$1:$F$52,5,0) -> 7 | AA48: =VLOOKUP(AA47,$B$1:$F$52,5,0) -> 8 | AU48: 17 | AV48: 3 | AW48: 3 | AX48: 8 | AY48: 8 | AZ48: 9 | BA48: 0 | BB48: 8 | BL48: 5 | BM48: =BX8 -> Royal Flush | BQ48: =CB8 -> 
A49: 49 | B49: ♥10 | C49: 0.4789885072 | D49: 26 | E49: H | F49: 10 | W49: =VLOOKUP(W47,$B$1:$F$52,4,0) ->  | X49: =VLOOKUP(X47,$B$1:$F$52,4,0) ->  | Y49: =VLOOKUP(Y47,$B$1:$F$52,4,0) -> H | Z49: =VLOOKUP(Z47,$B$1:$F$52,4,0) -> D | AA49: =VLOOKUP(AA47,$B$1:$F$52,4,0) -> H | AU49: 5 | AV49: 3 | AW49: 3 | AX49: 7 | AY49: 8 | AZ49: 8 | BA49: 0 | BB49: 8 | BM49: =CI8 -> Straight Flush | BQ49: =CM8 -> 
A50: 50 | B50: ♥J | C50: 0.5940474101 | D50: 20 | E50: H | F50: 11 | W50: =HLOOKUP(W52,$W$46:$AA$49,3,0) ->  | X50: =HLOOKUP(X52,$W$46:$AA$49,3,0) ->  | Y50: =HLOOKUP(Y52,$W$46:$AA$49,3,0) ->  | Z50: =HLOOKUP(Z52,$W$46:$AA$49,3,0) ->  | AA50: =HLOOKUP(AA52,$W$46:$AA$49,3,0) ->  | AU50: 19 | AV50: 3 | AW50: 3 | AX50: 6 | AY50: 8 | AZ50: 8 | BA50: 0 | BB50: 8 | BM50: =CT8 -> Four of a Kind | BQ50: =CX8 ->  | BR50: 0
A51: 51 | B51: ♥Q | C51: 0.4949099171 | D51: 25 | E51: H | F51: 12 | W51: =HLOOKUP(W52,$W$46:$AA$49,4,0) ->  | X51: =HLOOKUP(X52,$W$46:$AA$49,4,0) ->  | Y51: =HLOOKUP(Y52,$W$46:$AA$49,4,0) ->  | Z51: =HLOOKUP(Z52,$W$46:$AA$49,4,0) ->  | AA51: =HLOOKUP(AA52,$W$46:$AA$49,4,0) ->  | AU51: 13 | AV51: 6 | AW51: 7 | AX51: 8 | AY51: 8 | AZ51: 9 | BA51: 0 | BB51: 9 | BM51: =DE8 -> Full House | BQ51: =DI8 ->  | BR51: 0
A52: 52 | B52: ♥K | C52: 0.625691485 | D52: 19 | E52: H | F52: 13 | W52: 1 | X52: 2 | Y52: 3 | Z52: 4 | AA52: 5 | AU52: 3 | AV52: 3 | AW52: 7 | AX52: 8 | AY52: 8 | AZ52: 9 | BA52: 0 | BB52: 9 | BM52: =DP8 -> Flush | BQ52: =DT8 ->  | BR52: 0
V53: =V48+IF(V48=1,13+RAND()^3,RAND()^3) -> 2.831476076e-05 | Y53: 3.38051447 | Z53: 7.006525542 | AA53: 8.853167811 | AU53: 12 | AV53: 3 | AW53: 7 | AX53: 8 | AY53: 8 | AZ53: 9 | BA53: 0 | BB53: 9 | BM53: =EA8 -> Straight | BQ53: =EE8 -> 
AU54: 18 | AV54: 3 | AW54: 6 | AX54: 8 | AY54: 8 | AZ54: 9 | BA54: 0 | BB54: 9 | BM54: =EL8 -> Three of a Kind | BQ54: =EP8 ->  | BR54: 0
W55: =RANK(W62,$W$62:$AA$62,1) ->  | X55: =RANK(X62,$W$62:$AA$62,1) ->  | Y55: =RANK(Y62,$W$62:$AA$62,1) ->  | Z55: =RANK(Z62,$W$62:$AA$62,1) ->  | AA55: =RANK(AA62,$W$62:$AA$62,1) ->  | AU55: 21 | AV55: 3 | AW55: 6 | AX55: 8 | AY55: 8 | AZ55: 9 | BA55: 0 | BB55: 9 | BM55: =EW8 -> Two Pair | BQ55: =FA8 ->  | BR55: 0
O56: 7 | W56: =[0]!Player21 -> 0 | X56: =[0]!Player22 -> 0 | Y56: =$Q$1 -> ♣J | Z56: =$R$1 -> ♥7 | AA56: =$S$1 -> ♦7 | AU56: 1 | AV56: 3 | AW56: 3 | AX56: 7 | AY56: 8 | AZ56: 9 | BA56: 0 | BB56: 9 | BM56: =FH8 -> One Pair | BQ56: =FL8 ->  | BR56: 0
W57: =VLOOKUP(W56,$B$1:$F$52,5,0) ->  | X57: =VLOOKUP(X56,$B$1:$F$52,5,0) ->  | Y57: =VLOOKUP(Y56,$B$1:$F$52,5,0) -> 11 | Z57: =VLOOKUP(Z56,$B$1:$F$52,5,0) -> 7 | AA57: =VLOOKUP(AA56,$B$1:$F$52,5,0) -> 7 | AU57: 8 | AV57: 3 | AW57: 3 | AX57: 7 | AY57: 8 | AZ57: 9 | BA57: 0 | BB57: 9 | BM57: =FS8 -> High Card | BQ57: =FW8 ->  | BR57: 0
W58: =VLOOKUP(W56,$B$1:$F$52,4,0) ->  | X58: =VLOOKUP(X56,$B$1:$F$52,4,0) ->  | Y58: =VLOOKUP(Y56,$B$1:$F$52,4,0) -> C | Z58: =VLOOKUP(Z56,$B$1:$F$52,4,0) -> H | AA58: =VLOOKUP(AA56,$B$1:$F$52,4,0) -> D | AU58: 16 | AV58: 3 | AW58: 3 | AX58: 6 | AY58: 8 | AZ58: 9 | BA58: 0 | BB58: 9
W59: =HLOOKUP(W61,$W$55:$AA$58,3,0) ->  | X59: =HLOOKUP(X61,$W$55:$AA$58,3,0) ->  | Y59: =HLOOKUP(Y61,$W$55:$AA$58,3,0) ->  | Z59: =HLOOKUP(Z61,$W$55:$AA$58,3,0) ->  | AA59: =HLOOKUP(AA61,$W$55:$AA$58,3,0) ->  | AU59: 20 | AV59: 3 | AW59: 3 | AX59: 6 | AY59: 8 | AZ59: 9 | BA59: 0 | BB59: 9 | BL59: 6 | BM59: =BX9 -> Royal Flush | BQ59: =CB9 -> 
W60: =HLOOKUP(W61,$W$55:$AA$58,4,0) ->  | X60: =HLOOKUP(X61,$W$55:$AA$58,4,0) ->  | Y60: =HLOOKUP(Y61,$W$55:$AA$58,4,0) ->  | Z60: =HLOOKUP(Z61,$W$55:$AA$58,4,0) ->  | AA60: =HLOOKUP(AA61,$W$55:$AA$58,4,0) ->  | AU60: 7 | AV60: 3 | AW60: 3 | AX60: 6 | AY60: 7 | AZ60: 9 | BA60: 0 | BB60: 9 | BM60: =CI9 -> Straight Flush | BQ60: =CM9 -> 
W61: 1 | X61: 2 | Y61: 3 | Z61: 4 | AA61: 5 | AU61: 6 | AV61: 3 | AW61: 6 | AX61: 7 | AY61: 8 | AZ61: 8 | BA61: 0 | BB61: 9 | BM61: =CT9 -> Four of a Kind | BQ61: =CX9 ->  | BR61: 0
V62: =V57+IF(V57=1,13+RAND()^3,RAND()^3) -> 0.0005295764708 | Y62: 11.02243057 | Z62: 7.263410487 | AA62: 7.061862826 | AU62: 14 | AV62: 3 | AW62: 6 | AX62: 7 | AY62: 8 | AZ62: 8 | BA62: 0 | BB62: 9 | BM62: =DE9 -> Full House | BQ62: =DI9 ->  | BR62: 0
AU63: 4 | AV63: 3 | AW63: 3 | AX63: 6 | AY63: 7 | AZ63: 8 | BA63: 0 | BB63: 9 | BM63: =DP9 -> Flush | BQ63: =DT9 ->  | BR63: 0
W64: =RANK(W71,$W$71:$AA$71,1) ->  | X64: =RANK(X71,$W$71:$AA$71,1) ->  | Y64: =RANK(Y71,$W$71:$AA$71,1) ->  | Z64: =RANK(Z71,$W$71:$AA$71,1) ->  | AA64: =RANK(AA71,$W$71:$AA$71,1) ->  | AU64: 10 | AV64: 3 | AW64: 3 | AX64: 6 | AY64: 7 | AZ64: 8 | BA64: 0 | BB64: 9 | BM64: =EA9 -> Straight | BQ64: =EE9 -> 
O65: 8 | W65: =[0]!Player21 -> 0 | X65: =[0]!Player22 -> 0 | Y65: =$Q$1 -> ♣J | Z65: =$R$1 -> ♥7 | AA65: =$T$1 -> ♥8 | AU65: 2 | AV65: 3 | AW65: 6 | AX65: 7 | AY65: 8 | AZ65: 9 | BA65: 0 | BB65: 10 | BM65: =EL9 -> Three of a Kind | BQ65: =EP9 ->  | BR65: 0
W66: =VLOOKUP(W65,$B$1:$F$52,5,0) ->  | X66: =VLOOKUP(X65,$B$1:$F$52,5,0) ->  | Y66: =VLOOKUP(Y65,$B$1:$F$52,5,0) -> 11 | Z66: =VLOOKUP(Z65,$B$1:$F$52,5,0) -> 7 | AA66: =VLOOKUP(AA65,$B$1:$F$52,5,0) -> 8 | AU66: 9 | AV66: 3 | AW66: 6 | AX66: 7 | AY66: 8 | AZ66: 9 | BA66: 0 | BB66: 10 | BM66: =EW9 -> Two Pair | BQ66: =FA9 ->  | BR66: 0
W67: =VLOOKUP(W65,$B$1:$F$52,4,0) ->  | X67: =VLOOKUP(X65,$B$1:$F$52,4,0) ->  | Y67: =VLOOKUP(Y65,$B$1:$F$52,4,0) -> C | Z67: =VLOOKUP(Z65,$B$1:$F$52,4,0) -> H | AA67: =VLOOKUP(AA65,$B$1:$F$52,4,0) -> H | AU67: 11 | AV67: 3 | AW67: 6 | AX67: 7 | AY67: 8 | AZ67: 9 | BA67: 0 | BB67: 10 | BM67: =FH9 -> One Pair | BQ67: =FL9 ->  | BR67: 0
W68: =HLOOKUP(W70,$W$64:$AA$67,3,0) ->  | X68: =HLOOKUP(X70,$W$64:$AA$67,3,0) ->  | Y68: =HLOOKUP(Y70,$W$64:$AA$67,3,0) ->  | Z68: =HLOOKUP(Z70,$W$64:$AA$67,3,0) ->  | AA68: =HLOOKUP(AA70,$W$64:$AA$67,3,0) ->  | AU68: 15 | AV68: 3 | AW68: 6 | AX68: 7 | AY68: 8 | AZ68: 9 | BA68: 0 | BB68: 10 | BM68: =FS9 -> High Card | BQ68: =FW9 ->  | BR68: 0
W69: =HLOOKUP(W70,$W$64:$AA$67,4,0) ->  | X69: =HLOOKUP(X70,$W$64:$AA$67,4,0) ->  | Y69: =HLOOKUP(Y70,$W$64:$AA$67,4,0) ->  | Z69: =HLOOKUP(Z70,$W$64:$AA$67,4,0) ->  | AA69: =HLOOKUP(AA70,$W$64:$AA$67,4,0) -> 
W70: 1 | X70: 2 | Y70: 3 | Z70: 4 | AA70: 5 | BL70: 7 | BM70: =BX10 -> Royal Flush | BQ70: =CB10 -> 
V71: =V66+IF(V66=1,13+RAND()^3,RAND()^3) -> 0.6725965655 | Y71: 11.98901487 | Z71: 7.003733919 | AA71: 8.812591032 | BM71: =CI10 -> Straight Flush | BQ71: =CM10 -> 
BM72: =CT10 -> Four of a Kind | BQ72: =CX10 ->  | BR72: 0
W73: =RANK(W80,$W$80:$AA$80,1) ->  | X73: =RANK(X80,$W$80:$AA$80,1) ->  | Y73: =RANK(Y80,$W$80:$AA$80,1) ->  | Z73: =RANK(Z80,$W$80:$AA$80,1) ->  | AA73: =RANK(AA80,$W$80:$AA$80,1) ->  | BM73: =DE10 -> Full House | BQ73: =DI10 ->  | BR73: 0
O74: 9 | W74: =[0]!Player21 -> 0 | X74: =[0]!Player22 -> 0 | Y74: =$Q$1 -> ♣J | Z74: =$S$1 -> ♦7 | AA74: =$T$1 -> ♥8 | BM74: =DP10 -> Flush | BQ74: =DT10 ->  | BR74: 0
W75: =VLOOKUP(W74,$B$1:$F$52,5,0) ->  | X75: =VLOOKUP(X74,$B$1:$F$52,5,0) ->  | Y75: =VLOOKUP(Y74,$B$1:$F$52,5,0) -> 11 | Z75: =VLOOKUP(Z74,$B$1:$F$52,5,0) -> 7 | AA75: =VLOOKUP(AA74,$B$1:$F$52,5,0) -> 8 | BM75: =EA10 -> Straight | BQ75: =EE10 -> 
W76: =VLOOKUP(W74,$B$1:$F$52,4,0) ->  | X76: =VLOOKUP(X74,$B$1:$F$52,4,0) ->  | Y76: =VLOOKUP(Y74,$B$1:$F$52,4,0) -> C | Z76: =VLOOKUP(Z74,$B$1:$F$52,4,0) -> D | AA76: =VLOOKUP(AA74,$B$1:$F$52,4,0) -> H | BM76: =EL10 -> Three of a Kind | BQ76: =EP10 ->  | BR76: 0
W77: =HLOOKUP(W79,$W$73:$AA$76,3,0) ->  | X77: =HLOOKUP(X79,$W$73:$AA$76,3,0) ->  | Y77: =HLOOKUP(Y79,$W$73:$AA$76,3,0) ->  | Z77: =HLOOKUP(Z79,$W$73:$AA$76,3,0) ->  | AA77: =HLOOKUP(AA79,$W$73:$AA$76,3,0) ->  | BA77: =_xlfn.MODE.MULT(AV78:AZ78) -> 3 | BB77: =IF(ISNUMBER(BA77),IF(BA77=1,14,BA77),0) -> 3 | BM77: =EW10 -> Two Pair | BQ77: =FA10 ->  | BR77: 0
W78: =HLOOKUP(W79,$W$73:$AA$76,4,0) ->  | X78: =HLOOKUP(X79,$W$73:$AA$76,4,0) ->  | Y78: =HLOOKUP(Y79,$W$73:$AA$76,4,0) ->  | Z78: =HLOOKUP(Z79,$W$73:$AA$76,4,0) ->  | AA78: =HLOOKUP(AA79,$W$73:$AA$76,4,0) ->  | AU78: =AU48 -> 17 | AV78: 3 | AW78: 3 | AX78: 8 | AY78: 8 | AZ78: 9 | BA78: 8 | BB78: =IF(BA78=BA77,0,IF(ISNUMBER(BA78),IF(BA78=1,14,BA78),0)) -> 8 | BM78: =FH10:FH10 -> One Pair | BQ78: =FL10:FL10 ->  | BR78: 0
W79: 1 | X79: 2 | Y79: 3 | Z79: 4 | AA79: 5 | AU79: =AU78 -> 17 | AV79: =VLOOKUP($AU$79,$AU$25:$AZ$45,2,0) ->  | AW79: =VLOOKUP($AU$79,$AU$25:$AZ$45,3,0) ->  | AX79: =VLOOKUP($AU$79,$AU$25:$AZ$45,4,0) ->  | AY79: =VLOOKUP($AU$79,$AU$25:$AZ$45,5,0) ->  | AZ79: =VLOOKUP($AU$79,$AU$25:$AZ$45,6,0) ->  | BA79: =COUNTIF($AV$78:$AZ$78,AV78) -> 2 | BB79: =COUNTIF($AV$78:$AZ$78,AZ78) -> 1 | BM79: =FS10 -> High Card | BQ79: =FW10 ->  | BR79: 0
V80: =V75+IF(V75=1,13+RAND()^3,RAND()^3) -> 0.2669210015 | Y80: 11.0100899 | Z80: 7.014632669 | AA80: 8.706562591 | AU80: =AU79 -> 17 | AV80: =VLOOKUP($AU$78,$O$2:$AG$182,9,0) -> 0 | AW80: =VLOOKUP($AU$78,$O$2:$AG$182,10,0) -> ♥3 | AX80: =VLOOKUP($AU$78,$O$2:$AG$182,11,0) -> ♣J | AY80: =VLOOKUP($AU$78,$O$2:$AG$182,12,0) -> ♥7 | AZ80: =VLOOKUP($AU$78,$O$2:$AG$182,13,0) -> ♥8 | BB80: =SMALL($BB$48:$BB$68,1) -> 8
BL81: 8 | BM81: =BX11 -> Royal Flush | BQ81: =CB11 -> 
W82: =RANK(W89,$W$89:$AA$89,1) ->  | X82: =RANK(X89,$W$89:$AA$89,1) ->  | Y82: =RANK(Y89,$W$89:$AA$89,1) ->  | Z82: =RANK(Z89,$W$89:$AA$89,1) ->  | AA82: =RANK(AA89,$W$89:$AA$89,1) ->  | BM82: =CI11 -> Straight Flush | BQ82: =CM11 -> 
O83: 10 | W83: =[0]!Player21 -> 0 | X83: =[0]!Player22 -> 0 | Y83: =$R$1 -> ♥7 | Z83: =$S$1 -> ♦7 | AA83: =$T$1 -> ♥8 | AH83: Bluffer | AJ83: Utility (preference match) | AU83: 1 | BM83: =CT11 -> Four of a Kind | BQ83: =CX11 ->  | BR83: 0
W84: =VLOOKUP(W83,$B$1:$F$52,5,0) ->  | X84: =VLOOKUP(X83,$B$1:$F$52,5,0) ->  | Y84: =VLOOKUP(Y83,$B$1:$F$52,5,0) -> 7 | Z84: =VLOOKUP(Z83,$B$1:$F$52,5,0) -> 7 | AA84: =VLOOKUP(AA83,$B$1:$F$52,5,0) -> 8 | AH84: Deceiving factor | AJ84: =LARGE(AW85:AW94,1) -> 0 | AW84: Robot 2 | BM84: =DE11 -> Full House | BQ84: =DI11 ->  | BR84: 0
W85: =VLOOKUP(W83,$B$1:$F$52,4,0) ->  | X85: =VLOOKUP(X83,$B$1:$F$52,4,0) ->  | Y85: =VLOOKUP(Y83,$B$1:$F$52,4,0) -> H | Z85: =VLOOKUP(Z83,$B$1:$F$52,4,0) -> D | AA85: =VLOOKUP(AA83,$B$1:$F$52,4,0) -> H | AH85: Royal Flush | AI85: 1 | AJ85: =AW85+IF(AW85=0,$AJ$84) -> 0 | AL85: =AJ85/SUM($AJ$85:$AJ$94) ->  | AM85: 0 | AN85: 1 | AU85: Royal Flush | AV85: 1 | AW85: =COUNTIF($BB$83:$BB$132,AV85) -> 0 | BM85: =DP11 -> Flush | BQ85: =DT11 ->  | BR85: 0
W86: =HLOOKUP(W88,$W$82:$AA$85,3,0) ->  | X86: =HLOOKUP(X88,$W$82:$AA$85,3,0) ->  | Y86: =HLOOKUP(Y88,$W$82:$AA$85,3,0) ->  | Z86: =HLOOKUP(Z88,$W$82:$AA$85,3,0) ->  | AA86: =HLOOKUP(AA88,$W$82:$AA$85,3,0) ->  | AH86: Straight Flush | AI86: 2 | AJ86: 0 | AM86: =AL85+AM85 ->  | AN86: 0.9 | AU86: Straight Flush | AV86: 2 | AW86: =COUNTIF($BB$83:$BB$132,AV86) -> 0 | BM86: =EA11 -> Straight | BQ86: =EE11 -> 
W87: =HLOOKUP(W88,$W$82:$AA$85,4,0) ->  | X87: =HLOOKUP(X88,$W$82:$AA$85,4,0) ->  | Y87: =HLOOKUP(Y88,$W$82:$AA$85,4,0) ->  | Z87: =HLOOKUP(Z88,$W$82:$AA$85,4,0) ->  | AA87: =HLOOKUP(AA88,$W$82:$AA$85,4,0) ->  | AH87: Four of a Kind | AI87: 3 | AJ87: 0 | AM87: =AL86+AM86 ->  | AN87: 0.8 | AU87: Four of a Kind | AV87: 3 | AW87: 0 | BM87: =EL11 -> Three of a Kind | BQ87: =EP11 ->  | BR87: 0
W88: 1 | X88: 2 | Y88: 3 | Z88: 4 | AA88: 5 | AH88: Full House | AI88: 4 | AJ88: 0 | AN88: 0.6 | AU88: Full House | AV88: 4 | AW88: 0 | BM88: =EW11 -> Two Pair | BQ88: =FA11 ->  | BR88: 0
V89: =V84+IF(V84=1,13+RAND()^3,RAND()^3) -> 0.2394976483 | Y89: 7.301275986 | Z89: 7.017456532 | AA89: 8.979940645 | AH89: Flush | AI89: 5 | AJ89: 0 | AN89: 0.5 | AU89: Flush | AV89: 5 | AW89: 0 | BM89: =FH11 -> One Pair | BQ89: =FL11 ->  | BR89: 0
AH90: Straight | AI90: 6 | AJ90: 0 | AN90: 0.4 | AU90: Straight | AV90: 6 | AW90: 0 | BM90: =FS11 -> High Card | BQ90: =FW11 ->  | BR90: 0
W91: =RANK(W98,$W$98:$AA$98,1) ->  | X91: =RANK(X98,$W$98:$AA$98,1) ->  | AH91: Three of a Kind | AI91: 7 | AJ91: 0 | AN91: 0.3 | AU91: Three of a Kind | AV91: 7 | AW91: 0
O92: 11 | W92: =[0]!Player21 -> 0 | X92: =$P$1 -> ♥3 | Y92: =$Q$1 -> ♣J | Z92: =$R$1 -> ♥7 | AA92: =$S$1 -> ♦7 | AH92: Two Pair | AI92: 8 | AJ92: 0 | AN92: 0.2 | AU92: Two Pairs | AV92: 8 | AW92: 0 | BL92: 9 | BM92: =BX12 -> Royal Flush | BQ92: =CB12 -> 
W93: =VLOOKUP(W92,$B$1:$F$52,5,0) ->  | X93: =VLOOKUP(X92,$B$1:$F$52,5,0) -> 3 | Y93: =VLOOKUP(Y92,$B$1:$F$52,5,0) -> 11 | Z93: =VLOOKUP(Z92,$B$1:$F$52,5,0) -> 7 | AA93: =VLOOKUP(AA92,$B$1:$F$52,5,0) -> 7 | AH93: One Pair | AI93: 9 | AJ93: 0 | AN93: 0 | AU93: One Pair | AV93: 9 | AW93: 0 | BM93: =CI12 -> Straight Flush | BQ93: =CM12 -> 
W94: =VLOOKUP(W92,$B$1:$F$52,4,0) ->  | X94: =VLOOKUP(X92,$B$1:$F$52,4,0) -> H | Y94: =VLOOKUP(Y92,$B$1:$F$52,4,0) -> C | Z94: =VLOOKUP(Z92,$B$1:$F$52,4,0) -> H | AA94: =VLOOKUP(AA92,$B$1:$F$52,4,0) -> D | AH94: High Card/Fold | AI94: 10 | AJ94: 0 | AN94: -0.1 | AU94: High Card/Fold | AV94: 10 | AW94: 0 | BM94: =CT12 -> Four of a Kind | BQ94: =CX12 ->  | BR94: 0
W95: =HLOOKUP(W97,$W$91:$AA$94,3,0) ->  | X95: =HLOOKUP(X97,$W$91:$AA$94,3,0) ->  | BM95: =DE12 -> Full House | BQ95: =DI12 ->  | BR95: 0
W96: =HLOOKUP(W97,$W$91:$AA$94,4,0) ->  | X96: =HLOOKUP(X97,$W$91:$AA$94,4,0) ->  | AM96: Max. bet | AN96: =VLOOKUP($AW$96,AM85:AN94,2,1) -> 1 | AW96: 0.5964568853 | BM96: =DP12 -> Flush | BQ96: =DT12 ->  | BR96: 0
W97: 1 | X97: 2 | Y97: 3 | Z97: 4 | AA97: 5 | AW97: Max. bet | BM97: =EA12 -> Straight | BQ97: =EE12 -> 
V98: =V93+IF(V93=1,13+RAND()^3,RAND()^3) -> 0.4493111993 | X98: 3.000143764 | Y98: 11.0510279 | Z98: 7.008269667 | AA98: 7.080786285 | AH98: Rocker | AJ98: Utility (preference match) | AV98: Bluffer | AW98: =AN96 -> 1 | BM98: =EL12 -> Three of a Kind | BQ98: =EP12 ->  | BR98: 0
AH99: Deceiving factor | AJ99: 0 | AV99: Rocker | AW99: =AN111 -> 1 | BM99: =EW12 -> Two Pair | BQ99: =FA12 ->  | BR99: 0
W100: =RANK(W107,$W$107:$AA$107,1) ->  | X100: =RANK(X107,$W$107:$AA$107,1) ->  | AH100: Royal Flush | AI100: 1 | AJ100: =AW85+$AJ$99 -> 0 | AL100: =AJ100/SUM($AJ$100:$AJ$109) ->  | AM100: 0 | AN100: 1 | AV100: Tricker | AW100: =AN126 -> 0.4 | BM100: =FH12 -> One Pair | BQ100: =FL12 ->  | BR100: 0
O101: 12 | W101: =[0]!Player21 -> 0 | X101: =$P$1 -> ♥3 | Y101: =$Q$1 -> ♣J | Z101: =$R$1 -> ♥7 | AA101: =$T$1 -> ♥8 | AH101: Straight Flush | AI101: 2 | AJ101: =AW86+$AJ$99 -> 0 | AL101: =AJ101/SUM($AJ$100:$AJ$109) ->  | AM101: =AL100+AM100 ->  | AN101: 0.9 | AV101: Optimist | AW101: =AN141 -> 1 | BM101: =FS12 -> High Card | BQ101: =FW12 ->  | BR101: 0
W102: =VLOOKUP(W101,$B$1:$F$52,5,0) ->  | X102: =VLOOKUP(X101,$B$1:$F$52,5,0) -> 3 | Y102: =VLOOKUP(Y101,$B$1:$F$52,5,0) -> 11 | Z102: =VLOOKUP(Z101,$B$1:$F$52,5,0) -> 7 | AA102: =VLOOKUP(AA101,$B$1:$F$52,5,0) -> 8 | AH102: Four of a Kind | AI102: 3 | AJ102: 0 | AM102: =AL101+AM101 ->  | AN102: 0.8 | AV102: Maverick | AW102: =AN156 -> 0.4
W103: =VLOOKUP(W101,$B$1:$F$52,4,0) ->  | X103: =VLOOKUP(X101,$B$1:$F$52,4,0) -> H | Y103: =VLOOKUP(Y101,$B$1:$F$52,4,0) -> C | Z103: =VLOOKUP(Z101,$B$1:$F$52,4,0) -> H | AA103: =VLOOKUP(AA101,$B$1:$F$52,4,0) -> H | AH103: Full House | AI103: 4 | AJ103: 0 | AN103: 0.6 | AW103: 0.9009180665 | BL103: 10 | BM103: =BX13 -> Royal Flush | BQ103: =CB13 -> 
W104: =HLOOKUP(W106,$W$100:$AA$103,3,0) ->  | X104: =HLOOKUP(X106,$W$100:$AA$103,3,0) ->  | AH104: Flush | AI104: 5 | AJ104: 0 | AN104: 0.5 | AW104: Call/Raise | BM104: =CI13 -> Straight Flush | BQ104: =CM13 -> 
W105: =HLOOKUP(W106,$W$100:$AA$103,4,0) ->  | X105: =HLOOKUP(X106,$W$100:$AA$103,4,0) ->  | AH105: Straight | AI105: 6 | AJ105: 0 | AN105: 0.4 | AV105: Bluffer | AW105: =$AW$103*AW98 -> 0.9009180665 | BM105: =CT13 -> Four of a Kind | BQ105: =CX13 ->  | BR105: 0
W106: 1 | X106: 2 | Y106: 3 | Z106: 4 | AA106: 5 | AH106: Three of a Kind | AI106: 7 | AJ106: 0 | AN106: 0.3 | AV106: Rocker | AW106: =$AW$103*AW99 -> 0.9009180665 | BM106: =DE13 -> Full House | BQ106: =DI13 ->  | BR106: 0
V107: =V102+IF(V102=1,13+RAND()^3,RAND()^3) -> 0.02410487067 | X107: 3.315920196 | Y107: 11.27000316 | Z107: 7.158703124 | AA107: 8.973596686 | AH107: Two Pair | AI107: 8 | AJ107: 0 | AN107: 0.2 | AV107: Tricker | AW107: 0.3603672266 | BM107: =DP13 -> Flush | BQ107: =DT13 ->  | BR107: 0
AH108: One Pair/Check | AI108: 9 | AJ108: 0 | AN108: 0 | AV108: Optimist | AW108: 0.9009180665 | BM108: =EA13 -> Straight | BQ108: =EE13 -> 
W109: =RANK(W116,$W$116:$AA$116,1) ->  | X109: =RANK(X116,$W$116:$AA$116,1) ->  | AH109: High Card/Fold | AI109: 10 | AJ109: 0 | AN109: -0.1 | AV109: Maverick | AW109: 0.3603672266 | BM109: =EL13 -> Three of a Kind | BQ109: =EP13 ->  | BR109: 0
O110: 13 | W110: =[0]!Player21 -> 0 | X110: =$P$1 -> ♥3 | Y110: =$Q$1 -> ♣J | Z110: =$S$1 -> ♦7 | AA110: =$T$1 -> ♥8 | AW110: 0.5438699722 | BM110: =EW13 -> Two Pair | BQ110: =FA13 ->  | BR110: 0
W111: =VLOOKUP(W110,$B$1:$F$52,5,0) ->  | X111: =VLOOKUP(X110,$B$1:$F$52,5,0) -> 3 | Y111: =VLOOKUP(Y110,$B$1:$F$52,5,0) -> 11 | Z111: =VLOOKUP(Z110,$B$1:$F$52,5,0) -> 7 | AA111: =VLOOKUP(AA110,$B$1:$F$52,5,0) -> 8 | AM111: Max. bet | AN111: =VLOOKUP($AW$96,AM100:AN109,2,1) -> 1 | AW111: Call/Raise | BM111: =FH13 -> One Pair | BQ111: =FL13 ->  | BR111: 0
W112: =VLOOKUP(W110,$B$1:$F$52,4,0) ->  | X112: =VLOOKUP(X110,$B$1:$F$52,4,0) -> H | Y112: =VLOOKUP(Y110,$B$1:$F$52,4,0) -> C | Z112: =VLOOKUP(Z110,$B$1:$F$52,4,0) -> D | AA112: =VLOOKUP(AA110,$B$1:$F$52,4,0) -> H | AV112: Bluffer | AW112: =$AW$110*(AW98-AW105) -> 0.05388768842 | BM112: =FS13 -> High Card | BQ112: =FW13 ->  | BR112: 0
W113: =HLOOKUP(W115,$W$109:$AA$112,3,0) ->  | X113: =HLOOKUP(X115,$W$109:$AA$112,3,0) ->  | AH113: Tricker | AJ113: Utility (preference match) | AV113: Rocker | AW113: =$AW$110*(AW99-AW106) -> 0.05388768842
W114: =HLOOKUP(W115,$W$109:$AA$112,4,0) ->  | X114: =HLOOKUP(X115,$W$109:$AA$112,4,0) ->  | AH114: Deceiving factor | AJ114: 1 | AV114: Tricker | AW114: 0.02155507537 | BL114: 11 | BM114: =BX14 -> Royal Flush | BQ114: =CB14 -> 
W115: 1 | X115: 2 | Y115: 3 | Z115: 4 | AA115: 5 | AH115: Royal Flush | AI115: 1 | AJ115: =AW85+IF(AW85=0,AJ$114) -> 1 | AL115: =AJ115/SUM($AJ$115:$AJ$124) -> 0.1 | AM115: 0 | AN115: 1 | AV115: Optimist | AW115: 0.05388768842 | BM115: =CI14 -> Straight Flush | BQ115: =CM14 -> 
V116: =V111+IF(V111=1,13+RAND()^3,RAND()^3) -> 0.003075628341 | X116: 3.57452058 | Y116: 11.03208606 | Z116: 7.350941548 | AA116: 8.704498918 | AH116: Straight Flush | AI116: 2 | AJ116: =AW86+IF(AW86=0,AJ$114) -> 1 | AL116: =AJ116/SUM($AJ$115:$AJ$124) -> 0.1 | AM116: =AL115+AM115 -> 0.1 | AN116: 0.9 | AV116: Maverick | AW116: 0.02155507537 | BM116: =CT14 -> Four of a Kind | BQ116: =CX14 ->  | BR116: 0
AH117: Four of a Kind | AI117: 3 | AJ117: 1 | AL117: 0.1 | AM117: =AL116+AM116 -> 0.2 | AN117: 0.8 | AW117: 0.05350452662 | BM117: =DE14 -> Full House | BQ117: =DI14 ->  | BR117: 0
W118: =RANK(W125,$W$125:$AA$125,1) ->  | X118: =RANK(X125,$W$125:$AA$125,1) ->  | AH118: Full House | AI118: 4 | AJ118: 1 | AL118: 0.1 | AM118: 0.3 | AN118: 0.6 | AW118: Call/Raise | BM118: =DP14 -> Flush | BQ118: =DT14 ->  | BR118: 0
O119: 14 | W119: =[0]!Player21 -> 0 | X119: =$P$1 -> ♥3 | Y119: =$R$1 -> ♥7 | Z119: =$S$1 -> ♦7 | AA119: =$T$1 -> ♥8 | AH119: Flush | AI119: 5 | AJ119: 1 | AL119: 0.1 | AM119: 0.4 | AN119: 0.5 | AV119: Bluffer | AW119: =AW98-AW105-AW112 -> 0.04519424508 | BM119: =EA14 -> Straight | BQ119: =EE14 -> 
W120: =VLOOKUP(W119,$B$1:$F$52,5,0) ->  | X120: =VLOOKUP(X119,$B$1:$F$52,5,0) -> 3 | Y120: =VLOOKUP(Y119,$B$1:$F$52,5,0) -> 7 | Z120: =VLOOKUP(Z119,$B$1:$F$52,5,0) -> 7 | AA120: =VLOOKUP(AA119,$B$1:$F$52,5,0) -> 8 | AH120: Straight | AI120: 6 | AJ120: 1 | AL120: 0.1 | AM120: 0.5 | AN120: 0.4 | AV120: Rocker | AW120: =AW99-AW106-AW113 -> 0.04519424508 | BM120: =EL14 -> Three of a Kind | BQ120: =EP14 ->  | BR120: 0
W121: =VLOOKUP(W119,$B$1:$F$52,4,0) ->  | X121: =VLOOKUP(X119,$B$1:$F$52,4,0) -> H | Y121: =VLOOKUP(Y119,$B$1:$F$52,4,0) -> H | Z121: =VLOOKUP(Z119,$B$1:$F$52,4,0) -> D | AA121: =VLOOKUP(AA119,$B$1:$F$52,4,0) -> H | AH121: Three of a Kind | AI121: 7 | AJ121: 1 | AL121: 0.1 | AM121: 0.6 | AN121: 0.3 | AV121: Tricker | AW121: 0.01807769803 | BM121: =EW14 -> Two Pair | BQ121: =FA14 ->  | BR121: 0
W122: =HLOOKUP(W124,$W$118:$AA$121,3,0) ->  | X122: =HLOOKUP(X124,$W$118:$AA$121,3,0) ->  | AH122: Two Pair | AI122: 8 | AJ122: 1 | AL122: 0.1 | AM122: 0.7 | AN122: 0.2 | AV122: Optimist | AW122: 0.04519424508 | BM122: =FH14 -> One Pair | BQ122: =FL14 ->  | BR122: 0
W123: =HLOOKUP(W124,$W$118:$AA$121,4,0) ->  | X123: =HLOOKUP(X124,$W$118:$AA$121,4,0) ->  | AH123: One Pair/Check | AI123: 9 | AJ123: 1 | AL123: 0.1 | AM123: 0.8 | AN123: 0 | AV123: Maverick | AW123: 0.01807769803 | BM123: =FS14 -> High Card | BQ123: =FW14 ->  | BR123: 0
W124: 1 | X124: 2 | Y124: 3 | Z124: 4 | AA124: 5 | AH124: High Card/Fold | AI124: 10 | AJ124: 1 | AL124: 0.1 | AM124: 0.9 | AN124: -0.1
V125: =V120+IF(V120=1,13+RAND()^3,RAND()^3) -> 0.6910168482 | X125: 3.000120459 | Y125: 7.227283623 | Z125: 7.521388443 | AA125: 8.00830823 | BL125: 12 | BM125: =BX15 -> Royal Flush | BQ125: =CB15 -> 
AM126: Max. bet | AN126: =VLOOKUP($AW$96,AM115:AN124,2,1) -> 0.4 | BM126: =CI15 -> Straight Flush | BQ126: =CM15 -> 
W127: =RANK(W134,$W$134:$AA$134,1) ->  | X127: =RANK(X134,$W$134:$AA$134,1) ->  | BM127: =CT15 -> Four of a Kind | BQ127: =CX15 ->  | BR127: 0
O128: 15 | W128: =[0]!Player21 -> 0 | X128: =$Q$1 -> ♣J | Y128: =$R$1 -> ♥7 | Z128: =$S$1 -> ♦7 | AA128: =$T$1 -> ♥8 | AH128: Optimist | AJ128: Utility (preference match) | BM128: =DE15 -> Full House | BQ128: =DI15 ->  | BR128: 0
W129: =VLOOKUP(W128,$B$1:$F$52,5,0) ->  | X129: =VLOOKUP(X128,$B$1:$F$52,5,0) -> 11 | Y129: =VLOOKUP(Y128,$B$1:$F$52,5,0) -> 7 | Z129: =VLOOKUP(Z128,$B$1:$F$52,5,0) -> 7 | AA129: =VLOOKUP(AA128,$B$1:$F$52,5,0) -> 8 | AH129: Deceiving factor | AJ129: =AJ84 -> 0 | BM129: =DP15 -> Flush | BQ129: =DT15 ->  | BR129: 0
W130: =VLOOKUP(W128,$B$1:$F$52,4,0) ->  | X130: =VLOOKUP(X128,$B$1:$F$52,4,0) -> C | Y130: =VLOOKUP(Y128,$B$1:$F$52,4,0) -> H | Z130: =VLOOKUP(Z128,$B$1:$F$52,4,0) -> D | AA130: =VLOOKUP(AA128,$B$1:$F$52,4,0) -> H | AH130: Royal Flush | AI130: 1 | AJ130: =AW85+IF(AW85=0,AJ$129) -> 0 | AL130: =AJ130/SUM($AJ$130:$AJ$138) ->  | AM130: 0 | AN130: 1 | BM130: =EA15 -> Straight | BQ130: =EE15 -> 
W131: =HLOOKUP(W133,$W$127:$AA$130,3,0) ->  | X131: =HLOOKUP(X133,$W$127:$AA$130,3,0) ->  | AH131: Straight Flush | AI131: 2 | AJ131: =AW86+IF(AW86=0,AJ$129) -> 0 | AL131: =AJ131/SUM($AJ$130:$AJ$138) ->  | AM131: =AL130+AM130 ->  | AN131: 0.9 | BM131: =EL15 -> Three of a Kind | BQ131: =EP15 ->  | BR131: 0
W132: =HLOOKUP(W133,$W$127:$AA$130,4,0) ->  | X132: =HLOOKUP(X133,$W$127:$AA$130,4,0) ->  | AH132: Four of a Kind | AI132: 3 | AJ132: 0 | AM132: =AL131+AM131 ->  | AN132: 0.8 | BM132: =EW15 -> Two Pair | BQ132: =FA15 ->  | BR132: 0
W133: 1 | X133: 2 | Y133: 3 | Z133: 4 | AA133: 5 | AH133: Full House | AI133: 4 | AJ133: 0 | AN133: 0.6 | BM133: =FH15 -> One Pair | BR133: 0
V134: =V129+IF(V129=1,13+RAND()^3,RAND()^3) -> 0.1067853085 | X134: 11.85423707 | Y134: 7.456674059 | Z134: 7.000117842 | AA134: 8.68248642 | AH134: Flush | AI134: 5 | AJ134: 0 | AN134: 0.5 | BM134: =FS15 -> High Card | BQ134: =FW15 ->  | BR134: 0
AH135: Straight | AI135: 6 | AJ135: 0 | AN135: 0.4
W136: =RANK(W143,$W$143:$AA$143,1) ->  | X136: =RANK(X143,$W$143:$AA$143,1) ->  | AH136: Three of a Kind | AI136: 7 | AJ136: 0 | AN136: 0.3 | BL136: 13 | BM136: =BX16 -> Royal Flush | BQ136: =CB16 -> 
O137: 16 | W137: =[0]!Player22 -> 0 | X137: =$P$1 -> ♥3 | Y137: =$Q$1 -> ♣J | Z137: =$R$1 -> ♥7 | AA137: =$S$1 -> ♦7 | AH137: Two Pair | AI137: 8 | AJ137: 0 | AN137: 0.2 | BM137: =CI16 -> Straight Flush | BQ137: =CM16 -> 
W138: =VLOOKUP(W137,$B$1:$F$52,5,0) ->  | X138: =VLOOKUP(X137,$B$1:$F$52,5,0) -> 3 | Y138: =VLOOKUP(Y137,$B$1:$F$52,5,0) -> 11 | Z138: =VLOOKUP(Z137,$B$1:$F$52,5,0) -> 7 | AA138: =VLOOKUP(AA137,$B$1:$F$52,5,0) -> 7 | AH138: One Pair/Check | AI138: 9 | AJ138: 0 | AN138: 0 | BM138: =CT16 -> Four of a Kind | BQ138: =CX16 ->  | BR138: 0
W139: =VLOOKUP(W137,$B$1:$F$52,4,0) ->  | X139: =VLOOKUP(X137,$B$1:$F$52,4,0) -> H | Y139: =VLOOKUP(Y137,$B$1:$F$52,4,0) -> C | Z139: =VLOOKUP(Z137,$B$1:$F$52,4,0) -> H | AA139: =VLOOKUP(AA137,$B$1:$F$52,4,0) -> D | AH139: High Card/Fold | AI139: 10 | AJ139: 0 | AN139: -0.1 | BM139: =DE16 -> Full House | BQ139: =DI16 ->  | BR139: 0
W140: =HLOOKUP(W142,$W$136:$AA$139,3,0) ->  | X140: =HLOOKUP(X142,$W$136:$AA$139,3,0) ->  | BM140: =DP16 -> Flush | BQ140: =DT16 ->  | BR140: 0
W141: =HLOOKUP(W142,$W$136:$AA$139,4,0) ->  | X141: =HLOOKUP(X142,$W$136:$AA$139,4,0) ->  | AM141: Max. bet | AN141: =VLOOKUP($AW$96,AM130:AN138,2,1) -> 1 | BM141: =EA16 -> Straight | BQ141: =EE16 -> 
W142: 1 | X142: 2 | Y142: 3 | Z142: 4 | AA142: 5 | BM142: =EL16 -> Three of a Kind | BQ142: =EP16 ->  | BR142: 0
V143: =V138+IF(V138=1,13+RAND()^3,RAND()^3) -> 0.1293376534 | X143: 3.000256779 | Y143: 11.98829163 | Z143: 7.312341254 | AA143: 7.022269488 | AH143: Maverick | AJ143: Utility (preference match) | BM143: =EW16 -> Two Pair | BQ143: =FA16 ->  | BR143: 0
AH144: Deceiving factor | AJ144: 0.2 | BM144: =FH16 -> One Pair | BQ144: =FL16 ->  | BR144: 0
W145: =RANK(W152,$W$152:$AA$152,1) ->  | X145: =RANK(X152,$W$152:$AA$152,1) ->  | AH145: Royal Flush | AI145: 1 | AJ145: =AW85+IF(AW85=0,AJ$144) -> 0.2 | AL145: =AJ145/SUM($AJ$145:$AJ$154) -> 0.1 | AM145: 0 | AN145: 1 | BM145: =FS16 -> High Card | BQ145: =FW16 ->  | BR145: 0
O146: 17 | W146: =[0]!Player22 -> 0 | X146: =$P$1 -> ♥3 | Y146: =$Q$1 -> ♣J | Z146: =$R$1 -> ♥7 | AA146: =$T$1 -> ♥8 | AH146: Straight Flush | AI146: 2 | AJ146: =AW86+IF(AW86=0,AJ$144) -> 0.2 | AL146: =AJ146/SUM($AJ$145:$AJ$154) -> 0.1 | AM146: =AL145+AM145 -> 0.1 | AN146: 0.9
W147: =VLOOKUP(W146,$B$1:$F$52,5,0) ->  | X147: =VLOOKUP(X146,$B$1:$F$52,5,0) -> 3 | Y147: =VLOOKUP(Y146,$B$1:$F$52,5,0) -> 11 | Z147: =VLOOKUP(Z146,$B$1:$F$52,5,0) -> 7 | AA147: =VLOOKUP(AA146,$B$1:$F$52,5,0) -> 8 | AH147: Four of a Kind | AI147: 3 | AJ147: 0.2 | AL147: 0.1 | AM147: =AL146+AM146 -> 0.2 | AN147: 0.8 | BL147: 14 | BM147: =BX17 -> Royal Flush | BQ147: =CB17 -> 
W148: =VLOOKUP(W146,$B$1:$F$52,4,0) ->  | X148: =VLOOKUP(X146,$B$1:$F$52,4,0) -> H | Y148: =VLOOKUP(Y146,$B$1:$F$52,4,0) -> C | Z148: =VLOOKUP(Z146,$B$1:$F$52,4,0) -> H | AA148: =VLOOKUP(AA146,$B$1:$F$52,4,0) -> H | AH148: Full House | AI148: 4 | AJ148: 0.2 | AL148: 0.1 | AM148: 0.3 | AN148: 0.6 | BM148: =CI17 -> Straight Flush | BQ148: =CM17 -> 
W149: =HLOOKUP(W151,$W$145:$AA$148,3,0) ->  | X149: =HLOOKUP(X151,$W$145:$AA$148,3,0) ->  | AH149: Flush | AI149: 5 | AJ149: 0.2 | AL149: 0.1 | AM149: 0.4 | AN149: 0.5 | BM149: =CT17 -> Four of a Kind | BQ149: =CX17 ->  | BR149: 0
W150: =HLOOKUP(W151,$W$145:$AA$148,4,0) ->  | X150: =HLOOKUP(X151,$W$145:$AA$148,4,0) ->  | AH150: Straight | AI150: 6 | AJ150: 0.2 | AL150: 0.1 | AM150: 0.5 | AN150: 0.4 | BM150: =DE17 -> Full House | BQ150: =DI17 ->  | BR150: 0
W151: 1 | X151: 2 | Y151: 3 | Z151: 4 | AA151: 5 | AH151: Three of a Kind | AI151: 7 | AJ151: 0.2 | AL151: 0.1 | AM151: 0.6 | AN151: 0.3 | BM151: =DP17 -> Flush | BQ151: =DT17 ->  | BR151: 0
V152: =V147+IF(V147=1,13+RAND()^3,RAND()^3) -> 0.2639674963 | X152: 3.02527656 | Y152: 11.55113748 | Z152: 7.081794477 | AA152: 8.213721271 | AH152: Two Pair | AI152: 8 | AJ152: 0.2 | AL152: 0.1 | AM152: 0.7 | AN152: 0.2 | BM152: =EA17 -> Straight | BQ152: =EE17 -> 
AH153: One Pair/Check | AI153: 9 | AJ153: 0.2 | AL153: 0.1 | AM153: 0.8 | AN153: 0 | BM153: =EL17 -> Three of a Kind | BQ153: =EP17 ->  | BR153: 0
W154: =RANK(W161,$W$161:$AA$161,1) ->  | X154: =RANK(X161,$W$161:$AA$161,1) ->  | AH154: High Card/Fold | AI154: 10 | AJ154: 0.2 | AL154: 0.1 | AM154: 0.9 | AN154: -0.1 | BM154: =EW17 -> Two Pair | BQ154: =FA17 ->  | BR154: 0
O155: 18 | W155: =[0]!Player22 -> 0 | X155: =$P$1 -> ♥3 | Y155: =$Q$1 -> ♣J | Z155: =$S$1 -> ♦7 | AA155: =$T$1 -> ♥8 | BM155: =FH17 -> One Pair | BQ155: =FL17 ->  | BR155: 0
W156: =VLOOKUP(W155,$B$1:$F$52,5,0) ->  | X156: =VLOOKUP(X155,$B$1:$F$52,5,0) -> 3 | Y156: =VLOOKUP(Y155,$B$1:$F$52,5,0) -> 11 | Z156: =VLOOKUP(Z155,$B$1:$F$52,5,0) -> 7 | AA156: =VLOOKUP(AA155,$B$1:$F$52,5,0) -> 8 | AM156: Max. bet | AN156: =VLOOKUP($AW$96,AM145:AN154,2,1) -> 0.4 | BM156: =FS17 -> High Card | BQ156: =FW17 ->  | BR156: 0
W157: =VLOOKUP(W155,$B$1:$F$52,4,0) ->  | X157: =VLOOKUP(X155,$B$1:$F$52,4,0) -> H | Y157: =VLOOKUP(Y155,$B$1:$F$52,4,0) -> C | Z157: =VLOOKUP(Z155,$B$1:$F$52,4,0) -> D | AA157: =VLOOKUP(AA155,$B$1:$F$52,4,0) -> H
W158: =HLOOKUP(W160,$W$154:$AA$157,3,0) ->  | X158: =HLOOKUP(X160,$W$154:$AA$157,3,0) ->  | BL158: 15 | BM158: =BX18 -> Royal Flush | BQ158: =CB18 -> 
W159: =HLOOKUP(W160,$W$154:$AA$157,4,0) ->  | X159: =HLOOKUP(X160,$W$154:$AA$157,4,0) ->  | BM159: =CI18 -> Straight Flush | BQ159: =CM18 -> 
W160: 1 | X160: 2 | Y160: 3 | Z160: 4 | AA160: 5 | BM160: =CT18 -> Four of a Kind | BQ160: =CX18 ->  | BR160: 0
V161: =V156+IF(V156=1,13+RAND()^3,RAND()^3) -> 0.1279001628 | X161: 3.604659241 | Y161: 11.40843332 | Z161: 7.151357382 | AA161: 8.023882078 | BM161: =DE18 -> Full House | BQ161: =DI18 ->  | BR161: 0
BM162: =DP18 -> Flush | BQ162: =DT18 ->  | BR162: 0
W163: =RANK(W170,$W$170:$AA$170,1) ->  | X163: =RANK(X170,$W$170:$AA$170,1) ->  | BM163: =EA18 -> Straight | BQ163: =EE18 -> 
O164: 19 | W164: =[0]!Player22 -> 0 | X164: =$P$1 -> ♥3 | Y164: =$R$1 -> ♥7 | Z164: =$S$1 -> ♦7 | AA164: =$T$1 -> ♥8 | BM164: =EL18 -> Three of a Kind | BQ164: =EP18 ->  | BR164: 0
W165: =VLOOKUP(W164,$B$1:$F$52,5,0) ->  | X165: =VLOOKUP(X164,$B$1:$F$52,5,0) -> 3 | Y165: =VLOOKUP(Y164,$B$1:$F$52,5,0) -> 7 | Z165: =VLOOKUP(Z164,$B$1:$F$52,5,0) -> 7 | AA165: =VLOOKUP(AA164,$B$1:$F$52,5,0) -> 8 | BM165: =EW18 -> Two Pair | BQ165: =FA18 ->  | BR165: 0
W166: =VLOOKUP(W164,$B$1:$F$52,4,0) ->  | X166: =VLOOKUP(X164,$B$1:$F$52,4,0) -> H | Y166: =VLOOKUP(Y164,$B$1:$F$52,4,0) -> H | Z166: =VLOOKUP(Z164,$B$1:$F$52,4,0) -> D | AA166: =VLOOKUP(AA164,$B$1:$F$52,4,0) -> H | BM166: =FH18 -> One Pair | BQ166: =FL18 ->  | BR166: 0
W167: =HLOOKUP(W169,$W$163:$AA$166,3,0) ->  | X167: =HLOOKUP(X169,$W$163:$AA$166,3,0) ->  | BM167: =FS18 -> High Card | BQ167: =FW18 ->  | BR167: 0
W168: =HLOOKUP(W169,$W$163:$AA$166,4,0) ->  | X168: =HLOOKUP(X169,$W$163:$AA$166,4,0) -> 
W169: 1 | X169: 2 | Y169: 3 | Z169: 4 | AA169: 5 | BL169: 16 | BM169: =BX19 -> Royal Flush | BQ169: =CB19 -> 
V170: =V165+IF(V165=1,13+RAND()^3,RAND()^3) -> 0.04029177858 | X170: 3.702846899 | Y170: 7.00015369 | Z170: 7.076496614 | AA170: 8.150691124 | BM170: =CI19 -> Straight Flush | BQ170: =CM19 -> 
BM171: =CT19 -> Four of a Kind | BQ171: =CX19 ->  | BR171: 0
W172: =RANK(W179,$W$179:$AA$179,1) ->  | X172: =RANK(X179,$W$179:$AA$179,1) ->  | BM172: =DE19 -> Full House | BQ172: =DI19 ->  | BR172: 0
O173: 20 | W173: =[0]!Player22 -> 0 | X173: =$Q$1 -> ♣J | Y173: =$R$1 -> ♥7 | Z173: =$S$1 -> ♦7 | AA173: =$T$1 -> ♥8 | BM173: =DP19 -> Flush | BQ173: =DT19 ->  | BR173: 0
W174: =VLOOKUP(W173,$B$1:$F$52,5,0) ->  | X174: =VLOOKUP(X173,$B$1:$F$52,5,0) -> 11 | Y174: =VLOOKUP(Y173,$B$1:$F$52,5,0) -> 7 | Z174: =VLOOKUP(Z173,$B$1:$F$52,5,0) -> 7 | AA174: =VLOOKUP(AA173,$B$1:$F$52,5,0) -> 8 | BM174: =EA19 -> Straight | BQ174: =EE19 -> 
W175: =VLOOKUP(W173,$B$1:$F$52,4,0) ->  | X175: =VLOOKUP(X173,$B$1:$F$52,4,0) -> C | Y175: =VLOOKUP(Y173,$B$1:$F$52,4,0) -> H | Z175: =VLOOKUP(Z173,$B$1:$F$52,4,0) -> D | AA175: =VLOOKUP(AA173,$B$1:$F$52,4,0) -> H | BM175: =EL19 -> Three of a Kind | BQ175: =EP19 ->  | BR175: 0
W176: =HLOOKUP(W178,$W$172:$AA$175,3,0) ->  | X176: =HLOOKUP(X178,$W$172:$AA$175,3,0) ->  | BM176: =EW19 -> Two Pair | BQ176: =FA19 ->  | BR176: 0
W177: =HLOOKUP(W178,$W$172:$AA$175,4,0) ->  | X177: =HLOOKUP(X178,$W$172:$AA$175,4,0) ->  | BM177: =FH19 -> One Pair | BQ177: =FL19 ->  | BR177: 0
W178: 1 | X178: 2 | Y178: 3 | Z178: 4 | AA178: 5 | BM178: =FS19 -> High Card | BQ178: =FW19 ->  | BR178: 0
V179: =V174+IF(V174=1,13+RAND()^3,RAND()^3) -> 0.5457260609 | X179: 11.00588724 | Y179: 7.314077909 | Z179: 7.017674256 | AA179: 8.30256277
BL180: 17 | BM180: =BX20 -> Royal Flush | BQ180: =CB20 -> 
W181: =RANK(W188,$W$188:$AA$188,1) -> 1 | X181: =RANK(X188,$W$188:$AA$188,1) -> 5 | Y181: 2 | Z181: 3 | AA181: 4 | BM181: =CI20 -> Straight Flush | BQ181: =CM20 -> 
O182: 21 | W182: =$P$1 -> ♥3 | X182: =$Q$1 -> ♣J | Y182: =$R$1 -> ♥7 | Z182: =$S$1 -> ♦7 | AA182: =$T$1 -> ♥8 | BM182: =CT20 -> Four of a Kind | BQ182: =CX20 ->  | BR182: 0
W183: =VLOOKUP(W182,$B$1:$F$52,5,0) -> 3 | X183: =VLOOKUP(X182,$B$1:$F$52,5,0) -> 11 | Y183: =VLOOKUP(Y182,$B$1:$F$52,5,0) -> 7 | Z183: =VLOOKUP(Z182,$B$1:$F$52,5,0) -> 7 | AA183: =VLOOKUP(AA182,$B$1:$F$52,5,0) -> 8 | BM183: =DE20 -> Full House | BQ183: =DI20 ->  | BR183: 0
W184: =VLOOKUP(W182,$B$1:$F$52,4,0) -> H | X184: =VLOOKUP(X182,$B$1:$F$52,4,0) -> C | Y184: =VLOOKUP(Y182,$B$1:$F$52,4,0) -> H | Z184: =VLOOKUP(Z182,$B$1:$F$52,4,0) -> D | AA184: =VLOOKUP(AA182,$B$1:$F$52,4,0) -> H | BM184: =DP20 -> Flush | BQ184: =DT20 ->  | BR184: 0
W185: =HLOOKUP(W187,$W$181:$AA$184,3,0) -> 3 | X185: =HLOOKUP(X187,$W$181:$AA$184,3,0) -> 7 | Y185: 7 | Z185: 8 | AA185: 11 | BM185: =EA20 -> Straight | BQ185: =EE20 -> 
W186: =HLOOKUP(W187,$W$181:$AA$184,4,0) -> H | X186: =HLOOKUP(X187,$W$181:$AA$184,4,0) -> H | Y186: D | Z186: H | AA186: C | BM186: =EL20 -> Three of a Kind | BQ186: =EP20 ->  | BR186: 0
W187: 1 | X187: 2 | Y187: 3 | Z187: 4 | AA187: 5 | BM187: =EW20 -> Two Pair | BQ187: =FA20 ->  | BR187: 0
V188: =V183+IF(V183=1,13+RAND()^3,RAND()^3) -> 0.04300117832 | W188: 3.173855046 | X188: 11.14174303 | Y188: 7.238231827 | Z188: 7.395375543 | AA188: 8.825641788 | BM188: =FH20 -> One Pair | BQ188: =FL20 ->  | BR188: 0
BM189: =FS20 -> High Card | BQ189: =FW20 ->  | BR189: 0
BL191: 18 | BM191: =BX21 -> Royal Flush | BQ191: =CB21 -> 
BM192: =CI21 -> Straight Flush | BQ192: =CM21 -> 
BM193: =CT21 -> Four of a Kind | BQ193: =CX21 ->  | BR193: 0
BM194: =DE21 -> Full House | BQ194: =DI21 ->  | BR194: 0
BM195: =DP21 -> Flush | BQ195: =DT21 ->  | BR195: 0
BM196: =EA21 -> Straight | BQ196: =EE21 -> 
BM197: =EL21 -> Three of a Kind | BQ197: =EP21 ->  | BR197: 0
BM198: =EW21 -> Two Pair | BQ198: =FA21 ->  | BR198: 0
BM199: =FH21 -> One Pair | BQ199: =FL21 ->  | BR199: 0
BM200: =FS21 -> High Card | BQ200: =FW21 ->  | BR200: 0
BL202: 19 | BM202: =BX22 -> Royal Flush | BQ202: =CB22 -> 
... 82 more rows

Sheet Pocket (hidden)
A1: 1 | B1: ♠A | C1: 0.3826448826 | D1: =IF(OR($W$2=B1,$X$2=B1),1,RANK(C1,$C$1:$C$52)) -> 26 | E1: S | F1: 1 | G1: =LARGE($D$1:$D$52,1) -> 52 | H1: 1 | I1: ♠A | J1: 0.04725584943 | K1: =IF(OR($AC$2=I1,$AD$2=I1),1,RANK(J1,$J$1:$J$52)) -> 48 | L1: S | M1: 1 | N1: =LARGE($K$1:$K$52,1) -> 52 | P1: =IF(ISBLANK(House1),INDEX($B$1:$B$52,MATCH(G1,$D$1:$D$52,0)), House1) -> ♦K | Q1: =IF(ISBLANK(House2),INDEX($B$1:$B$52,MATCH(G2,$D$1:$D$52,0)),House2) -> ♠3 | R1: =IF(ISBLANK(House3),INDEX($B$1:$B$52,MATCH(G3,$D$1:$D$52,0)),House3) -> ♥2 | S1: =IF(ISBLANK(House4),INDEX($B$1:$B$52,MATCH(G4,$D$1:$D$52,0)),House4) -> ♣9 | T1: =IF(ISBLANK(House5),INDEX($B$1:$B$52,MATCH(G5,$D$1:$D$52,0)),House5) -> ♦Q | W1: =RANK(W8,$W$8:$AA$8,1) ->  | X1: =RANK(X8,$W$8:$AA$8,1) ->  | AC1: =RANK(AC8,$AC$8:$AG$8,1) ->  | AD1: =RANK(AD8,$AC$8:$AG$8,1) ->  | BA1: Robot1 | BI1: Robot1 | BS1: Match? | BV1: Match?
A2: 2 | B2: ♠2 | C2: 0.4947312679 | D2: =IF(OR($W$2=B2,$X$2=B2),1,RANK(C2,$C$1:$C$52)) -> 21 | E2: S | F2: 2 | G2: =LARGE($D$1:$D$52,2) -> 51 | H2: 2 | I2: ♠2 | J2: 0.6035850633 | K2: =IF(OR($AC$2=I2,$AD$2=I2),1,RANK(J2,$J$1:$J$52)) -> 22 | L2: S | M2: 2 | N2: =LARGE($K$1:$K$52,2) -> 51 | O2: 1 | P2: =IF(ISBLANK(House1),INDEX($B$1:$B$52,MATCH(N1,$K$1:$K$52,0)),House1) -> ♣7 | Q2: =IF(ISBLANK(House2),INDEX($B$1:$B$52,MATCH(N2,$K$1:$K$52,0)),House2) -> ♥J | R2: =IF(ISBLANK(House3),INDEX($B$1:$B$52,MATCH(N3,$K$1:$K$52,0)),House3) -> ♥9 | S2: =IF(ISBLANK(House4),INDEX($B$1:$B$52,MATCH(N4,$K$1:$K$52,0)),House4) -> ♥7 | T2: =IF(ISBLANK(House5),INDEX($B$1:$B$52,MATCH(N5,$K$1:$K$52,0)),House5) -> ♠A | W2: =[0]!Player21 -> 0 | X2: =[0]!Player22 -> 0 | Y2: =$P$1 -> ♦K | Z2: =$Q$1 -> ♠3 | AA2: =$R$1 -> ♥2 | AC2: =[0]!Player31 -> 0 | AD2: =[0]!Player32 -> 0 | AE2: =$P$2 -> ♣7 | AF2: =$Q$2 -> ♥J | AG2: =$R$2 -> ♥9 | BQ2: Robot1 | BT2: Robot1
A3: 3 | B3: ♠3 | C3: 0.0138824784 | D3: 51 | E3: S | F3: 3 | G3: =LARGE($D$1:$D$52,3) -> 50 | H3: 3 | I3: ♠3 | J3: 0.8296711235 | K3: 14 | L3: S | M3: 3 | N3: =LARGE($K$1:$K$52,3) -> 50 | W3: =VLOOKUP(W2,$B$1:$F$52,5,0) ->  | X3: =VLOOKUP(X2,$B$1:$F$52,5,0) ->  | Y3: =VLOOKUP(Y2,$B$1:$F$52,5,0) -> 13 | Z3: =VLOOKUP(Z2,$B$1:$F$52,5,0) -> 3 | AA3: =VLOOKUP(AA2,$B$1:$F$52,5,0) -> 2 | AC3: =VLOOKUP(AC2,$B$1:$F$52,5,0) ->  | AD3: =VLOOKUP(AD2,$B$1:$F$52,5,0) ->  | AE3: =VLOOKUP(AE2,$B$1:$F$52,5,0) -> 7 | AF3: =VLOOKUP(AF2,$B$1:$F$52,5,0) -> 11 | AG3: =VLOOKUP(AG2,$B$1:$F$52,5,0) -> 9 | BQ3: Number | BR3: Suit | BS3: Total | BT3: Number | BU3: Suit | BV3: Total
A4: 4 | B4: ♠4 | C4: 0.6791359679 | D4: 14 | E4: S | F4: 4 | G4: =LARGE($D$1:$D$52,4) -> 49 | H4: 4 | I4: ♠4 | J4: 0.7963749853 | K4: 15 | L4: S | M4: 4 | N4: =LARGE($K$1:$K$52,4) -> 49 | W4: =VLOOKUP(W2,$B$1:$F$52,4,0) ->  | X4: =VLOOKUP(X2,$B$1:$F$52,4,0) ->  | Y4: =VLOOKUP(Y2,$B$1:$F$52,4,0) -> D | Z4: =VLOOKUP(Z2,$B$1:$F$52,4,0) -> S | AA4: =VLOOKUP(AA2,$B$1:$F$52,4,0) -> H | AC4: =VLOOKUP(AC2,$B$1:$F$52,4,0) ->  | AD4: =VLOOKUP(AD2,$B$1:$F$52,4,0) ->  | AE4: =VLOOKUP(AE2,$B$1:$F$52,4,0) -> C | AF4: =VLOOKUP(AF2,$B$1:$F$52,4,0) -> H | AG4: =VLOOKUP(AG2,$B$1:$F$52,4,0) -> H | AU4: 1 | AV4: =W5 ->  | AW4: =X5 ->  | AX4: =Y5 ->  | AY4: =Z5 ->  | AZ4: =AA5 ->  | BB4: =INDEX($BL$4:$BL$13,MATCH(1,$BS$4:$BS$13,0)) ->  | BC4: 1 | BD4: =AC5 ->  | BE4: =AD5 ->  | BF4: =AE5 ->  | BG4: =AF5 ->  | BH4: =AG5 ->  | BJ4: =INDEX($BL$4:$BL$13,MATCH(1,$BV$4:$BV$13,0)) ->  | BL4: 1 | BM4: =BX4 -> Royal Flush | BQ4: =CB4 ->  | BX4: Royal Flush | CB4: =IF(AND(10=AV4,11=AW4,12=AX4,13=AY4,1=AZ4),1,0) ->  | CC4: =IF(AND(AV25=AW25,AW25=AX25,AX25=AY25,AY25=AZ25),1,0) ->  | CD4: =CB4*CC4 ->  | CE4: =IF(AND(10=BD4,11=BE4,12=BF4,13=BG4,1=BH4),1,0) ->  | CF4: =IF(AND(BD25=BE25,BE25=BF25,BF25=BG25,BG25=BH25),1,0) ->  | CG4: =CE4*CF4 ->  | CI4: Straight Flush | CM4: =IF(OR(AND(AV4<10,AW4=AV4+1,AX4=AW4+1,AY4=AX4+1,AZ4=AY4+1),AND(AV4=2,AW4=3,AX4=4,AY4=5,AZ4=1)),1,0) ->  | CN4: =IF(AND(AV25=AW25,AW25=AX25,AX25=AY25,AY25=AZ25),1,0) ->  | CO4: =CM4*CN4 ->  | CP4: =IF(OR(AND(BD4<10,BE4=BD4+1,BF4=BE4+1,BG4=BF4+1,BH4=BG4+1),AND(BD4=2,BE4=3,BF4=4,BG4=5,BH4=1)),1,0) ->  | CQ4: =IF(AND(BD25=BE25,BE25=BF25,BF25=BG25,BG25=BH25),1,0) ->  | CR4: =CP4*CQ4 ->  | CT4: Four of a Kind | CX4: =IF(OR(AND(AV4=AW4,AW4=AX4,AX4=AY4),AND(AW4=AX4,AX4=AY4,AY4=AZ4)),1,0) ->  | CZ4: =CX4 ->  | DA4: =IF(OR(AND(BD4=BE4,BE4=BF4,BF4=BG4),AND(BE4=BF4,BF4=BG4,BG4=BH4)),1,0) ->  | DC4: =DA4 ->  | DE4: Full House | DI4: =IF(OR(AND(AV4=AW4,AW4=AX4,AY4=AZ4),AND(AV4=AW4,AX4=AY4,AY4=AZ4)),1,0) ->  | DK4: =DI4 ->  | DL4: =IF(OR(AND(BD4=BE4,BE4=BF4,BG4=BH4),AND(BD4=BE4,BF4=BG4,BG4=BH4)),1,0) ->  | DN4: =DL4 ->  | DP4: Flush | DT4: =IF(AND(AV25=AW25,AW25=AX25,AX25=AY25,AY25=AZ25),1,0) ->  | DV4: =DT4 ->  | DW4: =IF(AND(BD25=BE25,BE25=BF25,BF25=BG25,BG25=BH25),1,0) ->  | DY4: =DW4 ->  | EA4: Straight | EE4: =IF(OR( AND(AV4<10,AW4=AV4+1,AX4=AW4+1,AY4=AX4+1,AZ4=AY4+1), AND(AV4=10,AW4=11,AX4=12,AY4=13,AZ4=1), ),1,0) ->  | EF4: =IF(AND(AV25=AW25,AW25=AX25,AX25=AY25,AY25=AZ25),0,1) ->  | EG4: =EE4*EF4 ->  | EH4: =IF(OR( AND(BD4<10,BE4=BD4+1,BF4=BE4+1,BG4=BF4+1,BH4=BG4+1), AND(BD4=10,BE4=11,BF4=12,BG4=13,BH4=1) ),1,0) ->  | EI4: =IF(AND(BD25=BE25,BE25=BF25,BF25=BG25,BG25=BH25),0,1) ->  | EJ4: =EH4*EI4 ->  | EL4: Three of a Kind | EP4: =IF(OR(AND(AV4=AW4,AW4=AX4,AY4<>AZ4),AND(AV4<>AW4,AX4=AY4,AY4=AZ4),AND(AW4=AX4,AX4=AY4)),1,0) ->  | ER4: =EP4 ->  | ES4: =IF(OR(AND(BD4=BE4,BE4=BF4,BG4<>BH4),AND(BD4<>BE4,BF4=BG4,BG4=BH4),AND(BE4=BF4,BF4=BG4)),1,0) ->  | EU4: =ES4 ->  | EW4: Two Pair | FA4: =IF(OR(AND(AV4=AW4,AX4=AY4,AZ4<>AV4,AZ4<>AX4,AW4<>AX4),AND(AW4=AX4,AY4=AZ4,AV4<>AW4,AV4<>AY4,AX4<>AY4),AND(AV4=AW4,AY4=AZ4,AX4<>AW4,AX4<>AY4,AW4<>AY4)),1,0) ->  | FC4: =FA4 ->  | FD4: =IF(OR(AND(BD4=BE4,BF4=BG4,BH4<>BD4,BH4<>BF4,BE4<>BF4),AND(BE4=BF4,BG4=BH4,BD4<>BE4,BD4<>BG4,BF4<>BG4),AND(BD4=BE4,BG4=BH4,BF4<>BE4,BF4<>BG4,BE4<>BG4)),1,0) ->  | FF4: =FD4 ->  | FH4: One Pair | FL4: =IF(OR(AND(AV4=AW4,AW4<>AX4,AX4<>AY4,AY4<>AZ4),AND(AV4<>AW4,AW4=AX4,AX4<>AY4,AY4<>AZ4),AND(AV4<>AW4,AW4<>AX4,AX4=AY4,AY4<>AZ4),AND(AV4<>AW4,AW4<>AX4,AX4<>AY4,AY4=AZ4)),1,0) ->  | FN4: =FL4 ->  | FO4: =IF(OR(AND(BD4=BE4,BE4<>BF4,BF4<>BG4,BG4<>BH4),AND(BD4<>BE4,BE4=BF4,BF4<>BG4,BG4<>BH4),AND(BD4<>BE4,BE4<>BF4,BF4=BG4,BG4<>BH4),AND(BD4<>BE4,BE4<>BF4,BF4<>BG4,BG4=BH4)),1,0) ->  | FQ4: =FO4 ->  | FS4: High Card | FW4: =IF(AND(AV4<>AW4,AW4<>AX4,AX4<>AY4,AY4<>AZ4),1,0) ->  | FY4: =FW4 ->  | FZ4: =IF(AND(BD4<>BE4,BE4<>BF4,BF4<>BG4,BG4<>BH4),1,0) ->  | GB4: =FZ4 -> 
A5: 5 | B5: ♠5 | C5: 0.8413093861 | D5: 8 | E5: S | F5: 5 | G5: =LARGE($D$1:$D$52,5) -> 48 | H5: 5 | I5: ♠5 | J5: 0.1399313231 | K5: 42 | L5: S | M5: 5 | N5: =LARGE($K$1:$K$52,5) -> 48 | W5: =HLOOKUP(W7,$W$1:$AA$4,3,0) ->  | X5: =HLOOKUP(X7,$W$1:$AA$4,3,0) ->  | Y5: =HLOOKUP(Y7,$W$1:$AA$4,3,0) ->  | Z5: =HLOOKUP(Z7,$W$1:$AA$4,3,0) ->  | AA5: =HLOOKUP(AA7,$W$1:$AA$4,3,0) ->  | AC5: =HLOOKUP(AC7,$AC$1:$AG$4,3,0) ->  | AD5: =HLOOKUP(AD7,$AC$1:$AG$4,3,0) ->  | AU5: 2 | AV5: =W14 ->  | AW5: =X14 ->  | AX5: =Y14 ->  | AY5: =Z14 ->  | AZ5: =AA14 ->  | BB5: =INDEX($BL$4:$BL$13,MATCH(1,$BS$15:$BS$24,0)) ->  | BC5: 2 | BD5: =AC14 ->  | BE5: =AD14 ->  | BF5: =AE14 ->  | BG5: =AF14 ->  | BH5: =AG14 ->  | BJ5: =INDEX($BL$4:$BL$13,MATCH(1,$BV$15:$BV$24,0)) ->  | BL5: 2 | BM5: =CI4 -> Straight Flush | BQ5: =CM4 ->  | BX5: Royal Flush | CI5: Straight Flush | CO5: =CM5*CN5 ->  | CR5: =CP5*CQ5 ->  | CT5: Four of a Kind | DC5: =DA5 ->  | DE5: Full House | DP5: Flush | EA5: Straight | EL5: Three of a Kind | EW5: Two Pair | FH5: One Pair | FS5: High Card
A6: 6 | B6: ♠6 | C6: 0.5846866315 | D6: 17 | E6: S | F6: 6 | H6: 6 | I6: ♠6 | J6: 0.3996530451 | K6: 28 | L6: S | M6: 6 | W6: =HLOOKUP(W7,$W$1:$AA$4,4,0) ->  | X6: =HLOOKUP(X7,$W$1:$AA$4,4,0) ->  | Y6: =HLOOKUP(Y7,$W$1:$AA$4,4,0) ->  | Z6: =HLOOKUP(Z7,$W$1:$AA$4,4,0) ->  | AA6: =HLOOKUP(AA7,$W$1:$AA$4,4,0) ->  | AC6: =HLOOKUP(AC7,$AC$1:$AG$4,4,0) ->  | AD6: =HLOOKUP(AD7,$AC$1:$AG$4,4,0) ->  | AU6: 3 | AV6: =W23 ->  | AW6: =X23 ->  | AX6: =Y23 ->  | AY6: =Z23 ->  | AZ6: =AA23 ->  | BB6: =INDEX($BL$4:$BL$13,MATCH(1,$BS$26:$BS$35,0)) ->  | BC6: 3 | BD6: =AC23 ->  | BE6: =AD23 ->  | BF6: =AE23 ->  | BG6: =AF23 ->  | BH6: =AG23 ->  | BJ6: =INDEX($BL$4:$BL$13,MATCH(1,$BV$26:$BV$35,0)) ->  | BL6: 3 | BM6: =CT4 -> Four of a Kind | BQ6: =CX4 ->  | BR6: 0 | BU6: 0 | BX6: Royal Flush | CI6: Straight Flush | CT6: Four of a Kind | DE6: Full House | DP6: Flush | EA6: Straight | EL6: Three of a Kind | EW6: Two Pair | FH6: One Pair | FS6: High Card
A7: 7 | B7: ♠7 | C7: 0.8898641808 | D7: 4 | E7: S | F7: 7 | H7: 7 | I7: ♠7 | J7: 0.4114480864 | K7: 27 | L7: S | M7: 7 | W7: 1 | X7: 2 | Y7: 3 | Z7: 4 | AA7: 5 | AC7: 1 | AD7: 2 | AE7: 3 | AF7: 4 | AG7: 5 | AU7: 4 | AV7: =W32 ->  | AW7: =X32 ->  | AX7: =Y32 ->  | AY7: =Z32 ->  | AZ7: =AA32 ->  | BB7: =INDEX($BL$4:$BL$13,MATCH(1,$BS$37:$BS$46,0)) ->  | BC7: 4 | BD7: =AC32 ->  | BE7: =AD32 ->  | BF7: =AE32 ->  | BG7: =AF32 ->  | BH7: =AG32 ->  | BJ7: =INDEX($BL$4:$BL$13,MATCH(1,$BV$37:$BV$46,0)) ->  | BL7: 4 | BM7: =DE4 -> Full House | BQ7: =DI4 ->  | BR7: 0 | BU7: 0 | BX7: Royal Flush | CI7: Straight Flush | CT7: Four of a Kind | DE7: Full House | DP7: Flush | EA7: Straight | EL7: Three of a Kind | EW7: Two Pair | FH7: One Pair | FS7: High Card
A8: 8 | B8: ♠8 | C8: 0.2539723565 | D8: 37 | E8: S | F8: 8 | H8: 8 | I8: ♠8 | J8: 0.7615770418 | K8: 17 | L8: S | M8: 8 | V8: =V3+IF(V3=1,13+RAND()^3,RAND()^3) -> 0.4436549291 | Y8: 13.5355432 | Z8: 3.000031705 | AA8: 2.025916551 | AB8: 7.754013533e-05 | AE8: 7.05210882 | AF8: 11.39448865 | AG8: 9.769502624 | AU8: 5 | AV8: =W41 ->  | AW8: =X41 ->  | AX8: =Y41 ->  | AY8: =Z41 ->  | AZ8: =AA41 ->  | BB8: =INDEX($BL$4:$BL$13,MATCH(1,$BS$48:$BS$57,0)) ->  | BC8: 5 | BD8: =AC41 ->  | BE8: =AD41 ->  | BF8: =AE41 ->  | BG8: =AF41 ->  | BH8: =AG41 ->  | BJ8: =INDEX($BL$4:$BL$13,MATCH(1,$BV$48:$BV$57,0)) ->  | BL8: 5 | BM8: =DP4 -> Flush | BQ8: =DT4 ->  | BR8: 0 | BU8: 0 | BX8: Royal Flush | CI8: Straight Flush | CT8: Four of a Kind | DE8: Full House | DP8: Flush | EA8: Straight | EL8: Three of a Kind | EW8: Two Pair | FH8: One Pair | FS8: High Card
A9: 9 | B9: ♠9 | C9: 0.5470280141 | D9: 18 | E9: S | F9: 9 | H9: 9 | I9: ♠9 | J9: 0.8935589409 | K9: 6 | L9: S | M9: 9 | AU9: 6 | AV9: =W50 ->  | AW9: =X50 ->  | AX9: =Y50 ->  | AY9: =Z50 ->  | AZ9: =AA50 ->  | BB9: =INDEX($BL$4:$BL$13,MATCH(1,$BS$59:$BS$68,0)) ->  | BC9: 6 | BD9: =AC50 ->  | BE9: =AD50 ->  | BF9: =AE50 ->  | BG9: =AF50 ->  | BH9: =AG50 ->  | BJ9: =INDEX($BL$4:$BL$13,MATCH(1,$BV$59:$BV$68,0)) ->  | BL9: 6 | BM9: =EA4 -> Straight | BQ9: =EE4 ->  | BX9: Royal Flush | CI9: Straight Flush | CT9: Four of a Kind | DE9: Full House | DP9: Flush | EA9: Straight | EL9: Three of a Kind | EW9: Two Pair | FH9: One Pair | FS9: High Card
A10: 10 | B10: ♠10 | C10: 0.1559441162 | D10: 41 | E10: S | F10: 10 | H10: 10 | I10: ♠10 | J10: 0.1805497466 | K10: 40 | L10: S | M10: 10 | W10: =RANK(W17,$W$17:$AA$17,1) ->  | X10: =RANK(X17,$W$17:$AA$17,1) ->  | Y10: =RANK(Y17,$W$17:$AA$17,1) ->  | Z10: =RANK(Z17,$W$17:$AA$17,1) ->  | AA10: =RANK(AA17,$W$17:$AA$17,1) ->  | AC10: =RANK(AC17,$AC$17:$AG$17,1) ->  | AD10: =RANK(AD17,$AC$17:$AG$17,1) ->  | AU10: 7 | AV10: =W59 ->  | AW10: =X59 ->  | AX10: =Y59 ->  | AY10: =Z59 ->  | AZ10: =AA59 ->  | BB10: =INDEX($BL$4:$BL$13,MATCH(1,$BS$70:$BS$79,0)) ->  | BC10: 7 | BD10: =AC59 ->  | BE10: =AD59 ->  | BF10: =AE59 ->  | BG10: =AF59 ->  | BH10: =AG59 ->  | BJ10: =INDEX($BL$4:$BL$13,MATCH(1,$BV$70:$BV$79,0)) ->  | BL10: 7 | BM10: =EL4 -> Three of a Kind | BQ10: =EP4 ->  | BR10: 0 | BU10: 0 | BX10: Royal Flush | CI10: Straight Flush | CT10: Four of a Kind | DE10: Full House | DP10: Flush | EA10: Straight | EL10: Three of a Kind | EW10: Two Pair | FH10: One Pair | FS10: High Card
A11: 11 | B11: ♠J | C11: 0.04664646762 | D11: 47 | E11: S | F11: 11 | H11: 11 | I11: ♠J | J11: 0.8370421612 | K11: 13 | L11: S | M11: 11 | O11: 2 | W11: =[0]!Player21 -> 0 | X11: =[0]!Player22 -> 0 | Y11: =$P$1 -> ♦K | Z11: =$Q$1 -> ♠3 | AA11: =$S$1 -> ♣9 | AC11: =[0]!Player31 -> 0 | AD11: =[0]!Player32 -> 0 | AE11: =$P$2 -> ♣7 | AF11: =$Q$2 -> ♥J | AG11: =$S$2 -> ♥7 | AU11: 8 | AV11: =W68 ->  | AW11: =X68 ->  | AX11: =Y68 ->  | AY11: =Z68 ->  | AZ11: =AA68 ->  | BB11: =INDEX($BL$4:$BL$13,MATCH(1,$BS$81:$BS$90,0)) ->  | BC11: 8 | BD11: =AC68 ->  | BE11: =AD68 ->  | BF11: =AE68 ->  | BG11: =AF68 ->  | BH11: =AG68 ->  | BJ11: =INDEX($BL$4:$BL$13,MATCH(1,$BV$81:$BV$90,0)) ->  | BL11: 8 | BM11: =EW4 -> Two Pair | BQ11: =FA4 ->  | BR11: 0 | BU11: 0 | BX11: Royal Flush | CI11: Straight Flush | CT11: Four of a Kind | DE11: Full House | DP11: Flush | EA11: Straight | EL11: Three of a Kind | EW11: Two Pair | FH11: One Pair | FS11: High Card
A12: 12 | B12: ♠Q | C12: 0.1120170712 | D12: 42 | E12: S | F12: 12 | H12: 12 | I12: ♠Q | J12: 0.3010758967 | K12: 34 | L12: S | M12: 12 | W12: =VLOOKUP(W11,$B$1:$F$52,5,0) ->  | X12: =VLOOKUP(X11,$B$1:$F$52,5,0) ->  | Y12: =VLOOKUP(Y11,$B$1:$F$52,5,0) -> 13 | Z12: =VLOOKUP(Z11,$B$1:$F$52,5,0) -> 3 | AA12: =VLOOKUP(AA11,$B$1:$F$52,5,0) -> 9 | AC12: =VLOOKUP(AC11,$B$1:$F$52,5,0) ->  | AD12: =VLOOKUP(AD11,$B$1:$F$52,5,0) ->  | AE12: =VLOOKUP(AE11,$B$1:$F$52,5,0) -> 7 | AF12: =VLOOKUP(AF11,$B$1:$F$52,5,0) -> 11 | AG12: =VLOOKUP(AG11,$B$1:$F$52,5,0) -> 7 | AU12: 9 | AV12: =W77 ->  | AW12: =X77 ->  | AX12: =Y77 ->  | AY12: =Z77 ->  | AZ12: =AA77 ->  | BB12: =INDEX($BL$4:$BL$13,MATCH(1,$BS$92:$BS$101,0)) ->  | BC12: 9 | BD12: =AC77 ->  | BE12: =AD77 ->  | BF12: =AE77 ->  | BG12: =AF77 ->  | BH12: =AG77 ->  | BJ12: =INDEX($BL$4:$BL$13,MATCH(1,$BV$92:$BV$101,0)) ->  | BL12: 9 | BM12: =FH4 -> One Pair | BQ12: =FL4 ->  | BR12: 0 | BU12: 0 | BX12: Royal Flush | CI12: Straight Flush | CT12: Four of a Kind | DE12: Full House | DP12: Flush | EA12: Straight | EL12: Three of a Kind | EW12: Two Pair | FH12: One Pair | FS12: High Card
A13: 13 | B13: ♠K | C13: 0.2579116683 | D13: 36 | E13: S | F13: 13 | H13: 13 | I13: ♠K | J13: 0.6804031635 | K13: 20 | L13: S | M13: 13 | W13: =VLOOKUP(W11,$B$1:$F$52,4,0) ->  | X13: =VLOOKUP(X11,$B$1:$F$52,4,0) ->  | Y13: =VLOOKUP(Y11,$B$1:$F$52,4,0) -> D | Z13: =VLOOKUP(Z11,$B$1:$F$52,4,0) -> S | AA13: =VLOOKUP(AA11,$B$1:$F$52,4,0) -> C | AC13: =VLOOKUP(AC11,$B$1:$F$52,4,0) ->  | AD13: =VLOOKUP(AD11,$B$1:$F$52,4,0) ->  | AE13: =VLOOKUP(AE11,$B$1:$F$52,4,0) -> C | AF13: =VLOOKUP(AF11,$B$1:$F$52,4,0) -> H | AG13: =VLOOKUP(AG11,$B$1:$F$52,4,0) -> H | AU13: 10 | AV13: =W86 ->  | AW13: =X86 ->  | AX13: =Y86 ->  | AY13: =Z86 ->  | AZ13: =AA86 ->  | BB13: =INDEX($BL$4:$BL$13,MATCH(1,$BS$103:$BS$112,0)) ->  | BC13: 10 | BD13: =AC86 ->  | BE13: =AD86 ->  | BF13: =AE86 ->  | BG13: =AF86 ->  | BH13: =AG86 ->  | BJ13: =INDEX($BL$4:$BL$13,MATCH(1,$BV$103:$BV$112,0)) ->  | BL13: 10 | BM13: =FS4 -> High Card | BQ13: =FW4 ->  | BR13: 0 | BU13: 0 | BX13: Royal Flush | CI13: Straight Flush | CT13: Four of a Kind | DE13: Full House | DP13: Flush | EA13: Straight | EL13: Three of a Kind | EW13: Two Pair | FH13: One Pair | FS13: High Card
A14: 14 | B14: ♣A | C14: 0.77253099 | D14: 11 | E14: C | F14: 1 | H14: 14 | I14: ♣A | J14: 0.2066356677 | K14: 38 | L14: C | M14: 1 | W14: =HLOOKUP(W16,$W$10:$AA$13,3,0) ->  | X14: =HLOOKUP(X16,$W$10:$AA$13,3,0) ->  | Y14: =HLOOKUP(Y16,$W$10:$AA$13,3,0) ->  | Z14: =HLOOKUP(Z16,$W$10:$AA$13,3,0) ->  | AA14: =HLOOKUP(AA16,$W$10:$AA$13,3,0) ->  | AC14: =HLOOKUP(AC16,$AC$10:$AG$13,3,0) ->  | AD14: =HLOOKUP(AD16,$AC$10:$AG$13,3,0) ->  | AU14: 11 | AV14: =W95 ->  | AW14: =X95 ->  | AX14: =Y95 ->  | AY14: =Z95 ->  | AZ14: =AA95 ->  | BB14: =INDEX($BL$4:$BL$13,MATCH(1,$BS$114:$BS$123,0)) ->  | BC14: 11 | BD14: =AC95 ->  | BE14: =AD95 ->  | BF14: =AE95 ->  | BG14: =AF95 ->  | BH14: =AG95 ->  | BJ14: =INDEX($BL$4:$BL$13,MATCH(1,$BV$114:$BV$123,0)) ->  | BX14: Royal Flush | CI14: Straight Flush | CT14: Four of a Kind | DE14: Full House | DP14: Flush | EA14: Straight | EL14: Three of a Kind | EW14: Two Pair | FH14: One Pair | FS14: High Card
A15: 15 | B15: ♣2 | C15: 0.3791968379 | D15: 27 | E15: C | F15: 2 | H15: 15 | I15: ♣2 | J15: 0.2628885204 | K15: 35 | L15: C | M15: 2 | W15: =HLOOKUP(W16,$W$10:$AA$13,4,0) ->  | X15: =HLOOKUP(X16,$W$10:$AA$13,4,0) ->  | Y15: =HLOOKUP(Y16,$W$10:$AA$13,4,0) ->  | Z15: =HLOOKUP(Z16,$W$10:$AA$13,4,0) ->  | AA15: =HLOOKUP(AA16,$W$10:$AA$13,4,0) ->  | AC15: =HLOOKUP(AC16,$AC$10:$AG$13,4,0) ->  | AD15: =HLOOKUP(AD16,$AC$10:$AG$13,4,0) ->  | AU15: 12 | AV15: =W104 ->  | AW15: =X104 ->  | AX15: =Y104 ->  | AY15: =Z104 ->  | AZ15: =AA104 ->  | BB15: =INDEX($BL$4:$BL$13,MATCH(1,$BS$125:$BS$134,0)) ->  | BC15: 12 | BD15: =AC104 ->  | BE15: =AD104 ->  | BF15: =AE104 ->  | BG15: =AF104 ->  | BH15: =AG104 ->  | BJ15: =INDEX($BL$4:$BL$13,MATCH(1,$BV$125:$BV$134,0)) ->  | BL15: 2 | BM15: =BX5 -> Royal Flush | BQ15: =CB5 ->  | BX15: Royal Flush | CI15: Straight Flush | CT15: Four of a Kind | DE15: Full House | DP15: Flush | EA15: Straight | EL15: Three of a Kind | EW15: Two Pair | FH15: One Pair | FS15: High Card
A16: 16 | B16: ♣3 | C16: 0.2092630819 | D16: 40 | E16: C | F16: 3 | H16: 16 | I16: ♣3 | J16: 0.3980702555 | K16: 29 | L16: C | M16: 3 | W16: 1 | X16: 2 | Y16: 3 | Z16: 4 | AA16: 5 | AC16: 1 | AD16: 2 | AE16: 3 | AF16: 4 | AG16: 5 | AU16: 13 | AV16: =W113 ->  | AW16: =X113 ->  | AX16: =Y113 ->  | AY16: =Z113 ->  | AZ16: =AA113 ->  | BB16: =INDEX($BL$4:$BL$13,MATCH(1,$BS$136:$BS$145,0)) ->  | BC16: 13 | BD16: =AC113 ->  | BE16: =AD113 ->  | BF16: =AE113 ->  | BG16: =AF113 ->  | BH16: =AG113 ->  | BJ16: =INDEX($BL$4:$BL$13,MATCH(1,$BV$136:$BV$145,0)) ->  | BM16: =CI5 -> Straight Flush | BQ16: =CM5 ->  | BX16: Royal Flush | CI16: Straight Flush | CT16: Four of a Kind | DE16: Full House | DP16: Flush | EA16: Straight | EL16: Three of a Kind | EW16: Two Pair | FH16: One Pair | FS16: High Card
A17: 17 | B17: ♣4 | C17: 0.1067615603 | D17: 43 | E17: C | F17: 4 | H17: 17 | I17: ♣4 | J17: 0.2213674412 | K17: 37 | L17: C | M17: 4 | V17: =V12+IF(V12=1,13+RAND()^3,RAND()^3) -> 0.3909428948 | Y17: 13.00013463 | Z17: 3.00068333 | AA17: 9.31786225 | AB17: 0.7674968303 | AE17: 7.002548042 | AF17: 11.24257354 | AG17: 7.755529933 | AU17: 14 | AV17: =W122 ->  | AW17: =X122 ->  | AX17: =Y122 ->  | AY17: =Z122 ->  | AZ17: =AA122 ->  | BB17: =INDEX($BL$4:$BL$13,MATCH(1,$BS$147:$BS$156,0)) ->  | BC17: 14 | BD17: =AC122 ->  | BE17: =AD122 ->  | BF17: =AE122 ->  | BG17: =AF122 ->  | BH17: =AG122 ->  | BJ17: =INDEX($BL$4:$BL$13,MATCH(1,$BV$147:$BV$156,0)) ->  | BM17: =CT5 -> Four of a Kind | BQ17: =CX5 ->  | BR17: 0 | BU17: 0 | BX17: Royal Flush | CI17: Straight Flush | CT17: Four of a Kind | DE17: Full House | DP17: Flush | EA17: Straight | EL17: Three of a Kind | EW17: Two Pair | FH17: One Pair | FS17: High Card
A18: 18 | B18: ♣5 | C18: 0.9092222941 | D18: 2 | E18: C | F18: 5 | H18: 18 | I18: ♣5 | J18: 0.138651502 | K18: 43 | L18: C | M18: 5 | AU18: 15 | AV18: =W131 ->  | AW18: =X131 ->  | AX18: =Y131 ->  | AY18: =Z131 ->  | AZ18: =AA131 ->  | BB18: =INDEX($BL$4:$BL$13,MATCH(1,$BS$158:$BS$167,0)) ->  | BC18: 15 | BD18: =AC131 ->  | BE18: =AD131 ->  | BF18: =AE131 ->  | BG18: =AF131 ->  | BH18: =AG131 ->  | BJ18: =INDEX($BL$4:$BL$13,MATCH(1,$BV$158:$BV$167,0)) ->  | BM18: =DE5 -> Full House | BQ18: =DI5 ->  | BR18: 0 | BU18: 0 | BX18: Royal Flush | CI18: Straight Flush | CT18: Four of a Kind | DE18: Full House | DP18: Flush | EA18: Straight | EL18: Three of a Kind | EW18: Two Pair | FH18: One Pair | FS18: High Card
A19: 19 | B19: ♣6 | C19: 0.8448923475 | D19: 7 | E19: C | F19: 6 | H19: 19 | I19: ♣6 | J19: 0.3622288059 | K19: 31 | L19: C | M19: 6 | W19: =RANK(W26,$W$26:$AA$26,1) ->  | X19: =RANK(X26,$W$26:$AA$26,1) ->  | Y19: =RANK(Y26,$W$26:$AA$26,1) ->  | Z19: =RANK(Z26,$W$26:$AA$26,1) ->  | AA19: =RANK(AA26,$W$26:$AA$26,1) ->  | AC19: =RANK(AC26,$AC$26:$AG$26,1) ->  | AD19: =RANK(AD26,$AC$26:$AG$26,1) ->  | AU19: 16 | AV19: =W140 ->  | AW19: =X140 ->  | AX19: =Y140 ->  | AY19: =Z140 ->  | AZ19: =AA140 ->  | BB19: =INDEX($BL$4:$BL$13,MATCH(1,$BS$169:$BS$178,0)) ->  | BC19: 16 | BD19: =AC140 ->  | BE19: =AD140 ->  | BF19: =AE140 ->  | BG19: =AF140 ->  | BH19: =AG140 ->  | BJ19: =INDEX($BL$4:$BL$13,MATCH(1,$BV$169:$BV$178,0)) ->  | BM19: =DP5 -> Flush | BQ19: =DT5 ->  | BR19: 0 | BU19: 0 | BX19: Royal Flush | CI19: Straight Flush | CT19: Four of a Kind | DE19: Full House | DP19: Flush | EA19: Straight | EL19: Three of a Kind | EW19: Two Pair | FH19: One Pair | FS19: High Card
A20: 20 | B20: ♣7 | C20: 0.9606115775 | D20: 1 | E20: C | F20: 7 | H20: 20 | I20: ♣7 | J20: 0.01518861564 | K20: 52 | L20: C | M20: 7 | O20: 3 | W20: =[0]!Player21 -> 0 | X20: =[0]!Player22 -> 0 | Y20: =$P$1 -> ♦K | Z20: =$Q$1 -> ♠3 | AA20: =$T$1 -> ♦Q | AC20: =[0]!Player31 -> 0 | AD20: =[0]!Player32 -> 0 | AE20: =$P$2 -> ♣7 | AF20: =$Q$2 -> ♥J | AG20: =$T$2 -> ♠A | AU20: 17 | AV20: =W149 ->  | AW20: =X149 ->  | AX20: =Y149 ->  | AY20: =Z149 ->  | AZ20: =AA149 ->  | BB20: =INDEX($BL$4:$BL$13,MATCH(1,$BS$180:$BS$189,0)) ->  | BC20: 17 | BD20: =AC149 ->  | BE20: =AD149 ->  | BF20: =AE149 ->  | BG20: =AF149 ->  | BH20: =AG149 ->  | BJ20: =INDEX($BL$4:$BL$13,MATCH(1,$BV$180:$BV$189,0)) ->  | BM20: =EA5 -> Straight | BQ20: =EE5 ->  | BX20: Royal Flush | CI20: Straight Flush | CT20: Four of a Kind | DE20: Full House | DP20: Flush | EA20: Straight | EL20: Three of a Kind | EW20: Two Pair | FH20: One Pair | FS20: High Card
A21: 21 | B21: ♣8 | C21: 0.804447812 | D21: 9 | E21: C | F21: 8 | H21: 21 | I21: ♣8 | J21: 0.3799055539 | K21: 30 | L21: C | M21: 8 | W21: =VLOOKUP(W20,$B$1:$F$52,5,0) ->  | X21: =VLOOKUP(X20,$B$1:$F$52,5,0) ->  | Y21: =VLOOKUP(Y20,$B$1:$F$52,5,0) -> 13 | Z21: =VLOOKUP(Z20,$B$1:$F$52,5,0) -> 3 | AA21: =VLOOKUP(AA20,$B$1:$F$52,5,0) -> 12 | AC21: =VLOOKUP(AC20,$B$1:$F$52,5,0) ->  | AD21: =VLOOKUP(AD20,$B$1:$F$52,5,0) ->  | AE21: =VLOOKUP(AE20,$B$1:$F$52,5,0) -> 7 | AF21: =VLOOKUP(AF20,$B$1:$F$52,5,0) -> 11 | AG21: =VLOOKUP(AG20,$B$1:$F$52,5,0) -> 1 | AU21: 18 | AV21: =W158 ->  | AW21: =X158 ->  | AX21: =Y158 ->  | AY21: =Z158 ->  | AZ21: =AA158 ->  | BB21: =INDEX($BL$4:$BL$13,MATCH(1,$BS$191:$BS$200,0)) ->  | BC21: 18 | BD21: =AC158 ->  | BE21: =AD158 ->  | BF21: =AE158 ->  | BG21: =AF158 ->  | BH21: =AG158 ->  | BJ21: =INDEX($BL$4:$BL$13,MATCH(1,$BV$191:$BV$200,0)) ->  | BM21: =EL5 -> Three of a Kind | BQ21: =EP5 ->  | BR21: 0 | BU21: 0 | BX21: Royal Flush | CI21: Straight Flush | CT21: Four of a Kind | DE21: Full House | DP21: Flush | EA21: Straight | EL21: Three of a Kind | EW21: Two Pair | FH21: One Pair | FS21: High Card
A22: 22 | B22: ♣9 | C22: 0.02397746929 | D22: 49 | E22: C | F22: 9 | H22: 22 | I22: ♣9 | J22: 0.6873125173 | K22: 19 | L22: C | M22: 9 | W22: =VLOOKUP(W20,$B$1:$F$52,4,0) ->  | X22: =VLOOKUP(X20,$B$1:$F$52,4,0) ->  | Y22: =VLOOKUP(Y20,$B$1:$F$52,4,0) -> D | Z22: =VLOOKUP(Z20,$B$1:$F$52,4,0) -> S | AA22: =VLOOKUP(AA20,$B$1:$F$52,4,0) -> D | AC22: =VLOOKUP(AC20,$B$1:$F$52,4,0) ->  | AD22: =VLOOKUP(AD20,$B$1:$F$52,4,0) ->  | AE22: =VLOOKUP(AE20,$B$1:$F$52,4,0) -> C | AF22: =VLOOKUP(AF20,$B$1:$F$52,4,0) -> H | AG22: =VLOOKUP(AG20,$B$1:$F$52,4,0) -> S | AU22: 19 | AV22: =W167 ->  | AW22: =X167 ->  | AX22: =Y167 ->  | AY22: =Z167 ->  | AZ22: =AA167 ->  | BB22: =INDEX($BL$4:$BL$13,MATCH(1,$BS$202:$BS$211,0)) ->  | BC22: 19 | BD22: =AC167 ->  | BE22: =AD167 ->  | BF22: =AE167 ->  | BG22: =AF167 ->  | BH22: =AG167 ->  | BJ22: =INDEX($BL$4:$BL$13,MATCH(1,$BV$202:$BV$211,0)) ->  | BM22: =EW5 -> Two Pair | BQ22: =FA5 ->  | BR22: 0 | BU22: 0 | BX22: Royal Flush | CI22: Straight Flush | CT22: Four of a Kind | DE22: Full House | DP22: Flush | EA22: Straight | EL22: Three of a Kind | EW22: Two Pair | FH22: One Pair | FS22: High Card
A23: 23 | B23: ♣10 | C23: 0.3556620986 | D23: 31 | E23: C | F23: 10 | H23: 23 | I23: ♣10 | J23: 0.3263779468 | K23: 33 | L23: C | M23: 10 | W23: =HLOOKUP(W25,$W$19:$AA$22,3,0) ->  | X23: =HLOOKUP(X25,$W$19:$AA$22,3,0) ->  | Y23: =HLOOKUP(Y25,$W$19:$AA$22,3,0) ->  | Z23: =HLOOKUP(Z25,$W$19:$AA$22,3,0) ->  | AA23: =HLOOKUP(AA25,$W$19:$AA$22,3,0) ->  | AC23: =HLOOKUP(AC25,$AC$19:$AG$22,3,0) ->  | AD23: =HLOOKUP(AD25,$AC$19:$AG$22,3,0) ->  | AU23: 20 | AV23: =W176 ->  | AW23: =X176 ->  | AX23: =Y176 ->  | AY23: =Z176 ->  | AZ23: =AA176 ->  | BB23: =INDEX($BL$4:$BL$13,MATCH(1,$BS$213:$BS$222,0)) ->  | BC23: 20 | BD23: =AC176 ->  | BE23: =AD176 ->  | BF23: =AE176 ->  | BG23: =AF176 ->  | BH23: =AG176 ->  | BJ23: =INDEX($BL$4:$BL$13,MATCH(1,$BV$213:$BV$222,0)) ->  | BM23: =FH5 -> One Pair | BQ23: =FL5 ->  | BR23: 0 | BU23: 0 | BX23: Royal Flush | CI23: Straight Flush | CT23: Four of a Kind | DE23: Full House | DP23: Flush | EA23: Straight | EL23: Three of a Kind | EW23: Two Pair | FH23: One Pair | FS23: High Card
A24: 24 | B24: ♣J | C24: 0.3581622524 | D24: 30 | E24: C | F24: 11 | H24: 24 | I24: ♣J | J24: 0.8481710895 | K24: 10 | L24: C | M24: 11 | W24: =HLOOKUP(W25,$W$19:$AA$22,4,0) ->  | X24: =HLOOKUP(X25,$W$19:$AA$22,4,0) ->  | Y24: =HLOOKUP(Y25,$W$19:$AA$22,4,0) ->  | Z24: =HLOOKUP(Z25,$W$19:$AA$22,4,0) ->  | AA24: =HLOOKUP(AA25,$W$19:$AA$22,4,0) ->  | AC24: =HLOOKUP(AC25,$AC$19:$AG$22,4,0) ->  | AD24: =HLOOKUP(AD25,$AC$19:$AG$22,4,0) ->  | AU24: 21 | AV24: =W185 -> 2 | AW24: =X185 -> 3 | AX24: =Y185 -> 9 | AY24: =Z185 -> 12 | AZ24: =AA185 -> 13 | BB24: =INDEX($BL$4:$BL$13,MATCH(1,$BS$224:$BS$233,0)) -> 10 | BC24: 21 | BD24: =AC185 -> 7 | BE24: =AD185 -> 7 | BF24: =AE185 -> 9 | BG24: =AF185 -> 11 | BH24: =AG185 -> 1 | BJ24: =INDEX($BL$4:$BL$13,MATCH(1,$BV$224:$BV$233,0)) -> 9 | BM24: =FS5 -> High Card | BQ24: =FW5 ->  | BR24: 0 | BU24: 0 | BX24: Royal Flush | CB24: 0 | CC24: 0 | CD24: 0 | CE24: 0 | CF24: 0 | CG24: 0 | CI24: Straight Flush | CM24: 0 | CN24: 0 | CO24: 0 | CP24: 0 | CQ24: 0 | CR24: 0 | CT24: Four of a Kind | CX24: 0 | CZ24: 0 | DA24: 0 | DC24: 0 | DE24: Full House | DI24: 0 | DK24: 0 | DL24: 0 | DN24: 0 | DP24: Flush | DT24: 0 | DV24: 0 | DW24: 0 | DY24: 0 | EA24: Straight | EE24: 0 | EF24: 1 | EG24: 0 | EH24: 0 | EI24: 1 | EJ24: 0 | EL24: Three of a Kind | EP24: 0 | ER24: 0 | ES24: 0 | EU24: 0 | EW24: Two Pair | FA24: 0 | FC24: 0 | FD24: 0 | FF24: 0 | FH24: One Pair | FL24: 0 | FN24: 0 | FO24: 1 | FQ24: 1 | FS24: High Card | FW24: 1 | FY24: 1 | FZ24: 0 | GB24: 0
A25: 25 | B25: ♣Q | C25: 0.3397425514 | D25: 32 | E25: C | F25: 12 | H25: 25 | I25: ♣Q | J25: 0.3321250478 | K25: 32 | L25: C | M25: 12 | W25: 1 | X25: 2 | Y25: 3 | Z25: 4 | AA25: 5 | AC25: 1 | AD25: 2 | AE25: 3 | AF25: 4 | AG25: 5 | AU25: 1 | AV25: =W6 ->  | AW25: =X6 ->  | AX25: =Y6 ->  | AY25: =Z6 ->  | AZ25: =AA6 ->  | BC25: 1 | BD25: =AC6 ->  | BE25: =AD6 ->  | BF25: =AE6 ->  | BG25: =AF6 ->  | BH25: =AG6 -> 
A26: 26 | B26: ♣K | C26: 0.2388055406 | D26: 39 | E26: C | F26: 13 | H26: 26 | I26: ♣K | J26: 0.4324172863 | K26: 26 | L26: C | M26: 13 | V26: =V21+IF(V21=1,13+RAND()^3,RAND()^3) -> 0.3431414804 | Y26: 13.53752987 | Z26: 3.914076728 | AA26: 12.17163986 | AB26: 0.5086213322 | AE26: 7.160046302 | AF26: 11.01150003 | AG26: 14.02201102 | AU26: 2 | AV26: =W15 ->  | AW26: =X15 ->  | AX26: =Y15 ->  | AY26: =Z15 ->  | AZ26: =AA15 ->  | BC26: 2 | BD26: =AC15 ->  | BE26: =AD15 ->  | BF26: =AE15 ->  | BG26: =AF15 ->  | BH26: =AG15 ->  | BL26: 3 | BM26: =BX6 -> Royal Flush | BQ26: =CB6 -> 
A27: 27 | B27: ♦A | C27: 0.8795596451 | D27: 6 | E27: D | F27: 1 | H27: 27 | I27: ♦A | J27: 0.494320976 | K27: 24 | L27: D | M27: 1 | AU27: 3 | AV27: =W24 ->  | AW27: =X24 ->  | AX27: =Y24 ->  | AY27: =Z24 ->  | AZ27: =AA24 ->  | BC27: 3 | BD27: =AC24 ->  | BE27: =AD24 ->  | BF27: =AE24 ->  | BG27: =AF24 ->  | BH27: =AG24 ->  | BM27: =CI6 -> Straight Flush | BQ27: =CM6 -> 
A28: 28 | B28: ♦2 | C28: 0.3937762256 | D28: 25 | E28: D | F28: 2 | H28: 28 | I28: ♦2 | J28: 0.7880189322 | K28: 16 | L28: D | M28: 2 | W28: =RANK(W35,$W$35:$AA$35,1) ->  | X28: =RANK(X35,$W$35:$AA$35,1) ->  | Y28: =RANK(Y35,$W$35:$AA$35,1) ->  | Z28: =RANK(Z35,$W$35:$AA$35,1) ->  | AA28: =RANK(AA35,$W$35:$AA$35,1) ->  | AC28: =RANK(AC35,$AC$35:$AG$35,1) ->  | AD28: =RANK(AD35,$AC$35:$AG$35,1) ->  | AU28: 4 | AV28: =W33 ->  | AW28: =X33 ->  | AX28: =Y33 ->  | AY28: =Z33 ->  | AZ28: =AA33 ->  | BC28: 4 | BD28: =AC33 ->  | BE28: =AD33 ->  | BF28: =AE33 ->  | BG28: =AF33 ->  | BH28: =AG33 ->  | BM28: =CT6 -> Four of a Kind | BQ28: =CX6 ->  | BR28: 0 | BU28: 0
A29: 29 | B29: ♦3 | C29: 0.7428554262 | D29: 13 | E29: D | F29: 3 | H29: 29 | I29: ♦3 | J29: 0.9733570088 | K29: 5 | L29: D | M29: 3 | O29: 4 | W29: =[0]!Player21 -> 0 | X29: =[0]!Player22 -> 0 | Y29: =$P$1 -> ♦K | Z29: =$R$1 -> ♥2 | AA29: =$S$1 -> ♣9 | AC29: =[0]!Player31 -> 0 | AD29: =[0]!Player32 -> 0 | AE29: =$P$2 -> ♣7 | AF29: =$R$2 -> ♥9 | AG29: =$S$2 -> ♥7 | AU29: 5 | AV29: =W42 ->  | AW29: =X42 ->  | AX29: =Y42 ->  | AY29: =Z42 ->  | AZ29: =AA42 ->  | BC29: 5 | BD29: =AC42 ->  | BE29: =AD42 ->  | BF29: =AE42 ->  | BG29: =AF42 ->  | BH29: =AG42 ->  | BM29: =DE6 -> Full House | BQ29: =DI6 ->  | BR29: 0 | BU29: 0
A30: 30 | B30: ♦4 | C30: 0.406962328 | D30: 24 | E30: D | F30: 4 | H30: 30 | I30: ♦4 | J30: 0.5208490251 | K30: 23 | L30: D | M30: 4 | W30: =VLOOKUP(W29,$B$1:$F$52,5,0) ->  | X30: =VLOOKUP(X29,$B$1:$F$52,5,0) ->  | Y30: =VLOOKUP(Y29,$B$1:$F$52,5,0) -> 13 | Z30: =VLOOKUP(Z29,$B$1:$F$52,5,0) -> 2 | AA30: =VLOOKUP(AA29,$B$1:$F$52,5,0) -> 9 | AC30: =VLOOKUP(AC29,$B$1:$F$52,5,0) ->  | AD30: =VLOOKUP(AD29,$B$1:$F$52,5,0) ->  | AE30: =VLOOKUP(AE29,$B$1:$F$52,5,0) -> 7 | AF30: =VLOOKUP(AF29,$B$1:$F$52,5,0) -> 9 | AG30: =VLOOKUP(AG29,$B$1:$F$52,5,0) -> 7 | AU30: 6 | AV30: =W51 ->  | AW30: =X51 ->  | AX30: =Y51 ->  | AY30: =Z51 ->  | AZ30: =AA51 ->  | BC30: 6 | BD30: =AC51 ->  | BE30: =AD51 ->  | BF30: =AE51 ->  | BG30: =AF51 ->  | BH30: =AG51 ->  | BM30: =DP6 -> Flush | BQ30: =DT6 ->  | BR30: 0 | BU30: 0
A31: 31 | B31: ♦5 | C31: 0.08134319478 | D31: 44 | E31: D | F31: 5 | H31: 31 | I31: ♦5 | J31: 0.7545584718 | K31: 18 | L31: D | M31: 5 | W31: =VLOOKUP(W29,$B$1:$F$52,4,0) ->  | X31: =VLOOKUP(X29,$B$1:$F$52,4,0) ->  | Y31: =VLOOKUP(Y29,$B$1:$F$52,4,0) -> D | Z31: =VLOOKUP(Z29,$B$1:$F$52,4,0) -> H | AA31: =VLOOKUP(AA29,$B$1:$F$52,4,0) -> C | AC31: =VLOOKUP(AC29,$B$1:$F$52,4,0) ->  | AD31: =VLOOKUP(AD29,$B$1:$F$52,4,0) ->  | AE31: =VLOOKUP(AE29,$B$1:$F$52,4,0) -> C | AF31: =VLOOKUP(AF29,$B$1:$F$52,4,0) -> H | AG31: =VLOOKUP(AG29,$B$1:$F$52,4,0) -> H | AU31: 7 | AV31: =W60 ->  | AW31: =X60 ->  | AX31: =Y60 ->  | AY31: =Z60 ->  | AZ31: =AA60 ->  | BC31: 7 | BD31: =AC60 ->  | BE31: =AD60 ->  | BF31: =AE60 ->  | BG31: =AF60 ->  | BH31: =AG60 ->  | BM31: =EA6 -> Straight | BQ31: =EE6 -> 
A32: 32 | B32: ♦6 | C32: 0.6040960284 | D32: 16 | E32: D | F32: 6 | H32: 32 | I32: ♦6 | J32: 0.1959059764 | K32: 39 | L32: D | M32: 6 | W32: =HLOOKUP(W34,$W$28:$AA$31,3,0) ->  | X32: =HLOOKUP(X34,$W$28:$AA$31,3,0) ->  | Y32: =HLOOKUP(Y34,$W$28:$AA$31,3,0) ->  | Z32: =HLOOKUP(Z34,$W$28:$AA$31,3,0) ->  | AA32: =HLOOKUP(AA34,$W$28:$AA$31,3,0) ->  | AC32: =HLOOKUP(AC34,$AC$28:$AG$31,3,0) ->  | AD32: =HLOOKUP(AD34,$AC$28:$AG$31,3,0) ->  | AU32: 8 | AV32: =W69 ->  | AW32: =X69 ->  | AX32: =Y69 ->  | AY32: =Z69 ->  | AZ32: =AA69 ->  | BC32: 8 | BD32: =AC69 ->  | BE32: =AD69 ->  | BF32: =AE69 ->  | BG32: =AF69 ->  | BH32: =AG69 ->  | BM32: =EL6 -> Three of a Kind | BQ32: =EP6 ->  | BR32: 0 | BU32: 0
A33: 33 | B33: ♦7 | C33: 0.06260575583 | D33: 45 | E33: D | F33: 7 | H33: 33 | I33: ♦7 | J33: 0.2229482048 | K33: 36 | L33: D | M33: 7 | W33: =HLOOKUP(W34,$W$28:$AA$31,4,0) ->  | X33: =HLOOKUP(X34,$W$28:$AA$31,4,0) ->  | Y33: =HLOOKUP(Y34,$W$28:$AA$31,4,0) ->  | Z33: =HLOOKUP(Z34,$W$28:$AA$31,4,0) ->  | AA33: =HLOOKUP(AA34,$W$28:$AA$31,4,0) ->  | AC33: =HLOOKUP(AC34,$AC$28:$AG$31,4,0) ->  | AD33: =HLOOKUP(AD34,$AC$28:$AG$31,4,0) ->  | AU33: 9 | AV33: =W78 ->  | AW33: =X78 ->  | AX33: =Y78 ->  | AY33: =Z78 ->  | AZ33: =AA78 ->  | BC33: 9 | BD33: =AC78 ->  | BE33: =AD78 ->  | BF33: =AE78 ->  | BG33: =AF78 ->  | BH33: =AG78 ->  | BM33: =EW6 -> Two Pair | BQ33: =FA6 ->  | BR33: 0 | BU33: 0
A34: 34 | B34: ♦8 | C34: 0.5468574976 | D34: 19 | E34: D | F34: 8 | H34: 34 | I34: ♦8 | J34: 0.6080917856 | K34: 21 | L34: D | M34: 8 | W34: 1 | X34: 2 | Y34: 3 | Z34: 4 | AA34: 5 | AC34: 1 | AD34: 2 | AE34: 3 | AF34: 4 | AG34: 5 | AU34: 10 | AV34: =W87 ->  | AW34: =X87 ->  | AX34: =Y87 ->  | AY34: =Z87 ->  | AZ34: =AA87 ->  | BC34: 10 | BD34: =AC87 ->  | BE34: =AD87 ->  | BF34: =AE87 ->  | BG34: =AF87 ->  | BH34: =AG87 ->  | BM34: =FH6 -> One Pair | BQ34: =FL6 ->  | BR34: 0 | BU34: 0
A35: 35 | B35: ♦9 | C35: 0.3750646475 | D35: 28 | E35: D | F35: 9 | H35: 35 | I35: ♦9 | J35: 0.9875082466 | K35: 1 | L35: D | M35: 9 | V35: =V30+IF(V30=1,13+RAND()^3,RAND()^3) -> 0.2085249268 | Y35: 13.01036913 | Z35: 2.167947444 | AA35: 9.425541627 | AB35: 0.04340863852 | AE35: 7.75212197 | AF35: 9.230522955 | AG35: 7.212836656 | AU35: 11 | AV35: =W96 ->  | AW35: =X96 ->  | AX35: =Y96 ->  | AY35: =Z96 ->  | AZ35: =AA96 ->  | BC35: 11 | BD35: =AC96 ->  | BE35: =AD96 ->  | BF35: =AE96 ->  | BG35: =AF96 ->  | BH35: =AG96 ->  | BM35: =FS6 -> High Card | BQ35: =FW6 ->  | BR35: 0 | BU35: 0
A36: 36 | B36: ♦10 | C36: 0.4190269773 | D36: 23 | E36: D | F36: 10 | H36: 36 | I36: ♦10 | J36: 0.9791664702 | K36: 4 | L36: D | M36: 10 | AU36: 12 | AV36: =W105 ->  | AW36: =X105 ->  | AX36: =Y105 ->  | AY36: =Z105 ->  | AZ36: =AA105 ->  | BC36: 12 | BD36: =AC105 ->  | BE36: =AD105 ->  | BF36: =AE105 ->  | BG36: =AF105 ->  | BH36: =AG105 -> 
A37: 37 | B37: ♦J | C37: 0.8898806792 | D37: 3 | E37: D | F37: 11 | H37: 37 | I37: ♦J | J37: 0.1586321143 | K37: 41 | L37: D | M37: 11 | W37: =RANK(W44,$W$44:$AA$44,1) ->  | X37: =RANK(X44,$W$44:$AA$44,1) ->  | Y37: =RANK(Y44,$W$44:$AA$44,1) ->  | Z37: =RANK(Z44,$W$44:$AA$44,1) ->  | AA37: =RANK(AA44,$W$44:$AA$44,1) ->  | AC37: =RANK(AC44,$AC$44:$AG$44,1) ->  | AD37: =RANK(AD44,$AC$44:$AG$44,1) ->  | AU37: 13 | AV37: =W114 ->  | AW37: =X114 ->  | AX37: =Y114 ->  | AY37: =Z114 ->  | AZ37: =AA114 ->  | BC37: 13 | BD37: =AC114 ->  | BE37: =AD114 ->  | BF37: =AE114 ->  | BG37: =AF114 ->  | BH37: =AG114 ->  | BL37: 4 | BM37: =BX7 -> Royal Flush | BQ37: =CB7 -> 
A38: 38 | B38: ♦Q | C38: 0.02970357157 | D38: 48 | E38: D | F38: 12 | H38: 38 | I38: ♦Q | J38: 0.04998249242 | K38: 46 | L38: D | M38: 12 | O38: 5 | W38: =[0]!Player21 -> 0 | X38: =[0]!Player22 -> 0 | Y38: =$P$1 -> ♦K | Z38: =$R$1 -> ♥2 | AA38: =$T$1 -> ♦Q | AC38: =[0]!Player31 -> 0 | AD38: =[0]!Player32 -> 0 | AE38: =$P$2 -> ♣7 | AF38: =$R$2 -> ♥9 | AG38: =$T$2 -> ♠A | AU38: 14 | AV38: =W123 ->  | AW38: =X123 ->  | AX38: =Y123 ->  | AY38: =Z123 ->  | AZ38: =AA123 ->  | BC38: 14 | BD38: =AC123 ->  | BE38: =AD123 ->  | BF38: =AE123 ->  | BG38: =AF123 ->  | BH38: =AG123 ->  | BM38: =CI7 -> Straight Flush | BQ38: =CM7 -> 
A39: 39 | B39: ♦K | C39: 0.00131886397 | D39: 52 | E39: D | F39: 13 | H39: 39 | I39: ♦K | J39: 0.1168045017 | K39: 44 | L39: D | M39: 13 | W39: =VLOOKUP(W38,$B$1:$F$52,5,0) ->  | X39: =VLOOKUP(X38,$B$1:$F$52,5,0) ->  | Y39: =VLOOKUP(Y38,$B$1:$F$52,5,0) -> 13 | Z39: =VLOOKUP(Z38,$B$1:$F$52,5,0) -> 2 | AA39: =VLOOKUP(AA38,$B$1:$F$52,5,0) -> 12 | AC39: =VLOOKUP(AC38,$B$1:$F$52,5,0) ->  | AD39: =VLOOKUP(AD38,$B$1:$F$52,5,0) ->  | AE39: =VLOOKUP(AE38,$B$1:$F$52,5,0) -> 7 | AF39: =VLOOKUP(AF38,$B$1:$F$52,5,0) -> 9 | AG39: =VLOOKUP(AG38,$B$1:$F$52,5,0) -> 1 | AU39: 15 | AV39: =W132 ->  | AW39: =X132 ->  | AX39: =Y132 ->  | AY39: =Z132 ->  | AZ39: =AA132 ->  | BC39: 15 | BD39: =AC132 ->  | BE39: =AD132 ->  | BF39: =AE132 ->  | BG39: =AF132 ->  | BH39: =AG132 ->  | BM39: =CT7 -> Four of a Kind | BQ39: =CX7 ->  | BR39: 0 | BU39: 0
A40: 40 | B40: ♥A | C40: 0.773595905 | D40: 10 | E40: H | F40: 1 | H40: 40 | I40: ♥A | J40: 0.8388400227 | K40: 12 | L40: H | M40: 1 | W40: =VLOOKUP(W38,$B$1:$F$52,4,0) ->  | X40: =VLOOKUP(X38,$B$1:$F$52,4,0) ->  | Y40: =VLOOKUP(Y38,$B$1:$F$52,4,0) -> D | Z40: =VLOOKUP(Z38,$B$1:$F$52,4,0) -> H | AA40: =VLOOKUP(AA38,$B$1:$F$52,4,0) -> D | AC40: =VLOOKUP(AC38,$B$1:$F$52,4,0) ->  | AD40: =VLOOKUP(AD38,$B$1:$F$52,4,0) ->  | AE40: =VLOOKUP(AE38,$B$1:$F$52,4,0) -> C | AF40: =VLOOKUP(AF38,$B$1:$F$52,4,0) -> H | AG40: =VLOOKUP(AG38,$B$1:$F$52,4,0) -> S | AU40: 16 | AV40: =W141 ->  | AW40: =X141 ->  | AX40: =Y141 ->  | AY40: =Z141 ->  | AZ40: =AA141 ->  | BC40: 16 | BD40: =AC141 ->  | BE40: =AD141 ->  | BF40: =AE141 ->  | BG40: =AF141 ->  | BH40: =AG141 ->  | BM40: =DE7 -> Full House | BQ40: =DI7 ->  | BR40: 0 | BU40: 0
A41: 41 | B41: ♥2 | C41: 0.01693007555 | D41: 50 | E41: H | F41: 2 | H41: 41 | I41: ♥2 | J41: 0.04770491795 | K41: 47 | L41: H | M41: 2 | W41: =HLOOKUP(W43,$W$37:$AA$40,3,0) ->  | X41: =HLOOKUP(X43,$W$37:$AA$40,3,0) ->  | Y41: =HLOOKUP(Y43,$W$37:$AA$40,3,0) ->  | Z41: =HLOOKUP(Z43,$W$37:$AA$40,3,0) ->  | AA41: =HLOOKUP(AA43,$W$37:$AA$40,3,0) ->  | AC41: =HLOOKUP(AC43,$AC$37:$AG$40,3,0) ->  | AD41: =HLOOKUP(AD43,$AC$37:$AG$40,3,0) ->  | AU41: 17 | AV41: =W150 ->  | AW41: =X150 ->  | AX41: =Y150 ->  | AY41: =Z150 ->  | AZ41: =AA150 ->  | BC41: 17 | BD41: =AC150 ->  | BE41: =AD150 ->  | BF41: =AE150 ->  | BG41: =AF150 ->  | BH41: =AG150 ->  | BM41: =DP7 -> Flush | BQ41: =DT7 ->  | BR41: 0 | BU41: 0
A42: 42 | B42: ♥3 | C42: 0.6730421563 | D42: 15 | E42: H | F42: 3 | H42: 42 | I42: ♥3 | J42: 0.05765797294 | K42: 45 | L42: H | M42: 3 | W42: =HLOOKUP(W43,$W$37:$AA$40,4,0) ->  | X42: =HLOOKUP(X43,$W$37:$AA$40,4,0) ->  | Y42: =HLOOKUP(Y43,$W$37:$AA$40,4,0) ->  | Z42: =HLOOKUP(Z43,$W$37:$AA$40,4,0) ->  | AA42: =HLOOKUP(AA43,$W$37:$AA$40,4,0) ->  | AC42: =HLOOKUP(AC43,$AC$37:$AG$40,4,0) ->  | AD42: =HLOOKUP(AD43,$AC$37:$AG$40,4,0) ->  | AU42: 18 | AV42: =W159 ->  | AW42: =X159 ->  | AX42: =Y159 ->  | AY42: =Z159 ->  | AZ42: =AA159 ->  | BC42: 18 | BD42: =AC159 ->  | BE42: =AD159 ->  | BF42: =AE159 ->  | BG42: =AF159 ->  | BH42: =AG159 ->  | BM42: =EA7 -> Straight | BQ42: =EE7 -> 
A43: 43 | B43: ♥4 | C43: 0.3055229573 | D43: 33 | E43: H | F43: 4 | H43: 43 | I43: ♥4 | J43: 0.8663263866 | K43: 9 | L43: H | M43: 4 | W43: 1 | X43: 2 | Y43: 3 | Z43: 4 | AA43: 5 | AC43: 1 | AD43: 2 | AE43: 3 | AF43: 4 | AG43: 5 | AU43: 19 | AV43: =W168 ->  | AW43: =X168 ->  | AX43: =Y168 ->  | AY43: =Z168 ->  | AZ43: =AA168 ->  | BC43: 19 | BD43: =AC168 ->  | BE43: =AD168 ->  | BF43: =AE168 ->  | BG43: =AF168 ->  | BH43: =AG168 ->  | BM43: =EL7 -> Three of a Kind | BQ43: =EP7 ->  | BR43: 0 | BU43: 0
A44: 44 | B44: ♥5 | C44: 0.7513324358 | D44: 12 | E44: H | F44: 5 | H44: 44 | I44: ♥5 | J44: 0.9843065088 | K44: 3 | L44: H | M44: 5 | V44: =V39+IF(V39=1,13+RAND()^3,RAND()^3) -> 0.4131291329 | Y44: 13.02879922 | Z44: 2.827198513 | AA44: 12.01998639 | AB44: 0.3115262635 | AE44: 7.367178109 | AF44: 9.004018272 | AG44: 14.08474851 | AU44: 20 | AV44: =W177 ->  | AW44: =X177 ->  | AX44: =Y177 ->  | AY44: =Z177 ->  | AZ44: =AA177 ->  | BC44: 20 | BD44: =AC177 ->  | BE44: =AD177 ->  | BF44: =AE177 ->  | BG44: =AF177 ->  | BH44: =AG177 ->  | BM44: =EW7 -> Two Pair | BQ44: =FA7 ->  | BR44: 0 | BU44: 0
A45: 45 | B45: ♥6 | C45: 0.885240426 | D45: 5 | E45: H | F45: 6 | H45: 45 | I45: ♥6 | J45: 0.987388793 | K45: 2 | L45: H | M45: 6 | AU45: 21 | AV45: =W186 -> H | AW45: =X186 -> S | AX45: =Y186 -> C | AY45: =Z186 -> D | AZ45: =AA186 -> D | BC45: 21 | BD45: =AC186 -> H | BE45: =AD186 -> C | BF45: =AE186 -> H | BG45: =AF186 -> H | BH45: =AG186 -> S | BM45: =FH7 -> One Pair | BQ45: =FL7 ->  | BR45: 0 | BU45: 0
A46: 46 | B46: ♥7 | C46: 0.5057845829 | D46: 20 | E46: H | F46: 7 | H46: 46 | I46: ♥7 | J46: 0.04277327419 | K46: 49 | L46: H | M46: 7 | W46: =RANK(W53,$W$53:$AA$53,1) ->  | X46: =RANK(X53,$W$53:$AA$53,1) ->  | Y46: =RANK(Y53,$W$53:$AA$53,1) ->  | Z46: =RANK(Z53,$W$53:$AA$53,1) ->  | AA46: =RANK(AA53,$W$53:$AA$53,1) ->  | AC46: =RANK(AC53,$AC$53:$AG$53,1) ->  | AD46: =RANK(AD53,$AC$53:$AG$53,1) ->  | BM46: =FS7 -> High Card | BQ46: =FW7 ->  | BR46: 0 | BU46: 0
A47: 47 | B47: ♥8 | C47: 0.2822564268 | D47: 35 | E47: H | F47: 8 | H47: 47 | I47: ♥8 | J47: 0.8803799668 | K47: 7 | L47: H | M47: 8 | O47: 6 | W47: =[0]!Player21 -> 0 | X47: =[0]!Player22 -> 0 | Y47: =$P$1 -> ♦K | Z47: =$S$1 -> ♣9 | AA47: =$T$1 -> ♦Q | AC47: =[0]!Player31 -> 0 | AD47: =[0]!Player32 -> 0 | AE47: =$P$2 -> ♣7 | AF47: =$S$2 -> ♥7 | AG47: =$T$2 -> ♠A | AU47: Seq | AV47: 1st | AW47: 2nd | AX47: 3rd | AY47: 4th | AZ47: 5th | BA47: Hand | BB47: Rank | BC47: Seq | BD47: 1st | BE47: 2nd | BF47: 3rd | BG47: 4th | BH47: 5th | BI47: Hand | BJ47: Rank
A48: 48 | B48: ♥9 | C48: 0.3634501312 | D48: 29 | E48: H | F48: 9 | H48: 48 | I48: ♥9 | J48: 0.03710751474 | K48: 50 | L48: H | M48: 9 | W48: =VLOOKUP(W47,$B$1:$F$52,5,0) ->  | X48: =VLOOKUP(X47,$B$1:$F$52,5,0) ->  | Y48: =VLOOKUP(Y47,$B$1:$F$52,5,0) -> 13 | Z48: =VLOOKUP(Z47,$B$1:$F$52,5,0) -> 9 | AA48: =VLOOKUP(AA47,$B$1:$F$52,5,0) -> 12 | AC48: =VLOOKUP(AC47,$B$1:$F$52,5,0) ->  | AD48: =VLOOKUP(AD47,$B$1:$F$52,5,0) ->  | AE48: =VLOOKUP(AE47,$B$1:$F$52,5,0) -> 7 | AF48: =VLOOKUP(AF47,$B$1:$F$52,5,0) -> 7 | AG48: =VLOOKUP(AG47,$B$1:$F$52,5,0) -> 1 | AU48: 2 | AV48: 7 | AW48: 7 | AX48: 9 | AY48: 11 | AZ48: 1 | BA48: 0 | BB48: 9 | BC48: 10 | BD48: 5 | BE48: 5 | BF48: 8 | BG48: 8 | BH48: 1 | BI48: 0 | BJ48: 8 | BL48: 5 | BM48: =BX8 -> Royal Flush | BQ48: =CB8 -> 
A49: 49 | B49: ♥10 | C49: 0.2414410457 | D49: 38 | E49: H | F49: 10 | H49: 49 | I49: ♥10 | J49: 0.4440511666 | K49: 25 | L49: H | M49: 10 | W49: =VLOOKUP(W47,$B$1:$F$52,4,0) ->  | X49: =VLOOKUP(X47,$B$1:$F$52,4,0) ->  | Y49: =VLOOKUP(Y47,$B$1:$F$52,4,0) -> D | Z49: =VLOOKUP(Z47,$B$1:$F$52,4,0) -> C | AA49: =VLOOKUP(AA47,$B$1:$F$52,4,0) -> D | AC49: =VLOOKUP(AC47,$B$1:$F$52,4,0) ->  | AD49: =VLOOKUP(AD47,$B$1:$F$52,4,0) ->  | AE49: =VLOOKUP(AE47,$B$1:$F$52,4,0) -> C | AF49: =VLOOKUP(AF47,$B$1:$F$52,4,0) -> H | AG49: =VLOOKUP(AG47,$B$1:$F$52,4,0) -> S | AU49: 18 | AV49: 7 | AW49: 7 | AX49: 8 | AY49: 11 | AZ49: 1 | BA49: 0 | BB49: 9 | BC49: 8 | BD49: 5 | BE49: 5 | BF49: 8 | BG49: 8 | BH49: 11 | BI49: 0 | BJ49: 8 | BM49: =CI8 -> Straight Flush | BQ49: =CM8 -> 
A50: 50 | B50: ♥J | C50: 0.4610391041 | D50: 22 | E50: H | F50: 11 | H50: 50 | I50: ♥J | J50: 0.03390247777 | K50: 51 | L50: H | M50: 11 | W50: =HLOOKUP(W52,$W$46:$AA$49,3,0) ->  | X50: =HLOOKUP(X52,$W$46:$AA$49,3,0) ->  | Y50: =HLOOKUP(Y52,$W$46:$AA$49,3,0) ->  | Z50: =HLOOKUP(Z52,$W$46:$AA$49,3,0) ->  | AA50: =HLOOKUP(AA52,$W$46:$AA$49,3,0) ->  | AC50: =HLOOKUP(AC52,$AC$46:$AG$49,3,0) ->  | AD50: =HLOOKUP(AD52,$AC$46:$AG$49,3,0) ->  | AU50: 16 | AV50: 5 | AW50: 7 | AX50: 7 | AY50: 11 | AZ50: 1 | BA50: 0 | BB50: 9 | BC50: 5 | BD50: 5 | BE50: 5 | BF50: 7 | BG50: 8 | BH50: 8 | BI50: 0 | BJ50: 8 | BM50: =CT8 -> Four of a Kind | BQ50: =CX8 ->  | BR50: 0 | BU50: 0
A51: 51 | B51: ♥Q | C51: 0.2884115259 | D51: 34 | E51: H | F51: 12 | H51: 51 | I51: ♥Q | J51: 0.8467821709 | K51: 11 | L51: H | M51: 12 | W51: =HLOOKUP(W52,$W$46:$AA$49,4,0) ->  | X51: =HLOOKUP(X52,$W$46:$AA$49,4,0) ->  | Y51: =HLOOKUP(Y52,$W$46:$AA$49,4,0) ->  | Z51: =HLOOKUP(Z52,$W$46:$AA$49,4,0) ->  | AA51: =HLOOKUP(AA52,$W$46:$AA$49,4,0) ->  | AC51: =HLOOKUP(AC52,$AC$46:$AG$49,4,0) ->  | AD51: =HLOOKUP(AD52,$AC$46:$AG$49,4,0) ->  | AU51: 6 | AV51: 7 | AW51: 7 | AX51: 8 | AY51: 9 | AZ51: 1 | BA51: 0 | BB51: 9 | BC51: 18 | BD51: 7 | BE51: 8 | BF51: 8 | BG51: 11 | BH51: 1 | BI51: 0 | BJ51: 9 | BM51: =DE8 -> Full House | BQ51: =DI8 ->  | BR51: 0 | BU51: 0
A52: 52 | B52: ♥K | C52: 0.04951694723 | D52: 46 | E52: H | F52: 13 | H52: 52 | I52: ♥K | J52: 0.8686901908 | K52: 8 | L52: H | M52: 13 | W52: 1 | X52: 2 | Y52: 3 | Z52: 4 | AA52: 5 | AC52: 1 | AD52: 2 | AE52: 3 | AF52: 4 | AG52: 5 | AU52: 4 | AV52: 5 | AW52: 7 | AX52: 7 | AY52: 9 | AZ52: 1 | BA52: 0 | BB52: 9 | BC52: 9 | BD52: 5 | BE52: 8 | BF52: 8 | BG52: 11 | BH52: 1 | BI52: 0 | BJ52: 9 | BM52: =DP8 -> Flush | BQ52: =DT8 ->  | BR52: 0 | BU52: 0
V53: =V48+IF(V48=1,13+RAND()^3,RAND()^3) -> 0.003545722825 | Y53: 13.00550962 | Z53: 9.168678693 | AA53: 12.00142884 | AB53: 0.2649414477 | AE53: 7.101791433 | AF53: 7.012363682 | AG53: 14.1929877 | AU53: 19 | AV53: 5 | AW53: 7 | AX53: 7 | AY53: 8 | AZ53: 1 | BA53: 0 | BB53: 9 | BC53: 20 | BD53: 5 | BE53: 8 | BF53: 8 | BG53: 11 | BH53: 1 | BI53: 0 | BJ53: 9 | BM53: =EA8 -> Straight | BQ53: =EE8 -> 
AU54: 3 | AV54: 7 | AW54: 7 | AX54: 8 | AY54: 9 | AZ54: 11 | BA54: 0 | BB54: 9 | BC54: 7 | BD54: 5 | BE54: 5 | BF54: 8 | BG54: 11 | BH54: 1 | BI54: 0 | BJ54: 9 | BM54: =EL8 -> Three of a Kind | BQ54: =EP8 ->  | BR54: 0 | BU54: 0
W55: =RANK(W62,$W$62:$AA$62,1) ->  | X55: =RANK(X62,$W$62:$AA$62,1) ->  | Y55: =RANK(Y62,$W$62:$AA$62,1) ->  | Z55: =RANK(Z62,$W$62:$AA$62,1) ->  | AA55: =RANK(AA62,$W$62:$AA$62,1) ->  | AC55: =RANK(AC62,$AC$62:$AG$62,1) ->  | AD55: =RANK(AD62,$AC$62:$AG$62,1) ->  | AU55: 1 | AV55: 5 | AW55: 7 | AX55: 7 | AY55: 9 | AZ55: 11 | BA55: 0 | BB55: 9 | BC55: 15 | BD55: 5 | BE55: 5 | BF55: 8 | BG55: 11 | BH55: 1 | BI55: 0 | BJ55: 9 | BM55: =EW8 -> Two Pair | BQ55: =FA8 ->  | BR55: 0 | BU55: 0
O56: 7 | W56: =[0]!Player21 -> 0 | X56: =[0]!Player22 -> 0 | Y56: =$Q$1 -> ♠3 | Z56: =$R$1 -> ♥2 | AA56: =$S$1 -> ♣9 | AC56: =[0]!Player31 -> 0 | AD56: =[0]!Player32 -> 0 | AE56: =$Q$2 -> ♥J | AF56: =$R$2 -> ♥9 | AG56: =$S$2 -> ♥7 | AU56: 17 | AV56: 5 | AW56: 7 | AX56: 7 | AY56: 8 | AZ56: 11 | BA56: 0 | BB56: 9 | BC56: 11 | BD56: 5 | BE56: 5 | BF56: 7 | BG56: 11 | BH56: 1 | BI56: 0 | BJ56: 9 | BM56: =FH8 -> One Pair | BQ56: =FL8 ->  | BR56: 0 | BU56: 0
W57: =VLOOKUP(W56,$B$1:$F$52,5,0) ->  | X57: =VLOOKUP(X56,$B$1:$F$52,5,0) ->  | Y57: =VLOOKUP(Y56,$B$1:$F$52,5,0) -> 3 | Z57: =VLOOKUP(Z56,$B$1:$F$52,5,0) -> 2 | AA57: =VLOOKUP(AA56,$B$1:$F$52,5,0) -> 9 | AC57: =VLOOKUP(AC56,$B$1:$F$52,5,0) ->  | AD57: =VLOOKUP(AD56,$B$1:$F$52,5,0) ->  | AE57: =VLOOKUP(AE56,$B$1:$F$52,5,0) -> 11 | AF57: =VLOOKUP(AF56,$B$1:$F$52,5,0) -> 9 | AG57: =VLOOKUP(AG56,$B$1:$F$52,5,0) -> 7 | AU57: 5 | AV57: 5 | AW57: 7 | AX57: 7 | AY57: 8 | AZ57: 9 | BA57: 0 | BB57: 9 | BC57: 6 | BD57: 5 | BE57: 7 | BF57: 8 | BG57: 8 | BH57: 1 | BI57: 0 | BJ57: 9 | BM57: =FS8 -> High Card | BQ57: =FW8 ->  | BR57: 0 | BU57: 0
W58: =VLOOKUP(W56,$B$1:$F$52,4,0) ->  | X58: =VLOOKUP(X56,$B$1:$F$52,4,0) ->  | Y58: =VLOOKUP(Y56,$B$1:$F$52,4,0) -> S | Z58: =VLOOKUP(Z56,$B$1:$F$52,4,0) -> H | AA58: =VLOOKUP(AA56,$B$1:$F$52,4,0) -> C | AC58: =VLOOKUP(AC56,$B$1:$F$52,4,0) ->  | AD58: =VLOOKUP(AD56,$B$1:$F$52,4,0) ->  | AE58: =VLOOKUP(AE56,$B$1:$F$52,4,0) -> H | AF58: =VLOOKUP(AF56,$B$1:$F$52,4,0) -> H | AG58: =VLOOKUP(AG56,$B$1:$F$52,4,0) -> H | AU58: 9 | AV58: 7 | AW58: 8 | AX58: 9 | AY58: 11 | AZ58: 1 | BA58: 0 | BB58: 10 | BC58: 19 | BD58: 5 | BE58: 7 | BF58: 8 | BG58: 8 | BH58: 1 | BI58: 0 | BJ58: 9
W59: =HLOOKUP(W61,$W$55:$AA$58,3,0) ->  | X59: =HLOOKUP(X61,$W$55:$AA$58,3,0) ->  | Y59: =HLOOKUP(Y61,$W$55:$AA$58,3,0) ->  | Z59: =HLOOKUP(Z61,$W$55:$AA$58,3,0) ->  | AA59: =HLOOKUP(AA61,$W$55:$AA$58,3,0) ->  | AC59: =HLOOKUP(AC61,$AC$55:$AG$58,3,0) ->  | AD59: =HLOOKUP(AD61,$AC$55:$AG$58,3,0) ->  | AU59: 13 | AV59: 7 | AW59: 8 | AX59: 9 | AY59: 11 | AZ59: 1 | BA59: 0 | BB59: 10 | BC59: 4 | BD59: 5 | BE59: 5 | BF59: 7 | BG59: 8 | BH59: 1 | BI59: 0 | BJ59: 9 | BL59: 6 | BM59: =BX9 -> Royal Flush | BQ59: =CB9 -> 
W60: =HLOOKUP(W61,$W$55:$AA$58,4,0) ->  | X60: =HLOOKUP(X61,$W$55:$AA$58,4,0) ->  | Y60: =HLOOKUP(Y61,$W$55:$AA$58,4,0) ->  | Z60: =HLOOKUP(Z61,$W$55:$AA$58,4,0) ->  | AA60: =HLOOKUP(AA61,$W$55:$AA$58,4,0) ->  | AC60: =HLOOKUP(AC61,$AC$55:$AG$58,4,0) ->  | AD60: =HLOOKUP(AD61,$AC$55:$AG$58,4,0) ->  | AU60: 15 | AV60: 5 | AW60: 8 | AX60: 9 | AY60: 11 | AZ60: 1 | BA60: 0 | BB60: 10 | BC60: 14 | BD60: 5 | BE60: 5 | BF60: 7 | BG60: 8 | BH60: 1 | BI60: 0 | BJ60: 9 | BM60: =CI9 -> Straight Flush | BQ60: =CM9 -> 
W61: 1 | X61: 2 | Y61: 3 | Z61: 4 | AA61: 5 | AC61: 1 | AD61: 2 | AE61: 3 | AF61: 4 | AG61: 5 | AU61: 7 | AV61: 5 | AW61: 7 | AX61: 9 | AY61: 11 | AZ61: 1 | BA61: 0 | BB61: 10 | BC61: 3 | BD61: 5 | BE61: 7 | BF61: 8 | BG61: 8 | BH61: 11 | BI61: 0 | BJ61: 9 | BM61: =CT9 -> Four of a Kind | BQ61: =CX9 ->  | BR61: 0 | BU61: 0
V62: =V57+IF(V57=1,13+RAND()^3,RAND()^3) -> 0.1218754729 | Y62: 3.000888776 | Z62: 2.709991789 | AA62: 9.03274765 | AB62: 0.1879229047 | AE62: 11.00916337 | AF62: 9.136899192 | AG62: 7.002221086 | AU62: 11 | AV62: 5 | AW62: 7 | AX62: 9 | AY62: 11 | AZ62: 1 | BA62: 0 | BB62: 10 | BC62: 17 | BD62: 5 | BE62: 7 | BF62: 8 | BG62: 8 | BH62: 11 | BI62: 0 | BJ62: 9 | BM62: =DE9 -> Full House | BQ62: =DI9 ->  | BR62: 0 | BU62: 0
AU63: 20 | AV63: 5 | AW63: 7 | AX63: 8 | AY63: 11 | AZ63: 1 | BA63: 0 | BB63: 10 | BC63: 1 | BD63: 5 | BE63: 5 | BF63: 7 | BG63: 8 | BH63: 11 | BI63: 0 | BJ63: 9 | BM63: =DP9 -> Flush | BQ63: =DT9 ->  | BR63: 0 | BU63: 0
W64: =RANK(W71,$W$71:$AA$71,1) ->  | X64: =RANK(X71,$W$71:$AA$71,1) ->  | Y64: =RANK(Y71,$W$71:$AA$71,1) ->  | Z64: =RANK(Z71,$W$71:$AA$71,1) ->  | AA64: =RANK(AA71,$W$71:$AA$71,1) ->  | AC64: =RANK(AC71,$AC$71:$AG$71,1) ->  | AD64: =RANK(AD71,$AC$71:$AG$71,1) ->  | AU64: 21 | AV64: 5 | AW64: 7 | AX64: 8 | AY64: 11 | AZ64: 1 | BA64: 0 | BB64: 10 | BC64: 12 | BD64: 5 | BE64: 5 | BF64: 7 | BG64: 8 | BH64: 11 | BI64: 0 | BJ64: 9 | BM64: =EA9 -> Straight | BQ64: =EE9 -> 
O65: 8 | W65: =[0]!Player21 -> 0 | X65: =[0]!Player22 -> 0 | Y65: =$Q$1 -> ♠3 | Z65: =$R$1 -> ♥2 | AA65: =$T$1 -> ♦Q | AC65: =[0]!Player31 -> 0 | AD65: =[0]!Player32 -> 0 | AE65: =$Q$2 -> ♥J | AF65: =$R$2 -> ♥9 | AG65: =$T$2 -> ♠A | AU65: 10 | AV65: 5 | AW65: 7 | AX65: 8 | AY65: 9 | AZ65: 1 | BA65: 0 | BB65: 10 | BC65: 2 | BD65: 5 | BE65: 7 | BF65: 8 | BG65: 11 | BH65: 1 | BI65: 0 | BJ65: 10 | BM65: =EL9 -> Three of a Kind | BQ65: =EP9 ->  | BR65: 0 | BU65: 0
W66: =VLOOKUP(W65,$B$1:$F$52,5,0) ->  | X66: =VLOOKUP(X65,$B$1:$F$52,5,0) ->  | Y66: =VLOOKUP(Y65,$B$1:$F$52,5,0) -> 3 | Z66: =VLOOKUP(Z65,$B$1:$F$52,5,0) -> 2 | AA66: =VLOOKUP(AA65,$B$1:$F$52,5,0) -> 12 | AC66: =VLOOKUP(AC65,$B$1:$F$52,5,0) ->  | AD66: =VLOOKUP(AD65,$B$1:$F$52,5,0) ->  | AE66: =VLOOKUP(AE65,$B$1:$F$52,5,0) -> 11 | AF66: =VLOOKUP(AF65,$B$1:$F$52,5,0) -> 9 | AG66: =VLOOKUP(AG65,$B$1:$F$52,5,0) -> 1 | AU66: 14 | AV66: 5 | AW66: 7 | AX66: 8 | AY66: 9 | AZ66: 1 | BA66: 0 | BB66: 10 | BC66: 13 | BD66: 5 | BE66: 7 | BF66: 8 | BG66: 11 | BH66: 1 | BI66: 0 | BJ66: 10 | BM66: =EW9 -> Two Pair | BQ66: =FA9 ->  | BR66: 0 | BU66: 0
W67: =VLOOKUP(W65,$B$1:$F$52,4,0) ->  | X67: =VLOOKUP(X65,$B$1:$F$52,4,0) ->  | Y67: =VLOOKUP(Y65,$B$1:$F$52,4,0) -> S | Z67: =VLOOKUP(Z65,$B$1:$F$52,4,0) -> H | AA67: =VLOOKUP(AA65,$B$1:$F$52,4,0) -> D | AC67: =VLOOKUP(AC65,$B$1:$F$52,4,0) ->  | AD67: =VLOOKUP(AD65,$B$1:$F$52,4,0) ->  | AE67: =VLOOKUP(AE65,$B$1:$F$52,4,0) -> H | AF67: =VLOOKUP(AF65,$B$1:$F$52,4,0) -> H | AG67: =VLOOKUP(AG65,$B$1:$F$52,4,0) -> S | AU67: 8 | AV67: 5 | AW67: 7 | AX67: 8 | AY67: 9 | AZ67: 11 | BA67: 0 | BB67: 10 | BC67: 16 | BD67: 5 | BE67: 7 | BF67: 8 | BG67: 11 | BH67: 1 | BI67: 0 | BJ67: 10 | BM67: =FH9 -> One Pair | BQ67: =FL9 ->  | BR67: 0 | BU67: 0
W68: =HLOOKUP(W70,$W$64:$AA$67,3,0) ->  | X68: =HLOOKUP(X70,$W$64:$AA$67,3,0) ->  | Y68: =HLOOKUP(Y70,$W$64:$AA$67,3,0) ->  | Z68: =HLOOKUP(Z70,$W$64:$AA$67,3,0) ->  | AA68: =HLOOKUP(AA70,$W$64:$AA$67,3,0) ->  | AC68: =HLOOKUP(AC70,$AC$64:$AG$67,3,0) ->  | AD68: =HLOOKUP(AD70,$AC$64:$AG$67,3,0) ->  | AU68: 12 | AV68: 5 | AW68: 7 | AX68: 8 | AY68: 9 | AZ68: 11 | BA68: 0 | BB68: 10 | BC68: 21 | BD68: 5 | BE68: 7 | BF68: 8 | BG68: 11 | BH68: 1 | BI68: 0 | BJ68: 10 | BM68: =FS9 -> High Card | BQ68: =FW9 ->  | BR68: 0 | BU68: 0
W69: =HLOOKUP(W70,$W$64:$AA$67,4,0) ->  | X69: =HLOOKUP(X70,$W$64:$AA$67,4,0) ->  | Y69: =HLOOKUP(Y70,$W$64:$AA$67,4,0) ->  | Z69: =HLOOKUP(Z70,$W$64:$AA$67,4,0) ->  | AA69: =HLOOKUP(AA70,$W$64:$AA$67,4,0) ->  | AC69: =HLOOKUP(AC70,$AC$64:$AG$67,4,0) ->  | AD69: =HLOOKUP(AD70,$AC$64:$AG$67,4,0) -> 
W70: 1 | X70: 2 | Y70: 3 | Z70: 4 | AA70: 5 | AC70: 1 | AD70: 2 | AE70: 3 | AF70: 4 | AG70: 5 | BL70: 7 | BM70: =BX10 -> Royal Flush | BQ70: =CB10 -> 
V71: =V66+IF(V66=1,13+RAND()^3,RAND()^3) -> 0.2095945421 | Y71: 3.47511099 | Z71: 2.004279561 | AA71: 12.00000947 | AB71: 0.0004003656095 | AE71: 11.26748106 | AF71: 9.038649313 | AG71: 14.13828602 | BM71: =CI10 -> Straight Flush | BQ71: =CM10 -> 
BM72: =CT10 -> Four of a Kind | BQ72: =CX10 ->  | BR72: 0 | BU72: 0
W73: =RANK(W80,$W$80:$AA$80,1) ->  | X73: =RANK(X80,$W$80:$AA$80,1) ->  | Y73: =RANK(Y80,$W$80:$AA$80,1) ->  | Z73: =RANK(Z80,$W$80:$AA$80,1) ->  | AA73: =RANK(AA80,$W$80:$AA$80,1) ->  | AC73: =RANK(AC80,$AC$80:$AG$80,1) ->  | AD73: =RANK(AD80,$AC$80:$AG$80,1) ->  | BM73: =DE10 -> Full House | BQ73: =DI10 ->  | BR73: 0 | BU73: 0
O74: 9 | W74: =[0]!Player21 -> 0 | X74: =[0]!Player22 -> 0 | Y74: =$Q$1 -> ♠3 | Z74: =$S$1 -> ♣9 | AA74: =$T$1 -> ♦Q | AC74: =[0]!Player31 -> 0 | AD74: =[0]!Player32 -> 0 | AE74: =$Q$2 -> ♥J | AF74: =$S$2 -> ♥7 | AG74: =$T$2 -> ♠A | BM74: =DP10 -> Flush | BQ74: =DT10 ->  | BR74: 0 | BU74: 0
W75: =VLOOKUP(W74,$B$1:$F$52,5,0) ->  | X75: =VLOOKUP(X74,$B$1:$F$52,5,0) ->  | Y75: =VLOOKUP(Y74,$B$1:$F$52,5,0) -> 3 | Z75: =VLOOKUP(Z74,$B$1:$F$52,5,0) -> 9 | AA75: =VLOOKUP(AA74,$B$1:$F$52,5,0) -> 12 | AC75: =VLOOKUP(AC74,$B$1:$F$52,5,0) ->  | AD75: =VLOOKUP(AD74,$B$1:$F$52,5,0) ->  | AE75: =VLOOKUP(AE74,$B$1:$F$52,5,0) -> 11 | AF75: =VLOOKUP(AF74,$B$1:$F$52,5,0) -> 7 | AG75: =VLOOKUP(AG74,$B$1:$F$52,5,0) -> 1 | BM75: =EA10 -> Straight | BQ75: =EE10 -> 
W76: =VLOOKUP(W74,$B$1:$F$52,4,0) ->  | X76: =VLOOKUP(X74,$B$1:$F$52,4,0) ->  | Y76: =VLOOKUP(Y74,$B$1:$F$52,4,0) -> S | Z76: =VLOOKUP(Z74,$B$1:$F$52,4,0) -> C | AA76: =VLOOKUP(AA74,$B$1:$F$52,4,0) -> D | AC76: =VLOOKUP(AC74,$B$1:$F$52,4,0) ->  | AD76: =VLOOKUP(AD74,$B$1:$F$52,4,0) ->  | AE76: =VLOOKUP(AE74,$B$1:$F$52,4,0) -> H | AF76: =VLOOKUP(AF74,$B$1:$F$52,4,0) -> H | AG76: =VLOOKUP(AG74,$B$1:$F$52,4,0) -> S | BM76: =EL10 -> Three of a Kind | BQ76: =EP10 ->  | BR76: 0 | BU76: 0
W77: =HLOOKUP(W79,$W$73:$AA$76,3,0) ->  | X77: =HLOOKUP(X79,$W$73:$AA$76,3,0) ->  | Y77: =HLOOKUP(Y79,$W$73:$AA$76,3,0) ->  | Z77: =HLOOKUP(Z79,$W$73:$AA$76,3,0) ->  | AA77: =HLOOKUP(AA79,$W$73:$AA$76,3,0) ->  | AC77: =HLOOKUP(AC79,$AC$73:$AG$76,3,0) ->  | AD77: =HLOOKUP(AD79,$AC$73:$AG$76,3,0) ->  | BA77: =_xlfn.MODE.MULT(AV78:AZ78) -> 7 | BB77: =IF(ISNUMBER(BA77),IF(BA77=1,14,BA77),0) -> 7 | BI77: =_xlfn.MODE.MULT(BD78:BH78) -> 5 | BJ77: =IF(ISNUMBER(BI77),IF(BI77=1,14,BI77),0) -> 5 | BM77: =EW10 -> Two Pair | BQ77: =FA10 ->  | BR77: 0 | BU77: 0
W78: =HLOOKUP(W79,$W$73:$AA$76,4,0) ->  | X78: =HLOOKUP(X79,$W$73:$AA$76,4,0) ->  | Y78: =HLOOKUP(Y79,$W$73:$AA$76,4,0) ->  | Z78: =HLOOKUP(Z79,$W$73:$AA$76,4,0) ->  | AA78: =HLOOKUP(AA79,$W$73:$AA$76,4,0) ->  | AC78: =HLOOKUP(AC79,$AC$73:$AG$76,4,0) ->  | AD78: =HLOOKUP(AD79,$AC$73:$AG$76,4,0) ->  | AU78: =AU48 -> 2 | AV78: 7 | AW78: 7 | AX78: 9 | AY78: 11 | AZ78: 1 | BA78: 7 | BB78: =IF(BA78=BA77,0,IF(ISNUMBER(BA78),IF(BA78=1,14,BA78),0)) -> 0 | BC78: =BC48 -> 10 | BD78: 5 | BE78: 5 | BF78: 8 | BG78: 8 | BH78: 1 | BI78: 8 | BJ78: =IF(BI78=BI77,0,IF(ISNUMBER(BI78),IF(BI78=1,14,BI78),0)) -> 8 | BM78: =FH10:FH10 -> One Pair | BQ78: =FL10:FL10 ->  | BR78: 0 | BU78: 0
W79: 1 | X79: 2 | Y79: 3 | Z79: 4 | AA79: 5 | AC79: 1 | AD79: 2 | AE79: 3 | AF79: 4 | AG79: 5 | AU79: =AU78 -> 2 | AV79: =VLOOKUP($AU$79,$AU$25:$AZ$45,2,0) ->  | AW79: =VLOOKUP($AU$79,$AU$25:$AZ$45,3,0) ->  | AX79: =VLOOKUP($AU$79,$AU$25:$AZ$45,4,0) ->  | AY79: =VLOOKUP($AU$79,$AU$25:$AZ$45,5,0) ->  | AZ79: =VLOOKUP($AU$79,$AU$25:$AZ$45,6,0) ->  | BA79: =COUNTIF($AV$78:$AZ$78,AV78) -> 2 | BB79: =COUNTIF($AV$78:$AZ$78,AZ78) -> 1 | BC79: =BC78 -> 10 | BD79: =VLOOKUP($BC$79,$BC$25:$BH$45,2,0) ->  | BE79: =VLOOKUP($BC$79,$BC$25:$BH$45,3,0) ->  | BF79: =VLOOKUP($BC$79,$BC$25:$BH$45,4,0) ->  | BG79: =VLOOKUP($BC$79,$BC$25:$BH$45,5,0) ->  | BH79: =VLOOKUP($BC$79,$BC$25:$BH$45,6,0) ->  | BI79: =COUNTIF($BD$78:$BH$78,BD78) -> 2 | BJ79: =COUNTIF($BD$78:$BH$78,BH78) -> 1 | BM79: =FS10 -> High Card | BQ79: =FW10 ->  | BR79: 0 | BU79: 0
V80: =V75+IF(V75=1,13+RAND()^3,RAND()^3) -> 0.08128482898 | Y80: 3.001838542 | Z80: 9.013117726 | AA80: 12.32151453 | AB80: 0.2849474258 | AE80: 11.0187217 | AF80: 7.002074179 | AG80: 14.04635917 | AU80: =AU79 -> 2 | AV80: =VLOOKUP($AU$78,$O$2:$AG$182,9,0) -> 0 | AW80: =VLOOKUP($AU$78,$O$2:$AG$182,10,0) -> 0 | AX80: =VLOOKUP($AU$78,$O$2:$AG$182,11,0) -> ♦K | AY80: =VLOOKUP($AU$78,$O$2:$AG$182,12,0) -> ♠3 | AZ80: =VLOOKUP($AU$78,$O$2:$AG$182,13,0) -> ♣9 | BB80: =SMALL($BB$48:$BB$68,1) -> 9 | BD80: =VLOOKUP($BC$78,$O$2:$AG$182,15,0) -> 0 | BE80: =VLOOKUP($BC$78,$O$2:$AG$182,16,0) -> 0 | BF80: =VLOOKUP($BC$78,$O$2:$AG$182,17,0) -> ♥9 | BG80: =VLOOKUP($BC$78,$O$2:$AG$182,18,0) -> ♥7 | BH80: =VLOOKUP($BC$78,$O$2:$AG$182,19,0) -> ♠A | BJ80: =SMALL($BJ$48:$BJ$68,1) -> 8
BL81: 8 | BM81: =BX11 -> Royal Flush | BQ81: =CB11 -> 
W82: =RANK(W89,$W$89:$AA$89,1) ->  | X82: =RANK(X89,$W$89:$AA$89,1) ->  | Y82: =RANK(Y89,$W$89:$AA$89,1) ->  | Z82: =RANK(Z89,$W$89:$AA$89,1) ->  | AA82: =RANK(AA89,$W$89:$AA$89,1) ->  | AC82: =RANK(AC89,$AC$89:$AG$89,1) ->  | AD82: =RANK(AD89,$AC$89:$AG$89,1) ->  | BM82: =CI11 -> Straight Flush | BQ82: =CM11 -> 
O83: 10 | W83: =[0]!Player21 -> 0 | X83: =[0]!Player22 -> 0 | Y83: =$R$1 -> ♥2 | Z83: =$S$1 -> ♣9 | AA83: =$T$1 -> ♦Q | AC83: =[0]!Player31 -> 0 | AD83: =[0]!Player32 -> 0 | AE83: =$R$2 -> ♥9 | AF83: =$S$2 -> ♥7 | AG83: =$T$2 -> ♠A | AH83: Bluffer | AJ83: Utility (preference match) | AU83: 1 | BM83: =CT11 -> Four of a Kind | BQ83: =CX11 ->  | BR83: 0 | BU83: 0
W84: =VLOOKUP(W83,$B$1:$F$52,5,0) ->  | X84: =VLOOKUP(X83,$B$1:$F$52,5,0) ->  | Y84: =VLOOKUP(Y83,$B$1:$F$52,5,0) -> 2 | Z84: =VLOOKUP(Z83,$B$1:$F$52,5,0) -> 9 | AA84: =VLOOKUP(AA83,$B$1:$F$52,5,0) -> 12 | AC84: =VLOOKUP(AC83,$B$1:$F$52,5,0) ->  | AD84: =VLOOKUP(AD83,$B$1:$F$52,5,0) ->  | AE84: =VLOOKUP(AE83,$B$1:$F$52,5,0) -> 9 | AF84: =VLOOKUP(AF83,$B$1:$F$52,5,0) -> 7 | AG84: =VLOOKUP(AG83,$B$1:$F$52,5,0) -> 1 | AH84: Deceiving factor | AJ84: =LARGE(AW85:AW94,1) -> 0 | AK84: =LARGE(AX85:AX94,1) -> 0 | AW84: Robot 2 | AX84: Robot 3 | BM84: =DE11 -> Full House | BQ84: =DI11 ->  | BR84: 0 | BU84: 0
W85: =VLOOKUP(W83,$B$1:$F$52,4,0) ->  | X85: =VLOOKUP(X83,$B$1:$F$52,4,0) ->  | Y85: =VLOOKUP(Y83,$B$1:$F$52,4,0) -> H | Z85: =VLOOKUP(Z83,$B$1:$F$52,4,0) -> C | AA85: =VLOOKUP(AA83,$B$1:$F$52,4,0) -> D | AC85: =VLOOKUP(AC83,$B$1:$F$52,4,0) ->  | AD85: =VLOOKUP(AD83,$B$1:$F$52,4,0) ->  | AE85: =VLOOKUP(AE83,$B$1:$F$52,4,0) -> H | AF85: =VLOOKUP(AF83,$B$1:$F$52,4,0) -> H | AG85: =VLOOKUP(AG83,$B$1:$F$52,4,0) -> S | AH85: Royal Flush | AI85: 1 | AJ85: =AW85+IF(AW85=0,$AJ$84) -> 0 | AK85: =AX85+IF(AX85=0,$AK$84) -> 0 | AL85: =AJ85/SUM($AJ$85:$AJ$94) ->  | AM85: 0 | AN85: 1 | AO85: =AK85/SUM($AK$85:$AK$94) ->  | AP85: 0 | AQ85: 1 | AU85: Royal Flush | AV85: 1 | AW85: =COUNTIF($BB$83:$BB$132,AV85) -> 0 | AX85: =COUNTIF($BJ$83:$BJ$132,AV85) -> 0 | BM85: =DP11 -> Flush | BQ85: =DT11 ->  | BR85: 0 | BU85: 0
W86: =HLOOKUP(W88,$W$82:$AA$85,3,0) ->  | X86: =HLOOKUP(X88,$W$82:$AA$85,3,0) ->  | Y86: =HLOOKUP(Y88,$W$82:$AA$85,3,0) ->  | Z86: =HLOOKUP(Z88,$W$82:$AA$85,3,0) ->  | AA86: =HLOOKUP(AA88,$W$82:$AA$85,3,0) ->  | AC86: =HLOOKUP(AC88,$AC$82:$AG$85,3,0) ->  | AD86: =HLOOKUP(AD88,$AC$82:$AG$85,3,0) ->  | AH86: Straight Flush | AI86: 2 | AJ86: 0 | AK86: 0 | AM86: =AL85+AM85 ->  | AN86: 0.9 | AO86: =AK86/SUM($AK$85:$AK$94) ->  | AP86: =AO85+AP85 ->  | AQ86: 0.9 | AU86: Straight Flush | AV86: 2 | AW86: =COUNTIF($BB$83:$BB$132,AV86) -> 0 | AX86: =COUNTIF($BJ$83:$BJ$132,AV86) -> 0 | BM86: =EA11 -> Straight | BQ86: =EE11 -> 
W87: =HLOOKUP(W88,$W$82:$AA$85,4,0) ->  | X87: =HLOOKUP(X88,$W$82:$AA$85,4,0) ->  | Y87: =HLOOKUP(Y88,$W$82:$AA$85,4,0) ->  | Z87: =HLOOKUP(Z88,$W$82:$AA$85,4,0) ->  | AA87: =HLOOKUP(AA88,$W$82:$AA$85,4,0) ->  | AC87: =HLOOKUP(AC88,$AC$82:$AG$85,4,0) ->  | AD87: =HLOOKUP(AD88,$AC$82:$AG$85,4,0) ->  | AH87: Four of a Kind | AI87: 3 | AJ87: 0 | AK87: 0 | AM87: =AL86+AM86 ->  | AN87: 0.8 | AP87: =AO86+AP86 ->  | AQ87: 0.8 | AU87: Four of a Kind | AV87: 3 | AW87: 0 | AX87: 0 | BM87: =EL11 -> Three of a Kind | BQ87: =EP11 ->  | BR87: 0 | BU87: 0
W88: 1 | X88: 2 | Y88: 3 | Z88: 4 | AA88: 5 | AC88: 1 | AD88: 2 | AE88: 3 | AF88: 4 | AG88: 5 | AH88: Full House | AI88: 4 | AJ88: 0 | AK88: 0 | AN88: 0.6 | AQ88: 0.6 | AU88: Full House | AV88: 4 | AW88: 0 | AX88: 0 | BM88: =EW11 -> Two Pair | BQ88: =FA11 ->  | BR88: 0 | BU88: 0
V89: =V84+IF(V84=1,13+RAND()^3,RAND()^3) -> 0.0006493303148 | Y89: 2.690002336 | Z89: 9.705402061 | AA89: 12.0000182 | AB89: 0.2045833668 | AE89: 9.256922356 | AF89: 7.000114308 | AG89: 14.71466948 | AH89: Flush | AI89: 5 | AJ89: 0 | AK89: 0 | AN89: 0.5 | AQ89: 0.5 | AU89: Flush | AV89: 5 | AW89: 0 | AX89: 0 | BM89: =FH11 -> One Pair | BQ89: =FL11 ->  | BR89: 0 | BU89: 0
AH90: Straight | AI90: 6 | AJ90: 0 | AK90: 0 | AN90: 0.4 | AQ90: 0.4 | AU90: Straight | AV90: 6 | AW90: 0 | AX90: 0 | BM90: =FS11 -> High Card | BQ90: =FW11 ->  | BR90: 0 | BU90: 0
W91: =RANK(W98,$W$98:$AA$98,1) ->  | X91: =RANK(X98,$W$98:$AA$98,1) ->  | AC91: =RANK(AC98,$AC$98:$AG$98,1) ->  | AD91: =RANK(AD98,$AC$98:$AG$98,1) ->  | AH91: Three of a Kind | AI91: 7 | AJ91: 0 | AK91: 0 | AN91: 0.3 | AQ91: 0.3 | AU91: Three of a Kind | AV91: 7 | AW91: 0 | AX91: 0
O92: 11 | W92: =[0]!Player21 -> 0 | X92: =$P$1 -> ♦K | Y92: =$Q$1 -> ♠3 | Z92: =$R$1 -> ♥2 | AA92: =$S$1 -> ♣9 | AC92: =[0]!Player31 -> 0 | AD92: =$P$2 -> ♣7 | AE92: =$Q$2 -> ♥J | AF92: =$R$2 -> ♥9 | AG92: =$S$2 -> ♥7 | AH92: Two Pair | AI92: 8 | AJ92: 0 | AK92: 0 | AN92: 0.2 | AQ92: 0.2 | AU92: Two Pairs | AV92: 8 | AW92: 0 | AX92: 0 | BL92: 9 | BM92: =BX12 -> Royal Flush | BQ92: =CB12 -> 
W93: =VLOOKUP(W92,$B$1:$F$52,5,0) ->  | X93: =VLOOKUP(X92,$B$1:$F$52,5,0) -> 13 | Y93: =VLOOKUP(Y92,$B$1:$F$52,5,0) -> 3 | Z93: =VLOOKUP(Z92,$B$1:$F$52,5,0) -> 2 | AA93: =VLOOKUP(AA92,$B$1:$F$52,5,0) -> 9 | AC93: =VLOOKUP(AC92,$B$1:$F$52,5,0) ->  | AD93: =VLOOKUP(AD92,$B$1:$F$52,5,0) -> 7 | AE93: =VLOOKUP(AE92,$B$1:$F$52,5,0) -> 11 | AF93: =VLOOKUP(AF92,$B$1:$F$52,5,0) -> 9 | AG93: =VLOOKUP(AG92,$B$1:$F$52,5,0) -> 7 | AH93: One Pair | AI93: 9 | AJ93: 0 | AK93: 0 | AN93: 0 | AQ93: 0 | AU93: One Pair | AV93: 9 | AW93: 0 | AX93: 0 | BM93: =CI12 -> Straight Flush | BQ93: =CM12 -> 
W94: =VLOOKUP(W92,$B$1:$F$52,4,0) ->  | X94: =VLOOKUP(X92,$B$1:$F$52,4,0) -> D | Y94: =VLOOKUP(Y92,$B$1:$F$52,4,0) -> S | Z94: =VLOOKUP(Z92,$B$1:$F$52,4,0) -> H | AA94: =VLOOKUP(AA92,$B$1:$F$52,4,0) -> C | AC94: =VLOOKUP(AC92,$B$1:$F$52,4,0) ->  | AD94: =VLOOKUP(AD92,$B$1:$F$52,4,0) -> C | AE94: =VLOOKUP(AE92,$B$1:$F$52,4,0) -> H | AF94: =VLOOKUP(AF92,$B$1:$F$52,4,0) -> H | AG94: =VLOOKUP(AG92,$B$1:$F$52,4,0) -> H | AH94: High Card/Fold | AI94: 10 | AJ94: 0 | AK94: 0 | AN94: -0.1 | AQ94: -0.1 | AU94: High Card/Fold | AV94: 10 | AW94: 0 | AX94: 0 | BM94: =CT12 -> Four of a Kind | BQ94: =CX12 ->  | BR94: 0 | BU94: 0
W95: =HLOOKUP(W97,$W$91:$AA$94,3,0) ->  | X95: =HLOOKUP(X97,$W$91:$AA$94,3,0) ->  | AC95: =HLOOKUP(AC97,$AC$91:$AG$94,3,0) ->  | AD95: =HLOOKUP(AD97,$AC$91:$AG$94,3,0) ->  | BM95: =DE12 -> Full House | BQ95: =DI12 ->  | BR95: 0 | BU95: 0
W96: =HLOOKUP(W97,$W$91:$AA$94,4,0) ->  | X96: =HLOOKUP(X97,$W$91:$AA$94,4,0) ->  | AC96: =HLOOKUP(AC97,$AC$91:$AG$94,4,0) ->  | AD96: =HLOOKUP(AD97,$AC$91:$AG$94,4,0) ->  | AM96: Max. bet | AN96: =VLOOKUP($AW$96,AM85:AN94,2,1) -> 1 | AP96: Max. bet | AQ96: =VLOOKUP($AX$96,AP85:AQ94,2,1) -> 1 | AW96: 0.7613663673 | AX96: 0.6270148158 | BM96: =DP12 -> Flush | BQ96: =DT12 ->  | BR96: 0 | BU96: 0
W97: 1 | X97: 2 | Y97: 3 | Z97: 4 | AA97: 5 | AC97: 1 | AD97: 2 | AE97: 3 | AF97: 4 | AG97: 5 | AW97: Max. bet | AX97: Max. bet | BM97: =EA12 -> Straight | BQ97: =EE12 -> 
V98: =V93+IF(V93=1,13+RAND()^3,RAND()^3) -> 0.5708757345 | X98: 13.07708825 | Y98: 3.460584051 | Z98: 2.481209338 | AA98: 9.001371854 | AB98: 1.315329232e-05 | AD98: 7.738423015 | AE98: 11.03389355 | AF98: 9.566367561 | AG98: 7.592970305 | AH98: Rocker | AJ98: Utility (preference match) | AV98: Bluffer | AW98: =AN96 -> 1 | AX98: =AQ96 -> 1 | BM98: =EL12 -> Three of a Kind | BQ98: =EP12 ->  | BR98: 0 | BU98: 0
AH99: Deceiving factor | AJ99: 0 | AK99: 0 | AV99: Rocker | AW99: =AN111 -> 1 | AX99: =AQ111 -> 1 | BM99: =EW12 -> Two Pair | BQ99: =FA12 ->  | BR99: 0 | BU99: 0
W100: =RANK(W107,$W$107:$AA$107,1) ->  | X100: =RANK(X107,$W$107:$AA$107,1) ->  | AC100: =RANK(AC107,$AC$107:$AG$107,1) ->  | AD100: =RANK(AD107,$AC$107:$AG$107,1) ->  | AH100: Royal Flush | AI100: 1 | AJ100: =AW85+$AJ$99 -> 0 | AK100: =AX85+$AK$99 -> 0 | AL100: =AJ100/SUM($AJ$100:$AJ$109) ->  | AM100: 0 | AN100: 1 | AO100: =AK100/SUM($AK$100:$AK$109) ->  | AP100: 0 | AQ100: 1 | AV100: Tricker | AW100: =AN126 -> 0.2 | AX100: =AQ126 -> 0.3 | BM100: =FH12 -> One Pair | BQ100: =FL12 ->  | BR100: 0 | BU100: 0
O101: 12 | W101: =[0]!Player21 -> 0 | X101: =$P$1 -> ♦K | Y101: =$Q$1 -> ♠3 | Z101: =$R$1 -> ♥2 | AA101: =$T$1 -> ♦Q | AC101: =[0]!Player31 -> 0 | AD101: =$P$2 -> ♣7 | AE101: =$Q$2 -> ♥J | AF101: =$R$2 -> ♥9 | AG101: =$T$2 -> ♠A | AH101: Straight Flush | AI101: 2 | AJ101: =AW86+$AJ$99 -> 0 | AK101: =AX86+$AK$99 -> 0 | AL101: =AJ101/SUM($AJ$100:$AJ$109) ->  | AM101: =AL100+AM100 ->  | AN101: 0.9 | AO101: =AK101/SUM($AK$100:$AK$109) ->  | AP101: =AO100+AP100 ->  | AQ101: 0.9 | AV101: Optimist | AW101: =AN141 -> 1 | AX101: =AQ141 -> 1 | BM101: =FS12 -> High Card | BQ101: =FW12 ->  | BR101: 0 | BU101: 0
W102: =VLOOKUP(W101,$B$1:$F$52,5,0) ->  | X102: =VLOOKUP(X101,$B$1:$F$52,5,0) -> 13 | Y102: =VLOOKUP(Y101,$B$1:$F$52,5,0) -> 3 | Z102: =VLOOKUP(Z101,$B$1:$F$52,5,0) -> 2 | AA102: =VLOOKUP(AA101,$B$1:$F$52,5,0) -> 12 | AC102: =VLOOKUP(AC101,$B$1:$F$52,5,0) ->  | AD102: =VLOOKUP(AD101,$B$1:$F$52,5,0) -> 7 | AE102: =VLOOKUP(AE101,$B$1:$F$52,5,0) -> 11 | AF102: =VLOOKUP(AF101,$B$1:$F$52,5,0) -> 9 | AG102: =VLOOKUP(AG101,$B$1:$F$52,5,0) -> 1 | AH102: Four of a Kind | AI102: 3 | AJ102: 0 | AK102: 0 | AM102: =AL101+AM101 ->  | AN102: 0.8 | AP102: =AO101+AP101 ->  | AQ102: 0.8 | AV102: Maverick | AW102: =AN156 -> 0.2 | AX102: =AQ156 -> 0.3
W103: =VLOOKUP(W101,$B$1:$F$52,4,0) ->  | X103: =VLOOKUP(X101,$B$1:$F$52,4,0) -> D | Y103: =VLOOKUP(Y101,$B$1:$F$52,4,0) -> S | Z103: =VLOOKUP(Z101,$B$1:$F$52,4,0) -> H | AA103: =VLOOKUP(AA101,$B$1:$F$52,4,0) -> D | AC103: =VLOOKUP(AC101,$B$1:$F$52,4,0) ->  | AD103: =VLOOKUP(AD101,$B$1:$F$52,4,0) -> C | AE103: =VLOOKUP(AE101,$B$1:$F$52,4,0) -> H | AF103: =VLOOKUP(AF101,$B$1:$F$52,4,0) -> H | AG103: =VLOOKUP(AG101,$B$1:$F$52,4,0) -> S | AH103: Full House | AI103: 4 | AJ103: 0 | AK103: 0 | AN103: 0.6 | AQ103: 0.6 | AW103: 0.8281041384 | AX103: 0.01823216677 | BL103: 10 | BM103: =BX13 -> Royal Flush | BQ103: =CB13 -> 
W104: =HLOOKUP(W106,$W$100:$AA$103,3,0) ->  | X104: =HLOOKUP(X106,$W$100:$AA$103,3,0) ->  | AC104: =HLOOKUP(AC106,$AC$100:$AG$103,3,0) ->  | AD104: =HLOOKUP(AD106,$AC$100:$AG$103,3,0) ->  | AH104: Flush | AI104: 5 | AJ104: 0 | AK104: 0 | AN104: 0.5 | AQ104: 0.5 | AW104: Call/Raise | AX104: Call/Raise | BM104: =CI13 -> Straight Flush | BQ104: =CM13 -> 
W105: =HLOOKUP(W106,$W$100:$AA$103,4,0) ->  | X105: =HLOOKUP(X106,$W$100:$AA$103,4,0) ->  | AC105: =HLOOKUP(AC106,$AC$100:$AG$103,4,0) ->  | AD105: =HLOOKUP(AD106,$AC$100:$AG$103,4,0) ->  | AH105: Straight | AI105: 6 | AJ105: 0 | AK105: 0 | AN105: 0.4 | AQ105: 0.4 | AV105: Bluffer | AW105: =$AW$103*AW98 -> 0.8281041384 | AX105: =$AX$103*AX98 -> 0.01823216677 | BM105: =CT13 -> Four of a Kind | BQ105: =CX13 ->  | BR105: 0 | BU105: 0
W106: 1 | X106: 2 | Y106: 3 | Z106: 4 | AA106: 5 | AC106: 1 | AD106: 2 | AE106: 3 | AF106: 4 | AG106: 5 | AH106: Three of a Kind | AI106: 7 | AJ106: 0 | AK106: 0 | AN106: 0.3 | AQ106: 0.3 | AV106: Rocker | AW106: =$AW$103*AW99 -> 0.8281041384 | AX106: =$AX$103*AX99 -> 0.01823216677 | BM106: =DE13 -> Full House | BQ106: =DI13 ->  | BR106: 0 | BU106: 0
V107: =V102+IF(V102=1,13+RAND()^3,RAND()^3) -> 0.8351067327 | X107: 13.00113426 | Y107: 3.232314551 | Z107: 2.956712057 | AA107: 12.00084333 | AB107: 0.8483354614 | AD107: 7.036743057 | AE107: 11.37711834 | AF107: 9.343432416 | AG107: 14.01204599 | AH107: Two Pair | AI107: 8 | AJ107: 0 | AK107: 0 | AN107: 0.2 | AQ107: 0.2 | AV107: Tricker | AW107: 0.1656208277 | AX107: 0.00546965003 | BM107: =DP13 -> Flush | BQ107: =DT13 ->  | BR107: 0 | BU107: 0
AH108: One Pair/Check | AI108: 9 | AJ108: 0 | AK108: 0 | AN108: 0 | AQ108: 0 | AV108: Optimist | AW108: 0.8281041384 | AX108: 0.01823216677 | BM108: =EA13 -> Straight | BQ108: =EE13 -> 
W109: =RANK(W116,$W$116:$AA$116,1) ->  | X109: =RANK(X116,$W$116:$AA$116,1) ->  | AC109: =RANK(AC116,$AC$116:$AG$116,1) ->  | AD109: =RANK(AD116,$AC$116:$AG$116,1) ->  | AH109: High Card/Fold | AI109: 10 | AJ109: 0 | AK109: 0 | AN109: -0.1 | AQ109: -0.1 | AV109: Maverick | AW109: 0.1656208277 | AX109: 0.00546965003 | BM109: =EL13 -> Three of a Kind | BQ109: =EP13 ->  | BR109: 0 | BU109: 0
O110: 13 | W110: =[0]!Player21 -> 0 | X110: =$P$1 -> ♦K | Y110: =$Q$1 -> ♠3 | Z110: =$S$1 -> ♣9 | AA110: =$T$1 -> ♦Q | AC110: =[0]!Player31 -> 0 | AD110: =$P$2 -> ♣7 | AE110: =$Q$2 -> ♥J | AF110: =$S$2 -> ♥7 | AG110: =$T$2 -> ♠A | AW110: 0.5051600933 | AX110: 0.5599402785 | BM110: =EW13 -> Two Pair | BQ110: =FA13 ->  | BR110: 0 | BU110: 0
W111: =VLOOKUP(W110,$B$1:$F$52,5,0) ->  | X111: =VLOOKUP(X110,$B$1:$F$52,5,0) -> 13 | Y111: =VLOOKUP(Y110,$B$1:$F$52,5,0) -> 3 | Z111: =VLOOKUP(Z110,$B$1:$F$52,5,0) -> 9 | AA111: =VLOOKUP(AA110,$B$1:$F$52,5,0) -> 12 | AC111: =VLOOKUP(AC110,$B$1:$F$52,5,0) ->  | AD111: =VLOOKUP(AD110,$B$1:$F$52,5,0) -> 7 | AE111: =VLOOKUP(AE110,$B$1:$F$52,5,0) -> 11 | AF111: =VLOOKUP(AF110,$B$1:$F$52,5,0) -> 7 | AG111: =VLOOKUP(AG110,$B$1:$F$52,5,0) -> 1 | AM111: Max. bet | AN111: =VLOOKUP($AW$96,AM100:AN109,2,1) -> 1 | AP111: Max. bet | AQ111: =VLOOKUP($AX$96,AP100:AQ109,2,1) -> 1 | AW111: Call/Raise | AX111: Call/Raise | BM111: =FH13 -> One Pair | BQ111: =FL13 ->  | BR111: 0 | BU111: 0
W112: =VLOOKUP(W110,$B$1:$F$52,4,0) ->  | X112: =VLOOKUP(X110,$B$1:$F$52,4,0) -> D | Y112: =VLOOKUP(Y110,$B$1:$F$52,4,0) -> S | Z112: =VLOOKUP(Z110,$B$1:$F$52,4,0) -> C | AA112: =VLOOKUP(AA110,$B$1:$F$52,4,0) -> D | AC112: =VLOOKUP(AC110,$B$1:$F$52,4,0) ->  | AD112: =VLOOKUP(AD110,$B$1:$F$52,4,0) -> C | AE112: =VLOOKUP(AE110,$B$1:$F$52,4,0) -> H | AF112: =VLOOKUP(AF110,$B$1:$F$52,4,0) -> H | AG112: =VLOOKUP(AG110,$B$1:$F$52,4,0) -> S | AV112: Bluffer | AW112: =$AW$110*(AW98-AW105) -> 0.0868349295 | AX112: =$AX$110*(AX98-AX105) -> 0.549731354 | BM112: =FS13 -> High Card | BQ112: =FW13 ->  | BR112: 0 | BU112: 0
W113: =HLOOKUP(W115,$W$109:$AA$112,3,0) ->  | X113: =HLOOKUP(X115,$W$109:$AA$112,3,0) ->  | AC113: =HLOOKUP(AC115,$AC$109:$AG$112,3,0) ->  | AD113: =HLOOKUP(AD115,$AC$109:$AG$112,3,0) ->  | AH113: Tricker | AJ113: Utility (preference match) | AV113: Rocker | AW113: =$AW$110*(AW99-AW106) -> 0.0868349295 | AX113: =$AX$110*(AX99-AX106) -> 0.549731354
W114: =HLOOKUP(W115,$W$109:$AA$112,4,0) ->  | X114: =HLOOKUP(X115,$W$109:$AA$112,4,0) ->  | AC114: =HLOOKUP(AC115,$AC$109:$AG$112,4,0) ->  | AD114: =HLOOKUP(AD115,$AC$109:$AG$112,4,0) ->  | AH114: Deceiving factor | AJ114: 1 | AK114: 1 | AV114: Tricker | AW114: 0.0173669859 | AX114: 0.1649194062 | BL114: 11 | BM114: =BX14 -> Royal Flush | BQ114: =CB14 -> 
W115: 1 | X115: 2 | Y115: 3 | Z115: 4 | AA115: 5 | AC115: 1 | AD115: 2 | AE115: 3 | AF115: 4 | AG115: 5 | AH115: Royal Flush | AI115: 1 | AJ115: =AW85+IF(AW85=0,AJ$114) -> 1 | AK115: =AX85+IF(AX85=0,AK$114) -> 1 | AL115: =AJ115/SUM($AJ$115:$AJ$124) -> 0.1 | AM115: 0 | AN115: 1 | AO115: =AK115/SUM($AK$115:$AK$124) -> 0.1 | AP115: 0 | AQ115: 1 | AV115: Optimist | AW115: 0.0868349295 | AX115: 0.549731354 | BM115: =CI14 -> Straight Flush | BQ115: =CM14 -> 
V116: =V111+IF(V111=1,13+RAND()^3,RAND()^3) -> 0.8121005696 | X116: 13.12815764 | Y116: 3.433371373 | Z116: 9.268477347 | AA116: 12.00239334 | AB116: 0.00953390747 | AD116: 7.000035374 | AE116: 11.04344131 | AF116: 7.600323391 | AG116: 14.0000209 | AH116: Straight Flush | AI116: 2 | AJ116: =AW86+IF(AW86=0,AJ$114) -> 1 | AK116: 1 | AL116: =AJ116/SUM($AJ$115:$AJ$124) -> 0.1 | AM116: =AL115+AM115 -> 0.1 | AN116: 0.9 | AO116: =AK116/SUM($AK$115:$AK$124) -> 0.1 | AP116: =AO115+AP115 -> 0.1 | AQ116: 0.9 | AV116: Maverick | AW116: 0.0173669859 | AX116: 0.1649194062 | BM116: =CT14 -> Four of a Kind | BQ116: =CX14 ->  | BR116: 0 | BU116: 0
AH117: Four of a Kind | AI117: 3 | AJ117: =AW87+IF(AW87=0,AJ$114) -> 1 | AK117: 1 | AL117: 0.1 | AM117: =AL116+AM116 -> 0.2 | AN117: 0.8 | AO117: 0.1 | AP117: =AO116+AP116 -> 0.2 | AQ117: 0.8 | AW117: 0.05350452662 | AX117: 0.5924582481 | BM117: =DE14 -> Full House | BQ117: =DI14 ->  | BR117: 0 | BU117: 0
W118: =RANK(W125,$W$125:$AA$125,1) ->  | X118: =RANK(X125,$W$125:$AA$125,1) ->  | AC118: =RANK(AC125,$AC$125:$AG$125,1) ->  | AD118: =RANK(AD125,$AC$125:$AG$125,1) ->  | AH118: Full House | AI118: 4 | AJ118: =AW88+IF(AW88=0,AJ$114) -> 1 | AK118: 1 | AL118: 0.1 | AM118: 0.3 | AN118: 0.6 | AO118: 0.1 | AP118: 0.3 | AQ118: 0.6 | AW118: Call/Raise | AX118: Call/Raise | BM118: =DP14 -> Flush | BQ118: =DT14 ->  | BR118: 0 | BU118: 0
O119: 14 | W119: =[0]!Player21 -> 0 | X119: =$P$1 -> ♦K | Y119: =$R$1 -> ♥2 | Z119: =$S$1 -> ♣9 | AA119: =$T$1 -> ♦Q | AC119: =[0]!Player31 -> 0 | AD119: =$P$2 -> ♣7 | AE119: =$R$2 -> ♥9 | AF119: =$S$2 -> ♥7 | AG119: =$T$2 -> ♠A | AH119: Flush | AI119: 5 | AJ119: =AW89+IF(AW89=0,AJ$114) -> 1 | AK119: 1 | AL119: 0.1 | AM119: 0.4 | AN119: 0.5 | AO119: 0.1 | AP119: 0.4 | AQ119: 0.5 | AV119: Bluffer | AW119: =AW98-AW105-AW112 -> 0.08506093213 | AX119: =AX98-AX105-AX112 -> 0.4320364792 | BM119: =EA14 -> Straight | BQ119: =EE14 -> 
W120: =VLOOKUP(W119,$B$1:$F$52,5,0) ->  | X120: =VLOOKUP(X119,$B$1:$F$52,5,0) -> 13 | Y120: =VLOOKUP(Y119,$B$1:$F$52,5,0) -> 2 | Z120: =VLOOKUP(Z119,$B$1:$F$52,5,0) -> 9 | AA120: =VLOOKUP(AA119,$B$1:$F$52,5,0) -> 12 | AC120: =VLOOKUP(AC119,$B$1:$F$52,5,0) ->  | AD120: =VLOOKUP(AD119,$B$1:$F$52,5,0) -> 7 | AE120: =VLOOKUP(AE119,$B$1:$F$52,5,0) -> 9 | AF120: =VLOOKUP(AF119,$B$1:$F$52,5,0) -> 7 | AG120: =VLOOKUP(AG119,$B$1:$F$52,5,0) -> 1 | AH120: Straight | AI120: 6 | AJ120: =AW90+IF(AW90=0,AJ$114) -> 1 | AK120: 1 | AL120: 0.1 | AM120: 0.5 | AN120: 0.4 | AO120: 0.1 | AP120: 0.5 | AQ120: 0.4 | AV120: Rocker | AW120: =AW99-AW106-AW113 -> 0.08506093213 | AX120: 0.4320364792 | BM120: =EL14 -> Three of a Kind | BQ120: =EP14 ->  | BR120: 0 | BU120: 0
W121: =VLOOKUP(W119,$B$1:$F$52,4,0) ->  | X121: =VLOOKUP(X119,$B$1:$F$52,4,0) -> D | Y121: =VLOOKUP(Y119,$B$1:$F$52,4,0) -> H | Z121: =VLOOKUP(Z119,$B$1:$F$52,4,0) -> C | AA121: =VLOOKUP(AA119,$B$1:$F$52,4,0) -> D | AC121: =VLOOKUP(AC119,$B$1:$F$52,4,0) ->  | AD121: =VLOOKUP(AD119,$B$1:$F$52,4,0) -> C | AE121: =VLOOKUP(AE119,$B$1:$F$52,4,0) -> H | AF121: =VLOOKUP(AF119,$B$1:$F$52,4,0) -> H | AG121: =VLOOKUP(AG119,$B$1:$F$52,4,0) -> S | AH121: Three of a Kind | AI121: 7 | AJ121: =AW91+IF(AW91=0,AJ$114) -> 1 | AK121: 1 | AL121: 0.1 | AM121: 0.6 | AN121: 0.3 | AO121: 0.1 | AP121: 0.6 | AQ121: 0.3 | AV121: Tricker | AW121: 0.01701218643 | AX121: 0.1296109438 | BM121: =EW14 -> Two Pair | BQ121: =FA14 ->  | BR121: 0 | BU121: 0
W122: =HLOOKUP(W124,$W$118:$AA$121,3,0) ->  | X122: =HLOOKUP(X124,$W$118:$AA$121,3,0) ->  | AC122: =HLOOKUP(AC124,$AC$118:$AG$121,3,0) ->  | AD122: =HLOOKUP(AD124,$AC$118:$AG$121,3,0) ->  | AH122: Two Pair | AI122: 8 | AJ122: =AW92+IF(AW92=0,AJ$114) -> 1 | AK122: 1 | AL122: 0.1 | AM122: 0.7 | AN122: 0.2 | AO122: 0.1 | AP122: 0.7 | AQ122: 0.2 | AV122: Optimist | AW122: 0.08506093213 | AX122: 0.4320364792 | BM122: =FH14 -> One Pair | BQ122: =FL14 ->  | BR122: 0 | BU122: 0
W123: =HLOOKUP(W124,$W$118:$AA$121,4,0) ->  | X123: =HLOOKUP(X124,$W$118:$AA$121,4,0) ->  | AC123: =HLOOKUP(AC124,$AC$118:$AG$121,4,0) ->  | AD123: =HLOOKUP(AD124,$AC$118:$AG$121,4,0) ->  | AH123: One Pair/Check | AI123: 9 | AJ123: =AW93+IF(AW93=0,AJ$114) -> 1 | AK123: 1 | AL123: 0.1 | AM123: 0.8 | AN123: 0 | AO123: 0.1 | AP123: 0.8 | AQ123: 0 | AV123: Maverick | AW123: 0.01701218643 | AX123: 0.1296109438 | BM123: =FS14 -> High Card | BQ123: =FW14 ->  | BR123: 0 | BU123: 0
W124: 1 | X124: 2 | Y124: 3 | Z124: 4 | AA124: 5 | AC124: 1 | AD124: 2 | AE124: 3 | AF124: 4 | AG124: 5 | AH124: High Card/Fold | AI124: 10 | AJ124: =AW94+IF(AW94=0,AJ$114) -> 1 | AK124: 1 | AL124: 0.1 | AM124: 0.9 | AN124: -0.1 | AO124: 0.1 | AP124: 0.9 | AQ124: -0.1
V125: =V120+IF(V120=1,13+RAND()^3,RAND()^3) -> 0.01838241653 | X125: 13.39257887 | Y125: 2.769180911 | Z125: 9.002128583 | AA125: 12.01022797 | AB125: 0.2816841785 | AD125: 7.008295067 | AE125: 9.000151596 | AF125: 7.036361827 | AG125: 14.11624266 | BL125: 12 | BM125: =BX15 -> Royal Flush | BQ125: =CB15 -> 
AM126: Max. bet | AN126: =VLOOKUP($AW$96,AM115:AN124,2,1) -> 0.2 | AP126: Max. bet | AQ126: =VLOOKUP($AX$96,AP115:AQ124,2,1) -> 0.3 | BM126: =CI15 -> Straight Flush | BQ126: =CM15 -> 
W127: =RANK(W134,$W$134:$AA$134,1) ->  | X127: =RANK(X134,$W$134:$AA$134,1) ->  | AC127: =RANK(AC134,$AC$134:$AG$134,1) ->  | AD127: =RANK(AD134,$AC$134:$AG$134,1) ->  | BM127: =CT15 -> Four of a Kind | BQ127: =CX15 ->  | BR127: 0 | BU127: 0
O128: 15 | W128: =[0]!Player21 -> 0 | X128: =$Q$1 -> ♠3 | Y128: =$R$1 -> ♥2 | Z128: =$S$1 -> ♣9 | AA128: =$T$1 -> ♦Q | AC128: =[0]!Player31 -> 0 | AD128: =$Q$2 -> ♥J | AE128: =$R$2 -> ♥9 | AF128: =$S$2 -> ♥7 | AG128: =$T$2 -> ♠A | AH128: Optimist | AJ128: Utility (preference match) | BM128: =DE15 -> Full House | BQ128: =DI15 ->  | BR128: 0 | BU128: 0
W129: =VLOOKUP(W128,$B$1:$F$52,5,0) ->  | X129: =VLOOKUP(X128,$B$1:$F$52,5,0) -> 3 | Y129: =VLOOKUP(Y128,$B$1:$F$52,5,0) -> 2 | Z129: =VLOOKUP(Z128,$B$1:$F$52,5,0) -> 9 | AA129: =VLOOKUP(AA128,$B$1:$F$52,5,0) -> 12 | AC129: =VLOOKUP(AC128,$B$1:$F$52,5,0) ->  | AD129: =VLOOKUP(AD128,$B$1:$F$52,5,0) -> 11 | AE129: =VLOOKUP(AE128,$B$1:$F$52,5,0) -> 9 | AF129: =VLOOKUP(AF128,$B$1:$F$52,5,0) -> 7 | AG129: =VLOOKUP(AG128,$B$1:$F$52,5,0) -> 1 | AH129: Deceiving factor | AJ129: =AJ84 -> 0 | AK129: =AK84 -> 0 | BM129: =DP15 -> Flush | BQ129: =DT15 ->  | BR129: 0 | BU129: 0
W130: =VLOOKUP(W128,$B$1:$F$52,4,0) ->  | X130: =VLOOKUP(X128,$B$1:$F$52,4,0) -> S | Y130: =VLOOKUP(Y128,$B$1:$F$52,4,0) -> H | Z130: =VLOOKUP(Z128,$B$1:$F$52,4,0) -> C | AA130: =VLOOKUP(AA128,$B$1:$F$52,4,0) -> D | AC130: =VLOOKUP(AC128,$B$1:$F$52,4,0) ->  | AD130: =VLOOKUP(AD128,$B$1:$F$52,4,0) -> H | AE130: =VLOOKUP(AE128,$B$1:$F$52,4,0) -> H | AF130: =VLOOKUP(AF128,$B$1:$F$52,4,0) -> H | AG130: =VLOOKUP(AG128,$B$1:$F$52,4,0) -> S | AH130: Royal Flush | AI130: 1 | AJ130: =AW85+IF(AW85=0,AJ$129) -> 0 | AK130: =AX85+IF(AX85=0,AK$129) -> 0 | AL130: =AJ130/SUM($AJ$130:$AJ$138) ->  | AM130: 0 | AN130: 1 | AO130: =AK130/SUM($AK$130:$AK$138) ->  | AP130: 0 | AQ130: 1 | BM130: =EA15 -> Straight | BQ130: =EE15 -> 
W131: =HLOOKUP(W133,$W$127:$AA$130,3,0) ->  | X131: =HLOOKUP(X133,$W$127:$AA$130,3,0) ->  | AC131: =HLOOKUP(AC133,$AC$127:$AG$130,3,0) ->  | AD131: =HLOOKUP(AD133,$AC$127:$AG$130,3,0) ->  | AH131: Straight Flush | AI131: 2 | AJ131: =AW86+IF(AW86=0,AJ$129) -> 0 | AK131: 0 | AL131: =AJ131/SUM($AJ$130:$AJ$138) ->  | AM131: =AL130+AM130 ->  | AN131: 0.9 | AO131: =AK131/SUM($AK$130:$AK$138) ->  | AP131: =AO130+AP130 ->  | AQ131: 0.9 | BM131: =EL15 -> Three of a Kind | BQ131: =EP15 ->  | BR131: 0 | BU131: 0
W132: =HLOOKUP(W133,$W$127:$AA$130,4,0) ->  | X132: =HLOOKUP(X133,$W$127:$AA$130,4,0) ->  | AC132: =HLOOKUP(AC133,$AC$127:$AG$130,4,0) ->  | AD132: =HLOOKUP(AD133,$AC$127:$AG$130,4,0) ->  | AH132: Four of a Kind | AI132: 3 | AJ132: =AW87+IF(AW87=0,AJ$129) -> 0 | AK132: 0 | AM132: =AL131+AM131 ->  | AN132: 0.8 | AP132: =AO131+AP131 ->  | AQ132: 0.8 | BM132: =EW15 -> Two Pair | BQ132: =FA15 ->  | BR132: 0 | BU132: 0
W133: 1 | X133: 2 | Y133: 3 | Z133: 4 | AA133: 5 | AC133: 1 | AD133: 2 | AE133: 3 | AF133: 4 | AG133: 5 | AH133: Full House | AI133: 4 | AJ133: =AW88+IF(AW88=0,AJ$129) -> 0 | AK133: 0 | AN133: 0.6 | AQ133: 0.6 | BM133: =FH15 -> One Pair | BR133: 0 | BU133: 0
V134: =V129+IF(V129=1,13+RAND()^3,RAND()^3) -> 0.5139639878 | X134: 3.135189309 | Y134: 2.016509164 | Z134: 9.043200108 | AA134: 12.68712905 | AB134: 0.2271621982 | AD134: 11.77947397 | AE134: 9.000892058 | AF134: 7.002268584 | AG134: 14.97792425 | AH134: Flush | AI134: 5 | AJ134: =AW89+IF(AW89=0,AJ$129) -> 0 | AK134: 0 | AN134: 0.5 | AQ134: 0.5 | BM134: =FS15 -> High Card | BQ134: =FW15 ->  | BR134: 0 | BU134: 0
AH135: Straight | AI135: 6 | AJ135: =AW90+IF(AW90=0,AJ$129) -> 0 | AK135: 0 | AN135: 0.4 | AQ135: 0.4
W136: =RANK(W143,$W$143:$AA$143,1) ->  | X136: =RANK(X143,$W$143:$AA$143,1) ->  | AC136: =RANK(AC143,$AC$143:$AG$143,1) ->  | AD136: =RANK(AD143,$AC$143:$AG$143,1) ->  | AH136: Three of a Kind | AI136: 7 | AJ136: =AW91+IF(AW91=0,AJ$129) -> 0 | AK136: 0 | AN136: 0.3 | AQ136: 0.3 | BL136: 13 | BM136: =BX16 -> Royal Flush | BQ136: =CB16 -> 
O137: 16 | W137: =[0]!Player22 -> 0 | X137: =$P$1 -> ♦K | Y137: =$Q$1 -> ♠3 | Z137: =$R$1 -> ♥2 | AA137: =$S$1 -> ♣9 | AC137: =[0]!Player32 -> 0 | AD137: =$P$2 -> ♣7 | AE137: =$Q$2 -> ♥J | AF137: =$R$2 -> ♥9 | AG137: =$S$2 -> ♥7 | AH137: Two Pair | AI137: 8 | AJ137: =AW92+IF(AW92=0,AJ$129) -> 0 | AK137: 0 | AN137: 0.2 | AQ137: 0.2 | BM137: =CI16 -> Straight Flush | BQ137: =CM16 -> 
W138: =VLOOKUP(W137,$B$1:$F$52,5,0) ->  | X138: =VLOOKUP(X137,$B$1:$F$52,5,0) -> 13 | Y138: =VLOOKUP(Y137,$B$1:$F$52,5,0) -> 3 | Z138: =VLOOKUP(Z137,$B$1:$F$52,5,0) -> 2 | AA138: =VLOOKUP(AA137,$B$1:$F$52,5,0) -> 9 | AC138: =VLOOKUP(AC137,$B$1:$F$52,5,0) ->  | AD138: =VLOOKUP(AD137,$B$1:$F$52,5,0) -> 7 | AE138: =VLOOKUP(AE137,$B$1:$F$52,5,0) -> 11 | AF138: =VLOOKUP(AF137,$B$1:$F$52,5,0) -> 9 | AG138: =VLOOKUP(AG137,$B$1:$F$52,5,0) -> 7 | AH138: One Pair/Check | AI138: 9 | AJ138: =AW93+IF(AW93=0,AJ$129) -> 0 | AK138: 0 | AN138: 0 | AQ138: 0 | BM138: =CT16 -> Four of a Kind | BQ138: =CX16 ->  | BR138: 0 | BU138: 0
W139: =VLOOKUP(W137,$B$1:$F$52,4,0) ->  | X139: =VLOOKUP(X137,$B$1:$F$52,4,0) -> D | Y139: =VLOOKUP(Y137,$B$1:$F$52,4,0) -> S | Z139: =VLOOKUP(Z137,$B$1:$F$52,4,0) -> H | AA139: =VLOOKUP(AA137,$B$1:$F$52,4,0) -> C | AC139: =VLOOKUP(AC137,$B$1:$F$52,4,0) ->  | AD139: =VLOOKUP(AD137,$B$1:$F$52,4,0) -> C | AE139: =VLOOKUP(AE137,$B$1:$F$52,4,0) -> H | AF139: =VLOOKUP(AF137,$B$1:$F$52,4,0) -> H | AG139: =VLOOKUP(AG137,$B$1:$F$52,4,0) -> H | AH139: High Card/Fold | AI139: 10 | AJ139: =AW94+IF(AW94=0,AJ$129) -> 0 | AK139: 0 | AN139: -0.1 | AQ139: -0.1 | BM139: =DE16 -> Full House | BQ139: =DI16 ->  | BR139: 0 | BU139: 0
W140: =HLOOKUP(W142,$W$136:$AA$139,3,0) ->  | X140: =HLOOKUP(X142,$W$136:$AA$139,3,0) ->  | AC140: =HLOOKUP(AC142,$AC$136:$AG$139,3,0) ->  | AD140: =HLOOKUP(AD142,$AC$136:$AG$139,3,0) ->  | BM140: =DP16 -> Flush | BQ140: =DT16 ->  | BR140: 0 | BU140: 0
W141: =HLOOKUP(W142,$W$136:$AA$139,4,0) ->  | X141: =HLOOKUP(X142,$W$136:$AA$139,4,0) ->  | AC141: =HLOOKUP(AC142,$AC$136:$AG$139,4,0) ->  | AD141: =HLOOKUP(AD142,$AC$136:$AG$139,4,0) ->  | AM141: Max. bet | AN141: =VLOOKUP($AW$96,AM130:AN138,2,1) -> 1 | AP141: Max. bet | AQ141: =VLOOKUP($AX$96,AP130:AQ138,2,1) -> 1 | BM141: =EA16 -> Straight | BQ141: =EE16 -> 
W142: 1 | X142: 2 | Y142: 3 | Z142: 4 | AA142: 5 | AC142: 1 | AD142: 2 | AE142: 3 | AF142: 4 | AG142: 5 | BM142: =EL16 -> Three of a Kind | BQ142: =EP16 ->  | BR142: 0 | BU142: 0
V143: =V138+IF(V138=1,13+RAND()^3,RAND()^3) -> 0.5174796096 | X143: 13.03692445 | Y143: 3.073147218 | Z143: 2.000002181 | AA143: 9.000328137 | AB143: 0.2561465026 | AD143: 7.498923558 | AE143: 11.00509111 | AF143: 9.006812455 | AG143: 7.205198441 | AH143: Maverick | AJ143: Utility (preference match) | BM143: =EW16 -> Two Pair | BQ143: =FA16 ->  | BR143: 0 | BU143: 0
AH144: Deceiving factor | AJ144: 0.2 | AK144: 0.2 | BM144: =FH16 -> One Pair | BQ144: =FL16 ->  | BR144: 0 | BU144: 0
W145: =RANK(W152,$W$152:$AA$152,1) ->  | X145: =RANK(X152,$W$152:$AA$152,1) ->  | AC145: =RANK(AC152,$AC$152:$AG$152,1) ->  | AD145: =RANK(AD152,$AC$152:$AG$152,1) ->  | AH145: Royal Flush | AI145: 1 | AJ145: =AW85+IF(AW85=0,AJ$144) -> 0.2 | AK145: =AX85+IF(AX85=0,AK$144) -> 0.2 | AL145: =AJ145/SUM($AJ$145:$AJ$154) -> 0.1 | AM145: 0 | AN145: 1 | AO145: =AK145/SUM($AK$145:$AK$154) -> 0.1 | AP145: 0 | AQ145: 1 | BM145: =FS16 -> High Card | BQ145: =FW16 ->  | BR145: 0 | BU145: 0
O146: 17 | W146: =[0]!Player22 -> 0 | X146: =$P$1 -> ♦K | Y146: =$Q$1 -> ♠3 | Z146: =$R$1 -> ♥2 | AA146: =$T$1 -> ♦Q | AC146: =[0]!Player32 -> 0 | AD146: =$P$2 -> ♣7 | AE146: =$Q$2 -> ♥J | AF146: =$R$2 -> ♥9 | AG146: =$T$2 -> ♠A | AH146: Straight Flush | AI146: 2 | AJ146: =AW86+IF(AW86=0,AJ$144) -> 0.2 | AK146: =AX86+IF(AX86=0,AK$144) -> 0.2 | AL146: =AJ146/SUM($AJ$145:$AJ$154) -> 0.1 | AM146: =AL145+AM145 -> 0.1 | AN146: 0.9 | AO146: =AK146/SUM($AK$145:$AK$154) -> 0.1 | AP146: =AO145+AP145 -> 0.1 | AQ146: 0.9
W147: =VLOOKUP(W146,$B$1:$F$52,5,0) ->  | X147: =VLOOKUP(X146,$B$1:$F$52,5,0) -> 13 | Y147: =VLOOKUP(Y146,$B$1:$F$52,5,0) -> 3 | Z147: =VLOOKUP(Z146,$B$1:$F$52,5,0) -> 2 | AA147: =VLOOKUP(AA146,$B$1:$F$52,5,0) -> 12 | AC147: =VLOOKUP(AC146,$B$1:$F$52,5,0) ->  | AD147: =VLOOKUP(AD146,$B$1:$F$52,5,0) -> 7 | AE147: =VLOOKUP(AE146,$B$1:$F$52,5,0) -> 11 | AF147: =VLOOKUP(AF146,$B$1:$F$52,5,0) -> 9 | AG147: =VLOOKUP(AG146,$B$1:$F$52,5,0) -> 1 | AH147: Four of a Kind | AI147: 3 | AJ147: 0.2 | AK147: 0.2 | AL147: 0.1 | AM147: =AL146+AM146 -> 0.2 | AN147: 0.8 | AO147: 0.1 | AP147: =AO146+AP146 -> 0.2 | AQ147: 0.8 | BL147: 14 | BM147: =BX17 -> Royal Flush | BQ147: =CB17 -> 
W148: =VLOOKUP(W146,$B$1:$F$52,4,0) ->  | X148: =VLOOKUP(X146,$B$1:$F$52,4,0) -> D | Y148: =VLOOKUP(Y146,$B$1:$F$52,4,0) -> S | Z148: =VLOOKUP(Z146,$B$1:$F$52,4,0) -> H | AA148: =VLOOKUP(AA146,$B$1:$F$52,4,0) -> D | AC148: =VLOOKUP(AC146,$B$1:$F$52,4,0) ->  | AD148: =VLOOKUP(AD146,$B$1:$F$52,4,0) -> C | AE148: =VLOOKUP(AE146,$B$1:$F$52,4,0) -> H | AF148: =VLOOKUP(AF146,$B$1:$F$52,4,0) -> H | AG148: =VLOOKUP(AG146,$B$1:$F$52,4,0) -> S | AH148: Full House | AI148: 4 | AJ148: 0.2 | AK148: 0.2 | AL148: 0.1 | AM148: 0.3 | AN148: 0.6 | AO148: 0.1 | AP148: 0.3 | AQ148: 0.6 | BM148: =CI17 -> Straight Flush | BQ148: =CM17 -> 
W149: =HLOOKUP(W151,$W$145:$AA$148,3,0) ->  | X149: =HLOOKUP(X151,$W$145:$AA$148,3,0) ->  | AC149: =HLOOKUP(AC151,$AC$145:$AG$148,3,0) ->  | AD149: =HLOOKUP(AD151,$AC$145:$AG$148,3,0) ->  | AH149: Flush | AI149: 5 | AJ149: 0.2 | AK149: 0.2 | AL149: 0.1 | AM149: 0.4 | AN149: 0.5 | AO149: 0.1 | AP149: 0.4 | AQ149: 0.5 | BM149: =CT17 -> Four of a Kind | BQ149: =CX17 ->  | BR149: 0 | BU149: 0
W150: =HLOOKUP(W151,$W$145:$AA$148,4,0) ->  | X150: =HLOOKUP(X151,$W$145:$AA$148,4,0) ->  | AC150: =HLOOKUP(AC151,$AC$145:$AG$148,4,0) ->  | AD150: =HLOOKUP(AD151,$AC$145:$AG$148,4,0) ->  | AH150: Straight | AI150: 6 | AJ150: 0.2 | AK150: 0.2 | AL150: 0.1 | AM150: 0.5 | AN150: 0.4 | AO150: 0.1 | AP150: 0.5 | AQ150: 0.4 | BM150: =DE17 -> Full House | BQ150: =DI17 ->  | BR150: 0 | BU150: 0
W151: 1 | X151: 2 | Y151: 3 | Z151: 4 | AA151: 5 | AC151: 1 | AD151: 2 | AE151: 3 | AF151: 4 | AG151: 5 | AH151: Three of a Kind | AI151: 7 | AJ151: 0.2 | AK151: 0.2 | AL151: 0.1 | AM151: 0.6 | AN151: 0.3 | AO151: 0.1 | AP151: 0.6 | AQ151: 0.3 | BM151: =DP17 -> Flush | BQ151: =DT17 ->  | BR151: 0 | BU151: 0
V152: =V147+IF(V147=1,13+RAND()^3,RAND()^3) -> 0.05976476195 | X152: 13.00977757 | Y152: 3.212621977 | Z152: 2.702945222 | AA152: 12.0142341 | AB152: 0.1203359864 | AD152: 7.179138237 | AE152: 11.77112867 | AF152: 9.023101545 | AG152: 14.00049167 | AH152: Two Pair | AI152: 8 | AJ152: 0.2 | AK152: 0.2 | AL152: 0.1 | AM152: 0.7 | AN152: 0.2 | AO152: 0.1 | AP152: 0.7 | AQ152: 0.2 | BM152: =EA17 -> Straight | BQ152: =EE17 -> 
AH153: One Pair/Check | AI153: 9 | AJ153: 0.2 | AK153: 0.2 | AL153: 0.1 | AM153: 0.8 | AN153: 0 | AO153: 0.1 | AP153: 0.8 | AQ153: 0 | BM153: =EL17 -> Three of a Kind | BQ153: =EP17 ->  | BR153: 0 | BU153: 0
W154: =RANK(W161,$W$161:$AA$161,1) ->  | X154: =RANK(X161,$W$161:$AA$161,1) ->  | AC154: =RANK(AC161,$AC$161:$AG$161,1) ->  | AD154: =RANK(AD161,$AC$161:$AG$161,1) ->  | AH154: High Card/Fold | AI154: 10 | AJ154: 0.2 | AK154: 0.2 | AL154: 0.1 | AM154: 0.9 | AN154: -0.1 | AO154: 0.1 | AP154: 0.9 | AQ154: -0.1 | BM154: =EW17 -> Two Pair | BQ154: =FA17 ->  | BR154: 0 | BU154: 0
O155: 18 | W155: =[0]!Player22 -> 0 | X155: =$P$1 -> ♦K | Y155: =$Q$1 -> ♠3 | Z155: =$S$1 -> ♣9 | AA155: =$T$1 -> ♦Q | AC155: =[0]!Player32 -> 0 | AD155: =$P$2 -> ♣7 | AE155: =$Q$2 -> ♥J | AF155: =$S$2 -> ♥7 | AG155: =$T$2 -> ♠A | BM155: =FH17 -> One Pair | BQ155: =FL17 ->  | BR155: 0 | BU155: 0
W156: =VLOOKUP(W155,$B$1:$F$52,5,0) ->  | X156: =VLOOKUP(X155,$B$1:$F$52,5,0) -> 13 | Y156: =VLOOKUP(Y155,$B$1:$F$52,5,0) -> 3 | Z156: =VLOOKUP(Z155,$B$1:$F$52,5,0) -> 9 | AA156: =VLOOKUP(AA155,$B$1:$F$52,5,0) -> 12 | AC156: =VLOOKUP(AC155,$B$1:$F$52,5,0) ->  | AD156: =VLOOKUP(AD155,$B$1:$F$52,5,0) -> 7 | AE156: =VLOOKUP(AE155,$B$1:$F$52,5,0) -> 11 | AF156: =VLOOKUP(AF155,$B$1:$F$52,5,0) -> 7 | AG156: =VLOOKUP(AG155,$B$1:$F$52,5,0) -> 1 | AM156: Max. bet | AN156: =VLOOKUP($AW$96,AM145:AN153,2,1) -> 0.2 | AP156: Max. bet | AQ156: =VLOOKUP($AX$96,AP145:AQ154,2,1) -> 0.3 | BM156: =FS17 -> High Card | BQ156: =FW17 ->  | BR156: 0 | BU156: 0
W157: =VLOOKUP(W155,$B$1:$F$52,4,0) ->  | X157: =VLOOKUP(X155,$B$1:$F$52,4,0) -> D | Y157: =VLOOKUP(Y155,$B$1:$F$52,4,0) -> S | Z157: =VLOOKUP(Z155,$B$1:$F$52,4,0) -> C | AA157: =VLOOKUP(AA155,$B$1:$F$52,4,0) -> D | AC157: =VLOOKUP(AC155,$B$1:$F$52,4,0) ->  | AD157: =VLOOKUP(AD155,$B$1:$F$52,4,0) -> C | AE157: =VLOOKUP(AE155,$B$1:$F$52,4,0) -> H | AF157: =VLOOKUP(AF155,$B$1:$F$52,4,0) -> H | AG157: =VLOOKUP(AG155,$B$1:$F$52,4,0) -> S
W158: =HLOOKUP(W160,$W$154:$AA$157,3,0) ->  | X158: =HLOOKUP(X160,$W$154:$AA$157,3,0) ->  | AC158: =HLOOKUP(AC160,$AC$154:$AG$157,3,0) ->  | AD158: =HLOOKUP(AD160,$AC$154:$AG$157,3,0) ->  | BL158: 15 | BM158: =BX18 -> Royal Flush | BQ158: =CB18 -> 
W159: =HLOOKUP(W160,$W$154:$AA$157,4,0) ->  | X159: =HLOOKUP(X160,$W$154:$AA$157,4,0) ->  | AC159: =HLOOKUP(AC160,$AC$154:$AG$157,4,0) ->  | AD159: =HLOOKUP(AD160,$AC$154:$AG$157,4,0) ->  | BM159: =CI18 -> Straight Flush | BQ159: =CM18 -> 
W160: 1 | X160: 2 | Y160: 3 | Z160: 4 | AA160: 5 | AC160: 1 | AD160: 2 | AE160: 3 | AF160: 4 | AG160: 5 | BM160: =CT18 -> Four of a Kind | BQ160: =CX18 ->  | BR160: 0 | BU160: 0
V161: =V156+IF(V156=1,13+RAND()^3,RAND()^3) -> 0.01290232894 | X161: 13.94992658 | Y161: 3.008229733 | Z161: 9.000959741 | AA161: 12.08364222 | AB161: 0.5719415386 | AD161: 7.151024477 | AE161: 11.54163609 | AF161: 7.307518087 | AG161: 14.31894295 | BM161: =DE18 -> Full House | BQ161: =DI18 ->  | BR161: 0 | BU161: 0
BM162: =DP18 -> Flush | BQ162: =DT18 ->  | BR162: 0 | BU162: 0
W163: =RANK(W170,$W$170:$AA$170,1) ->  | X163: =RANK(X170,$W$170:$AA$170,1) ->  | AC163: =RANK(AC170,$AC$170:$AG$170,1) ->  | AD163: =RANK(AD170,$AC$170:$AG$170,1) ->  | BM163: =EA18 -> Straight | BQ163: =EE18 -> 
O164: 19 | W164: =[0]!Player22 -> 0 | X164: =$P$1 -> ♦K | Y164: =$R$1 -> ♥2 | Z164: =$S$1 -> ♣9 | AA164: =$T$1 -> ♦Q | AC164: =[0]!Player32 -> 0 | AD164: =$P$2 -> ♣7 | AE164: =$R$2 -> ♥9 | AF164: =$S$2 -> ♥7 | AG164: =$T$2 -> ♠A | BM164: =EL18 -> Three of a Kind | BQ164: =EP18 ->  | BR164: 0 | BU164: 0
W165: =VLOOKUP(W164,$B$1:$F$52,5,0) ->  | X165: =VLOOKUP(X164,$B$1:$F$52,5,0) -> 13 | Y165: =VLOOKUP(Y164,$B$1:$F$52,5,0) -> 2 | Z165: =VLOOKUP(Z164,$B$1:$F$52,5,0) -> 9 | AA165: =VLOOKUP(AA164,$B$1:$F$52,5,0) -> 12 | AC165: =VLOOKUP(AC164,$B$1:$F$52,5,0) ->  | AD165: =VLOOKUP(AD164,$B$1:$F$52,5,0) -> 7 | AE165: =VLOOKUP(AE164,$B$1:$F$52,5,0) -> 9 | AF165: =VLOOKUP(AF164,$B$1:$F$52,5,0) -> 7 | AG165: =VLOOKUP(AG164,$B$1:$F$52,5,0) -> 1 | BM165: =EW18 -> Two Pair | BQ165: =FA18 ->  | BR165: 0 | BU165: 0
W166: =VLOOKUP(W164,$B$1:$F$52,4,0) ->  | X166: =VLOOKUP(X164,$B$1:$F$52,4,0) -> D | Y166: =VLOOKUP(Y164,$B$1:$F$52,4,0) -> H | Z166: =VLOOKUP(Z164,$B$1:$F$52,4,0) -> C | AA166: =VLOOKUP(AA164,$B$1:$F$52,4,0) -> D | AC166: =VLOOKUP(AC164,$B$1:$F$52,4,0) ->  | AD166: =VLOOKUP(AD164,$B$1:$F$52,4,0) -> C | AE166: =VLOOKUP(AE164,$B$1:$F$52,4,0) -> H | AF166: =VLOOKUP(AF164,$B$1:$F$52,4,0) -> H | AG166: =VLOOKUP(AG164,$B$1:$F$52,4,0) -> S | BM166: =FH18 -> One Pair | BQ166: =FL18 ->  | BR166: 0 | BU166: 0
W167: =HLOOKUP(W169,$W$163:$AA$166,3,0) ->  | X167: =HLOOKUP(X169,$W$163:$AA$166,3,0) ->  | AC167: =HLOOKUP(AC169,$AC$163:$AG$166,3,0) ->  | AD167: =HLOOKUP(AD169,$AC$163:$AG$166,3,0) ->  | BM167: =FS18 -> High Card | BQ167: =FW18 ->  | BR167: 0 | BU167: 0
W168: =HLOOKUP(W169,$W$163:$AA$166,4,0) ->  | X168: =HLOOKUP(X169,$W$163:$AA$166,4,0) ->  | AC168: =HLOOKUP(AC169,$AC$163:$AG$166,4,0) ->  | AD168: =HLOOKUP(AD169,$AC$163:$AG$166,4,0) -> 
W169: 1 | X169: 2 | Y169: 3 | Z169: 4 | AA169: 5 | AC169: 1 | AD169: 2 | AE169: 3 | AF169: 4 | AG169: 5 | BL169: 16 | BM169: =BX19 -> Royal Flush | BQ169: =CB19 -> 
V170: =V165+IF(V165=1,13+RAND()^3,RAND()^3) -> 0.6363845494 | X170: 13.02574742 | Y170: 2.121003431 | Z170: 9.558895583 | AA170: 12.29258539 | AB170: 0.002957651898 | AD170: 7.001523807 | AE170: 9.365996521 | AF170: 7.871312863 | AG170: 14.42150671 | BM170: =CI19 -> Straight Flush | BQ170: =CM19 -> 
BM171: =CT19 -> Four of a Kind | BQ171: =CX19 ->  | BR171: 0 | BU171: 0
W172: =RANK(W179,$W$179:$AA$179,1) ->  | X172: =RANK(X179,$W$179:$AA$179,1) ->  | AC172: =RANK(AC179,$AC$179:$AG$179,1) ->  | AD172: =RANK(AD179,$AC$179:$AG$179,1) ->  | BM172: =DE19 -> Full House | BQ172: =DI19 ->  | BR172: 0 | BU172: 0
O173: 20 | W173: =[0]!Player22 -> 0 | X173: =$Q$1 -> ♠3 | Y173: =$R$1 -> ♥2 | Z173: =$S$1 -> ♣9 | AA173: =$T$1 -> ♦Q | AC173: =[0]!Player32 -> 0 | AD173: =$Q$2 -> ♥J | AE173: =$R$2 -> ♥9 | AF173: =$S$2 -> ♥7 | AG173: =$T$2 -> ♠A | BM173: =DP19 -> Flush | BQ173: =DT19 ->  | BR173: 0 | BU173: 0
W174: =VLOOKUP(W173,$B$1:$F$52,5,0) ->  | X174: =VLOOKUP(X173,$B$1:$F$52,5,0) -> 3 | Y174: =VLOOKUP(Y173,$B$1:$F$52,5,0) -> 2 | Z174: =VLOOKUP(Z173,$B$1:$F$52,5,0) -> 9 | AA174: =VLOOKUP(AA173,$B$1:$F$52,5,0) -> 12 | AC174: =VLOOKUP(AC173,$B$1:$F$52,5,0) ->  | AD174: =VLOOKUP(AD173,$B$1:$F$52,5,0) -> 11 | AE174: =VLOOKUP(AE173,$B$1:$F$52,5,0) -> 9 | AF174: =VLOOKUP(AF173,$B$1:$F$52,5,0) -> 7 | AG174: =VLOOKUP(AG173,$B$1:$F$52,5,0) -> 1 | BM174: =EA19 -> Straight | BQ174: =EE19 -> 
W175: =VLOOKUP(W173,$B$1:$F$52,4,0) ->  | X175: =VLOOKUP(X173,$B$1:$F$52,4,0) -> S | Y175: =VLOOKUP(Y173,$B$1:$F$52,4,0) -> H | Z175: =VLOOKUP(Z173,$B$1:$F$52,4,0) -> C | AA175: =VLOOKUP(AA173,$B$1:$F$52,4,0) -> D | AC175: =VLOOKUP(AC173,$B$1:$F$52,4,0) ->  | AD175: =VLOOKUP(AD173,$B$1:$F$52,4,0) -> H | AE175: =VLOOKUP(AE173,$B$1:$F$52,4,0) -> H | AF175: =VLOOKUP(AF173,$B$1:$F$52,4,0) -> H | AG175: =VLOOKUP(AG173,$B$1:$F$52,4,0) -> S | BM175: =EL19 -> Three of a Kind | BQ175: =EP19 ->  | BR175: 0 | BU175: 0
W176: =HLOOKUP(W178,$W$172:$AA$175,3,0) ->  | X176: =HLOOKUP(X178,$W$172:$AA$175,3,0) ->  | AC176: =HLOOKUP(AC178,$AC$172:$AG$175,3,0) ->  | AD176: =HLOOKUP(AD178,$AC$172:$AG$175,3,0) ->  | BM176: =EW19 -> Two Pair | BQ176: =FA19 ->  | BR176: 0 | BU176: 0
W177: =HLOOKUP(W178,$W$172:$AA$175,4,0) ->  | X177: =HLOOKUP(X178,$W$172:$AA$175,4,0) ->  | AC177: =HLOOKUP(AC178,$AC$172:$AG$175,4,0) ->  | AD177: =HLOOKUP(AD178,$AC$172:$AG$175,4,0) ->  | BM177: =FH19 -> One Pair | BQ177: =FL19 ->  | BR177: 0 | BU177: 0
W178: 1 | X178: 2 | Y178: 3 | Z178: 4 | AA178: 5 | AC178: 1 | AD178: 2 | AE178: 3 | AF178: 4 | AG178: 5 | BM178: =FS19 -> High Card | BQ178: =FW19 ->  | BR178: 0 | BU178: 0
V179: =V174+IF(V174=1,13+RAND()^3,RAND()^3) -> 0.2031609696 | X179: 3.112197183 | Y179: 2.000276141 | Z179: 9.000625374 | AA179: 12.06188172 | AB179: 0.4044426189 | AD179: 11.02140306 | AE179: 9.656755944 | AF179: 7.210867539 | AG179: 14.38975526
BL180: 17 | BM180: =BX20 -> Royal Flush | BQ180: =CB20 -> 
W181: =RANK(W188,$W$188:$AA$188,1) -> 5 | X181: =RANK(X188,$W$188:$AA$188,1) -> 2 | Y181: 1 | Z181: 3 | AA181: 4 | AC181: =RANK(AC188,$AC$188:$AG$188,1) -> 2 | AD181: =RANK(AD188,$AC$188:$AG$188,1) -> 4 | AE181: 3 | AF181: 1 | AG181: 5 | BM181: =CI20 -> Straight Flush | BQ181: =CM20 -> 
O182: 21 | W182: =$P$1 -> ♦K | X182: =$Q$1 -> ♠3 | Y182: =$R$1 -> ♥2 | Z182: =$S$1 -> ♣9 | AA182: =$T$1 -> ♦Q | AC182: =$P$2 -> ♣7 | AD182: =$Q$2 -> ♥J | AE182: =$R$2 -> ♥9 | AF182: =$S$2 -> ♥7 | AG182: =$T$2 -> ♠A | BM182: =CT20 -> Four of a Kind | BQ182: =CX20 ->  | BR182: 0 | BU182: 0
W183: =VLOOKUP(W182,$B$1:$F$52,5,0) -> 13 | X183: =VLOOKUP(X182,$B$1:$F$52,5,0) -> 3 | Y183: =VLOOKUP(Y182,$B$1:$F$52,5,0) -> 2 | Z183: =VLOOKUP(Z182,$B$1:$F$52,5,0) -> 9 | AA183: =VLOOKUP(AA182,$B$1:$F$52,5,0) -> 12 | AC183: =VLOOKUP(AC182,$B$1:$F$52,5,0) -> 7 | AD183: =VLOOKUP(AD182,$B$1:$F$52,5,0) -> 11 | AE183: =VLOOKUP(AE182,$B$1:$F$52,5,0) -> 9 | AF183: =VLOOKUP(AF182,$B$1:$F$52,5,0) -> 7 | AG183: =VLOOKUP(AG182,$B$1:$F$52,5,0) -> 1 | BM183: =DE20 -> Full House | BQ183: =DI20 ->  | BR183: 0 | BU183: 0
W184: =VLOOKUP(W182,$B$1:$F$52,4,0) -> D | X184: =VLOOKUP(X182,$B$1:$F$52,4,0) -> S | Y184: =VLOOKUP(Y182,$B$1:$F$52,4,0) -> H | Z184: =VLOOKUP(Z182,$B$1:$F$52,4,0) -> C | AA184: =VLOOKUP(AA182,$B$1:$F$52,4,0) -> D | AC184: =VLOOKUP(AC182,$B$1:$F$52,4,0) -> C | AD184: =VLOOKUP(AD182,$B$1:$F$52,4,0) -> H | AE184: =VLOOKUP(AE182,$B$1:$F$52,4,0) -> H | AF184: =VLOOKUP(AF182,$B$1:$F$52,4,0) -> H | AG184: =VLOOKUP(AG182,$B$1:$F$52,4,0) -> S | BM184: =DP20 -> Flush | BQ184: =DT20 ->  | BR184: 0 | BU184: 0
W185: =HLOOKUP(W187,$W$181:$AA$184,3,0) -> 2 | X185: =HLOOKUP(X187,$W$181:$AA$184,3,0) -> 3 | Y185: 9 | Z185: 12 | AA185: 13 | AC185: =HLOOKUP(AC187,$AC$181:$AG$184,3,0) -> 7 | AD185: =HLOOKUP(AD187,$AC$181:$AG$184,3,0) -> 7 | AE185: 9 | AF185: 11 | AG185: 1 | BM185: =EA20 -> Straight | BQ185: =EE20 -> 
W186: =HLOOKUP(W187,$W$181:$AA$184,4,0) -> H | X186: =HLOOKUP(X187,$W$181:$AA$184,4,0) -> S | Y186: C | Z186: D | AA186: D | AC186: =HLOOKUP(AC187,$AC$181:$AG$184,4,0) -> H | AD186: =HLOOKUP(AD187,$AC$181:$AG$184,4,0) -> C | AE186: H | AF186: H | AG186: S | BM186: =EL20 -> Three of a Kind | BQ186: =EP20 ->  | BR186: 0 | BU186: 0
W187: 1 | X187: 2 | Y187: 3 | Z187: 4 | AA187: 5 | AC187: 1 | AD187: 2 | AE187: 3 | AF187: 4 | AG187: 5 | BM187: =EW20 -> Two Pair | BQ187: =FA20 ->  | BR187: 0 | BU187: 0
V188: =V183+IF(V183=1,13+RAND()^3,RAND()^3) -> 0.003458138191 | W188: 13.07515681 | X188: 3.022391897 | Y188: 2.058278837 | Z188: 9.154707461 | AA188: 12.12116223 | AB188: 0.2387582117 | AC188: 7.98377059 | AD188: 11.03565371 | AE188: 9.011431762 | AF188: 7.001549937 | AG188: 14.31857049 | BM188: =FH20 -> One Pair | BQ188: =FL20 ->  | BR188: 0 | BU188: 0
BM189: =FS20 -> High Card | BQ189: =FW20 ->  | BR189: 0 | BU189: 0
BL191: 18 | BM191: =BX21 -> Royal Flush | BQ191: =CB21 -> 
BM192: =CI21 -> Straight Flush | BQ192: =CM21 -> 
BM193: =CT21 -> Four of a Kind | BQ193: =CX21 ->  | BR193: 0 | BU193: 0
BM194: =DE21 -> Full House | BQ194: =DI21 ->  | BR194: 0 | BU194: 0
BM195: =DP21 -> Flush | BQ195: =DT21 ->  | BR195: 0 | BU195: 0
BM196: =EA21 -> Straight | BQ196: =EE21 -> 
BM197: =EL21 -> Three of a Kind | BQ197: =EP21 ->  | BR197: 0 | BU197: 0
BM198: =EW21 -> Two Pair | BQ198: =FA21 ->  | BR198: 0 | BU198: 0
BM199: =FH21 -> One Pair | BQ199: =FL21 ->  | BR199: 0 | BU199: 0
BM200: =FS21 -> High Card | BQ200: =FW21 ->  | BR200: 0 | BU200: 0
BL202: 19 | BM202: =BX22 -> Royal Flush | BQ202: =CB22 -> 
... 82 more rows

Sheet Deck (hidden)
A1: 1 | B1: ♠A | C1: 0.3335753083 | D1: =RANK(C1,$C$1:$C$52) -> 29 | E1: S | F1: 1 | H1: Royal Flush | I1: 1 | L1: =RANK(L8,$L$8:$P$8,1) ->  | M1: =RANK(M8,$L$8:$P$8,1) ->  | N1: =RANK(N8,$L$8:$P$8,1) ->  | O1: =RANK(O8,$L$8:$P$8,1) ->  | P1: =RANK(P8,$L$8:$P$8,1) ->  | R1: =RANK(R8,$R$8:$V$8,1) ->  | S1: =RANK(S8,$R$8:$V$8,1) ->  | X1: =RANK(X8,$X$8:$AB$8,1) ->  | Y1: =RANK(Y8,$X$8:$AB$8,1) ->  | AN1: Student | AV1: Robot1 | BD1: Robot1 | BY1: Match? | CB1: Match? | CE1: Match?
A2: 2 | B2: ♠2 | C2: 0.5938293338 | D2: 19 | E2: S | F2: 2 | H2: Straight Flush | I2: 2 | J2: 1 | L2: =[0]!Player11 -> 0 | M2: =[0]!Player12 -> 0 | N2: =[0]!House1 -> 0 | O2: =[0]!House2 -> 0 | P2: =[0]!House3 -> 0 | R2: =[0]!Player21 -> 0 | S2: =[0]!Player22 -> 0 | T2: =[0]!House1 -> 0 | U2: =[0]!House2 -> 0 | V2: =[0]!House3 -> 0 | X2: =[0]!Player31 -> 0 | Y2: =[0]!Player32 -> 0 | Z2: =[0]!House1 -> 0 | AA2: =[0]!House2 -> 0 | AB2: =[0]!House3 -> 0 | BW2: Student | BZ2: Robot1 | CC2: Robot1
A3: 3 | B3: ♠3 | C3: 0.189289391 | D3: 38 | E3: S | F3: 3 | H3: Four of a Kind | I3: 3 | L3: =VLOOKUP(L2,$B$1:$F$52,5,0) ->  | M3: =VLOOKUP(M2,$B$1:$F$52,5,0) ->  | N3: =VLOOKUP(N2,$B$1:$F$52,5,0) ->  | O3: =VLOOKUP(O2,$B$1:$F$52,5,0) ->  | P3: =VLOOKUP(P2,$B$1:$F$52,5,0) ->  | R3: =VLOOKUP(R2,$B$1:$F$52,5,0) ->  | S3: =VLOOKUP(S2,$B$1:$F$52,5,0) ->  | T3: =VLOOKUP(T2,$B$1:$F$52,5,0) ->  | U3: =VLOOKUP(U2,$B$1:$F$52,5,0) ->  | V3: =VLOOKUP(V2,$B$1:$F$52,5,0) ->  | X3: =VLOOKUP(X2,$B$1:$F$52,5,0) ->  | Y3: =VLOOKUP(Y2,$B$1:$F$52,5,0) ->  | Z3: =VLOOKUP(Z2,$B$1:$F$52,5,0) ->  | AA3: =VLOOKUP(AA2,$B$1:$F$52,5,0) ->  | AB3: =VLOOKUP(AB2,$B$1:$F$52,5,0) ->  | BW3: Number | BX3: Suit | BY3: Total | BZ3: Number | CA3: Suit | CB3: Total | CC3: Number | CD3: Suit | CE3: Total
A4: 4 | B4: ♠4 | C4: 0.3269943595 | D4: 30 | E4: S | F4: 4 | H4: Full House | I4: 4 | L4: =VLOOKUP(L2,$B$1:$F$52,4,0) ->  | M4: =VLOOKUP(M2,$B$1:$F$52,4,0) ->  | N4: =VLOOKUP(N2,$B$1:$F$52,4,0) ->  | O4: =VLOOKUP(O2,$B$1:$F$52,4,0) ->  | P4: =VLOOKUP(P2,$B$1:$F$52,4,0) ->  | R4: =VLOOKUP(R2,$B$1:$F$52,4,0) ->  | S4: =VLOOKUP(S2,$B$1:$F$52,4,0) ->  | T4: =VLOOKUP(T2,$B$1:$F$52,4,0) ->  | U4: =VLOOKUP(U2,$B$1:$F$52,4,0) ->  | V4: =VLOOKUP(V2,$B$1:$F$52,4,0) ->  | X4: =VLOOKUP(X2,$B$1:$F$52,4,0) ->  | Y4: =VLOOKUP(Y2,$B$1:$F$52,4,0) ->  | Z4: =VLOOKUP(Z2,$B$1:$F$52,4,0) ->  | AA4: =VLOOKUP(AA2,$B$1:$F$52,4,0) ->  | AB4: =VLOOKUP(AB2,$B$1:$F$52,4,0) ->  | AH4: 1 | AI4: =L5 ->  | AJ4: =M5 ->  | AK4: =N5 ->  | AL4: =O5 ->  | AM4: =P5 ->  | AN4: =INDEX($BV$4:$BV$13,MATCH(1,$BY$4:$BY$13,0)) ->  | AO4: =INDEX($BU$4:$BU$13,MATCH(AN4,$BV$4:$BV$13,0)) ->  | AP4: 1 | AQ4: =R5 ->  | AR4: =S5 ->  | AS4: =T5 ->  | AT4: =U5 ->  | AU4: =V5 ->  | AV4: =INDEX($BV$4:$BV$13,MATCH(1,$CB$4:$CB$13,0)) ->  | AW4: =INDEX($BU$4:$BU$13,MATCH(AV4,$BV$4:$BV$13,0)) ->  | AX4: 1 | AY4: =X5 ->  | AZ4: =Y5 ->  | BA4: =Z5 ->  | BB4: =AA5 ->  | BC4: =AB5 ->  | BD4: =INDEX($BV$4:$BV$13,MATCH(1,$CE$4:$CE$13,0)) ->  | BE4: =INDEX($BU$4:$BU$13,MATCH(BD4,$BV$4:$BV$13,0)) ->  | BU4: 1 | BV4: =CG4 -> Royal Flush | BW4: =CH4 ->  | BX4: =CI4 ->  | BY4: =CJ4 ->  | BZ4: =CK4 ->  | CA4: =CL4 ->  | CB4: =CM4 ->  | CC4: =CN4 ->  | CD4: =CO4 ->  | CE4: =CP4 ->  | CG4: Royal Flush | CH4: =IF(AND(10=AI4,11=AJ4,12=AK4,13=AL4,1=AM4),1,0) ->  | CI4: =IF(AND(AI25=AJ25,AJ25=AK25,AK25=AL25,AL25=AM25),1,0) ->  | CJ4: =CH4*CI4 ->  | CK4: =IF(AND(10=AQ4,11=AR4,12=AS4,13=AT4,1=AU4),1,0) ->  | CL4: =IF(AND(AQ25=AR25,AR25=AS25,AS25=AT25,AT25=AU25),1,0) ->  | CM4: =CK4*CL4 ->  | CN4: =IF(AND(10=AY4,11=AZ4,12=BA4,13=BB4,1=BC4),1,0) ->  | CO4: =IF(AND(AY25=AZ25,AZ25=BA25,BA25=BB25,BB25=BC25),1,0) ->  | CP4: =CN4*CO4 ->  | CR4: Straight Flush | CS4: =IF(OR(AND(AI4<10,AJ4=AI4+1,AK4=AJ4+1,AL4=AK4+1,AM4=AL4+1),AND(AI4=2,AJ4=3,AK4=4,AL4=5,AM4=1)),1,0) ->  | CT4: =IF(AND(AI25=AJ25,AJ25=AK25,AK25=AL25,AL25=AM25),1,0) ->  | CU4: =CS4*CT4 ->  | CV4: =IF(OR(AND(AQ4<10,AR4=AQ4+1,AS4=AR4+1,AT4=AS4+1,AU4=AT4+1),AND(AQ4=2,AR4=3,AS4=4,AT4=5,AU4=1)),1,0) ->  | CW4: =IF(AND(AQ25=AR25,AR25=AS25,AS25=AT25,AT25=AU25),1,0) ->  | CX4: =CV4*CW4 ->  | CY4: =IF(OR(AND(AY4<10,AZ4=AY4+1,BA4=AZ4+1,BB4=BA4+1,BC4=BB4+1),AND(AY4=2,AZ4=3,BA4=4,BB4=5,BC4=1)),1,0) ->  | CZ4: =IF(AND(AY25=AZ25,AZ25=BA25,BA25=BB25,BB25=BC25),1,0) ->  | DA4: =CY4*CZ4 ->  | DC4: Four of a Kind | DD4: =IF(OR(AND(AI4=AJ4,AJ4=AK4,AK4=AL4),AND(AJ4=AK4,AK4=AL4,AL4=AM4)),1,0) ->  | DF4: =DD4 ->  | DG4: =IF(OR(AND(AQ4=AR4,AR4=AS4,AS4=AT4),AND(AR4=AS4,AS4=AT4,AT4=AU4)),1,0) ->  | DI4: =DG4 ->  | DJ4: =IF(OR(AND(AY4=AZ4,AZ4=BA4,BA4=BB4),AND(AZ4=BA4,BA4=BB4,BB4=BC4)),1,0) ->  | DL4: =DJ4 ->  | DN4: Full House | DO4: =IF(OR(AND(AI4=AJ4,AJ4=AK4,AL4=AM4),AND(AI4=AJ4,AK4=AL4,AL4=AM4)),1,0) ->  | DQ4: =DO4 ->  | DR4: =IF(OR(AND(AQ4=AR4,AR4=AS4,AT4=AU4),AND(AQ4=AR4,AS4=AT4,AT4=AU4)),1,0) ->  | DT4: =DR4 ->  | DU4: =IF(OR(AND(AY4=AZ4,AZ4=BA4,BB4=BC4),AND(AY4=AZ4,BA4=BB4,BB4=BC4)),1,0) ->  | DW4: =DU4 ->  | DY4: Flush | DZ4: =IF(AND(AI25=AJ25,AJ25=AK25,AK25=AL25,AL25=AM25),1,0) ->  | EB4: =DZ4 ->  | EC4: =IF(AND(AQ25=AR25,AR25=AS25,AS25=AT25,AT25=AU25),1,0) ->  | EE4: =EC4 ->  | EF4: =IF(AND(AY25=AZ25,AZ25=BA25,BA25=BB25,BB25=BC25),1,0) ->  | EH4: =EF4 ->  | EJ4: Straight | EK4: =IF( OR( AND(AI4<10,AJ4=AI4+1,AK4=AJ4+1,AL4=AK4+1,AM4=AL4+1), AND(AI4=10,AJ4=11,AK4=12,AL4=13,AM4=1) ),1,0) ->  | EL4: =IF(AND(AI25=AJ25,AJ25=AK25,AK25=AL25,AL25=AM25),0,1) ->  | EM4: =EK4*EL4 ->  | EN4: =IF(OR( AND(AQ4<10,AR4=AQ4+1,AS4=AR4+1,AT4=AS4+1,AU4=AT4+1), AND(AQ4=10,AR4=11,AS4=12,AT4=13,AU4=1), ),1,0) ->  | EO4: =IF(AND(AQ25=AR25,AR25=AS25,AS25=AT25,AT25=AU25),0,1) ->  | EP4: =EN4*EO4 ->  | EQ4: =IF(OR( AND(AY4<10,AZ4=AY4+1,BA4=AZ4+1,BB4=BA4+1,BC4=BB4+1), AND(AY4=10,AZ4=11,BA4=12,BB4=13,BC4=1) ),1,0) ->  | ER4: =IF(AND(AY25=AZ25,AZ25=BA25,BA25=BB25,BB25=BC25),0,1) ->  | ES4: =EQ4*ER4 ->  | EU4: Three of a Kind | EV4: =IF(OR(AND(AI4=AJ4,AJ4=AK4,AL4<>AM4),AND(AI4<>AJ4,AK4=AL4,AL4=AM4),AND(AJ4=AK4,AK4=AL4)),1,0) ->  | EX4: =EV4 ->  | EY4: =IF(OR(AND(AQ4=AR4,AR4=AS4,AT4<>AU4),AND(AQ4<>AR4,AS4=AT4,AT4=AU4),AND(AR4=AS4,AS4=AT4)),1,0) ->  | FA4: =EY4 ->  | FB4: =IF(OR(AND(AY4=AZ4,AZ4=BA4,BB4<>BC4),AND(AY4<>AZ4,BA4=BB4,BB4=BC4),AND(AZ4=BA4,BA4=BB4)),1,0) ->  | FD4: =FB4 ->  | FF4: Two Pair | FG4: =IF(OR(AND(AI4=AJ4,AK4=AL4,AM4<>AI4,AM4<>AK4,AJ4<>AK4),AND(AJ4=AK4,AL4=AM4,AI4<>AJ4,AI4<>AL4,AK4<>AL4),AND(AI4=AJ4,AL4=AM4,AK4<>AJ4,AK4<>AL4,AJ4<>AL4)),1,0) ->  | FI4: =FG4 ->  | FJ4: =IF(OR(AND(AQ4=AR4,AS4=AT4,AU4<>AQ4,AU4<>AS4,AR4<>AS4),AND(AR4=AS4,AT4=AU4,AQ4<>AR4,AQ4<>AT4,AS4<>AT4),AND(AQ4=AR4,AT4=AU4,AS4<>AR4,AS4<>AT4,AR4<>AT4)),1,0) ->  | FL4: =FJ4 ->  | FM4: =IF(OR(AND(AY4=AZ4,BA4=BB4,BC4<>AY4,BC4<>BA4,AZ4<>BA4),AND(AZ4=BA4,BB4=BC4,AY4<>AZ4,AY4<>BB4,BA4<>BB4),AND(AY4=AZ4,BB4=BC4,BA4<>AZ4,BA4<>BB4,AZ4<>BB4)),1,0) ->  | FO4: =FM4 ->  | FQ4: One Pair | FR4: =IF(OR(AND(AI4=AJ4,AJ4<>AK4,AK4<>AL4,AL4<>AM4),AND(AI4<>AJ4,AJ4=AK4,AK4<>AL4,AL4<>AM4),AND(AI4<>AJ4,AJ4<>AK4,AK4=AL4,AL4<>AM4),AND(AI4<>AJ4,AJ4<>AK4,AK4<>AL4,AL4=AM4)),1,0) ->  | FT4: =FR4 ->  | FU4: =IF(OR(AND(AQ4=AR4,AR4<>AS4,AS4<>AT4,AT4<>AU4),AND(AQ4<>AR4,AR4=AS4,AS4<>AT4,AT4<>AU4),AND(AQ4<>AR4,AR4<>AS4,AS4=AT4,AT4<>AU4),AND(AQ4<>AR4,AR4<>AS4,AS4<>AT4,AT4=AU4)),1,0) ->  | FW4: =FU4 ->  | FX4: =IF(OR(AND(AY4=AZ4,AZ4<>BA4,BA4<>BB4,BB4<>BC4),AND(AY4<>AZ4,AZ4=BA4,BA4<>BB4,BB4<>BC4),AND(AY4<>AZ4,AZ4<>BA4,BA4=BB4,BB4<>BC4),AND(AY4<>AZ4,AZ4<>BA4,BA4<>BB4,BB4=BC4)),1,0) ->  | FZ4: =FX4 ->  | GB4: High Card | GC4: =IF(AND(AI4<>AJ4,AJ4<>AK4,AK4<>AL4,AL4<>AM4),1,0) ->  | GE4: =GC4 ->  | GF4: =IF(AND(AQ4<>AR4,AR4<>AS4,AS4<>AT4,AT4<>AU4),1,0) ->  | GH4: =GF4 ->  | GI4: =IF(AND(AY4<>AZ4,AZ4<>BA4,BA4<>BB4,BB4<>BC4),1,0) ->  | GK4: =GI4 -> 
A5: 5 | B5: ♠5 | C5: 0.07341915369 | D5: 46 | E5: S | F5: 5 | H5: Flush | I5: 5 | L5: =HLOOKUP(L7,$L$1:$P$4,3,0) ->  | M5: =HLOOKUP(M7,$L$1:$P$4,3,0) ->  | N5: =HLOOKUP(N7,$L$1:$P$4,3,0) ->  | O5: =HLOOKUP(O7,$L$1:$P$4,3,0) ->  | P5: =HLOOKUP(P7,$L$1:$P$4,3,0) ->  | R5: =HLOOKUP(R7,$R$1:$V$4,3,0) ->  | S5: =HLOOKUP(S7,$R$1:$V$4,3,0) ->  | T5: =HLOOKUP(T7,$R$1:$V$4,3,0) ->  | U5: =HLOOKUP(U7,$R$1:$V$4,3,0) ->  | V5: =HLOOKUP(V7,$R$1:$V$4,3,0) ->  | X5: =HLOOKUP(X7,$X$1:$AB$4,3,0) ->  | Y5: =HLOOKUP(Y7,$X$1:$AB$4,3,0) ->  | AH5: 2 | AI5: =L14 ->  | AJ5: =M14 ->  | AK5: =N14 ->  | AL5: =O14 ->  | AM5: =P14 ->  | AN5: =INDEX($BV$15:$BV$24,MATCH(1,$BY$15:$BY$24,0)) ->  | AP5: 2 | AQ5: =R14 ->  | AR5: =S14 ->  | AS5: =T14 ->  | AT5: =U14 ->  | AU5: =V14 ->  | AV5: =INDEX($BV$15:$BV$24,MATCH(1,$CB$15:$CB$24,0)) ->  | AX5: 2 | AY5: =X14 ->  | AZ5: =Y14 ->  | BA5: =Z14 ->  | BB5: =AA14 ->  | BC5: =AB14 ->  | BD5: =INDEX($BV$15:$BV$24,MATCH(1,$CE$15:$CE$24,0)) ->  | BU5: 2 | BV5: =CR4 -> Straight Flush | BW5: =CS4 ->  | BX5: =CT4 ->  | BY5: =CU4 ->  | BZ5: =CV4 ->  | CA5: =CW4 ->  | CB5: =CX4 ->  | CC5: =CY4 ->  | CD5: =CZ4 ->  | CE5: =DA4 ->  | CG5: Royal Flush | CR5: Straight Flush | CS5: =IF(OR(AND(AI5<10,AJ5=AI5+1,AK5=AJ5+1,AL5=AK5+1,AM5=AL5+1),AND(AI5=2,AJ5=3,AK5=4,AL5=5,AM5=1)),1,0) ->  | CV5: =IF(OR(AND(AQ5<10,AR5=AQ5+1,AS5=AR5+1,AT5=AS5+1,AU5=AT5+1),AND(AQ5=2,AR5=3,AS5=4,AT5=5,AU5=1)),1,0) ->  | CX5: =CV5*CW5 ->  | CY5: =IF(OR(AND(AY5<10,AZ5=AY5+1,BA5=AZ5+1,BB5=BA5+1,BC5=BB5+1),AND(AY5=2,AZ5=3,BA5=4,BB5=5,BC5=1)),1,0) ->  | DA5: =CY5*CZ5 ->  | DC5: Four of a Kind | DL5: =DJ5 ->  | DN5: Full House | DY5: Flush | EJ5: Straight | EK5: =IF( OR( AND(AI5<10,AJ5=AI5+1,AK5=AJ5+1,AL5=AK5+1,AM5=AL5+1), AND(AI5=10,AJ5=11,AK5=12,AL5=13,AM5=1) ),1,0) ->  | EL5: =IF(AND(AI26=AJ26,AJ26=AK26,AK26=AL26,AL26=AM26),0,1) ->  | EN5: =IF(OR( AND(AQ5<10,AR5=AQ5+1,AS5=AR5+1,AT5=AS5+1,AU5=AT5+1), AND(AQ5=10,AR5=11,AS5=12,AT5=13,AU5=1), ),1,0) ->  | EQ5: =IF(OR( AND(AY5<10,AZ5=AY5+1,BA5=AZ5+1,BB5=BA5+1,BC5=BB5+1), AND(AY5=10,AZ5=11,BA5=12,BB5=13,BC5=1) ),1,0) ->  | EU5: Three of a Kind | FF5: Two Pair | FQ5: One Pair | GB5: High Card
A6: 6 | B6: ♠6 | C6: 0.8549630046 | D6: 4 | E6: S | F6: 6 | H6: Straight | I6: 6 | L6: =HLOOKUP(L7,$L$1:$P$4,4,0) ->  | M6: =HLOOKUP(M7,$L$1:$P$4,4,0) ->  | N6: =HLOOKUP(N7,$L$1:$P$4,4,0) ->  | O6: =HLOOKUP(O7,$L$1:$P$4,4,0) ->  | P6: =HLOOKUP(P7,$L$1:$P$4,4,0) ->  | R6: =HLOOKUP(R7,$R$1:$V$4,4,0) ->  | S6: =HLOOKUP(S7,$R$1:$V$4,4,0) ->  | T6: =HLOOKUP(T7,$R$1:$V$4,4,0) ->  | U6: =HLOOKUP(U7,$R$1:$V$4,4,0) ->  | V6: =HLOOKUP(V7,$R$1:$V$4,4,0) ->  | X6: =HLOOKUP(X7,$X$1:$AB$4,4,0) ->  | Y6: =HLOOKUP(Y7,$X$1:$AB$4,4,0) ->  | AH6: 3 | AI6: =L23 ->  | AJ6: =M23 ->  | AK6: =N23 ->  | AL6: =O23 ->  | AM6: =P23 ->  | AN6: =INDEX($BV$26:$BV$35,MATCH(1,$BY$26:$BY$35,0)) ->  | AP6: 3 | AQ6: =R23 ->  | AR6: =S23 ->  | AS6: =T23 ->  | AT6: =U23 ->  | AU6: =V23 ->  | AV6: =INDEX($BV$26:$BV$35,MATCH(1,$CB$26:$CB$35,0)) ->  | AX6: 3 | AY6: =X23 ->  | AZ6: =Y23 ->  | BA6: =Z23 ->  | BB6: =AA23 ->  | BC6: =AB23 ->  | BD6: =INDEX($BV$26:$BV$35,MATCH(1,$CE$26:$CE$35,0)) ->  | BU6: 3 | BV6: =DC4 -> Four of a Kind | BW6: =DD4 ->  | BX6: =DE4 -> 0 | BY6: =DF4 ->  | BZ6: =DG4 ->  | CA6: =DH4 -> 0 | CB6: =DI4 ->  | CC6: =DJ4 ->  | CD6: =DK4 -> 0 | CE6: =DL4 ->  | CG6: Royal Flush | CR6: Straight Flush | DC6: Four of a Kind | DN6: Full House | DY6: Flush | EJ6: Straight | EU6: Three of a Kind | FF6: Two Pair | FQ6: One Pair | GB6: High Card
A7: 7 | B7: ♠7 | C7: 0.9623439908 | D7: 1 | E7: S | F7: 7 | H7: Three of a Kind | I7: 7 | L7: 1 | M7: 2 | N7: 3 | O7: 4 | P7: 5 | R7: 1 | S7: 2 | T7: 3 | U7: 4 | V7: 5 | X7: 1 | Y7: 2 | Z7: 3 | AA7: 4 | AB7: 5 | AH7: 4 | AI7: =L32 ->  | AJ7: =M32 ->  | AK7: =N32 ->  | AL7: =O32 ->  | AM7: =P32 ->  | AN7: =INDEX($BV$37:$BV$46,MATCH(1,$BY$37:$BY$46,0)) ->  | AP7: 4 | AQ7: =R32 ->  | AR7: =S32 ->  | AS7: =T32 ->  | AT7: =U32 ->  | AU7: =V32 ->  | AV7: =INDEX($BV$37:$BV$46,MATCH(1,$CB$37:$CB$46,0)) ->  | AX7: 4 | AY7: =X32 ->  | AZ7: =Y32 ->  | BA7: =Z32 ->  | BB7: =AA32 ->  | BC7: =AB32 ->  | BD7: =INDEX($BV$37:$BV$46,MATCH(1,$CE$37:$CE$46,0)) ->  | BU7: 4 | BV7: =DN4 -> Full House | BW7: =DO4 ->  | BX7: =DP4 -> 0 | BY7: =DQ4 ->  | BZ7: =DR4 ->  | CA7: =DS4 -> 0 | CB7: =DT4 ->  | CC7: =DU4 ->  | CD7: =DV4 -> 0 | CE7: =DW4 ->  | CG7: Royal Flush | CR7: Straight Flush | DC7: Four of a Kind | DN7: Full House | DY7: Flush | EJ7: Straight | EU7: Three of a Kind | FF7: Two Pair | FQ7: One Pair | GB7: High Card
A8: 8 | B8: ♠8 | C8: 0.09014981985 | D8: 44 | E8: S | F8: 8 | H8: Two Pair | I8: 8 | L8: =L3+IF(L3=1,13+RAND()^3,RAND()^3) ->  | M8: =M3+IF(M3=1,13+RAND()^3,RAND()^3) ->  | Q8: 0.02217512568 | W8: 6.151376248e-06 | AH8: 5 | AI8: =L41 ->  | AJ8: =M41 ->  | AK8: =N41 ->  | AL8: =O41 ->  | AM8: =P41 ->  | AN8: =INDEX($BV$48:$BV$57,MATCH(1,$BY$48:$BY$57,0)) ->  | AP8: 5 | AQ8: =R41 ->  | AR8: =S41 ->  | AS8: =T41 ->  | AT8: =U41 ->  | AU8: =V41 ->  | AV8: =INDEX($BV$48:$BV$57,MATCH(1,$CB$48:$CB$57,0)) ->  | AX8: 5 | AY8: =X41 ->  | AZ8: =Y41 ->  | BA8: =Z41 ->  | BB8: =AA41 ->  | BC8: =AB41 ->  | BD8: =INDEX($BV$48:$BV$57,MATCH(1,$CE$48:$CE$57,0)) ->  | BU8: 5 | BV8: =DY4 -> Flush | BW8: =DZ4 ->  | BX8: =EA4 -> 0 | BY8: =EB4 ->  | BZ8: =EC4 ->  | CA8: =ED4 -> 0 | CB8: =EE4 ->  | CC8: =EF4 ->  | CD8: =EG4 -> 0 | CE8: =EH4 ->  | CG8: Royal Flush | CR8: Straight Flush | DC8: Four of a Kind | DN8: Full House | DY8: Flush | EJ8: Straight | EU8: Three of a Kind | FF8: Two Pair | FQ8: One Pair | GB8: High Card
A9: 9 | B9: ♠9 | C9: 0.1927948594 | D9: 37 | E9: S | F9: 9 | H9: One Pair | I9: 9 | AH9: 6 | AI9: =L50 ->  | AJ9: =M50 ->  | AK9: =N50 ->  | AL9: =O50 ->  | AM9: =P50 ->  | AN9: =INDEX($BV$59:$BV$68,MATCH(1,$BY$59:$BY$68,0)) ->  | AP9: 6 | AQ9: =R50 ->  | AR9: =S50 ->  | AS9: =T50 ->  | AT9: =U50 ->  | AU9: =V50 ->  | AV9: =INDEX($BV$59:$BV$68,MATCH(1,$CB$59:$CB$68,0)) ->  | AX9: 6 | AY9: =X50 ->  | AZ9: =Y50 ->  | BA9: =Z50 ->  | BB9: =AA50 ->  | BC9: =AB50 ->  | BD9: =INDEX($BV$59:$BV$68,MATCH(1,$CE$59:$CE$68,0)) ->  | BU9: 6 | BV9: =EJ4 -> Straight | BW9: =EK4 ->  | BX9: =EL4 ->  | BY9: =EM4 ->  | BZ9: =EN4 ->  | CA9: =EO4 ->  | CB9: =EP4 ->  | CC9: =EQ4 ->  | CD9: =ER4 ->  | CE9: =ES4 ->  | CG9: Royal Flush | CR9: Straight Flush | DC9: Four of a Kind | DN9: Full House | DY9: Flush | EJ9: Straight | EU9: Three of a Kind | FF9: Two Pair | FQ9: One Pair | GB9: High Card
A10: 10 | B10: ♠10 | C10: 0.1881334186 | D10: 39 | E10: S | F10: 10 | H10: High Card | I10: 10 | L10: =RANK(L17,$L$17:$P$17,1) ->  | M10: =RANK(M17,$L$17:$P$17,1) ->  | N10: =RANK(N17,$L$17:$P$17,1) ->  | O10: =RANK(O17,$L$17:$P$17,1) ->  | P10: =RANK(P17,$L$17:$P$17,1) ->  | R10: =RANK(R17,$R$17:$V$17,1) ->  | S10: =RANK(S17,$R$17:$V$17,1) ->  | T10: =RANK(T17,$R$17:$V$17,1) ->  | U10: =RANK(U17,$R$17:$V$17,1) ->  | V10: =RANK(V17,$R$17:$V$17,1) ->  | X10: =RANK(X17,$X$17:$AB$17,1) ->  | Y10: =RANK(Y17,$X$17:$AB$17,1) ->  | AH10: 7 | AI10: =L59 ->  | AJ10: =M59 ->  | AK10: =N59 ->  | AL10: =O59 ->  | AM10: =P59 ->  | AN10: =INDEX($BV$70:$BV$79,MATCH(1,$BY$70:$BY$79,0)) ->  | AP10: 7 | AQ10: =R59 ->  | AR10: =S59 ->  | AS10: =T59 ->  | AT10: =U59 ->  | AU10: =V59 ->  | AV10: =INDEX($BV$70:$BV$79,MATCH(1,$CB$70:$CB$79,0)) ->  | AX10: 7 | AY10: =X59 ->  | AZ10: =Y59 ->  | BA10: =Z59 ->  | BB10: =AA59 ->  | BC10: =AB59 ->  | BD10: =INDEX($BV$70:$BV$79,MATCH(1,$CE$70:$CE$79,0)) ->  | BU10: 7 | BV10: =EU4 -> Three of a Kind | BW10: =EV4 ->  | BX10: =EW4 -> 0 | BY10: =EX4 ->  | BZ10: =EY4 ->  | CA10: =EZ4 -> 0 | CB10: =FA4 ->  | CC10: =FB4 ->  | CD10: =FC4 -> 0 | CE10: =FD4 ->  | CG10: Royal Flush | CR10: Straight Flush | DC10: Four of a Kind | DN10: Full House | DY10: Flush | EJ10: Straight | EU10: Three of a Kind | FF10: Two Pair | FQ10: One Pair | GB10: High Card
A11: 11 | B11: ♠J | C11: 0.289979279 | D11: 32 | E11: S | F11: 11 | J11: 2 | L11: =[0]!Player11 -> 0 | M11: =[0]!Player12 -> 0 | N11: =[0]!House1 -> 0 | O11: =[0]!House2 -> 0 | P11: =[0]!House4 -> 0 | R11: =[0]!Player21 -> 0 | S11: =[0]!Player22 -> 0 | T11: =[0]!House1 -> 0 | U11: =[0]!House2 -> 0 | V11: =[0]!House4 -> 0 | X11: =[0]!Player31 -> 0 | Y11: =[0]!Player32 -> 0 | Z11: =[0]!House1 -> 0 | AA11: =[0]!House2 -> 0 | AB11: =[0]!House4 -> 0 | AH11: 8 | AI11: =L68 ->  | AJ11: =M68 ->  | AK11: =N68 ->  | AL11: =O68 ->  | AM11: =P68 ->  | AN11: =INDEX($BV$81:$BV$90,MATCH(1,$BY$81:$BY$90,0)) ->  | AP11: 8 | AQ11: =R68 ->  | AR11: =S68 ->  | AS11: =T68 ->  | AT11: =U68 ->  | AU11: =V68 ->  | AV11: =INDEX($BV$81:$BV$90,MATCH(1,$CB$81:$CB$90,0)) ->  | AX11: 8 | AY11: =X68 ->  | AZ11: =Y68 ->  | BA11: =Z68 ->  | BB11: =AA68 ->  | BC11: =AB68 ->  | BD11: =INDEX($BV$81:$BV$90,MATCH(1,$CE$81:$CE$90,0)) ->  | BU11: 8 | BV11: =FF4 -> Two Pair | BW11: =FG4 ->  | BX11: =FH4 -> 0 | BY11: =FI4 ->  | BZ11: =FJ4 ->  | CA11: =FK4 -> 0 | CB11: =FL4 ->  | CC11: =FM4 ->  | CD11: =FN4 -> 0 | CE11: =FO4 ->  | CG11: Royal Flush | CR11: Straight Flush | DC11: Four of a Kind | DN11: Full House | DY11: Flush | EJ11: Straight | EU11: Three of a Kind | FF11: Two Pair | FQ11: One Pair | GB11: High Card
A12: 12 | B12: ♠Q | C12: 0.0007814764977 | D12: 52 | E12: S | F12: 12 | L12: =VLOOKUP(L11,$B$1:$F$52,5,0) ->  | M12: =VLOOKUP(M11,$B$1:$F$52,5,0) ->  | N12: =VLOOKUP(N11,$B$1:$F$52,5,0) ->  | O12: =VLOOKUP(O11,$B$1:$F$52,5,0) ->  | P12: =VLOOKUP(P11,$B$1:$F$52,5,0) ->  | R12: =VLOOKUP(R11,$B$1:$F$52,5,0) ->  | S12: =VLOOKUP(S11,$B$1:$F$52,5,0) ->  | T12: =VLOOKUP(T11,$B$1:$F$52,5,0) ->  | U12: =VLOOKUP(U11,$B$1:$F$52,5,0) ->  | V12: =VLOOKUP(V11,$B$1:$F$52,5,0) ->  | X12: =VLOOKUP(X11,$B$1:$F$52,5,0) ->  | Y12: =VLOOKUP(Y11,$B$1:$F$52,5,0) ->  | Z12: =VLOOKUP(Z11,$B$1:$F$52,5,0) ->  | AA12: =VLOOKUP(AA11,$B$1:$F$52,5,0) ->  | AB12: =VLOOKUP(AB11,$B$1:$F$52,5,0) ->  | AH12: 9 | AI12: =L77 ->  | AJ12: =M77 ->  | AK12: =N77 ->  | AL12: =O77 ->  | AM12: =P77 ->  | AN12: =INDEX($BV$92:$BV$101,MATCH(1,$BY$92:$BY$101,0)) ->  | AP12: 9 | AQ12: =R77 ->  | AR12: =S77 ->  | AS12: =T77 ->  | AT12: =U77 ->  | AU12: =V77 ->  | AV12: =INDEX($BV$92:$BV$101,MATCH(1,$CB$92:$CB$101,0)) ->  | AX12: 9 | AY12: =X77 ->  | AZ12: =Y77 ->  | BA12: =Z77 ->  | BB12: =AA77 ->  | BC12: =AB77 ->  | BD12: =INDEX($BV$92:$BV$101,MATCH(1,$CE$92:$CE$101,0)) ->  | BU12: 9 | BV12: =FQ4 -> One Pair | BW12: =FR4 ->  | BX12: =FS4 -> 0 | BY12: =FT4 ->  | BZ12: =FU4 ->  | CA12: =FV4 -> 0 | CB12: =FW4 ->  | CC12: =FX4 ->  | CD12: =FY4 -> 0 | CE12: =FZ4 ->  | CG12: Royal Flush | CR12: Straight Flush | DC12: Four of a Kind | DN12: Full House | DY12: Flush | EJ12: Straight | EU12: Three of a Kind | FF12: Two Pair | FQ12: One Pair | GB12: High Card
A13: 13 | B13: ♠K | C13: 0.04570633173 | D13: 48 | E13: S | F13: 13 | L13: =VLOOKUP(L11,$B$1:$F$52,4,0) ->  | M13: =VLOOKUP(M11,$B$1:$F$52,4,0) ->  | N13: =VLOOKUP(N11,$B$1:$F$52,4,0) ->  | O13: =VLOOKUP(O11,$B$1:$F$52,4,0) ->  | P13: =VLOOKUP(P11,$B$1:$F$52,4,0) ->  | R13: =VLOOKUP(R11,$B$1:$F$52,4,0) ->  | S13: =VLOOKUP(S11,$B$1:$F$52,4,0) ->  | T13: =VLOOKUP(T11,$B$1:$F$52,4,0) ->  | U13: =VLOOKUP(U11,$B$1:$F$52,4,0) ->  | V13: =VLOOKUP(V11,$B$1:$F$52,4,0) ->  | X13: =VLOOKUP(X11,$B$1:$F$52,4,0) ->  | Y13: =VLOOKUP(Y11,$B$1:$F$52,4,0) ->  | Z13: =VLOOKUP(Z11,$B$1:$F$52,4,0) ->  | AA13: =VLOOKUP(AA11,$B$1:$F$52,4,0) ->  | AB13: =VLOOKUP(AB11,$B$1:$F$52,4,0) ->  | AH13: 10 | AI13: =L86 ->  | AJ13: =M86 ->  | AK13: =N86 ->  | AL13: =O86 ->  | AM13: =P86 ->  | AN13: =INDEX($BV$103:$BV$112,MATCH(1,$BY$103:$BY$112,0)) ->  | AP13: 10 | AQ13: =R86 ->  | AR13: =S86 ->  | AS13: =T86 ->  | AT13: =U86 ->  | AU13: =V86 ->  | AV13: =INDEX($BV$103:$BV$112,MATCH(1,$CB$103:$CB$112,0)) ->  | AX13: 10 | AY13: =X86 ->  | AZ13: =Y86 ->  | BA13: =Z86 ->  | BB13: =AA86 ->  | BC13: =AB86 ->  | BD13: =INDEX($BV$103:$BV$112,MATCH(1,$CE$103:$CE$112,0)) ->  | BU13: 10 | BV13: =GB4 -> High Card | BW13: =GC4 ->  | BX13: =GD4 -> 0 | BY13: =GE4 ->  | BZ13: =GF4 ->  | CA13: =GG4 -> 0 | CB13: =GH4 ->  | CC13: =GI4 ->  | CD13: =GJ4 -> 0 | CE13: =GK4 ->  | CG13: Royal Flush | CR13: Straight Flush | DC13: Four of a Kind | DN13: Full House | DY13: Flush | EJ13: Straight | EU13: Three of a Kind | FF13: Two Pair | FQ13: One Pair | GB13: High Card
A14: 14 | B14: ♣A | C14: 0.7793757319 | D14: 9 | E14: C | F14: 1 | L14: =HLOOKUP(L16,$L$10:$P$13,3,0) ->  | M14: =HLOOKUP(M16,$L$10:$P$13,3,0) ->  | N14: =HLOOKUP(N16,$L$10:$P$13,3,0) ->  | O14: =HLOOKUP(O16,$L$10:$P$13,3,0) ->  | P14: =HLOOKUP(P16,$L$10:$P$13,3,0) ->  | R14: =HLOOKUP(R16,$R$10:$V$13,3,0) ->  | S14: =HLOOKUP(S16,$R$10:$V$13,3,0) ->  | T14: =HLOOKUP(T16,$R$10:$V$13,3,0) ->  | U14: =HLOOKUP(U16,$R$10:$V$13,3,0) ->  | V14: =HLOOKUP(V16,$R$10:$V$13,3,0) ->  | X14: =HLOOKUP(X16,$X$10:$AB$13,3,0) ->  | Y14: =HLOOKUP(Y16,$X$10:$AB$13,3,0) ->  | AH14: 11 | AI14: =L95 ->  | AJ14: =M95 ->  | AK14: =N95 ->  | AL14: =O95 ->  | AM14: =P95 ->  | AN14: =INDEX($BV$114:$BV$123,MATCH(1,$BY$114:$BY$123,0)) ->  | AP14: 11 | AQ14: =R95 ->  | AR14: =S95 ->  | AS14: =T95 ->  | AT14: =U95 ->  | AU14: =V95 ->  | AV14: =INDEX($BV$114:$BV$123,MATCH(1,$CB$114:$CB$123,0)) ->  | AX14: 11 | AY14: =X95 ->  | AZ14: =Y95 ->  | BA14: =Z95 ->  | BB14: =AA95 ->  | BC14: =AB95 ->  | BD14: =INDEX($BV$114:$BV$123,MATCH(1,$CE$114:$CE$123,0)) ->  | CG14: Royal Flush | CR14: Straight Flush | DC14: Four of a Kind | DN14: Full House | DY14: Flush | EJ14: Straight | EU14: Three of a Kind | FF14: Two Pair | FQ14: One Pair | GB14: High Card
A15: 15 | B15: ♣2 | C15: 0.846511662 | D15: 5 | E15: C | F15: 2 | L15: =HLOOKUP(L16,$L$10:$P$13,4,0) ->  | M15: =HLOOKUP(M16,$L$10:$P$13,4,0) ->  | N15: =HLOOKUP(N16,$L$10:$P$13,4,0) ->  | O15: =HLOOKUP(O16,$L$10:$P$13,4,0) ->  | P15: =HLOOKUP(P16,$L$10:$P$13,4,0) ->  | R15: =HLOOKUP(R16,$R$10:$V$13,4,0) ->  | S15: =HLOOKUP(S16,$R$10:$V$13,4,0) ->  | T15: =HLOOKUP(T16,$R$10:$V$13,4,0) ->  | U15: =HLOOKUP(U16,$R$10:$V$13,4,0) ->  | V15: =HLOOKUP(V16,$R$10:$V$13,4,0) ->  | X15: =HLOOKUP(X16,$X$10:$AB$13,4,0) ->  | Y15: =HLOOKUP(Y16,$X$10:$AB$13,4,0) ->  | AH15: 12 | AI15: =L104 ->  | AJ15: =M104 ->  | AK15: =N104 ->  | AL15: =O104 ->  | AM15: =P104 ->  | AN15: =INDEX($BV$125:$BV$134,MATCH(1,$BY$125:$BY$134,0)) ->  | AP15: 12 | AQ15: =R104 ->  | AR15: =S104 ->  | AS15: =T104 ->  | AT15: =U104 ->  | AU15: =V104 ->  | AV15: =INDEX($BV$125:$BV$134,MATCH(1,$CB$125:$CB$134,0)) ->  | AX15: 12 | AY15: =X104 ->  | AZ15: =Y104 ->  | BA15: =Z104 ->  | BB15: =AA104 ->  | BC15: =AB104 ->  | BD15: =INDEX($BV$125:$BV$134,MATCH(1,$CE$125:$CE$134,0)) ->  | BU15: 2 | BV15: =CG5 -> Royal Flush | BW15: =CH5 ->  | BX15: =CI5 ->  | BY15: =CJ5 ->  | BZ15: =CK5 ->  | CA15: =CL5 ->  | CB15: =CM5 ->  | CC15: =CN5 ->  | CD15: =CO5 ->  | CE15: =CP5 ->  | CG15: Royal Flush | CR15: Straight Flush | DC15: Four of a Kind | DN15: Full House | DY15: Flush | EJ15: Straight | EU15: Three of a Kind | FF15: Two Pair | FQ15: One Pair | GB15: High Card
A16: 16 | B16: ♣3 | C16: 0.1277369857 | D16: 41 | E16: C | F16: 3 | L16: 1 | M16: 2 | N16: 3 | O16: 4 | P16: 5 | R16: 1 | S16: 2 | T16: 3 | U16: 4 | V16: 5 | X16: 1 | Y16: 2 | Z16: 3 | AA16: 4 | AB16: 5 | AH16: 13 | AI16: =L113 ->  | AJ16: =M113 ->  | AK16: =N113 ->  | AL16: =O113 ->  | AM16: =P113 ->  | AN16: =INDEX($BV$136:$BV$145,MATCH(1,$BY$136:$BY$145,0)) ->  | AP16: 13 | AQ16: =R113 ->  | AR16: =S113 ->  | AS16: =T113 ->  | AT16: =U113 ->  | AU16: =V113 ->  | AV16: =INDEX($BV$136:$BV$145,MATCH(1,$CB$136:$CB$145,0)) ->  | AX16: 13 | AY16: =X113 ->  | AZ16: =Y113 ->  | BA16: =Z113 ->  | BB16: =AA113 ->  | BC16: =AB113 ->  | BD16: =INDEX($BV$136:$BV$145,MATCH(1,$CE$136:$CE$145,0)) ->  | BV16: =CR5 -> Straight Flush | BW16: =CS5 ->  | BX16: =CT5 ->  | BY16: =CU5 ->  | BZ16: =CV5 ->  | CA16: =CW5 ->  | CB16: =CX5 ->  | CC16: =CY5 ->  | CD16: =CZ5 ->  | CE16: =DA5 ->  | CG16: Royal Flush | CR16: Straight Flush | DC16: Four of a Kind | DN16: Full House | DY16: Flush | EJ16: Straight | EU16: Three of a Kind | FF16: Two Pair | FQ16: One Pair | GB16: High Card
A17: 17 | B17: ♣4 | C17: 0.2517824769 | D17: 34 | E17: C | F17: 4 | L17: =L12+IF(L12=1,13+RAND()^3,RAND()^3) ->  | M17: =M12+IF(M12=1,13+RAND()^3,RAND()^3) ->  | Q17: 4.655769914e-05 | W17: 0.00794380587 | AH17: 14 | AI17: =L122 ->  | AJ17: =M122 ->  | AK17: =N122 ->  | AL17: =O122 ->  | AM17: =P122 ->  | AN17: =INDEX($BV$147:$BV$156,MATCH(1,$BY$147:$BY$156,0)) ->  | AP17: 14 | AQ17: =R122 ->  | AR17: =S122 ->  | AS17: =T122 ->  | AT17: =U122 ->  | AU17: =V122 ->  | AV17: =INDEX($BV$147:$BV$156,MATCH(1,$CB$147:$CB$156,0)) ->  | AX17: 14 | AY17: =X122 ->  | AZ17: =Y122 ->  | BA17: =Z122 ->  | BB17: =AA122 ->  | BC17: =AB122 ->  | BD17: =INDEX($BV$147:$BV$156,MATCH(1,$CE$147:$CE$156,0)) ->  | BV17: =DC5 -> Four of a Kind | BW17: =DD5 ->  | BX17: =DE5 -> 0 | BY17: =DF5 ->  | BZ17: =DG5 ->  | CA17: =DH5 -> 0 | CB17: =DI5 ->  | CC17: =DJ5 ->  | CD17: =DK5 -> 0 | CE17: =DL5 ->  | CG17: Royal Flush | CR17: Straight Flush | DC17: Four of a Kind | DN17: Full House | DY17: Flush | EJ17: Straight | EU17: Three of a Kind | FF17: Two Pair | FQ17: One Pair | GB17: High Card
A18: 18 | B18: ♣5 | C18: 0.205350101 | D18: 35 | E18: C | F18: 5 | AH18: 15 | AI18: =L131 ->  | AJ18: =M131 ->  | AK18: =N131 ->  | AL18: =O131 ->  | AM18: =P131 ->  | AN18: =INDEX($BV$158:$BV$167,MATCH(1,$BY$158:$BY$167,0)) ->  | AP18: 15 | AQ18: =R131 ->  | AR18: =S131 ->  | AS18: =T131 ->  | AT18: =U131 ->  | AU18: =V131 ->  | AV18: =INDEX($BV$158:$BV$167,MATCH(1,$CB$158:$CB$167,0)) ->  | AX18: 15 | AY18: =X131 ->  | AZ18: =Y131 ->  | BA18: =Z131 ->  | BB18: =AA131 ->  | BC18: =AB131 ->  | BD18: =INDEX($BV$158:$BV$167,MATCH(1,$CE$158:$CE$167,0)) ->  | BV18: =DN5 -> Full House | BW18: =DO5 ->  | BX18: =DP5 -> 0 | BY18: =DQ5 ->  | BZ18: =DR5 ->  | CA18: =DS5 -> 0 | CB18: =DT5 ->  | CC18: =DU5 ->  | CD18: =DV5 -> 0 | CE18: =DW5 ->  | CG18: Royal Flush | CR18: Straight Flush | DC18: Four of a Kind | DN18: Full House | DY18: Flush | EJ18: Straight | EU18: Three of a Kind | FF18: Two Pair | FQ18: One Pair | GB18: High Card
A19: 19 | B19: ♣6 | C19: 0.8218825459 | D19: 6 | E19: C | F19: 6 | L19: =RANK(L26,$L$26:$P$26,1) ->  | M19: =RANK(M26,$L$26:$P$26,1) ->  | N19: =RANK(N26,$L$26:$P$26,1) ->  | O19: =RANK(O26,$L$26:$P$26,1) ->  | P19: =RANK(P26,$L$26:$P$26,1) ->  | R19: =RANK(R26,$R$26:$V$26,1) ->  | S19: =RANK(S26,$R$26:$V$26,1) ->  | T19: =RANK(T26,$R$26:$V$26,1) ->  | U19: =RANK(U26,$R$26:$V$26,1) ->  | V19: =RANK(V26,$R$26:$V$26,1) ->  | X19: =RANK(X26,$X$26:$AB$26,1) ->  | Y19: =RANK(Y26,$X$26:$AB$26,1) ->  | AH19: 16 | AI19: =L140 ->  | AJ19: =M140 ->  | AK19: =N140 ->  | AL19: =O140 ->  | AM19: =P140 ->  | AN19: =INDEX($BV$169:$BV$178,MATCH(1,$BY$169:$BY$178,0)) ->  | AP19: 16 | AQ19: =R140 ->  | AR19: =S140 ->  | AS19: =T140 ->  | AT19: =U140 ->  | AU19: =V140 ->  | AV19: =INDEX($BV$169:$BV$178,MATCH(1,$CB$169:$CB$178,0)) ->  | AX19: 16 | AY19: =X140 ->  | AZ19: =Y140 ->  | BA19: =Z140 ->  | BB19: =AA140 ->  | BC19: =AB140 ->  | BD19: =INDEX($BV$169:$BV$178,MATCH(1,$CE$169:$CE$178,0)) ->  | BV19: =DY5 -> Flush | BW19: =DZ5 ->  | BX19: =EA5 -> 0 | BY19: =EB5 ->  | BZ19: =EC5 ->  | CA19: =ED5 -> 0 | CB19: =EE5 ->  | CC19: =EF5 ->  | CD19: =EG5 -> 0 | CE19: =EH5 ->  | CG19: Royal Flush | CR19: Straight Flush | DC19: Four of a Kind | DN19: Full House | DY19: Flush | EJ19: Straight | EU19: Three of a Kind | FF19: Two Pair | FQ19: One Pair | GB19: High Card
A20: 20 | B20: ♣7 | C20: 0.1804890037 | D20: 40 | E20: C | F20: 7 | J20: 3 | L20: =[0]!Player11 -> 0 | M20: =[0]!Player12 -> 0 | N20: =[0]!House1 -> 0 | O20: =[0]!House2 -> 0 | P20: =[0]!House5 -> 0 | R20: =[0]!Player21 -> 0 | S20: =[0]!Player22 -> 0 | T20: =[0]!House1 -> 0 | U20: =[0]!House2 -> 0 | V20: =[0]!House5 -> 0 | X20: =[0]!Player31 -> 0 | Y20: =[0]!Player32 -> 0 | Z20: =[0]!House1 -> 0 | AA20: =[0]!House2 -> 0 | AB20: =[0]!House5 -> 0 | AH20: 17 | AI20: =L149 ->  | AJ20: =M149 ->  | AK20: =N149 ->  | AL20: =O149 ->  | AM20: =P149 ->  | AN20: =INDEX($BV$180:$BV$189,MATCH(1,$BY$180:$BY$189,0)) ->  | AP20: 17 | AQ20: =R149 ->  | AR20: =S149 ->  | AS20: =T149 ->  | AT20: =U149 ->  | AU20: =V149 ->  | AV20: =INDEX($BV$180:$BV$189,MATCH(1,$CB$180:$CB$189,0)) ->  | AX20: 17 | AY20: =X149 ->  | AZ20: =Y149 ->  | BA20: =Z149 ->  | BB20: =AA149 ->  | BC20: =AB149 ->  | BD20: =INDEX($BV$180:$BV$189,MATCH(1,$CE$180:$CE$189,0)) ->  | BV20: =EJ5 -> Straight | BW20: =EK5 ->  | BX20: =EL5 ->  | BY20: =EM5 ->  | BZ20: =EN5 ->  | CA20: =EO5 ->  | CB20: =EP5 ->  | CC20: =EQ5 ->  | CD20: =ER5 ->  | CE20: =ES5 ->  | CG20: Royal Flush | CR20: Straight Flush | DC20: Four of a Kind | DN20: Full House | DY20: Flush | EJ20: Straight | EU20: Three of a Kind | FF20: Two Pair | FQ20: One Pair | GB20: High Card
A21: 21 | B21: ♣8 | C21: 0.1962772012 | D21: 36 | E21: C | F21: 8 | L21: =VLOOKUP(L20,$B$1:$F$52,5,0) ->  | M21: =VLOOKUP(M20,$B$1:$F$52,5,0) ->  | N21: =VLOOKUP(N20,$B$1:$F$52,5,0) ->  | O21: =VLOOKUP(O20,$B$1:$F$52,5,0) ->  | P21: =VLOOKUP(P20,$B$1:$F$52,5,0) ->  | R21: =VLOOKUP(R20,$B$1:$F$52,5,0) ->  | S21: =VLOOKUP(S20,$B$1:$F$52,5,0) ->  | T21: =VLOOKUP(T20,$B$1:$F$52,5,0) ->  | U21: =VLOOKUP(U20,$B$1:$F$52,5,0) ->  | V21: =VLOOKUP(V20,$B$1:$F$52,5,0) ->  | X21: =VLOOKUP(X20,$B$1:$F$52,5,0) ->  | Y21: =VLOOKUP(Y20,$B$1:$F$52,5,0) ->  | Z21: =VLOOKUP(Z20,$B$1:$F$52,5,0) ->  | AA21: =VLOOKUP(AA20,$B$1:$F$52,5,0) ->  | AB21: =VLOOKUP(AB20,$B$1:$F$52,5,0) ->  | AH21: 18 | AI21: =L158 ->  | AJ21: =M158 ->  | AK21: =N158 ->  | AL21: =O158 ->  | AM21: =P158 ->  | AN21: =INDEX($BV$191:$BV$200,MATCH(1,$BY$191:$BY$200,0)) ->  | AP21: 18 | AQ21: =R158 ->  | AR21: =S158 ->  | AS21: =T158 ->  | AT21: =U158 ->  | AU21: =V158 ->  | AV21: =INDEX($BV$191:$BV$200,MATCH(1,$CB$191:$CB$200,0)) ->  | AX21: 18 | AY21: =X158 ->  | AZ21: =Y158 ->  | BA21: =Z158 ->  | BB21: =AA158 ->  | BC21: =AB158 ->  | BD21: =INDEX($BV$191:$BV$200,MATCH(1,$CE$191:$CE$200,0)) ->  | BV21: =EU5 -> Three of a Kind | BW21: =EV5 ->  | BX21: =EW5 -> 0 | BY21: =EX5 ->  | BZ21: =EY5 ->  | CA21: =EZ5 -> 0 | CB21: =FA5 ->  | CC21: =FB5 ->  | CD21: =FC5 -> 0 | CE21: =FD5 ->  | CG21: Royal Flush | CR21: Straight Flush | DC21: Four of a Kind | DN21: Full House | DY21: Flush | EJ21: Straight | EU21: Three of a Kind | FF21: Two Pair | FQ21: One Pair | GB21: High Card
A22: 22 | B22: ♣9 | C22: 0.933341682 | D22: 2 | E22: C | F22: 9 | L22: =VLOOKUP(L20,$B$1:$F$52,4,0) ->  | M22: =VLOOKUP(M20,$B$1:$F$52,4,0) ->  | N22: =VLOOKUP(N20,$B$1:$F$52,4,0) ->  | O22: =VLOOKUP(O20,$B$1:$F$52,4,0) ->  | P22: =VLOOKUP(P20,$B$1:$F$52,4,0) ->  | R22: =VLOOKUP(R20,$B$1:$F$52,4,0) ->  | S22: =VLOOKUP(S20,$B$1:$F$52,4,0) ->  | T22: =VLOOKUP(T20,$B$1:$F$52,4,0) ->  | U22: =VLOOKUP(U20,$B$1:$F$52,4,0) ->  | V22: =VLOOKUP(V20,$B$1:$F$52,4,0) ->  | X22: =VLOOKUP(X20,$B$1:$F$52,4,0) ->  | Y22: =VLOOKUP(Y20,$B$1:$F$52,4,0) ->  | Z22: =VLOOKUP(Z20,$B$1:$F$52,4,0) ->  | AA22: =VLOOKUP(AA20,$B$1:$F$52,4,0) ->  | AB22: =VLOOKUP(AB20,$B$1:$F$52,4,0) ->  | AH22: 19 | AI22: =L167 ->  | AJ22: =M167 ->  | AK22: =N167 ->  | AL22: =O167 ->  | AM22: =P167 ->  | AN22: =INDEX($BV$202:$BV$211,MATCH(1,$BY$202:$BY$211,0)) ->  | AP22: 19 | AQ22: =R167 ->  | AR22: =S167 ->  | AS22: =T167 ->  | AT22: =U167 ->  | AU22: =V167 ->  | AV22: =INDEX($BV$202:$BV$211,MATCH(1,$CB$202:$CB$211,0)) ->  | AX22: 19 | AY22: =X167 ->  | AZ22: =Y167 ->  | BA22: =Z167 ->  | BB22: =AA167 ->  | BC22: =AB167 ->  | BD22: =INDEX($BV$202:$BV$211,MATCH(1,$CE$202:$CE$211,0)) ->  | BV22: =FF5 -> Two Pair | BW22: =FG5 ->  | BX22: =FH5 -> 0 | BY22: =FI5 ->  | BZ22: =FJ5 ->  | CA22: =FK5 -> 0 | CB22: =FL5 ->  | CC22: =FM5 ->  | CD22: =FN5 -> 0 | CE22: =FO5 ->  | CG22: Royal Flush | CR22: Straight Flush | DC22: Four of a Kind | DN22: Full House | DY22: Flush | EJ22: Straight | EU22: Three of a Kind | FF22: Two Pair | FQ22: One Pair | GB22: High Card
A23: 23 | B23: ♣10 | C23: 0.4216583371 | D23: 23 | E23: C | F23: 10 | L23: =HLOOKUP(L25,$L$19:$P$22,3,0) ->  | M23: =HLOOKUP(M25,$L$19:$P$22,3,0) ->  | N23: =HLOOKUP(N25,$L$19:$P$22,3,0) ->  | O23: =HLOOKUP(O25,$L$19:$P$22,3,0) ->  | P23: =HLOOKUP(P25,$L$19:$P$22,3,0) ->  | R23: =HLOOKUP(R25,$R$19:$V$22,3,0) ->  | S23: =HLOOKUP(S25,$R$19:$V$22,3,0) ->  | T23: =HLOOKUP(T25,$R$19:$V$22,3,0) ->  | U23: =HLOOKUP(U25,$R$19:$V$22,3,0) ->  | V23: =HLOOKUP(V25,$R$19:$V$22,3,0) ->  | X23: =HLOOKUP(X25,$X$19:$AB$22,3,0) ->  | Y23: =HLOOKUP(Y25,$X$19:$AB$22,3,0) ->  | AH23: 20 | AI23: =L176 ->  | AJ23: =M176 ->  | AK23: =N176 ->  | AL23: =O176 ->  | AM23: =P176 ->  | AN23: =INDEX($BV$213:$BV$222,MATCH(1,$BY$213:$BY$222,0)) ->  | AP23: 20 | AQ23: =R176 ->  | AR23: =S176 ->  | AS23: =T176 ->  | AT23: =U176 ->  | AU23: =V176 ->  | AV23: =INDEX($BV$213:$BV$222,MATCH(1,$CB$213:$CB$222,0)) ->  | AX23: 20 | AY23: =X176 ->  | AZ23: =Y176 ->  | BA23: =Z176 ->  | BB23: =AA176 ->  | BC23: =AB176 ->  | BD23: =INDEX($BV$213:$BV$222,MATCH(1,$CE$213:$CE$222,0)) ->  | BV23: =FQ5 -> One Pair | BW23: =FR5 ->  | BX23: =FS5 -> 0 | BY23: =FT5 ->  | BZ23: =FU5 ->  | CA23: =FV5 -> 0 | CB23: =FW5 ->  | CC23: =FX5 ->  | CD23: =FY5 -> 0 | CE23: =FZ5 ->  | CG23: Royal Flush | CR23: Straight Flush | DC23: Four of a Kind | DN23: Full House | DY23: Flush | EJ23: Straight | EU23: Three of a Kind | FF23: Two Pair | FQ23: One Pair | GB23: High Card
A24: 24 | B24: ♣J | C24: 0.009135186672 | D24: 50 | E24: C | F24: 11 | L24: =HLOOKUP(L25,$L$19:$P$22,4,0) ->  | M24: =HLOOKUP(M25,$L$19:$P$22,4,0) ->  | N24: =HLOOKUP(N25,$L$19:$P$22,4,0) ->  | O24: =HLOOKUP(O25,$L$19:$P$22,4,0) ->  | P24: =HLOOKUP(P25,$L$19:$P$22,4,0) ->  | R24: =HLOOKUP(R25,$R$19:$V$22,4,0) ->  | S24: =HLOOKUP(S25,$R$19:$V$22,4,0) ->  | T24: =HLOOKUP(T25,$R$19:$V$22,4,0) ->  | U24: =HLOOKUP(U25,$R$19:$V$22,4,0) ->  | V24: =HLOOKUP(V25,$R$19:$V$22,4,0) ->  | X24: =HLOOKUP(X25,$X$19:$AB$22,4,0) ->  | Y24: =HLOOKUP(Y25,$X$19:$AB$22,4,0) ->  | AH24: 21 | AI24: =L185 ->  | AJ24: =M185 ->  | AK24: =N185 ->  | AL24: =O185 ->  | AM24: =P185 ->  | AN24: =INDEX($BV$224:$BV$233,MATCH(1,$BY$224:$BY$233,0)) ->  | AP24: 21 | AQ24: =R185 ->  | AR24: =S185 ->  | AS24: =T185 ->  | AT24: =U185 ->  | AU24: =V185 ->  | AV24: =INDEX($BV$224:$BV$233,MATCH(1,$CB$224:$CB$233,0)) ->  | AX24: 21 | AY24: =X185 ->  | AZ24: =Y185 ->  | BA24: =Z185 ->  | BB24: =AA185 ->  | BC24: =AB185 ->  | BD24: =INDEX($BV$224:$BV$233,MATCH(1,$CE$224:$CE$233,0)) ->  | BV24: =GB5 -> High Card | BW24: =GC5 ->  | BX24: =GD5 -> 0 | BY24: =GE5 ->  | BZ24: =GF5 ->  | CA24: =GG5 -> 0 | CB24: =GH5 ->  | CC24: =GI5 ->  | CD24: =GJ5 -> 0 | CE24: =GK5 ->  | CG24: Royal Flush | CR24: Straight Flush | DC24: Four of a Kind | DN24: Full House | DY24: Flush | EJ24: Straight | EU24: Three of a Kind | FF24: Two Pair | FQ24: One Pair | GB24: High Card
A25: 25 | B25: ♣Q | C25: 0.5300694108 | D25: 20 | E25: C | F25: 12 | L25: 1 | M25: 2 | N25: 3 | O25: 4 | P25: 5 | R25: 1 | S25: 2 | T25: 3 | U25: 4 | V25: 5 | X25: 1 | Y25: 2 | Z25: 3 | AA25: 4 | AB25: 5 | AH25: 1 | AI25: =L6 ->  | AJ25: =M6 ->  | AK25: =N6 ->  | AL25: =O6 ->  | AM25: =P6 ->  | AP25: 1 | AQ25: =R6 ->  | AR25: =S6 ->  | AS25: =T6 ->  | AT25: =U6 ->  | AU25: =V6 ->  | AX25: 1 | AY25: =X6 ->  | AZ25: =Y6 ->  | BA25: =Z6 ->  | BB25: =AA6 ->  | BC25: =AB6 -> 
A26: 26 | B26: ♣K | C26: 0.8212606311 | D26: 7 | E26: C | F26: 13 | L26: =L21+IF(L21=1,13+RAND()^3,RAND()^3) ->  | M26: =M21+IF(M21=1,13+RAND()^3,RAND()^3) ->  | Q26: 6.173797388e-05 | W26: 0.04203049021 | AH26: 2 | AI26: =L15 ->  | AJ26: =M15 ->  | AK26: =N15 ->  | AL26: =O15 ->  | AM26: =P15 ->  | AP26: 2 | AQ26: =R15 ->  | AR26: =S15 ->  | AS26: =T15 ->  | AT26: =U15 ->  | AU26: =V15 ->  | AX26: 2 | AY26: =X15 ->  | AZ26: =Y15 ->  | BA26: =Z15 ->  | BB26: =AA15 ->  | BC26: =AB15 ->  | BU26: 3 | BV26: =CG6 -> Royal Flush | BW26: =CH6 ->  | BX26: =CI6 ->  | BY26: =CJ6 ->  | BZ26: =CK6 ->  | CA26: =CL6 ->  | CB26: =CM6 ->  | CC26: =CN6 ->  | CD26: =CO6 ->  | CE26: =CP6 -> 
